Workbook

Sheet Tips for Planning
A2: These are based in Mitch Lacey (MC) original instructions
A4: Project Preparation
A6: 1. Fill in the Team Roster, specially the alias that will be used in the other sheets. The alias should not be changed once used in the other sheets.
A7: MC also recomends to fill in the Sprint Vision (Team Roster!$C$4) so its clear for all members of the team.
A9: 2. Set the sprint start date in Capacity!$E$3 (this template version allows future dates)
A11: 3. Specify your options for the project in Analysis!E54:E55 (gray cells)
A13: a. SkipWeekends (Analysis!E54) - 0 = 30 days calendar; 1 = 30 working days. Do not switch after Sprint has started or data will be stored under wrong days.
A15: 4. Specify team capacity along the sprint in Capacity
A16: a. This template has 40 days please hide the unnecessary days (columns) starting on the right. (select the columns using the mouse cursor, right click and select Hide). Please do not delete columns.
A18: b. Fill in every team member capacity. You have two options:
A19: i. If there is a constant capacity you should use % allocation instead of hours and set all days to 8H
A20: ii. If there isn't a constant capacity you should use % allocation=100% and set the hours in the table from 0 to 8.
A22: c. Signal Hollidays, Off time and other activities as indicated in Capacity!K29:K31
A24: d. Capacity!B9:C11 show if the capacity is enough or exceds the current left effort. This requires that all task's responsibles are filled in. (see ATTENTION)
A25: Yellow signals under use of resources; red, over use
A27: Sprint Planning
A29: 5. Fill in the Sprint Backlog items in Sprint
A30: a. This template has 40 days. You can hide the unecessary days (columns) starting on the right. (select the columns using the mouse cursor, right click and select Hide). Please do not delete columns.
A32: b. You have the following columns:
A33: i. Worktype - select between Feature, Tax, Precondition or Spike.
A34: Feature - tasks regarding functionality that will be valuable to the user
A35: Tax - tasks regarding cost of doing business (in this case because of SCRUM)
A36: Precondition - tasks that must happen at the completion (for instance to guarantee quality - eg: code review)
A37: Spike - tasks regarding brief experiments to learn more about na area.
A38: ii. Delivery Area
A39: iii. Product Backlog Item or User Story
A40: iv. Product Backlog Item or User Story ID
A41: v. Task - Sprint Work item Description
A42: vi. Responsible - mandatory - fill in with "no one" if it is not yet assigned
A44: c. Weekend columns are signaled. If you decided to SkipWeekends, weeks will be separated by light orange lines.
A46: d. To insert a new row, copy & paste an existing row. To select na entire row click in the row number on the left. Copy and paste it.
A52: 6. Verify if the Timesheet AddIn is well configured in Sprint!$F2:$F3. The timesheet AddIn allows to import project hours already reported to SharePoint. To install this AddIn please ask for more information.
A54: If F and G columns are not visible, plese unhide them.
A58: a.TimesheetList2017 references the SharePoint List that keeps Timesheets from 2017. (You should change year if you are in a different year)
A60: b. Fill in [Timesheet Project Code] with your project code that appears in the Timesheet exactly as it is there.
A63: Analysis & Charts
A65: 7. Analyse your sprint performance in Analysis sheets
A66: a.This template has 40 days. You can hide the unecessary days (columns) starting on the right. (select the columns using the mouse cursor, right click and select Hide). Please do not delete columns.Once you hide the unecessary columns your charts will instantaneously adapt to the sprint duration.
A68: b. You can change burndown legend labels in Analysis!A1:A23 (gray cells)
A70: c. To remenber how you read burndowns
A71: i. If Current Remaining is bellow Planned Remaining it means that the team is going faster than expected
A72: ii. If Current Remaining is equal to Planned Remaining it means that the team is going as expected
A73: iii. If Current Remaining is above Planned Remaining it means that the team is going slower than expected
A75: iv. If Current Spent is bellow Planned Capacity it means that the team is working less time in the project that expected
A76: v. If Current Spent is equal to Planned Capacity it means that the team is working as planned
A77: vi. If Current Spent is above Planned Capacity it means that the team is working longer in the project than expected
A79: vii. If the blue surface increases along the sprint it means that the scope has increased or that the effort that was initially planned was not enough

Sheet Tips for Daily
A2: These are based in Mitch Lacey (MC) original instructions
A4: Report Progress & Assign tasks - every day
A6: 1. All team members must previously report the time spent in the project tasks in the Timesheet and syncronize w/ SharePoint using Reporte Horas > Reportar.
A8: a. You should use the task descriptions as they are in the sprint backlog. We suggest you to copy paste it.
A10: 2. Every day, beforey daily scrum, import all reported hours to the Sprint Backlog using the TimeSheet AddIn.
A12: a. If you don't have the Add In yet please do the following: Insert > My Add-ins (in Add-ins); See All and then My Organization; Select GetScrumData from CreateIT
A14: b. You must logged in using your common credentials @ O365
A16: c. Add-In options Get Week or day require that you previously select the day
A18: d. Analyse the tasks that the AddIn reports as not beeing yet in the sprint backlog.
A20: 3. During daily Scrum each team mumber must update the sprint backlog:
A22: a. In the previous day review the effort that you think is necessary to conclude (Left column). Previous days or weekends are signaled with a dotter pattern.
A24: b. Change the responsible cell in all newly assigned tasks. You can check if the capacity is under or over used in Capacity sheet.
A26: Analysis & Charts
A28: 3. Analyse your sprint performance in Analysis or Charts sheets
A30: a. To remember how you read burndowns
A31: i. If Current Remaining is bellow Planned Remaining it means that the team is going faster than expected
A32: ii. If Current Remaining is equal to Planned Remaining it means that the team is going as expected
A33: iii. If Current Remaining is above Planned Remaining it means that the team is going slower than expected
A35: iv. If Current Spent is bellow Planned Capacity it means that the team is working less time in the project that expected
A36: v. If Current Spent is equal to Planned Capacity it means that the team is working as planned
A37: vi. If Current Spent is above Planned Capacity it means that the team is working longer in the project than expected
A39: vii. If blue surface increases along the sprint it meand that the scope has increased or that effort that was initially planned was not enough

Sheet Sprint
A1: Project: [Easy Chair]
F2: TimesheetList2017 | G2: 2.3
C3: Sprint [x] - [Sprint Goal] | F3: [Timesheet Project Code]
J4: Start Date | K4: =SprintStart -> 2018-04-24 | N4: =SprintStart -> 2018-04-24 | Q4: =IF(AND(SkipWeekends, WEEKDAY(N4)=6),N4+3, N4+1) -> 2018-04-25 | T4: =IF(AND(SkipWeekends, WEEKDAY(Q4)=6),Q4+3, Q4+1) -> 2018-04-26 | W4: =IF(AND(SkipWeekends, WEEKDAY(T4)=6),T4+3, T4+1) -> 2018-04-27 | Z4: =IF(AND(SkipWeekends, WEEKDAY(W4)=6),W4+3, W4+1) -> 2018-04-28 | AC4: =IF(AND(SkipWeekends, WEEKDAY(Z4)=6),Z4+3, Z4+1) -> 2018-04-29 | AF4: =IF(AND(SkipWeekends, WEEKDAY(AC4)=6),AC4+3, AC4+1) -> 2018-04-30 | AI4: =IF(AND(SkipWeekends, WEEKDAY(AF4)=6),AF4+3, AF4+1) -> 2018-05-01 | AL4: =IF(AND(SkipWeekends, WEEKDAY(AI4)=6),AI4+3, AI4+1) -> 2018-05-02 | AO4: =IF(AND(SkipWeekends, WEEKDAY(AL4)=6),AL4+3, AL4+1) -> 2018-05-03 | AR4: =IF(AND(SkipWeekends, WEEKDAY(AO4)=6),AO4+3, AO4+1) -> 2018-05-04 | AU4: =IF(AND(SkipWeekends, WEEKDAY(AR4)=6),AR4+3, AR4+1) -> 2018-05-05 | AX4: =IF(AND(SkipWeekends, WEEKDAY(AU4)=6),AU4+3, AU4+1) -> 2018-05-06 | BA4: =IF(AND(SkipWeekends, WEEKDAY(AX4)=6),AX4+3, AX4+1) -> 2018-05-07 | BD4: =IF(AND(SkipWeekends, WEEKDAY(BA4)=6),BA4+3, BA4+1) -> 2018-05-08 | BG4: =IF(AND(SkipWeekends, WEEKDAY(BD4)=6),BD4+3, BD4+1) -> 2018-05-09 | BJ4: =IF(AND(SkipWeekends, WEEKDAY(BG4)=6),BG4+3, BG4+1) -> 2018-05-10 | BM4: =IF(AND(SkipWeekends, WEEKDAY(BJ4)=6),BJ4+3, BJ4+1) -> 2018-05-11 | BP4: =IF(AND(SkipWeekends, WEEKDAY(BM4)=6),BM4+3, BM4+1) -> 2018-05-12 | BS4: =IF(AND(SkipWeekends, WEEKDAY(BP4)=6),BP4+3, BP4+1) -> 2018-05-13 | BV4: =IF(AND(SkipWeekends, WEEKDAY(BS4)=6),BS4+3, BS4+1) -> 2018-05-14 | BY4: =IF(AND(SkipWeekends, WEEKDAY(BV4)=6),BV4+3, BV4+1) -> 2018-05-15 | CB4: =IF(AND(SkipWeekends, WEEKDAY(BY4)=6),BY4+3, BY4+1) -> 2018-05-16 | CE4: =IF(AND(SkipWeekends, WEEKDAY(CB4)=6),CB4+3, CB4+1) -> 2018-05-17 | CH4: =IF(AND(SkipWeekends, WEEKDAY(CE4)=6),CE4+3, CE4+1) -> 2018-05-18 | CK4: =IF(AND(SkipWeekends, WEEKDAY(CH4)=6),CH4+3, CH4+1) -> 2018-05-19 | CN4: =IF(AND(SkipWeekends, WEEKDAY(CK4)=6),CK4+3, CK4+1) -> 2018-05-20 | CQ4: =IF(AND(SkipWeekends, WEEKDAY(CN4)=6),CN4+3, CN4+1) -> 2018-05-21 | CT4: =IF(AND(SkipWeekends, WEEKDAY(CQ4)=6),CQ4+3, CQ4+1) -> 2018-05-22 | CW4: =IF(AND(SkipWeekends, WEEKDAY(CT4)=6),CT4+3, CT4+1) -> 2018-05-23 | CZ4: =IF(AND(SkipWeekends, WEEKDAY(CW4)=6),CW4+3, CW4+1) -> 2018-05-24 | DC4: =IF(AND(SkipWeekends, WEEKDAY(CZ4)=6),CZ4+3, CZ4+1) -> 2018-05-25 | DF4: =IF(AND(SkipWeekends, WEEKDAY(DC4)=6),DC4+3, DC4+1) -> 2018-05-26 | DI4: =IF(AND(SkipWeekends, WEEKDAY(DF4)=6),DF4+3, DF4+1) -> 2018-05-27 | DL4: =IF(AND(SkipWeekends, WEEKDAY(DI4)=6),DI4+3, DI4+1) -> 2018-05-28 | DO4: =IF(AND(SkipWeekends, WEEKDAY(DL4)=6),DL4+3, DL4+1) -> 2018-05-29 | DR4: =IF(AND(SkipWeekends, WEEKDAY(DO4)=6),DO4+3, DO4+1) -> 2018-05-30 | DU4: =IF(AND(SkipWeekends, WEEKDAY(DR4)=6),DR4+3, DR4+1) -> 2018-05-31 | DX4: =IF(AND(SkipWeekends, WEEKDAY(DU4)=6),DU4+3, DU4+1) -> 2018-06-01 | EA4: =IF(AND(SkipWeekends, WEEKDAY(DX4)=6),DX4+3, DX4+1) -> 2018-06-02 | EE4: Spent Effort | EG4: Left Effort | EI4: Total Effort | EK4: Deviation
L5: Priority | M5: Initial Effort | N5: Day 1 | Q5: Day 2 | T5: Day 3 | W5: Day 4 | Z5: Day 5 | AC5: Day 6 | AF5: Day 7 | AI5: Day 8 | AL5: Day 9 | AO5: Day 10 | AR5: Day 11 | AU5: Day 12 | AX5: Day 13 | BA5: Day 14 | BD5: Day 15 | BG5: Day 16 | BJ5: Day 17 | BM5: Day 18 | BP5: Day 19 | BS5: Day 20 | BV5: Day 21 | BY5: Day 22 | CB5: Day 23 | CE5: Day 24 | CH5: Day 25 | CK5: Day 26 | CN5: Day 27 | CQ5: Day 28 | CT5: Day 29 | CW5: Day 30 | CZ5: Day 31 | DC5: Day 32 | DF5: Day 33 | DI5: Day 34 | DL5: Day 35 | DO5: Day 36 | DR5: Day 37 | DU5: Day 38 | DX5: Day 39 | EA5: Day 40 | EG5: Left Effort | EI5: Total Effort
A6: Worktype | B6: Deliverable area | C6: PB Item or User Story | D6: Depende Design | E6: Actividade do processo | F6: PB Item ID | G6: Work item ID | H6: Tecnologia | I6: Task | J6: Responsible | K6: Status | M6: Initial Effort | N6: Spent | O6: Left | Q6: Spent | R6: Left | T6: Spent | U6: Left | W6: Spent | X6: Left | Z6: Spent | AA6: Left | AC6: Spent | AD6: Left | AF6: Spent | AG6: Left | AI6: Spent | AJ6: Left | AL6: Spent | AM6: Left | AO6: Spent | AP6: Left | AR6: Spent | AS6: Left | AU6: Spent | AV6: Left | AX6: Spent | AY6: Left | BA6: Spent | BB6: Left | BD6: Spent | BE6: Left | BG6: Spent | BH6: Left | BJ6: Spent | BK6: Left | BM6: Spent | BN6: Left | BP6: Spent | BQ6: Left | BS6: Spent | BT6: Left | BV6: Spent | BW6: Left | BY6: Spent | BZ6: Left | CB6: Spent | CC6: Left | CE6: Spent | CF6: Left | CH6: Spent | CI6: Left | CK6: Spent | CL6: Left | CN6: Spent | CO6: Left | CQ6: Spent | CR6: Left | CT6: Spent | CU6: Left | CW6: Spent | CX6: Left | CZ6: Spent | DA6: Left | DC6: Spent | DD6: Left | DF6: Spent | DG6: Left | DI6: Spent | DJ6: Left | DL6: Spent | DM6: Left | DO6: Spent | DP6: Left | DR6: Spent | DS6: Left | DU6: Spent | DV6: Left | DX6: Spent | DY6: Left | EA6: Spent | EB6: Left | EE6: Hours | EF6: Days | EG6: Hours | EH6: Days | EI6: Hours | EJ6: Days | EK6: Rate | EL6: Abs. Hours | EM6: Abs. Days
A7: Feature | B7: Specification | C7: User Story 1 | I7: Elicitação Reqs. Identificar Goals | J7: MA | K7: =IF(SprintStart>Capacity!$F$2, "To start", INDEX(Burndown,ROW(K7)-ROW(K$6),MIN(Capacity!$F$2-SprintStart,29)*3+3)) -> Complete | M7: 4 | N7: 4 | O7: 0 | P7: =IF(ISBLANK($I8), "Undefined", IF(O7<0.5, "Complete",IF(SUMPRODUCT($N$41:O$41,$N7:O7)<0.5, "To start", "Running"))) -> Complete | Q7: 0 | R7: =MAX(O7-Q7,0) -> 0 | S7: =IF(ISBLANK($I8), "Undefined", IF(R7<0.5, "Complete",IF(SUMPRODUCT($N$41:R$41,$N7:R7)<0.5, "To start", "Running"))) -> Complete | T7: 0 | U7: =MAX(R7-T7,0) -> 0 | V7: =IF(ISBLANK($I8), "Undefined", IF(U7<0.5, "Complete",IF(SUMPRODUCT($N$41:U$41,$N7:U7)<0.5, "To start", "Running"))) -> Complete | W7: 0 | X7: =MAX(U7-W7,0) -> 0 | Y7: =IF(ISBLANK($I8), "Undefined", IF(X7<0.5, "Complete",IF(SUMPRODUCT($N$41:X$41,$N7:X7)<0.5, "To start", "Running"))) -> Complete | Z7: 0 | AA7: =MAX(X7-Z7,0) -> 0 | AB7: =IF(ISBLANK($I8), "Undefined", IF(AA7<0.5, "Complete",IF(SUMPRODUCT($N$41:AA$41,$N7:AA7)<0.5, "To start", "Running"))) -> Complete | AC7: 0 | AD7: =MAX(AA7-AC7,0) -> 0 | AE7: =IF(ISBLANK($I8), "Undefined", IF(AD7<0.5, "Complete",IF(SUMPRODUCT($N$41:AD$41,$N7:AD7)<0.5, "To start", "Running"))) -> Complete | AF7: 0 | AG7: =MAX(AD7-AF7,0) -> 0 | AH7: =IF(ISBLANK($I8), "Undefined", IF(AG7<0.5, "Complete",IF(SUMPRODUCT($N$41:AG$41,$N7:AG7)<0.5, "To start", "Running"))) -> Complete | AI7: 0 | AJ7: =MAX(AG7-AI7,0) -> 0 | AK7: =IF(ISBLANK($I8), "Undefined", IF(AJ7<0.5, "Complete",IF(SUMPRODUCT($N$41:AJ$41,$N7:AJ7)<0.5, "To start", "Running"))) -> Complete | AL7: 0 | AM7: =MAX(AJ7-AL7,0) -> 0 | AN7: =IF(ISBLANK($I8), "Undefined", IF(AM7<0.5, "Complete",IF(SUMPRODUCT($N$41:AM$41,$N7:AM7)<0.5, "To start", "Running"))) -> Complete | AO7: 0 | AP7: =MAX(AM7-AO7,0) -> 0 | AQ7: =IF(ISBLANK($I8), "Undefined", IF(AP7<0.5, "Complete",IF(SUMPRODUCT($N$41:AP$41,$N7:AP7)<0.5, "To start", "Running"))) -> Complete | AR7: 0 | AS7: =MAX(AP7-AR7,0) -> 0 | AT7: =IF(ISBLANK($I8), "Undefined", IF(AS7<0.5, "Complete",IF(SUMPRODUCT($N$41:AS$41,$N7:AS7)<0.5, "To start", "Running"))) -> Complete | AU7: 0 | AV7: =MAX(AS7-AU7,0) -> 0 | AW7: =IF(ISBLANK($I8), "Undefined", IF(AV7<0.5, "Complete",IF(SUMPRODUCT($N$41:AV$41,$N7:AV7)<0.5, "To start", "Running"))) -> Complete | AX7: 0 | AY7: =MAX(AV7-AX7,0) -> 0 | AZ7: =IF(ISBLANK($I8), "Undefined", IF(AY7<0.5, "Complete",IF(SUMPRODUCT($N$41:AY$41,$N7:AY7)<0.5, "To start", "Running"))) -> Complete | BA7: 0 | BB7: =MAX(AY7-BA7,0) -> 0 | BC7: =IF(ISBLANK($I8), "Undefined", IF(BB7<0.5, "Complete",IF(SUMPRODUCT($N$41:BB$41,$N7:BB7)<0.5, "To start", "Running"))) -> Complete | BD7: 0 | BE7: =MAX(BB7-BD7,0) -> 0 | BF7: =IF(ISBLANK($I8), "Undefined", IF(BE7<0.5, "Complete",IF(SUMPRODUCT($N$41:BE$41,$N7:BE7)<0.5, "To start", "Running"))) -> Complete | BG7: 0 | BH7: =MAX(BE7-BG7,0) -> 0 | BI7: =IF(ISBLANK($I8), "Undefined", IF(BH7<0.5, "Complete",IF(SUMPRODUCT($N$41:BH$41,$N7:BH7)<0.5, "To start", "Running"))) -> Complete | BJ7: 0 | BK7: =MAX(BH7-BJ7,0) -> 0 | BL7: =IF(ISBLANK($I8), "Undefined", IF(BK7<0.5, "Complete",IF(SUMPRODUCT($N$41:BK$41,$N7:BK7)<0.5, "To start", "Running"))) -> Complete | BM7: 0 | BN7: =MAX(BK7-BM7,0) -> 0 | BO7: =IF(ISBLANK($I8), "Undefined", IF(BN7<0.5, "Complete",IF(SUMPRODUCT($N$41:BN$41,$N7:BN7)<0.5, "To start", "Running"))) -> Complete | BP7: 0 | BQ7: =MAX(BN7-BP7,0) -> 0 | BR7: =IF(ISBLANK($I8), "Undefined", IF(BQ7<0.5, "Complete",IF(SUMPRODUCT($N$41:BQ$41,$N7:BQ7)<0.5, "To start", "Running"))) -> Complete | BS7: 0 | BT7: =MAX(BQ7-BS7,0) -> 0 | BU7: =IF(ISBLANK($I8), "Undefined", IF(BT7<0.5, "Complete",IF(SUMPRODUCT($N$41:BT$41,$N7:BT7)<0.5, "To start", "Running"))) -> Complete | BV7: 0 | BW7: =MAX(BT7-BV7,0) -> 0 | BX7: =IF(ISBLANK($I8), "Undefined", IF(BW7<0.5, "Complete",IF(SUMPRODUCT($N$41:BW$41,$N7:BW7)<0.5, "To start", "Running"))) -> Complete | BY7: 0 | BZ7: =MAX(BW7-BY7,0) -> 0 | CA7: =IF(ISBLANK($I8), "Undefined", IF(BZ7<0.5, "Complete",IF(SUMPRODUCT($N$41:BZ$41,$N7:BZ7)<0.5, "To start", "Running"))) -> Complete | CB7: 0 | CC7: =MAX(BZ7-CB7,0) -> 0 | CD7: =IF(ISBLANK($I8), "Undefined", IF(CC7<0.5, "Complete",IF(SUMPRODUCT($N$41:CC$41,$N7:CC7)<0.5, "To start", "Running"))) -> Complete | CE7: 0 | CF7: =MAX(CC7-CE7,0) -> 0 | CG7: =IF(ISBLANK($I8), "Undefined", IF(CF7<0.5, "Complete",IF(SUMPRODUCT($N$41:CF$41,$N7:CF7)<0.5, "To start", "Running"))) -> Complete | CH7: 0 | CI7: =MAX(CF7-CH7,0) -> 0 | CJ7: =IF(ISBLANK($I8), "Undefined", IF(CI7<0.5, "Complete",IF(SUMPRODUCT($N$41:CI$41,$N7:CI7)<0.5, "To start", "Running"))) -> Complete | CK7: 0 | CL7: =MAX(CI7-CK7,0) -> 0 | CM7: =IF(ISBLANK($I8), "Undefined", IF(CL7<0.5, "Complete",IF(SUMPRODUCT($N$41:CL$41,$N7:CL7)<0.5, "To start", "Running"))) -> Complete | CN7: 0 | CO7: =MAX(CL7-CN7,0) -> 0 | CP7: =IF(ISBLANK($I8), "Undefined", IF(CO7<0.5, "Complete",IF(SUMPRODUCT($N$41:CO$41,$N7:CO7)<0.5, "To start", "Running"))) -> Complete | CQ7: 0 | CR7: =MAX(CO7-CQ7,0) -> 0 | CS7: =IF(ISBLANK($I8), "Undefined", IF(CR7<0.5, "Complete",IF(SUMPRODUCT($N$41:CR$41,$N7:CR7)<0.5, "To start", "Running"))) -> Complete | CT7: 0 | CU7: =MAX(CR7-CT7,0) -> 0 | CV7: =IF(ISBLANK($I8), "Undefined", IF(CU7<0.5, "Complete",IF(SUMPRODUCT($N$41:CU$41,$N7:CU7)<0.5, "To start", "Running"))) -> Complete | CW7: 0 | CX7: =MAX(CU7-CW7,0) -> 0 | CY7: =IF(ISBLANK($I8), "Undefined", IF(CX7<0.5, "Complete",IF(SUMPRODUCT($N$41:CX$41,$N7:CX7)<0.5, "To start", "Running"))) -> Complete | CZ7: 0 | DA7: =MAX(CX7-CZ7,0) -> 0 | DB7: =IF(ISBLANK($I8), "Undefined", IF(DA7<0.5, "Complete",IF(SUMPRODUCT($N$41:DA$41,$N7:DA7)<0.5, "To start", "Running"))) -> Complete | DC7: 0 | DD7: =MAX(DA7-DC7,0) -> 0 | DE7: =IF(ISBLANK($I8), "Undefined", IF(DD7<0.5, "Complete",IF(SUMPRODUCT($N$41:DD$41,$N7:DD7)<0.5, "To start", "Running"))) -> Complete | DF7: 0 | DG7: =MAX(DD7-DF7,0) -> 0 | DH7: =IF(ISBLANK($I8), "Undefined", IF(DG7<0.5, "Complete",IF(SUMPRODUCT($N$41:DG$41,$N7:DG7)<0.5, "To start", "Running"))) -> Complete | DI7: 0 | DJ7: =MAX(DG7-DI7,0) -> 0 | DK7: =IF(ISBLANK($I8), "Undefined", IF(DJ7<0.5, "Complete",IF(SUMPRODUCT($N$41:DJ$41,$N7:DJ7)<0.5, "To start", "Running"))) -> Complete | DL7: 0 | DM7: =MAX(DJ7-DL7,0) -> 0 | DN7: =IF(ISBLANK($I8), "Undefined", IF(DM7<0.5, "Complete",IF(SUMPRODUCT($N$41:DM$41,$N7:DM7)<0.5, "To start", "Running"))) -> Complete | DO7: 0 | DP7: =MAX(DM7-DO7,0) -> 0 | DQ7: =IF(ISBLANK($I8), "Undefined", IF(DP7<0.5, "Complete",IF(SUMPRODUCT($N$41:DP$41,$N7:DP7)<0.5, "To start", "Running"))) -> Complete | DR7: 0 | DS7: =MAX(DP7-DR7,0) -> 0 | DT7: =IF(ISBLANK($I8), "Undefined", IF(DS7<0.5, "Complete",IF(SUMPRODUCT($N$41:DS$41,$N7:DS7)<0.5, "To start", "Running"))) -> Complete | DU7: 0 | DV7: =MAX(DS7-DU7,0) -> 0 | DW7: =IF(ISBLANK($I8), "Undefined", IF(DV7<0.5, "Complete",IF(SUMPRODUCT($N$41:DV$41,$N7:DV7)<0.5, "To start", "Running"))) -> Complete | DX7: 0 | DY7: =MAX(DV7-DX7,0) -> 0 | DZ7: =IF(ISBLANK($I8), "Undefined", IF(DY7<0.5, "Complete",IF(SUMPRODUCT($N$41:DY$41,$N7:DY7)<0.5, "To start", "Running"))) -> Complete | EA7: 0 | EB7: =MAX(DY7-EA7,0) -> 0 | EC7: =IF(ISBLANK($I8), "Undefined", IF(EB7<0.5, "Complete",IF(SUMPRODUCT($N$41:EB$41,$N7:EB7)<0.5, "To start", "Running"))) -> Complete | EE7: =SUMPRODUCT($L$41:DK$41,$L7:DK7) -> 4 | EF7: =EE7/8 -> 0.5 | EG7: =OFFSET($O7,0,(Capacity!$F$2-SprintStart)*3,1,1) -> 0 | EH7: =EG7/8 -> 0 | EI7: =EE7+EG7 -> 4 | EJ7: =EI7/8 -> 0.5 | EK7: =IFERROR((EI7/M7)-1,"") -> 0% | EL7: =EI7-M7 -> 0 | EM7: =EL7/8 -> 0
A8: Feature | B8: Specification | C8: User Story 2 | I8: Elicitação Reqs. Identificar Agents | J8: MR | K8: =IF(SprintStart>Capacity!$F$2, "To start", INDEX(Burndown,ROW(K8)-ROW(K$6),MIN(Capacity!$F$2-SprintStart,29)*3+3)) -> Complete | M8: 4 | N8: 0 | O8: 4 | P8: =IF(ISBLANK(#REF!), "Undefined", IF(O8<0.5, "Complete",IF(SUMPRODUCT($N$41:O$41,$N8:O8)<0.5, "To start", "Running"))) -> To start | Q8: 4 | R8: 0 | S8: =IF(ISBLANK(#REF!), "Undefined", IF(R8<0.5, "Complete",IF(SUMPRODUCT($N$41:R$41,$N8:R8)<0.5, "To start", "Running"))) -> Complete | T8: 0 | U8: =MAX(R8-T8,0) -> 0 | V8: =IF(ISBLANK(#REF!), "Undefined", IF(U8<0.5, "Complete",IF(SUMPRODUCT($N$41:U$41,$N8:U8)<0.5, "To start", "Running"))) -> Complete | W8: 0 | X8: =MAX(U8-W8,0) -> 0 | Y8: =IF(ISBLANK(#REF!), "Undefined", IF(X8<0.5, "Complete",IF(SUMPRODUCT($N$41:X$41,$N8:X8)<0.5, "To start", "Running"))) -> Complete | Z8: 0 | AA8: =MAX(X8-Z8,0) -> 0 | AB8: =IF(ISBLANK(#REF!), "Undefined", IF(AA8<0.5, "Complete",IF(SUMPRODUCT($N$41:AA$41,$N8:AA8)<0.5, "To start", "Running"))) -> Complete | AC8: 0 | AD8: =MAX(AA8-AC8,0) -> 0 | AE8: =IF(ISBLANK(#REF!), "Undefined", IF(AD8<0.5, "Complete",IF(SUMPRODUCT($N$41:AD$41,$N8:AD8)<0.5, "To start", "Running"))) -> Complete | AF8: 0 | AG8: =MAX(AD8-AF8,0) -> 0 | AH8: =IF(ISBLANK(#REF!), "Undefined", IF(AG8<0.5, "Complete",IF(SUMPRODUCT($N$41:AG$41,$N8:AG8)<0.5, "To start", "Running"))) -> Complete | AI8: 0 | AJ8: =MAX(AG8-AI8,0) -> 0 | AK8: =IF(ISBLANK(#REF!), "Undefined", IF(AJ8<0.5, "Complete",IF(SUMPRODUCT($N$41:AJ$41,$N8:AJ8)<0.5, "To start", "Running"))) -> Complete | AL8: 0 | AM8: =MAX(AJ8-AL8,0) -> 0 | AN8: =IF(ISBLANK(#REF!), "Undefined", IF(AM8<0.5, "Complete",IF(SUMPRODUCT($N$41:AM$41,$N8:AM8)<0.5, "To start", "Running"))) -> Complete | AO8: 0 | AP8: =MAX(AM8-AO8,0) -> 0 | AQ8: =IF(ISBLANK(#REF!), "Undefined", IF(AP8<0.5, "Complete",IF(SUMPRODUCT($N$41:AP$41,$N8:AP8)<0.5, "To start", "Running"))) -> Complete | AR8: 0 | AS8: =MAX(AP8-AR8,0) -> 0 | AT8: =IF(ISBLANK(#REF!), "Undefined", IF(AS8<0.5, "Complete",IF(SUMPRODUCT($N$41:AS$41,$N8:AS8)<0.5, "To start", "Running"))) -> Complete | AU8: 0 | AV8: =MAX(AS8-AU8,0) -> 0 | AW8: =IF(ISBLANK(#REF!), "Undefined", IF(AV8<0.5, "Complete",IF(SUMPRODUCT($N$41:AV$41,$N8:AV8)<0.5, "To start", "Running"))) -> Complete | AX8: 0 | AY8: =MAX(AV8-AX8,0) -> 0 | AZ8: =IF(ISBLANK(#REF!), "Undefined", IF(AY8<0.5, "Complete",IF(SUMPRODUCT($N$41:AY$41,$N8:AY8)<0.5, "To start", "Running"))) -> Complete | BA8: 0 | BB8: =MAX(AY8-BA8,0) -> 0 | BC8: =IF(ISBLANK(#REF!), "Undefined", IF(BB8<0.5, "Complete",IF(SUMPRODUCT($N$41:BB$41,$N8:BB8)<0.5, "To start", "Running"))) -> Complete | BD8: 0 | BE8: =MAX(BB8-BD8,0) -> 0 | BF8: =IF(ISBLANK(#REF!), "Undefined", IF(BE8<0.5, "Complete",IF(SUMPRODUCT($N$41:BE$41,$N8:BE8)<0.5, "To start", "Running"))) -> Complete | BG8: 0 | BH8: 0 | BI8: =IF(ISBLANK(#REF!), "Undefined", IF(BH8<0.5, "Complete",IF(SUMPRODUCT($N$41:BH$41,$N8:BH8)<0.5, "To start", "Running"))) -> Complete | BJ8: 0 | BK8: =MAX(BH8-BJ8,0) -> 0 | BL8: =IF(ISBLANK(#REF!), "Undefined", IF(BK8<0.5, "Complete",IF(SUMPRODUCT($N$41:BK$41,$N8:BK8)<0.5, "To start", "Running"))) -> Complete | BM8: 0 | BN8: =MAX(BK8-BM8,0) -> 0 | BO8: =IF(ISBLANK(#REF!), "Undefined", IF(BN8<0.5, "Complete",IF(SUMPRODUCT($N$41:BN$41,$N8:BN8)<0.5, "To start", "Running"))) -> Complete | BP8: 0 | BQ8: =MAX(BN8-BP8,0) -> 0 | BR8: =IF(ISBLANK(#REF!), "Undefined", IF(BQ8<0.5, "Complete",IF(SUMPRODUCT($N$41:BQ$41,$N8:BQ8)<0.5, "To start", "Running"))) -> Complete | BS8: 0 | BT8: =MAX(BQ8-BS8,0) -> 0 | BU8: =IF(ISBLANK(#REF!), "Undefined", IF(BT8<0.5, "Complete",IF(SUMPRODUCT($N$41:BT$41,$N8:BT8)<0.5, "To start", "Running"))) -> Complete | BV8: 0 | BW8: =MAX(BT8-BV8,0) -> 0 | BX8: =IF(ISBLANK(#REF!), "Undefined", IF(BW8<0.5, "Complete",IF(SUMPRODUCT($N$41:BW$41,$N8:BW8)<0.5, "To start", "Running"))) -> Complete | BY8: 0 | BZ8: =MAX(BW8-BY8,0) -> 0 | CA8: =IF(ISBLANK(#REF!), "Undefined", IF(BZ8<0.5, "Complete",IF(SUMPRODUCT($N$41:BZ$41,$N8:BZ8)<0.5, "To start", "Running"))) -> Complete | CB8: 0 | CC8: =MAX(BZ8-CB8,0) -> 0 | CD8: =IF(ISBLANK(#REF!), "Undefined", IF(CC8<0.5, "Complete",IF(SUMPRODUCT($N$41:CC$41,$N8:CC8)<0.5, "To start", "Running"))) -> Complete | CE8: 0 | CF8: =MAX(CC8-CE8,0) -> 0 | CG8: =IF(ISBLANK(#REF!), "Undefined", IF(CF8<0.5, "Complete",IF(SUMPRODUCT($N$41:CF$41,$N8:CF8)<0.5, "To start", "Running"))) -> Complete | CH8: 0 | CI8: =MAX(CF8-CH8,0) -> 0 | CJ8: =IF(ISBLANK(#REF!), "Undefined", IF(CI8<0.5, "Complete",IF(SUMPRODUCT($N$41:CI$41,$N8:CI8)<0.5, "To start", "Running"))) -> Complete | CK8: 0 | CL8: =MAX(CI8-CK8,0) -> 0 | CM8: =IF(ISBLANK(#REF!), "Undefined", IF(CL8<0.5, "Complete",IF(SUMPRODUCT($N$41:CL$41,$N8:CL8)<0.5, "To start", "Running"))) -> Complete | CN8: 0 | CO8: =MAX(CL8-CN8,0) -> 0 | CP8: =IF(ISBLANK(#REF!), "Undefined", IF(CO8<0.5, "Complete",IF(SUMPRODUCT($N$41:CO$41,$N8:CO8)<0.5, "To start", "Running"))) -> Complete | CQ8: 0 | CR8: =MAX(CO8-CQ8,0) -> 0 | CS8: =IF(ISBLANK(#REF!), "Undefined", IF(CR8<0.5, "Complete",IF(SUMPRODUCT($N$41:CR$41,$N8:CR8)<0.5, "To start", "Running"))) -> Complete | CT8: 0 | CU8: =MAX(CR8-CT8,0) -> 0 | CV8: =IF(ISBLANK(#REF!), "Undefined", IF(CU8<0.5, "Complete",IF(SUMPRODUCT($N$41:CU$41,$N8:CU8)<0.5, "To start", "Running"))) -> Complete | CW8: 0 | CX8: =MAX(CU8-CW8,0) -> 0 | CY8: =IF(ISBLANK(#REF!), "Undefined", IF(CX8<0.5, "Complete",IF(SUMPRODUCT($N$41:CX$41,$N8:CX8)<0.5, "To start", "Running"))) -> Complete | CZ8: 0 | DA8: =MAX(CX8-CZ8,0) -> 0 | DB8: =IF(ISBLANK(#REF!), "Undefined", IF(DA8<0.5, "Complete",IF(SUMPRODUCT($N$41:DA$41,$N8:DA8)<0.5, "To start", "Running"))) -> Complete | DC8: 0 | DD8: =MAX(DA8-DC8,0) -> 0 | DE8: =IF(ISBLANK(#REF!), "Undefined", IF(DD8<0.5, "Complete",IF(SUMPRODUCT($N$41:DD$41,$N8:DD8)<0.5, "To start", "Running"))) -> Complete | DF8: 0 | DG8: =MAX(DD8-DF8,0) -> 0 | DH8: =IF(ISBLANK(#REF!), "Undefined", IF(DG8<0.5, "Complete",IF(SUMPRODUCT($N$41:DG$41,$N8:DG8)<0.5, "To start", "Running"))) -> Complete | DI8: 0 | DJ8: =MAX(DG8-DI8,0) -> 0 | DK8: =IF(ISBLANK(#REF!), "Undefined", IF(DJ8<0.5, "Complete",IF(SUMPRODUCT($N$41:DJ$41,$N8:DJ8)<0.5, "To start", "Running"))) -> Complete | DL8: 0 | DM8: =MAX(DJ8-DL8,0) -> 0 | DN8: =IF(ISBLANK(#REF!), "Undefined", IF(DM8<0.5, "Complete",IF(SUMPRODUCT($N$41:DM$41,$N8:DM8)<0.5, "To start", "Running"))) -> Complete | DO8: 0 | DP8: =MAX(DM8-DO8,0) -> 0 | DQ8: =IF(ISBLANK(#REF!), "Undefined", IF(DP8<0.5, "Complete",IF(SUMPRODUCT($N$41:DP$41,$N8:DP8)<0.5, "To start", "Running"))) -> Complete | DR8: 0 | DS8: =MAX(DP8-DR8,0) -> 0 | DT8: =IF(ISBLANK(#REF!), "Undefined", IF(DS8<0.5, "Complete",IF(SUMPRODUCT($N$41:DS$41,$N8:DS8)<0.5, "To start", "Running"))) -> Complete | DU8: 0 | DV8: =MAX(DS8-DU8,0) -> 0 | DW8: =IF(ISBLANK(#REF!), "Undefined", IF(DV8<0.5, "Complete",IF(SUMPRODUCT($N$41:DV$41,$N8:DV8)<0.5, "To start", "Running"))) -> Complete | DX8: 0 | DY8: =MAX(DV8-DX8,0) -> 0 | DZ8: =IF(ISBLANK(#REF!), "Undefined", IF(DY8<0.5, "Complete",IF(SUMPRODUCT($N$41:DY$41,$N8:DY8)<0.5, "To start", "Running"))) -> Complete | EA8: 0 | EB8: =MAX(DY8-EA8,0) -> 0 | EC8: =IF(ISBLANK(#REF!), "Undefined", IF(EB8<0.5, "Complete",IF(SUMPRODUCT($N$41:EB$41,$N8:EB8)<0.5, "To start", "Running"))) -> Complete | EE8: =SUMPRODUCT($L$41:DK$41,$L8:DK8) -> 4 | EF8: =EE8/8 -> 0.5 | EG8: =OFFSET($O8,0,(Capacity!$F$2-SprintStart)*3,1,1) -> 0 | EH8: 0 | EI8: 4 | EJ8: =EI8/8 -> 0.5 | EK8: =IFERROR((EI8/M8)-1,"") -> 0% | EL8: =EI8-M8 -> 0 | EM8: =EL8/8 -> 0
A9: Feature | B9: Specification | I9: Elicitação Reqs. Definição Non-Funct. Goals | J9: JQ | K9: =IF(SprintStart>Capacity!$F$2, "To start", INDEX(Burndown,ROW(K9)-ROW(K$6),MIN(Capacity!$F$2-SprintStart,29)*3+3)) -> Complete | M9: 4 | N9: 0 | O9: =MAX(M9-N9,0) -> 4 | P9: =IF(ISBLANK($I9), "Undefined", IF(O9<0.5, "Complete",IF(SUMPRODUCT($N$41:O$41,$N9:O9)<0.5, "To start", "Running"))) -> To start | Q9: 0 | R9: 0 | S9: =IF(ISBLANK($I9), "Undefined", IF(R9<0.5, "Complete",IF(SUMPRODUCT($N$41:R$41,$N9:R9)<0.5, "To start", "Running"))) -> Complete | T9: 4 | U9: =MAX(R9-T9,0) -> 0 | V9: =IF(ISBLANK($I9), "Undefined", IF(U9<0.5, "Complete",IF(SUMPRODUCT($N$41:U$41,$N9:U9)<0.5, "To start", "Running"))) -> Complete | W9: 0 | X9: =MAX(U9-W9,0) -> 0 | Y9: =IF(ISBLANK($I9), "Undefined", IF(X9<0.5, "Complete",IF(SUMPRODUCT($N$41:X$41,$N9:X9)<0.5, "To start", "Running"))) -> Complete | Z9: 0 | AA9: =MAX(X9-Z9,0) -> 0 | AB9: =IF(ISBLANK($I9), "Undefined", IF(AA9<0.5, "Complete",IF(SUMPRODUCT($N$41:AA$41,$N9:AA9)<0.5, "To start", "Running"))) -> Complete | AC9: 0 | AD9: =MAX(AA9-AC9,0) -> 0 | AE9: =IF(ISBLANK($I9), "Undefined", IF(AD9<0.5, "Complete",IF(SUMPRODUCT($N$41:AD$41,$N9:AD9)<0.5, "To start", "Running"))) -> Complete | AF9: 0 | AG9: =MAX(AD9-AF9,0) -> 0 | AH9: =IF(ISBLANK($I9), "Undefined", IF(AG9<0.5, "Complete",IF(SUMPRODUCT($N$41:AG$41,$N9:AG9)<0.5, "To start", "Running"))) -> Complete | AI9: 0 | AJ9: =MAX(AG9-AI9,0) -> 0 | AK9: =IF(ISBLANK($I9), "Undefined", IF(AJ9<0.5, "Complete",IF(SUMPRODUCT($N$41:AJ$41,$N9:AJ9)<0.5, "To start", "Running"))) -> Complete | AL9: 0 | AM9: =MAX(AJ9-AL9,0) -> 0 | AN9: =IF(ISBLANK($I9), "Undefined", IF(AM9<0.5, "Complete",IF(SUMPRODUCT($N$41:AM$41,$N9:AM9)<0.5, "To start", "Running"))) -> Complete | AO9: 0 | AP9: =MAX(AM9-AO9,0) -> 0 | AQ9: =IF(ISBLANK($I9), "Undefined", IF(AP9<0.5, "Complete",IF(SUMPRODUCT($N$41:AP$41,$N9:AP9)<0.5, "To start", "Running"))) -> Complete | AR9: 0 | AS9: =MAX(AP9-AR9,0) -> 0 | AT9: =IF(ISBLANK($I9), "Undefined", IF(AS9<0.5, "Complete",IF(SUMPRODUCT($N$41:AS$41,$N9:AS9)<0.5, "To start", "Running"))) -> Complete | AU9: 0 | AV9: =MAX(AS9-AU9,0) -> 0 | AW9: =IF(ISBLANK($I9), "Undefined", IF(AV9<0.5, "Complete",IF(SUMPRODUCT($N$41:AV$41,$N9:AV9)<0.5, "To start", "Running"))) -> Complete | AX9: 0 | AY9: =MAX(AV9-AX9,0) -> 0 | AZ9: =IF(ISBLANK($I9), "Undefined", IF(AY9<0.5, "Complete",IF(SUMPRODUCT($N$41:AY$41,$N9:AY9)<0.5, "To start", "Running"))) -> Complete | BA9: 0 | BB9: =MAX(AY9-BA9,0) -> 0 | BC9: =IF(ISBLANK($I9), "Undefined", IF(BB9<0.5, "Complete",IF(SUMPRODUCT($N$41:BB$41,$N9:BB9)<0.5, "To start", "Running"))) -> Complete | BD9: 0 | BE9: =MAX(BB9-BD9,0) -> 0 | BF9: =IF(ISBLANK($I9), "Undefined", IF(BE9<0.5, "Complete",IF(SUMPRODUCT($N$41:BE$41,$N9:BE9)<0.5, "To start", "Running"))) -> Complete | BG9: 0 | BH9: =MAX(BE9-BG9,0) -> 0 | BI9: =IF(ISBLANK($I9), "Undefined", IF(BH9<0.5, "Complete",IF(SUMPRODUCT($N$41:BH$41,$N9:BH9)<0.5, "To start", "Running"))) -> Complete | BJ9: 0 | BK9: =MAX(BH9-BJ9,0) -> 0 | BL9: =IF(ISBLANK($I9), "Undefined", IF(BK9<0.5, "Complete",IF(SUMPRODUCT($N$41:BK$41,$N9:BK9)<0.5, "To start", "Running"))) -> Complete | BM9: 0 | BN9: =MAX(BK9-BM9,0) -> 0 | BO9: =IF(ISBLANK($I9), "Undefined", IF(BN9<0.5, "Complete",IF(SUMPRODUCT($N$41:BN$41,$N9:BN9)<0.5, "To start", "Running"))) -> Complete | BP9: 0 | BQ9: =MAX(BN9-BP9,0) -> 0 | BR9: =IF(ISBLANK($I9), "Undefined", IF(BQ9<0.5, "Complete",IF(SUMPRODUCT($N$41:BQ$41,$N9:BQ9)<0.5, "To start", "Running"))) -> Complete | BS9: 0 | BT9: =MAX(BQ9-BS9,0) -> 0 | BU9: =IF(ISBLANK($I9), "Undefined", IF(BT9<0.5, "Complete",IF(SUMPRODUCT($N$41:BT$41,$N9:BT9)<0.5, "To start", "Running"))) -> Complete | BV9: 0 | BW9: =MAX(BT9-BV9,0) -> 0 | BX9: =IF(ISBLANK($I9), "Undefined", IF(BW9<0.5, "Complete",IF(SUMPRODUCT($N$41:BW$41,$N9:BW9)<0.5, "To start", "Running"))) -> Complete | BY9: 0 | BZ9: =MAX(BW9-BY9,0) -> 0 | CA9: =IF(ISBLANK($I9), "Undefined", IF(BZ9<0.5, "Complete",IF(SUMPRODUCT($N$41:BZ$41,$N9:BZ9)<0.5, "To start", "Running"))) -> Complete | CB9: 0 | CC9: =MAX(BZ9-CB9,0) -> 0 | CD9: =IF(ISBLANK($I9), "Undefined", IF(CC9<0.5, "Complete",IF(SUMPRODUCT($N$41:CC$41,$N9:CC9)<0.5, "To start", "Running"))) -> Complete | CE9: 0 | CF9: =MAX(CC9-CE9,0) -> 0 | CG9: =IF(ISBLANK($I9), "Undefined", IF(CF9<0.5, "Complete",IF(SUMPRODUCT($N$41:CF$41,$N9:CF9)<0.5, "To start", "Running"))) -> Complete | CH9: 0 | CI9: =MAX(CF9-CH9,0) -> 0 | CJ9: =IF(ISBLANK($I9), "Undefined", IF(CI9<0.5, "Complete",IF(SUMPRODUCT($N$41:CI$41,$N9:CI9)<0.5, "To start", "Running"))) -> Complete | CK9: 0 | CL9: =MAX(CI9-CK9,0) -> 0 | CM9: =IF(ISBLANK($I9), "Undefined", IF(CL9<0.5, "Complete",IF(SUMPRODUCT($N$41:CL$41,$N9:CL9)<0.5, "To start", "Running"))) -> Complete | CN9: 0 | CO9: =MAX(CL9-CN9,0) -> 0 | CP9: =IF(ISBLANK($I9), "Undefined", IF(CO9<0.5, "Complete",IF(SUMPRODUCT($N$41:CO$41,$N9:CO9)<0.5, "To start", "Running"))) -> Complete | CQ9: 0 | CR9: =MAX(CO9-CQ9,0) -> 0 | CS9: =IF(ISBLANK($I9), "Undefined", IF(CR9<0.5, "Complete",IF(SUMPRODUCT($N$41:CR$41,$N9:CR9)<0.5, "To start", "Running"))) -> Complete | CT9: 0 | CU9: =MAX(CR9-CT9,0) -> 0 | CV9: =IF(ISBLANK($I9), "Undefined", IF(CU9<0.5, "Complete",IF(SUMPRODUCT($N$41:CU$41,$N9:CU9)<0.5, "To start", "Running"))) -> Complete | CW9: 0 | CX9: =MAX(CU9-CW9,0) -> 0 | CY9: =IF(ISBLANK($I9), "Undefined", IF(CX9<0.5, "Complete",IF(SUMPRODUCT($N$41:CX$41,$N9:CX9)<0.5, "To start", "Running"))) -> Complete | CZ9: 0 | DA9: =MAX(CX9-CZ9,0) -> 0 | DB9: =IF(ISBLANK($I9), "Undefined", IF(DA9<0.5, "Complete",IF(SUMPRODUCT($N$41:DA$41,$N9:DA9)<0.5, "To start", "Running"))) -> Complete | DC9: 0 | DD9: =MAX(DA9-DC9,0) -> 0 | DE9: =IF(ISBLANK($I9), "Undefined", IF(DD9<0.5, "Complete",IF(SUMPRODUCT($N$41:DD$41,$N9:DD9)<0.5, "To start", "Running"))) -> Complete | DF9: 0 | DG9: =MAX(DD9-DF9,0) -> 0 | DH9: =IF(ISBLANK($I9), "Undefined", IF(DG9<0.5, "Complete",IF(SUMPRODUCT($N$41:DG$41,$N9:DG9)<0.5, "To start", "Running"))) -> Complete | DI9: 0 | DJ9: =MAX(DG9-DI9,0) -> 0 | DK9: =IF(ISBLANK($I9), "Undefined", IF(DJ9<0.5, "Complete",IF(SUMPRODUCT($N$41:DJ$41,$N9:DJ9)<0.5, "To start", "Running"))) -> Complete | DL9: 0 | DM9: =MAX(DJ9-DL9,0) -> 0 | DN9: =IF(ISBLANK($I9), "Undefined", IF(DM9<0.5, "Complete",IF(SUMPRODUCT($N$41:DM$41,$N9:DM9)<0.5, "To start", "Running"))) -> Complete | DO9: 0 | DP9: =MAX(DM9-DO9,0) -> 0 | DQ9: =IF(ISBLANK($I9), "Undefined", IF(DP9<0.5, "Complete",IF(SUMPRODUCT($N$41:DP$41,$N9:DP9)<0.5, "To start", "Running"))) -> Complete | DR9: 0 | DS9: =MAX(DP9-DR9,0) -> 0 | DT9: =IF(ISBLANK($I9), "Undefined", IF(DS9<0.5, "Complete",IF(SUMPRODUCT($N$41:DS$41,$N9:DS9)<0.5, "To start", "Running"))) -> Complete | DU9: 0 | DV9: =MAX(DS9-DU9,0) -> 0 | DW9: =IF(ISBLANK($I9), "Undefined", IF(DV9<0.5, "Complete",IF(SUMPRODUCT($N$41:DV$41,$N9:DV9)<0.5, "To start", "Running"))) -> Complete | DX9: 0 | DY9: =MAX(DV9-DX9,0) -> 0 | DZ9: =IF(ISBLANK($I9), "Undefined", IF(DY9<0.5, "Complete",IF(SUMPRODUCT($N$41:DY$41,$N9:DY9)<0.5, "To start", "Running"))) -> Complete | EA9: 0 | EB9: =MAX(DY9-EA9,0) -> 0 | EC9: =IF(ISBLANK($I9), "Undefined", IF(EB9<0.5, "Complete",IF(SUMPRODUCT($N$41:EB$41,$N9:EB9)<0.5, "To start", "Running"))) -> Complete | EE9: =SUMPRODUCT($L$41:DK$41,$L9:DK9) -> 4 | EF9: 0.5 | EG9: =OFFSET($O9,0,(Capacity!$F$2-SprintStart)*3,1,1) -> 0 | EH9: 0 | EI9: 4 | EJ9: =EI9/8 -> 0.5 | EK9: 0% | EL9: 0 | EM9: 0
A10: Feature | B10: Specification | I10: Elicitação Reqs. Identificar Obstaculos e Resolução | J10: MA | K10: =IF(SprintStart>Capacity!$F$2, "To start", INDEX(Burndown,ROW(K10)-ROW(K$6),MIN(Capacity!$F$2-SprintStart,29)*3+3)) -> Complete | M10: 4 | N10: 0 | O10: =MAX(M10-N10,0) -> 4 | P10: =IF(ISBLANK($I10), "Undefined", IF(O10<0.5, "Complete",IF(SUMPRODUCT($N$41:O$41,$N10:O10)<0.5, "To start", "Running"))) -> To start | Q10: 0 | R10: 0 | S10: =IF(ISBLANK($I10), "Undefined", IF(R10<0.5, "Complete",IF(SUMPRODUCT($N$41:R$41,$N10:R10)<0.5, "To start", "Running"))) -> Complete | T10: 0 | U10: =MAX(R10-T10,0) -> 0 | V10: =IF(ISBLANK($I10), "Undefined", IF(U10<0.5, "Complete",IF(SUMPRODUCT($N$41:U$41,$N10:U10)<0.5, "To start", "Running"))) -> Complete | W10: 4 | X10: =MAX(U10-W10,0) -> 0 | Y10: =IF(ISBLANK($I10), "Undefined", IF(X10<0.5, "Complete",IF(SUMPRODUCT($N$41:X$41,$N10:X10)<0.5, "To start", "Running"))) -> Complete | Z10: 0 | AA10: =MAX(X10-Z10,0) -> 0 | AB10: =IF(ISBLANK($I10), "Undefined", IF(AA10<0.5, "Complete",IF(SUMPRODUCT($N$41:AA$41,$N10:AA10)<0.5, "To start", "Running"))) -> Complete | AC10: 0 | AD10: =MAX(AA10-AC10,0) -> 0 | AE10: =IF(ISBLANK($I10), "Undefined", IF(AD10<0.5, "Complete",IF(SUMPRODUCT($N$41:AD$41,$N10:AD10)<0.5, "To start", "Running"))) -> Complete | AF10: 0 | AG10: =MAX(AD10-AF10,0) -> 0 | AH10: =IF(ISBLANK($I10), "Undefined", IF(AG10<0.5, "Complete",IF(SUMPRODUCT($N$41:AG$41,$N10:AG10)<0.5, "To start", "Running"))) -> Complete | AI10: 0 | AJ10: =MAX(AG10-AI10,0) -> 0 | AK10: =IF(ISBLANK($I10), "Undefined", IF(AJ10<0.5, "Complete",IF(SUMPRODUCT($N$41:AJ$41,$N10:AJ10)<0.5, "To start", "Running"))) -> Complete | AL10: 0 | AM10: =MAX(AJ10-AL10,0) -> 0 | AN10: =IF(ISBLANK($I10), "Undefined", IF(AM10<0.5, "Complete",IF(SUMPRODUCT($N$41:AM$41,$N10:AM10)<0.5, "To start", "Running"))) -> Complete | AO10: 0 | AP10: =MAX(AM10-AO10,0) -> 0 | AQ10: =IF(ISBLANK($I10), "Undefined", IF(AP10<0.5, "Complete",IF(SUMPRODUCT($N$41:AP$41,$N10:AP10)<0.5, "To start", "Running"))) -> Complete | AR10: 0 | AS10: =MAX(AP10-AR10,0) -> 0 | AT10: =IF(ISBLANK($I10), "Undefined", IF(AS10<0.5, "Complete",IF(SUMPRODUCT($N$41:AS$41,$N10:AS10)<0.5, "To start", "Running"))) -> Complete | AU10: 0 | AV10: =MAX(AS10-AU10,0) -> 0 | AW10: =IF(ISBLANK($I10), "Undefined", IF(AV10<0.5, "Complete",IF(SUMPRODUCT($N$41:AV$41,$N10:AV10)<0.5, "To start", "Running"))) -> Complete | AX10: 0 | AY10: =MAX(AV10-AX10,0) -> 0 | AZ10: =IF(ISBLANK($I10), "Undefined", IF(AY10<0.5, "Complete",IF(SUMPRODUCT($N$41:AY$41,$N10:AY10)<0.5, "To start", "Running"))) -> Complete | BA10: 0 | BB10: =MAX(AY10-BA10,0) -> 0 | BC10: =IF(ISBLANK($I10), "Undefined", IF(BB10<0.5, "Complete",IF(SUMPRODUCT($N$41:BB$41,$N10:BB10)<0.5, "To start", "Running"))) -> Complete | BD10: 0 | BE10: =MAX(BB10-BD10,0) -> 0 | BF10: =IF(ISBLANK($I10), "Undefined", IF(BE10<0.5, "Complete",IF(SUMPRODUCT($N$41:BE$41,$N10:BE10)<0.5, "To start", "Running"))) -> Complete | BG10: 0 | BH10: =MAX(BE10-BG10,0) -> 0 | BI10: =IF(ISBLANK($I10), "Undefined", IF(BH10<0.5, "Complete",IF(SUMPRODUCT($N$41:BH$41,$N10:BH10)<0.5, "To start", "Running"))) -> Complete | BJ10: 0 | BK10: =MAX(BH10-BJ10,0) -> 0 | BL10: =IF(ISBLANK($I10), "Undefined", IF(BK10<0.5, "Complete",IF(SUMPRODUCT($N$41:BK$41,$N10:BK10)<0.5, "To start", "Running"))) -> Complete | BM10: 0 | BN10: =MAX(BK10-BM10,0) -> 0 | BO10: =IF(ISBLANK($I10), "Undefined", IF(BN10<0.5, "Complete",IF(SUMPRODUCT($N$41:BN$41,$N10:BN10)<0.5, "To start", "Running"))) -> Complete | BP10: 0 | BQ10: =MAX(BN10-BP10,0) -> 0 | BR10: =IF(ISBLANK($I10), "Undefined", IF(BQ10<0.5, "Complete",IF(SUMPRODUCT($N$41:BQ$41,$N10:BQ10)<0.5, "To start", "Running"))) -> Complete | BS10: 0 | BT10: =MAX(BQ10-BS10,0) -> 0 | BU10: =IF(ISBLANK($I10), "Undefined", IF(BT10<0.5, "Complete",IF(SUMPRODUCT($N$41:BT$41,$N10:BT10)<0.5, "To start", "Running"))) -> Complete | BV10: 0 | BW10: =MAX(BT10-BV10,0) -> 0 | BX10: =IF(ISBLANK($I10), "Undefined", IF(BW10<0.5, "Complete",IF(SUMPRODUCT($N$41:BW$41,$N10:BW10)<0.5, "To start", "Running"))) -> Complete | BY10: 0 | BZ10: =MAX(BW10-BY10,0) -> 0 | CA10: =IF(ISBLANK($I10), "Undefined", IF(BZ10<0.5, "Complete",IF(SUMPRODUCT($N$41:BZ$41,$N10:BZ10)<0.5, "To start", "Running"))) -> Complete | CB10: 0 | CC10: =MAX(BZ10-CB10,0) -> 0 | CD10: =IF(ISBLANK($I10), "Undefined", IF(CC10<0.5, "Complete",IF(SUMPRODUCT($N$41:CC$41,$N10:CC10)<0.5, "To start", "Running"))) -> Complete | CE10: 0 | CF10: =MAX(CC10-CE10,0) -> 0 | CG10: =IF(ISBLANK($I10), "Undefined", IF(CF10<0.5, "Complete",IF(SUMPRODUCT($N$41:CF$41,$N10:CF10)<0.5, "To start", "Running"))) -> Complete | CH10: 0 | CI10: =MAX(CF10-CH10,0) -> 0 | CJ10: =IF(ISBLANK($I10), "Undefined", IF(CI10<0.5, "Complete",IF(SUMPRODUCT($N$41:CI$41,$N10:CI10)<0.5, "To start", "Running"))) -> Complete | CK10: 0 | CL10: =MAX(CI10-CK10,0) -> 0 | CM10: =IF(ISBLANK($I10), "Undefined", IF(CL10<0.5, "Complete",IF(SUMPRODUCT($N$41:CL$41,$N10:CL10)<0.5, "To start", "Running"))) -> Complete | CN10: 0 | CO10: =MAX(CL10-CN10,0) -> 0 | CP10: =IF(ISBLANK($I10), "Undefined", IF(CO10<0.5, "Complete",IF(SUMPRODUCT($N$41:CO$41,$N10:CO10)<0.5, "To start", "Running"))) -> Complete | CQ10: 0 | CR10: =MAX(CO10-CQ10,0) -> 0 | CS10: =IF(ISBLANK($I10), "Undefined", IF(CR10<0.5, "Complete",IF(SUMPRODUCT($N$41:CR$41,$N10:CR10)<0.5, "To start", "Running"))) -> Complete | CT10: 0 | CU10: =MAX(CR10-CT10,0) -> 0 | CV10: =IF(ISBLANK($I10), "Undefined", IF(CU10<0.5, "Complete",IF(SUMPRODUCT($N$41:CU$41,$N10:CU10)<0.5, "To start", "Running"))) -> Complete | CW10: 0 | CX10: =MAX(CU10-CW10,0) -> 0 | CY10: =IF(ISBLANK($I10), "Undefined", IF(CX10<0.5, "Complete",IF(SUMPRODUCT($N$41:CX$41,$N10:CX10)<0.5, "To start", "Running"))) -> Complete | CZ10: 0 | DA10: =MAX(CX10-CZ10,0) -> 0 | DB10: =IF(ISBLANK($I10), "Undefined", IF(DA10<0.5, "Complete",IF(SUMPRODUCT($N$41:DA$41,$N10:DA10)<0.5, "To start", "Running"))) -> Complete | DC10: 0 | DD10: =MAX(DA10-DC10,0) -> 0 | DE10: =IF(ISBLANK($I10), "Undefined", IF(DD10<0.5, "Complete",IF(SUMPRODUCT($N$41:DD$41,$N10:DD10)<0.5, "To start", "Running"))) -> Complete | DF10: 0 | DG10: =MAX(DD10-DF10,0) -> 0 | DH10: =IF(ISBLANK($I10), "Undefined", IF(DG10<0.5, "Complete",IF(SUMPRODUCT($N$41:DG$41,$N10:DG10)<0.5, "To start", "Running"))) -> Complete | DI10: 0 | DJ10: =MAX(DG10-DI10,0) -> 0 | DK10: =IF(ISBLANK($I10), "Undefined", IF(DJ10<0.5, "Complete",IF(SUMPRODUCT($N$41:DJ$41,$N10:DJ10)<0.5, "To start", "Running"))) -> Complete | DL10: 0 | DM10: =MAX(DJ10-DL10,0) -> 0 | DN10: =IF(ISBLANK($I10), "Undefined", IF(DM10<0.5, "Complete",IF(SUMPRODUCT($N$41:DM$41,$N10:DM10)<0.5, "To start", "Running"))) -> Complete | DO10: 0 | DP10: =MAX(DM10-DO10,0) -> 0 | DQ10: =IF(ISBLANK($I10), "Undefined", IF(DP10<0.5, "Complete",IF(SUMPRODUCT($N$41:DP$41,$N10:DP10)<0.5, "To start", "Running"))) -> Complete | DR10: 0 | DS10: =MAX(DP10-DR10,0) -> 0 | DT10: =IF(ISBLANK($I10), "Undefined", IF(DS10<0.5, "Complete",IF(SUMPRODUCT($N$41:DS$41,$N10:DS10)<0.5, "To start", "Running"))) -> Complete | DU10: 0 | DV10: =MAX(DS10-DU10,0) -> 0 | DW10: =IF(ISBLANK($I10), "Undefined", IF(DV10<0.5, "Complete",IF(SUMPRODUCT($N$41:DV$41,$N10:DV10)<0.5, "To start", "Running"))) -> Complete | DX10: 0 | DY10: =MAX(DV10-DX10,0) -> 0 | DZ10: =IF(ISBLANK($I10), "Undefined", IF(DY10<0.5, "Complete",IF(SUMPRODUCT($N$41:DY$41,$N10:DY10)<0.5, "To start", "Running"))) -> Complete | EA10: 0 | EB10: =MAX(DY10-EA10,0) -> 0 | EC10: =IF(ISBLANK($I10), "Undefined", IF(EB10<0.5, "Complete",IF(SUMPRODUCT($N$41:EB$41,$N10:EB10)<0.5, "To start", "Running"))) -> Complete | EE10: =SUMPRODUCT($L$41:DK$41,$L10:DK10) -> 4 | EF10: =EE10/8 -> 0.5 | EG10: =OFFSET($O10,0,(Capacity!$F$2-SprintStart)*3,1,1) -> 0 | EH10: =EG10/8 -> 0 | EI10: =EE10+EG10 -> 4 | EJ10: =EI10/8 -> 0.5 | EK10: =IFERROR((EI10/M10)-1,"") -> 0% | EL10: =EI10-M10 -> 0 | EM10: =EL10/8 -> 0
A11: Feature | B11: Specification | I11: Elicitação Reqs. Identiciar Objectos e Operações | J11: MA | K11: =IF(SprintStart>Capacity!$F$2, "To start", INDEX(Burndown,ROW(K11)-ROW(K$6),MIN(Capacity!$F$2-SprintStart,29)*3+3)) -> Complete | M11: 4 | N11: 0 | O11: 4 | P11: =IF(ISBLANK(#REF!), "Undefined", IF(O11<0.5, "Complete",IF(SUMPRODUCT($N$41:O$41,$N11:O11)<0.5, "To start", "Running"))) -> To start | Q11: 0 | R11: 0 | S11: =IF(ISBLANK(#REF!), "Undefined", IF(R11<0.5, "Complete",IF(SUMPRODUCT($N$41:R$41,$N11:R11)<0.5, "To start", "Running"))) -> Complete | T11: 0 | U11: 0 | V11: =IF(ISBLANK(#REF!), "Undefined", IF(U11<0.5, "Complete",IF(SUMPRODUCT($N$41:U$41,$N11:U11)<0.5, "To start", "Running"))) -> Complete | W11: 0 | X11: 0 | Y11: =IF(ISBLANK(#REF!), "Undefined", IF(X11<0.5, "Complete",IF(SUMPRODUCT($N$41:X$41,$N11:X11)<0.5, "To start", "Running"))) -> Complete | Z11: 4 | AA11: 0 | AB11: =IF(ISBLANK(#REF!), "Undefined", IF(AA11<0.5, "Complete",IF(SUMPRODUCT($N$41:AA$41,$N11:AA11)<0.5, "To start", "Running"))) -> Complete | AC11: 0 | AD11: 0 | AE11: =IF(ISBLANK(#REF!), "Undefined", IF(AD11<0.5, "Complete",IF(SUMPRODUCT($N$41:AD$41,$N11:AD11)<0.5, "To start", "Running"))) -> Complete | AF11: 0 | AG11: 0 | AH11: =IF(ISBLANK(#REF!), "Undefined", IF(AG11<0.5, "Complete",IF(SUMPRODUCT($N$41:AG$41,$N11:AG11)<0.5, "To start", "Running"))) -> Complete | AI11: 0 | AJ11: 0 | AK11: =IF(ISBLANK(#REF!), "Undefined", IF(AJ11<0.5, "Complete",IF(SUMPRODUCT($N$41:AJ$41,$N11:AJ11)<0.5, "To start", "Running"))) -> Complete | AL11: 0 | AM11: 0 | AN11: =IF(ISBLANK(#REF!), "Undefined", IF(AM11<0.5, "Complete",IF(SUMPRODUCT($N$41:AM$41,$N11:AM11)<0.5, "To start", "Running"))) -> Complete | AO11: 0 | AP11: 0 | AQ11: =IF(ISBLANK(#REF!), "Undefined", IF(AP11<0.5, "Complete",IF(SUMPRODUCT($N$41:AP$41,$N11:AP11)<0.5, "To start", "Running"))) -> Complete | AR11: 0 | AS11: 0 | AT11: =IF(ISBLANK(#REF!), "Undefined", IF(AS11<0.5, "Complete",IF(SUMPRODUCT($N$41:AS$41,$N11:AS11)<0.5, "To start", "Running"))) -> Complete | AU11: 0 | AV11: 0 | AW11: =IF(ISBLANK(#REF!), "Undefined", IF(AV11<0.5, "Complete",IF(SUMPRODUCT($N$41:AV$41,$N11:AV11)<0.5, "To start", "Running"))) -> Complete | AX11: 0 | AY11: 0 | AZ11: =IF(ISBLANK(#REF!), "Undefined", IF(AY11<0.5, "Complete",IF(SUMPRODUCT($N$41:AY$41,$N11:AY11)<0.5, "To start", "Running"))) -> Complete | BA11: 0 | BB11: 0 | BC11: =IF(ISBLANK(#REF!), "Undefined", IF(BB11<0.5, "Complete",IF(SUMPRODUCT($N$41:BB$41,$N11:BB11)<0.5, "To start", "Running"))) -> Complete | BD11: 0 | BE11: 0 | BF11: =IF(ISBLANK(#REF!), "Undefined", IF(BE11<0.5, "Complete",IF(SUMPRODUCT($N$41:BE$41,$N11:BE11)<0.5, "To start", "Running"))) -> Complete | BG11: 0 | BH11: 0 | BI11: =IF(ISBLANK(#REF!), "Undefined", IF(BH11<0.5, "Complete",IF(SUMPRODUCT($N$41:BH$41,$N11:BH11)<0.5, "To start", "Running"))) -> Complete | BJ11: 0 | BK11: 0 | BL11: =IF(ISBLANK(#REF!), "Undefined", IF(BK11<0.5, "Complete",IF(SUMPRODUCT($N$41:BK$41,$N11:BK11)<0.5, "To start", "Running"))) -> Complete | BM11: 0 | BN11: 0 | BO11: =IF(ISBLANK(#REF!), "Undefined", IF(BN11<0.5, "Complete",IF(SUMPRODUCT($N$41:BN$41,$N11:BN11)<0.5, "To start", "Running"))) -> Complete | BP11: 0 | BQ11: 0 | BR11: =IF(ISBLANK(#REF!), "Undefined", IF(BQ11<0.5, "Complete",IF(SUMPRODUCT($N$41:BQ$41,$N11:BQ11)<0.5, "To start", "Running"))) -> Complete | BS11: 0 | BT11: 0 | BU11: =IF(ISBLANK(#REF!), "Undefined", IF(BT11<0.5, "Complete",IF(SUMPRODUCT($N$41:BT$41,$N11:BT11)<0.5, "To start", "Running"))) -> Complete | BV11: 0 | BW11: 0 | BX11: =IF(ISBLANK(#REF!), "Undefined", IF(BW11<0.5, "Complete",IF(SUMPRODUCT($N$41:BW$41,$N11:BW11)<0.5, "To start", "Running"))) -> Complete | BY11: 0 | BZ11: 0 | CA11: =IF(ISBLANK(#REF!), "Undefined", IF(BZ11<0.5, "Complete",IF(SUMPRODUCT($N$41:BZ$41,$N11:BZ11)<0.5, "To start", "Running"))) -> Complete | CB11: 0 | CC11: 0 | CD11: =IF(ISBLANK(#REF!), "Undefined", IF(CC11<0.5, "Complete",IF(SUMPRODUCT($N$41:CC$41,$N11:CC11)<0.5, "To start", "Running"))) -> Complete | CE11: 0 | CF11: 0 | CG11: =IF(ISBLANK(#REF!), "Undefined", IF(CF11<0.5, "Complete",IF(SUMPRODUCT($N$41:CF$41,$N11:CF11)<0.5, "To start", "Running"))) -> Complete | CH11: 0 | CI11: 0 | CJ11: =IF(ISBLANK(#REF!), "Undefined", IF(CI11<0.5, "Complete",IF(SUMPRODUCT($N$41:CI$41,$N11:CI11)<0.5, "To start", "Running"))) -> Complete | CK11: 0 | CL11: 0 | CM11: =IF(ISBLANK(#REF!), "Undefined", IF(CL11<0.5, "Complete",IF(SUMPRODUCT($N$41:CL$41,$N11:CL11)<0.5, "To start", "Running"))) -> Complete | CN11: 0 | CO11: 0 | CP11: =IF(ISBLANK(#REF!), "Undefined", IF(CO11<0.5, "Complete",IF(SUMPRODUCT($N$41:CO$41,$N11:CO11)<0.5, "To start", "Running"))) -> Complete | CQ11: 0 | CR11: 0 | CS11: =IF(ISBLANK(#REF!), "Undefined", IF(CR11<0.5, "Complete",IF(SUMPRODUCT($N$41:CR$41,$N11:CR11)<0.5, "To start", "Running"))) -> Complete | CT11: 0 | CU11: 0 | CV11: =IF(ISBLANK(#REF!), "Undefined", IF(CU11<0.5, "Complete",IF(SUMPRODUCT($N$41:CU$41,$N11:CU11)<0.5, "To start", "Running"))) -> Complete | CW11: 0 | CX11: 0 | CY11: =IF(ISBLANK(#REF!), "Undefined", IF(CX11<0.5, "Complete",IF(SUMPRODUCT($N$41:CX$41,$N11:CX11)<0.5, "To start", "Running"))) -> Complete | CZ11: 0 | DA11: 0 | DB11: =IF(ISBLANK(#REF!), "Undefined", IF(DA11<0.5, "Complete",IF(SUMPRODUCT($N$41:DA$41,$N11:DA11)<0.5, "To start", "Running"))) -> Complete | DC11: 0 | DD11: 0 | DE11: =IF(ISBLANK(#REF!), "Undefined", IF(DD11<0.5, "Complete",IF(SUMPRODUCT($N$41:DD$41,$N11:DD11)<0.5, "To start", "Running"))) -> Complete | DF11: 0 | DG11: 0 | DH11: =IF(ISBLANK(#REF!), "Undefined", IF(DG11<0.5, "Complete",IF(SUMPRODUCT($N$41:DG$41,$N11:DG11)<0.5, "To start", "Running"))) -> Complete | DI11: 0 | DJ11: 0 | DK11: =IF(ISBLANK(#REF!), "Undefined", IF(DJ11<0.5, "Complete",IF(SUMPRODUCT($N$41:DJ$41,$N11:DJ11)<0.5, "To start", "Running"))) -> Complete | DL11: 0 | DM11: 0 | DN11: =IF(ISBLANK(#REF!), "Undefined", IF(DM11<0.5, "Complete",IF(SUMPRODUCT($N$41:DM$41,$N11:DM11)<0.5, "To start", "Running"))) -> Complete | DO11: 0 | DP11: 0 | DQ11: =IF(ISBLANK(#REF!), "Undefined", IF(DP11<0.5, "Complete",IF(SUMPRODUCT($N$41:DP$41,$N11:DP11)<0.5, "To start", "Running"))) -> Complete | DR11: 0 | DS11: 0 | DT11: =IF(ISBLANK(#REF!), "Undefined", IF(DS11<0.5, "Complete",IF(SUMPRODUCT($N$41:DS$41,$N11:DS11)<0.5, "To start", "Running"))) -> Complete | DU11: 0 | DV11: 0 | DW11: =IF(ISBLANK(#REF!), "Undefined", IF(DV11<0.5, "Complete",IF(SUMPRODUCT($N$41:DV$41,$N11:DV11)<0.5, "To start", "Running"))) -> Complete | DX11: 0 | DY11: 0 | DZ11: =IF(ISBLANK(#REF!), "Undefined", IF(DY11<0.5, "Complete",IF(SUMPRODUCT($N$41:DY$41,$N11:DY11)<0.5, "To start", "Running"))) -> Complete | EA11: 0 | EB11: 0 | EC11: =IF(ISBLANK(#REF!), "Undefined", IF(EB11<0.5, "Complete",IF(SUMPRODUCT($N$41:EB$41,$N11:EB11)<0.5, "To start", "Running"))) -> Complete | EE11: =SUMPRODUCT($L$41:DK$41,$L11:DK11) -> 4 | EF11: 0.5 | EG11: =OFFSET($O11,0,(Capacity!$F$2-SprintStart)*3,1,1) -> 0 | EH11: 0 | EI11: 4 | EJ11: 0.5 | EK11: 0% | EL11: 0 | EM11: 0
A12: Feature | B12: Specification | I12: Análise de Reqs. Escolher Parafigma Orientado a Objectos | J12: MA | K12: =IF(SprintStart>Capacity!$F$2, "To start", INDEX(Burndown,ROW(K12)-ROW(K$6),MIN(Capacity!$F$2-SprintStart,29)*3+3)) -> Complete | M12: 4 | N12: 0 | O12: 4 | P12: =IF(ISBLANK($I11), "Undefined", IF(O12<0.5, "Complete",IF(SUMPRODUCT($N$41:O$41,$N12:O12)<0.5, "To start", "Running"))) -> To start | Q12: 0 | R12: =MAX(O12-Q12,0) -> 4 | S12: =IF(ISBLANK($I11), "Undefined", IF(R12<0.5, "Complete",IF(SUMPRODUCT($N$41:R$41,$N12:R12)<0.5, "To start", "Running"))) -> To start | T12: 0 | U12: 4 | V12: =IF(ISBLANK($I11), "Undefined", IF(U12<0.5, "Complete",IF(SUMPRODUCT($N$41:U$41,$N12:U12)<0.5, "To start", "Running"))) -> To start | W12: 0 | X12: 4 | Y12: =IF(ISBLANK($I11), "Undefined", IF(X12<0.5, "Complete",IF(SUMPRODUCT($N$41:X$41,$N12:X12)<0.5, "To start", "Running"))) -> To start | Z12: 0 | AA12: 4 | AB12: =IF(ISBLANK($I11), "Undefined", IF(AA12<0.5, "Complete",IF(SUMPRODUCT($N$41:AA$41,$N12:AA12)<0.5, "To start", "Running"))) -> To start | AC12: 4 | AD12: 0 | AE12: =IF(ISBLANK($I11), "Undefined", IF(AD12<0.5, "Complete",IF(SUMPRODUCT($N$41:AD$41,$N12:AD12)<0.5, "To start", "Running"))) -> Complete | AF12: 0 | AG12: 0 | AH12: =IF(ISBLANK($I11), "Undefined", IF(AG12<0.5, "Complete",IF(SUMPRODUCT($N$41:AG$41,$N12:AG12)<0.5, "To start", "Running"))) -> Complete | AI12: 8 | AJ12: 0 | AK12: =IF(ISBLANK($I11), "Undefined", IF(AJ12<0.5, "Complete",IF(SUMPRODUCT($N$41:AJ$41,$N12:AJ12)<0.5, "To start", "Running"))) -> Complete | AL12: 0 | AM12: 0 | AN12: =IF(ISBLANK($I11), "Undefined", IF(AM12<0.5, "Complete",IF(SUMPRODUCT($N$41:AM$41,$N12:AM12)<0.5, "To start", "Running"))) -> Complete | AO12: 0 | AP12: 0 | AQ12: =IF(ISBLANK($I11), "Undefined", IF(AP12<0.5, "Complete",IF(SUMPRODUCT($N$41:AP$41,$N12:AP12)<0.5, "To start", "Running"))) -> Complete | AR12: 0 | AS12: 0 | AT12: =IF(ISBLANK($I11), "Undefined", IF(AS12<0.5, "Complete",IF(SUMPRODUCT($N$41:AS$41,$N12:AS12)<0.5, "To start", "Running"))) -> Complete | AU12: 0 | AV12: 0 | AW12: =IF(ISBLANK($I11), "Undefined", IF(AV12<0.5, "Complete",IF(SUMPRODUCT($N$41:AV$41,$N12:AV12)<0.5, "To start", "Running"))) -> Complete | AX12: 0 | AY12: 0 | AZ12: =IF(ISBLANK($I11), "Undefined", IF(AY12<0.5, "Complete",IF(SUMPRODUCT($N$41:AY$41,$N12:AY12)<0.5, "To start", "Running"))) -> Complete | BA12: 0 | BB12: 0 | BC12: =IF(ISBLANK($I11), "Undefined", IF(BB12<0.5, "Complete",IF(SUMPRODUCT($N$41:BB$41,$N12:BB12)<0.5, "To start", "Running"))) -> Complete | BD12: 0 | BE12: 0 | BF12: =IF(ISBLANK($I11), "Undefined", IF(BE12<0.5, "Complete",IF(SUMPRODUCT($N$41:BE$41,$N12:BE12)<0.5, "To start", "Running"))) -> Complete | BG12: 0 | BH12: 0 | BI12: =IF(ISBLANK($I11), "Undefined", IF(BH12<0.5, "Complete",IF(SUMPRODUCT($N$41:BH$41,$N12:BH12)<0.5, "To start", "Running"))) -> Complete | BJ12: 0 | BK12: 0 | BL12: =IF(ISBLANK($I11), "Undefined", IF(BK12<0.5, "Complete",IF(SUMPRODUCT($N$41:BK$41,$N12:BK12)<0.5, "To start", "Running"))) -> Complete | BM12: 0 | BN12: 0 | BO12: =IF(ISBLANK($I11), "Undefined", IF(BN12<0.5, "Complete",IF(SUMPRODUCT($N$41:BN$41,$N12:BN12)<0.5, "To start", "Running"))) -> Complete | BP12: 0 | BQ12: 0 | BR12: =IF(ISBLANK($I11), "Undefined", IF(BQ12<0.5, "Complete",IF(SUMPRODUCT($N$41:BQ$41,$N12:BQ12)<0.5, "To start", "Running"))) -> Complete | BS12: 0 | BT12: 0 | BU12: =IF(ISBLANK($I11), "Undefined", IF(BT12<0.5, "Complete",IF(SUMPRODUCT($N$41:BT$41,$N12:BT12)<0.5, "To start", "Running"))) -> Complete | BV12: 0 | BW12: 0 | BX12: =IF(ISBLANK($I11), "Undefined", IF(BW12<0.5, "Complete",IF(SUMPRODUCT($N$41:BW$41,$N12:BW12)<0.5, "To start", "Running"))) -> Complete | BY12: 0 | BZ12: 0 | CA12: =IF(ISBLANK($I11), "Undefined", IF(BZ12<0.5, "Complete",IF(SUMPRODUCT($N$41:BZ$41,$N12:BZ12)<0.5, "To start", "Running"))) -> Complete | CB12: 0 | CC12: 0 | CD12: =IF(ISBLANK($I11), "Undefined", IF(CC12<0.5, "Complete",IF(SUMPRODUCT($N$41:CC$41,$N12:CC12)<0.5, "To start", "Running"))) -> Complete | CE12: 0 | CF12: 0 | CG12: =IF(ISBLANK($I11), "Undefined", IF(CF12<0.5, "Complete",IF(SUMPRODUCT($N$41:CF$41,$N12:CF12)<0.5, "To start", "Running"))) -> Complete | CH12: 0 | CI12: 0 | CJ12: =IF(ISBLANK($I11), "Undefined", IF(CI12<0.5, "Complete",IF(SUMPRODUCT($N$41:CI$41,$N12:CI12)<0.5, "To start", "Running"))) -> Complete | CK12: 0 | CL12: 0 | CM12: =IF(ISBLANK($I11), "Undefined", IF(CL12<0.5, "Complete",IF(SUMPRODUCT($N$41:CL$41,$N12:CL12)<0.5, "To start", "Running"))) -> Complete | CN12: 0 | CO12: 0 | CP12: =IF(ISBLANK($I11), "Undefined", IF(CO12<0.5, "Complete",IF(SUMPRODUCT($N$41:CO$41,$N12:CO12)<0.5, "To start", "Running"))) -> Complete | CQ12: 0 | CR12: 0 | CS12: =IF(ISBLANK($I11), "Undefined", IF(CR12<0.5, "Complete",IF(SUMPRODUCT($N$41:CR$41,$N12:CR12)<0.5, "To start", "Running"))) -> Complete | CT12: 0 | CU12: 0 | CV12: =IF(ISBLANK($I11), "Undefined", IF(CU12<0.5, "Complete",IF(SUMPRODUCT($N$41:CU$41,$N12:CU12)<0.5, "To start", "Running"))) -> Complete | CW12: 0 | CX12: 0 | CY12: =IF(ISBLANK($I11), "Undefined", IF(CX12<0.5, "Complete",IF(SUMPRODUCT($N$41:CX$41,$N12:CX12)<0.5, "To start", "Running"))) -> Complete | CZ12: 0 | DA12: 0 | DB12: =IF(ISBLANK($I11), "Undefined", IF(DA12<0.5, "Complete",IF(SUMPRODUCT($N$41:DA$41,$N12:DA12)<0.5, "To start", "Running"))) -> Complete | DC12: 0 | DD12: 0 | DE12: =IF(ISBLANK($I11), "Undefined", IF(DD12<0.5, "Complete",IF(SUMPRODUCT($N$41:DD$41,$N12:DD12)<0.5, "To start", "Running"))) -> Complete | DF12: 0 | DG12: 0 | DH12: =IF(ISBLANK($I11), "Undefined", IF(DG12<0.5, "Complete",IF(SUMPRODUCT($N$41:DG$41,$N12:DG12)<0.5, "To start", "Running"))) -> Complete | DI12: 0 | DJ12: 0 | DK12: =IF(ISBLANK($I11), "Undefined", IF(DJ12<0.5, "Complete",IF(SUMPRODUCT($N$41:DJ$41,$N12:DJ12)<0.5, "To start", "Running"))) -> Complete | DL12: 0 | DM12: 0 | DN12: =IF(ISBLANK($I11), "Undefined", IF(DM12<0.5, "Complete",IF(SUMPRODUCT($N$41:DM$41,$N12:DM12)<0.5, "To start", "Running"))) -> Complete | DO12: 0 | DP12: 0 | DQ12: =IF(ISBLANK($I11), "Undefined", IF(DP12<0.5, "Complete",IF(SUMPRODUCT($N$41:DP$41,$N12:DP12)<0.5, "To start", "Running"))) -> Complete | DR12: 0 | DS12: 0 | DT12: =IF(ISBLANK($I11), "Undefined", IF(DS12<0.5, "Complete",IF(SUMPRODUCT($N$41:DS$41,$N12:DS12)<0.5, "To start", "Running"))) -> Complete | DU12: 0 | DV12: 0 | DW12: =IF(ISBLANK($I11), "Undefined", IF(DV12<0.5, "Complete",IF(SUMPRODUCT($N$41:DV$41,$N12:DV12)<0.5, "To start", "Running"))) -> Complete | DX12: 0 | DY12: 0 | DZ12: =IF(ISBLANK($I11), "Undefined", IF(DY12<0.5, "Complete",IF(SUMPRODUCT($N$41:DY$41,$N12:DY12)<0.5, "To start", "Running"))) -> Complete | EA12: 0 | EB12: 0 | EC12: =IF(ISBLANK($I11), "Undefined", IF(EB12<0.5, "Complete",IF(SUMPRODUCT($N$41:EB$41,$N12:EB12)<0.5, "To start", "Running"))) -> Complete | EE12: =SUMPRODUCT($L$41:DK$41,$L12:DK12) -> 12 | EF12: 1.5 | EG12: =OFFSET($O12,0,(Capacity!$F$2-SprintStart)*3,1,1) -> 0 | EH12: 0 | EI12: 12 | EJ12: 1.5 | EK12: 200% | EL12: 8 | EM12: 1
A13: Feature | B13: Development | I13: Mapear Modelo de Reqs. - Modelo de Use Cases | J13: MA | K13: =IF(SprintStart>Capacity!$F$2, "To start", INDEX(Burndown,ROW(K13)-ROW(K$6),MIN(Capacity!$F$2-SprintStart,29)*3+3)) -> Complete | M13: 4 | N13: 0 | O13: 0 | P13: =IF(ISBLANK($I13), "Undefined", IF(O13<0.5, "Complete",IF(SUMPRODUCT($N$41:O$41,$N13:O13)<0.5, "To start", "Running"))) -> Complete | Q13: 0 | R13: 0 | S13: =IF(ISBLANK($I13), "Undefined", IF(R13<0.5, "Complete",IF(SUMPRODUCT($N$41:R$41,$N13:R13)<0.5, "To start", "Running"))) -> Complete | T13: 8 | U13: 0 | V13: =IF(ISBLANK($I13), "Undefined", IF(U13<0.5, "Complete",IF(SUMPRODUCT($N$41:U$41,$N13:U13)<0.5, "To start", "Running"))) -> Complete | W13: 0 | X13: 0 | Y13: =IF(ISBLANK($I13), "Undefined", IF(X13<0.5, "Complete",IF(SUMPRODUCT($N$41:X$41,$N13:X13)<0.5, "To start", "Running"))) -> Complete | Z13: 0 | AA13: 0 | AB13: =IF(ISBLANK($I13), "Undefined", IF(AA13<0.5, "Complete",IF(SUMPRODUCT($N$41:AA$41,$N13:AA13)<0.5, "To start", "Running"))) -> Complete | AC13: 0 | AD13: 0 | AE13: =IF(ISBLANK($I13), "Undefined", IF(AD13<0.5, "Complete",IF(SUMPRODUCT($N$41:AD$41,$N13:AD13)<0.5, "To start", "Running"))) -> Complete | AF13: 4 | AG13: 0 | AH13: =IF(ISBLANK($I13), "Undefined", IF(AG13<0.5, "Complete",IF(SUMPRODUCT($N$41:AG$41,$N13:AG13)<0.5, "To start", "Running"))) -> Complete | AI13: 0 | AJ13: 0 | AK13: =IF(ISBLANK($I13), "Undefined", IF(AJ13<0.5, "Complete",IF(SUMPRODUCT($N$41:AJ$41,$N13:AJ13)<0.5, "To start", "Running"))) -> Complete | AL13: 0 | AM13: 0 | AN13: =IF(ISBLANK($I13), "Undefined", IF(AM13<0.5, "Complete",IF(SUMPRODUCT($N$41:AM$41,$N13:AM13)<0.5, "To start", "Running"))) -> Complete | AO13: 0 | AP13: 0 | AQ13: =IF(ISBLANK($I13), "Undefined", IF(AP13<0.5, "Complete",IF(SUMPRODUCT($N$41:AP$41,$N13:AP13)<0.5, "To start", "Running"))) -> Complete | AR13: 0 | AS13: 0 | AT13: =IF(ISBLANK($I13), "Undefined", IF(AS13<0.5, "Complete",IF(SUMPRODUCT($N$41:AS$41,$N13:AS13)<0.5, "To start", "Running"))) -> Complete | AU13: 0 | AV13: 0 | AW13: =IF(ISBLANK($I13), "Undefined", IF(AV13<0.5, "Complete",IF(SUMPRODUCT($N$41:AV$41,$N13:AV13)<0.5, "To start", "Running"))) -> Complete | AX13: 0 | AY13: 0 | AZ13: =IF(ISBLANK($I13), "Undefined", IF(AY13<0.5, "Complete",IF(SUMPRODUCT($N$41:AY$41,$N13:AY13)<0.5, "To start", "Running"))) -> Complete | BA13: 0 | BB13: 0 | BC13: =IF(ISBLANK($I13), "Undefined", IF(BB13<0.5, "Complete",IF(SUMPRODUCT($N$41:BB$41,$N13:BB13)<0.5, "To start", "Running"))) -> Complete | BD13: 0 | BE13: 0 | BF13: =IF(ISBLANK($I13), "Undefined", IF(BE13<0.5, "Complete",IF(SUMPRODUCT($N$41:BE$41,$N13:BE13)<0.5, "To start", "Running"))) -> Complete | BG13: 0 | BH13: 0 | BI13: =IF(ISBLANK($I13), "Undefined", IF(BH13<0.5, "Complete",IF(SUMPRODUCT($N$41:BH$41,$N13:BH13)<0.5, "To start", "Running"))) -> Complete | BJ13: 0 | BK13: 0 | BL13: =IF(ISBLANK($I13), "Undefined", IF(BK13<0.5, "Complete",IF(SUMPRODUCT($N$41:BK$41,$N13:BK13)<0.5, "To start", "Running"))) -> Complete | BM13: 0 | BN13: 0 | BO13: =IF(ISBLANK($I13), "Undefined", IF(BN13<0.5, "Complete",IF(SUMPRODUCT($N$41:BN$41,$N13:BN13)<0.5, "To start", "Running"))) -> Complete | BP13: 0 | BQ13: 0 | BR13: =IF(ISBLANK($I13), "Undefined", IF(BQ13<0.5, "Complete",IF(SUMPRODUCT($N$41:BQ$41,$N13:BQ13)<0.5, "To start", "Running"))) -> Complete | BS13: 0 | BT13: 0 | BU13: =IF(ISBLANK($I13), "Undefined", IF(BT13<0.5, "Complete",IF(SUMPRODUCT($N$41:BT$41,$N13:BT13)<0.5, "To start", "Running"))) -> Complete | BV13: 0 | BW13: 0 | BX13: =IF(ISBLANK($I13), "Undefined", IF(BW13<0.5, "Complete",IF(SUMPRODUCT($N$41:BW$41,$N13:BW13)<0.5, "To start", "Running"))) -> Complete | BY13: 0 | BZ13: 0 | CA13: =IF(ISBLANK($I13), "Undefined", IF(BZ13<0.5, "Complete",IF(SUMPRODUCT($N$41:BZ$41,$N13:BZ13)<0.5, "To start", "Running"))) -> Complete | CB13: 0 | CC13: 0 | CD13: =IF(ISBLANK($I13), "Undefined", IF(CC13<0.5, "Complete",IF(SUMPRODUCT($N$41:CC$41,$N13:CC13)<0.5, "To start", "Running"))) -> Complete | CE13: 0 | CF13: 0 | CG13: =IF(ISBLANK($I13), "Undefined", IF(CF13<0.5, "Complete",IF(SUMPRODUCT($N$41:CF$41,$N13:CF13)<0.5, "To start", "Running"))) -> Complete | CH13: 0 | CI13: 0 | CJ13: =IF(ISBLANK($I13), "Undefined", IF(CI13<0.5, "Complete",IF(SUMPRODUCT($N$41:CI$41,$N13:CI13)<0.5, "To start", "Running"))) -> Complete | CK13: 0 | CL13: 0 | CM13: =IF(ISBLANK($I13), "Undefined", IF(CL13<0.5, "Complete",IF(SUMPRODUCT($N$41:CL$41,$N13:CL13)<0.5, "To start", "Running"))) -> Complete | CN13: 0 | CO13: 0 | CP13: =IF(ISBLANK($I13), "Undefined", IF(CO13<0.5, "Complete",IF(SUMPRODUCT($N$41:CO$41,$N13:CO13)<0.5, "To start", "Running"))) -> Complete | CQ13: 0 | CR13: 0 | CS13: =IF(ISBLANK($I13), "Undefined", IF(CR13<0.5, "Complete",IF(SUMPRODUCT($N$41:CR$41,$N13:CR13)<0.5, "To start", "Running"))) -> Complete | CT13: 0 | CU13: 0 | CV13: =IF(ISBLANK($I13), "Undefined", IF(CU13<0.5, "Complete",IF(SUMPRODUCT($N$41:CU$41,$N13:CU13)<0.5, "To start", "Running"))) -> Complete | CW13: 0 | CX13: 0 | CY13: =IF(ISBLANK($I13), "Undefined", IF(CX13<0.5, "Complete",IF(SUMPRODUCT($N$41:CX$41,$N13:CX13)<0.5, "To start", "Running"))) -> Complete | CZ13: 0 | DA13: 0 | DB13: =IF(ISBLANK($I13), "Undefined", IF(DA13<0.5, "Complete",IF(SUMPRODUCT($N$41:DA$41,$N13:DA13)<0.5, "To start", "Running"))) -> Complete | DC13: 0 | DD13: 0 | DE13: =IF(ISBLANK($I13), "Undefined", IF(DD13<0.5, "Complete",IF(SUMPRODUCT($N$41:DD$41,$N13:DD13)<0.5, "To start", "Running"))) -> Complete | DF13: 0 | DG13: 0 | DH13: =IF(ISBLANK($I13), "Undefined", IF(DG13<0.5, "Complete",IF(SUMPRODUCT($N$41:DG$41,$N13:DG13)<0.5, "To start", "Running"))) -> Complete | DI13: 0 | DJ13: 0 | DK13: =IF(ISBLANK($I13), "Undefined", IF(DJ13<0.5, "Complete",IF(SUMPRODUCT($N$41:DJ$41,$N13:DJ13)<0.5, "To start", "Running"))) -> Complete | DL13: 0 | DM13: 0 | DN13: =IF(ISBLANK($I13), "Undefined", IF(DM13<0.5, "Complete",IF(SUMPRODUCT($N$41:DM$41,$N13:DM13)<0.5, "To start", "Running"))) -> Complete | DO13: 0 | DP13: 0 | DQ13: =IF(ISBLANK($I13), "Undefined", IF(DP13<0.5, "Complete",IF(SUMPRODUCT($N$41:DP$41,$N13:DP13)<0.5, "To start", "Running"))) -> Complete | DR13: 0 | DS13: 0 | DT13: =IF(ISBLANK($I13), "Undefined", IF(DS13<0.5, "Complete",IF(SUMPRODUCT($N$41:DS$41,$N13:DS13)<0.5, "To start", "Running"))) -> Complete | DU13: 0 | DV13: 0 | DW13: =IF(ISBLANK($I13), "Undefined", IF(DV13<0.5, "Complete",IF(SUMPRODUCT($N$41:DV$41,$N13:DV13)<0.5, "To start", "Running"))) -> Complete | DX13: 0 | DY13: 0 | DZ13: =IF(ISBLANK($I13), "Undefined", IF(DY13<0.5, "Complete",IF(SUMPRODUCT($N$41:DY$41,$N13:DY13)<0.5, "To start", "Running"))) -> Complete | EA13: 0 | EB13: 0 | EC13: =IF(ISBLANK($I13), "Undefined", IF(EB13<0.5, "Complete",IF(SUMPRODUCT($N$41:EB$41,$N13:EB13)<0.5, "To start", "Running"))) -> Complete | EE13: =SUMPRODUCT($L$41:DK$41,$L13:DK13) -> 12 | EF13: 1.5 | EG13: =OFFSET($O13,0,(Capacity!$F$2-SprintStart)*3,1,1) -> 0 | EH13: 0 | EI13: 12 | EJ13: 1.5 | EK13: 200% | EL13: 8 | EM13: 1
A14: Feature | B14: Development | I14: Mapear Modelo de Reqs. - Selecionar 6 Uses Cases | K14: =IF(SprintStart>Capacity!$F$2, "To start", INDEX(Burndown,ROW(K14)-ROW(K$6),MIN(Capacity!$F$2-SprintStart,29)*3+3)) -> Complete | M14: 4 | N14: 0 | O14: =MAX(M14-N14,0) -> 4 | P14: =IF(ISBLANK($I14), "Undefined", IF(O14<0.5, "Complete",IF(SUMPRODUCT($N$41:O$41,$N14:O14)<0.5, "To start", "Running"))) -> To start | Q14: 0 | R14: =MAX(O14-Q14,0) -> 4 | S14: =IF(ISBLANK($I14), "Undefined", IF(R14<0.5, "Complete",IF(SUMPRODUCT($N$41:R$41,$N14:R14)<0.5, "To start", "Running"))) -> To start | T14: 0 | U14: =MAX(R14-T14,0) -> 4 | V14: =IF(ISBLANK($I14), "Undefined", IF(U14<0.5, "Complete",IF(SUMPRODUCT($N$41:U$41,$N14:U14)<0.5, "To start", "Running"))) -> To start | W14: 0 | X14: =MAX(U14-W14,0) -> 4 | Y14: =IF(ISBLANK($I14), "Undefined", IF(X14<0.5, "Complete",IF(SUMPRODUCT($N$41:X$41,$N14:X14)<0.5, "To start", "Running"))) -> To start | Z14: 0 | AA14: =MAX(X14-Z14,0) -> 4 | AB14: =IF(ISBLANK($I14), "Undefined", IF(AA14<0.5, "Complete",IF(SUMPRODUCT($N$41:AA$41,$N14:AA14)<0.5, "To start", "Running"))) -> To start | AC14: 0 | AD14: =MAX(AA14-AC14,0) -> 4 | AE14: =IF(ISBLANK($I14), "Undefined", IF(AD14<0.5, "Complete",IF(SUMPRODUCT($N$41:AD$41,$N14:AD14)<0.5, "To start", "Running"))) -> To start | AF14: 0 | AG14: =MAX(AD14-AF14,0) -> 4 | AH14: =IF(ISBLANK($I14), "Undefined", IF(AG14<0.5, "Complete",IF(SUMPRODUCT($N$41:AG$41,$N14:AG14)<0.5, "To start", "Running"))) -> To start | AI14: 4 | AJ14: 0 | AK14: =IF(ISBLANK($I14), "Undefined", IF(AJ14<0.5, "Complete",IF(SUMPRODUCT($N$41:AJ$41,$N14:AJ14)<0.5, "To start", "Running"))) -> Complete | AL14: 0 | AM14: =MAX(AJ14-AL14,0) -> 0 | AN14: =IF(ISBLANK($I14), "Undefined", IF(AM14<0.5, "Complete",IF(SUMPRODUCT($N$41:AM$41,$N14:AM14)<0.5, "To start", "Running"))) -> Complete | AO14: 0 | AP14: =MAX(AM14-AO14,0) -> 0 | AQ14: =IF(ISBLANK($I14), "Undefined", IF(AP14<0.5, "Complete",IF(SUMPRODUCT($N$41:AP$41,$N14:AP14)<0.5, "To start", "Running"))) -> Complete | AR14: 0 | AS14: =MAX(AP14-AR14,0) -> 0 | AT14: =IF(ISBLANK($I14), "Undefined", IF(AS14<0.5, "Complete",IF(SUMPRODUCT($N$41:AS$41,$N14:AS14)<0.5, "To start", "Running"))) -> Complete | AU14: 0 | AV14: =MAX(AS14-AU14,0) -> 0 | AW14: =IF(ISBLANK($I14), "Undefined", IF(AV14<0.5, "Complete",IF(SUMPRODUCT($N$41:AV$41,$N14:AV14)<0.5, "To start", "Running"))) -> Complete | AX14: 0 | AY14: =MAX(AV14-AX14,0) -> 0 | AZ14: =IF(ISBLANK($I14), "Undefined", IF(AY14<0.5, "Complete",IF(SUMPRODUCT($N$41:AY$41,$N14:AY14)<0.5, "To start", "Running"))) -> Complete | BA14: 0 | BB14: =MAX(AY14-BA14,0) -> 0 | BC14: =IF(ISBLANK($I14), "Undefined", IF(BB14<0.5, "Complete",IF(SUMPRODUCT($N$41:BB$41,$N14:BB14)<0.5, "To start", "Running"))) -> Complete | BD14: 0 | BE14: =MAX(BB14-BD14,0) -> 0 | BF14: =IF(ISBLANK($I14), "Undefined", IF(BE14<0.5, "Complete",IF(SUMPRODUCT($N$41:BE$41,$N14:BE14)<0.5, "To start", "Running"))) -> Complete | BG14: 0 | BH14: =MAX(BE14-BG14,0) -> 0 | BI14: =IF(ISBLANK($I14), "Undefined", IF(BH14<0.5, "Complete",IF(SUMPRODUCT($N$41:BH$41,$N14:BH14)<0.5, "To start", "Running"))) -> Complete | BJ14: 0 | BK14: =MAX(BH14-BJ14,0) -> 0 | BL14: =IF(ISBLANK($I14), "Undefined", IF(BK14<0.5, "Complete",IF(SUMPRODUCT($N$41:BK$41,$N14:BK14)<0.5, "To start", "Running"))) -> Complete | BM14: 0 | BN14: =MAX(BK14-BM14,0) -> 0 | BO14: =IF(ISBLANK($I14), "Undefined", IF(BN14<0.5, "Complete",IF(SUMPRODUCT($N$41:BN$41,$N14:BN14)<0.5, "To start", "Running"))) -> Complete | BP14: 0 | BQ14: =MAX(BN14-BP14,0) -> 0 | BR14: =IF(ISBLANK($I14), "Undefined", IF(BQ14<0.5, "Complete",IF(SUMPRODUCT($N$41:BQ$41,$N14:BQ14)<0.5, "To start", "Running"))) -> Complete | BS14: 0 | BT14: =MAX(BQ14-BS14,0) -> 0 | BU14: =IF(ISBLANK($I14), "Undefined", IF(BT14<0.5, "Complete",IF(SUMPRODUCT($N$41:BT$41,$N14:BT14)<0.5, "To start", "Running"))) -> Complete | BV14: 0 | BW14: =MAX(BT14-BV14,0) -> 0 | BX14: =IF(ISBLANK($I14), "Undefined", IF(BW14<0.5, "Complete",IF(SUMPRODUCT($N$41:BW$41,$N14:BW14)<0.5, "To start", "Running"))) -> Complete | BY14: 0 | BZ14: =MAX(BW14-BY14,0) -> 0 | CA14: =IF(ISBLANK($I14), "Undefined", IF(BZ14<0.5, "Complete",IF(SUMPRODUCT($N$41:BZ$41,$N14:BZ14)<0.5, "To start", "Running"))) -> Complete | CB14: 0 | CC14: =MAX(BZ14-CB14,0) -> 0 | CD14: =IF(ISBLANK($I14), "Undefined", IF(CC14<0.5, "Complete",IF(SUMPRODUCT($N$41:CC$41,$N14:CC14)<0.5, "To start", "Running"))) -> Complete | CE14: 0 | CF14: =MAX(CC14-CE14,0) -> 0 | CG14: =IF(ISBLANK($I14), "Undefined", IF(CF14<0.5, "Complete",IF(SUMPRODUCT($N$41:CF$41,$N14:CF14)<0.5, "To start", "Running"))) -> Complete | CH14: 0 | CI14: =MAX(CF14-CH14,0) -> 0 | CJ14: =IF(ISBLANK($I14), "Undefined", IF(CI14<0.5, "Complete",IF(SUMPRODUCT($N$41:CI$41,$N14:CI14)<0.5, "To start", "Running"))) -> Complete | CK14: 0 | CL14: =MAX(CI14-CK14,0) -> 0 | CM14: =IF(ISBLANK($I14), "Undefined", IF(CL14<0.5, "Complete",IF(SUMPRODUCT($N$41:CL$41,$N14:CL14)<0.5, "To start", "Running"))) -> Complete | CN14: 0 | CO14: =MAX(CL14-CN14,0) -> 0 | CP14: =IF(ISBLANK($I14), "Undefined", IF(CO14<0.5, "Complete",IF(SUMPRODUCT($N$41:CO$41,$N14:CO14)<0.5, "To start", "Running"))) -> Complete | CQ14: 0 | CR14: =MAX(CO14-CQ14,0) -> 0 | CS14: =IF(ISBLANK($I14), "Undefined", IF(CR14<0.5, "Complete",IF(SUMPRODUCT($N$41:CR$41,$N14:CR14)<0.5, "To start", "Running"))) -> Complete | CT14: 0 | CU14: =MAX(CR14-CT14,0) -> 0 | CV14: =IF(ISBLANK($I14), "Undefined", IF(CU14<0.5, "Complete",IF(SUMPRODUCT($N$41:CU$41,$N14:CU14)<0.5, "To start", "Running"))) -> Complete | CW14: 0 | CX14: =MAX(CU14-CW14,0) -> 0 | CY14: =IF(ISBLANK($I14), "Undefined", IF(CX14<0.5, "Complete",IF(SUMPRODUCT($N$41:CX$41,$N14:CX14)<0.5, "To start", "Running"))) -> Complete | CZ14: 0 | DA14: =MAX(CX14-CZ14,0) -> 0 | DB14: =IF(ISBLANK($I14), "Undefined", IF(DA14<0.5, "Complete",IF(SUMPRODUCT($N$41:DA$41,$N14:DA14)<0.5, "To start", "Running"))) -> Complete | DC14: 0 | DD14: =MAX(DA14-DC14,0) -> 0 | DE14: =IF(ISBLANK($I14), "Undefined", IF(DD14<0.5, "Complete",IF(SUMPRODUCT($N$41:DD$41,$N14:DD14)<0.5, "To start", "Running"))) -> Complete | DF14: 0 | DG14: =MAX(DD14-DF14,0) -> 0 | DH14: =IF(ISBLANK($I14), "Undefined", IF(DG14<0.5, "Complete",IF(SUMPRODUCT($N$41:DG$41,$N14:DG14)<0.5, "To start", "Running"))) -> Complete | DI14: 0 | DJ14: =MAX(DG14-DI14,0) -> 0 | DK14: =IF(ISBLANK($I14), "Undefined", IF(DJ14<0.5, "Complete",IF(SUMPRODUCT($N$41:DJ$41,$N14:DJ14)<0.5, "To start", "Running"))) -> Complete | DL14: 0 | DM14: =MAX(DJ14-DL14,0) -> 0 | DN14: =IF(ISBLANK($I14), "Undefined", IF(DM14<0.5, "Complete",IF(SUMPRODUCT($N$41:DM$41,$N14:DM14)<0.5, "To start", "Running"))) -> Complete | DO14: 0 | DP14: =MAX(DM14-DO14,0) -> 0 | DQ14: =IF(ISBLANK($I14), "Undefined", IF(DP14<0.5, "Complete",IF(SUMPRODUCT($N$41:DP$41,$N14:DP14)<0.5, "To start", "Running"))) -> Complete | DR14: 0 | DS14: =MAX(DP14-DR14,0) -> 0 | DT14: =IF(ISBLANK($I14), "Undefined", IF(DS14<0.5, "Complete",IF(SUMPRODUCT($N$41:DS$41,$N14:DS14)<0.5, "To start", "Running"))) -> Complete | DU14: 0 | DV14: =MAX(DS14-DU14,0) -> 0 | DW14: =IF(ISBLANK($I14), "Undefined", IF(DV14<0.5, "Complete",IF(SUMPRODUCT($N$41:DV$41,$N14:DV14)<0.5, "To start", "Running"))) -> Complete | DX14: 0 | DY14: =MAX(DV14-DX14,0) -> 0 | DZ14: =IF(ISBLANK($I14), "Undefined", IF(DY14<0.5, "Complete",IF(SUMPRODUCT($N$41:DY$41,$N14:DY14)<0.5, "To start", "Running"))) -> Complete | EA14: 0 | EB14: =MAX(DY14-EA14,0) -> 0 | EC14: =IF(ISBLANK($I14), "Undefined", IF(EB14<0.5, "Complete",IF(SUMPRODUCT($N$41:EB$41,$N14:EB14)<0.5, "To start", "Running"))) -> Complete | EE14: =SUMPRODUCT($L$41:DK$41,$L14:DK14) -> 4 | EF14: 0.5 | EG14: =OFFSET($O14,0,(Capacity!$F$2-SprintStart)*3,1,1) -> 0 | EH14: 0 | EI14: 4 | EJ14: 0.5 | EK14: 0% | EL14: 0 | EM14: 0
A15: Feature | B15: Development | I15: Mapear Modelo de Reqs. -Definir uma User Story para Use Cases | K15: =IF(SprintStart>Capacity!$F$2, "To start", INDEX(Burndown,ROW(K15)-ROW(K$6),MIN(Capacity!$F$2-SprintStart,29)*3+3)) -> Complete | M15: 2 | N15: 0 | O15: =MAX(M15-N15,0) -> 2 | P15: =IF(ISBLANK($I15), "Undefined", IF(O15<0.5, "Complete",IF(SUMPRODUCT($N$41:O$41,$N15:O15)<0.5, "To start", "Running"))) -> To start | Q15: 0 | R15: =MAX(O15-Q15,0) -> 2 | S15: =IF(ISBLANK($I15), "Undefined", IF(R15<0.5, "Complete",IF(SUMPRODUCT($N$41:R$41,$N15:R15)<0.5, "To start", "Running"))) -> To start | T15: 0 | U15: =MAX(R15-T15,0) -> 2 | V15: =IF(ISBLANK($I15), "Undefined", IF(U15<0.5, "Complete",IF(SUMPRODUCT($N$41:U$41,$N15:U15)<0.5, "To start", "Running"))) -> To start | W15: 0 | X15: =MAX(U15-W15,0) -> 2 | Y15: =IF(ISBLANK($I15), "Undefined", IF(X15<0.5, "Complete",IF(SUMPRODUCT($N$41:X$41,$N15:X15)<0.5, "To start", "Running"))) -> To start | Z15: 0 | AA15: =MAX(X15-Z15,0) -> 2 | AB15: =IF(ISBLANK($I15), "Undefined", IF(AA15<0.5, "Complete",IF(SUMPRODUCT($N$41:AA$41,$N15:AA15)<0.5, "To start", "Running"))) -> To start | AC15: 0 | AD15: =MAX(AA15-AC15,0) -> 2 | AE15: =IF(ISBLANK($I15), "Undefined", IF(AD15<0.5, "Complete",IF(SUMPRODUCT($N$41:AD$41,$N15:AD15)<0.5, "To start", "Running"))) -> To start | AF15: 0 | AG15: =MAX(AD15-AF15,0) -> 2 | AH15: =IF(ISBLANK($I15), "Undefined", IF(AG15<0.5, "Complete",IF(SUMPRODUCT($N$41:AG$41,$N15:AG15)<0.5, "To start", "Running"))) -> To start | AI15: 2 | AJ15: 0 | AK15: =IF(ISBLANK($I15), "Undefined", IF(AJ15<0.5, "Complete",IF(SUMPRODUCT($N$41:AJ$41,$N15:AJ15)<0.5, "To start", "Running"))) -> Complete | AL15: 0 | AM15: =MAX(AJ15-AL15,0) -> 0 | AN15: =IF(ISBLANK($I15), "Undefined", IF(AM15<0.5, "Complete",IF(SUMPRODUCT($N$41:AM$41,$N15:AM15)<0.5, "To start", "Running"))) -> Complete | AO15: 0 | AP15: =MAX(AM15-AO15,0) -> 0 | AQ15: =IF(ISBLANK($I15), "Undefined", IF(AP15<0.5, "Complete",IF(SUMPRODUCT($N$41:AP$41,$N15:AP15)<0.5, "To start", "Running"))) -> Complete | AR15: 0 | AS15: =MAX(AP15-AR15,0) -> 0 | AT15: =IF(ISBLANK($I15), "Undefined", IF(AS15<0.5, "Complete",IF(SUMPRODUCT($N$41:AS$41,$N15:AS15)<0.5, "To start", "Running"))) -> Complete | AU15: 0 | AV15: =MAX(AS15-AU15,0) -> 0 | AW15: =IF(ISBLANK($I15), "Undefined", IF(AV15<0.5, "Complete",IF(SUMPRODUCT($N$41:AV$41,$N15:AV15)<0.5, "To start", "Running"))) -> Complete | AX15: 0 | AY15: =MAX(AV15-AX15,0) -> 0 | AZ15: =IF(ISBLANK($I15), "Undefined", IF(AY15<0.5, "Complete",IF(SUMPRODUCT($N$41:AY$41,$N15:AY15)<0.5, "To start", "Running"))) -> Complete | BA15: 0 | BB15: =MAX(AY15-BA15,0) -> 0 | BC15: =IF(ISBLANK($I15), "Undefined", IF(BB15<0.5, "Complete",IF(SUMPRODUCT($N$41:BB$41,$N15:BB15)<0.5, "To start", "Running"))) -> Complete | BD15: 0 | BE15: =MAX(BB15-BD15,0) -> 0 | BF15: =IF(ISBLANK($I15), "Undefined", IF(BE15<0.5, "Complete",IF(SUMPRODUCT($N$41:BE$41,$N15:BE15)<0.5, "To start", "Running"))) -> Complete | BG15: 0 | BH15: =MAX(BE15-BG15,0) -> 0 | BI15: =IF(ISBLANK($I15), "Undefined", IF(BH15<0.5, "Complete",IF(SUMPRODUCT($N$41:BH$41,$N15:BH15)<0.5, "To start", "Running"))) -> Complete | BJ15: 0 | BK15: =MAX(BH15-BJ15,0) -> 0 | BL15: =IF(ISBLANK($I15), "Undefined", IF(BK15<0.5, "Complete",IF(SUMPRODUCT($N$41:BK$41,$N15:BK15)<0.5, "To start", "Running"))) -> Complete | BM15: 0 | BN15: =MAX(BK15-BM15,0) -> 0 | BO15: =IF(ISBLANK($I15), "Undefined", IF(BN15<0.5, "Complete",IF(SUMPRODUCT($N$41:BN$41,$N15:BN15)<0.5, "To start", "Running"))) -> Complete | BP15: 0 | BQ15: =MAX(BN15-BP15,0) -> 0 | BR15: =IF(ISBLANK($I15), "Undefined", IF(BQ15<0.5, "Complete",IF(SUMPRODUCT($N$41:BQ$41,$N15:BQ15)<0.5, "To start", "Running"))) -> Complete | BS15: 0 | BT15: =MAX(BQ15-BS15,0) -> 0 | BU15: =IF(ISBLANK($I15), "Undefined", IF(BT15<0.5, "Complete",IF(SUMPRODUCT($N$41:BT$41,$N15:BT15)<0.5, "To start", "Running"))) -> Complete | BV15: 0 | BW15: =MAX(BT15-BV15,0) -> 0 | BX15: =IF(ISBLANK($I15), "Undefined", IF(BW15<0.5, "Complete",IF(SUMPRODUCT($N$41:BW$41,$N15:BW15)<0.5, "To start", "Running"))) -> Complete | BY15: 0 | BZ15: =MAX(BW15-BY15,0) -> 0 | CA15: =IF(ISBLANK($I15), "Undefined", IF(BZ15<0.5, "Complete",IF(SUMPRODUCT($N$41:BZ$41,$N15:BZ15)<0.5, "To start", "Running"))) -> Complete | CB15: 0 | CC15: =MAX(BZ15-CB15,0) -> 0 | CD15: =IF(ISBLANK($I15), "Undefined", IF(CC15<0.5, "Complete",IF(SUMPRODUCT($N$41:CC$41,$N15:CC15)<0.5, "To start", "Running"))) -> Complete | CE15: 0 | CF15: =MAX(CC15-CE15,0) -> 0 | CG15: =IF(ISBLANK($I15), "Undefined", IF(CF15<0.5, "Complete",IF(SUMPRODUCT($N$41:CF$41,$N15:CF15)<0.5, "To start", "Running"))) -> Complete | CH15: 0 | CI15: =MAX(CF15-CH15,0) -> 0 | CJ15: =IF(ISBLANK($I15), "Undefined", IF(CI15<0.5, "Complete",IF(SUMPRODUCT($N$41:CI$41,$N15:CI15)<0.5, "To start", "Running"))) -> Complete | CK15: 0 | CL15: =MAX(CI15-CK15,0) -> 0 | CM15: =IF(ISBLANK($I15), "Undefined", IF(CL15<0.5, "Complete",IF(SUMPRODUCT($N$41:CL$41,$N15:CL15)<0.5, "To start", "Running"))) -> Complete | CN15: 0 | CO15: =MAX(CL15-CN15,0) -> 0 | CP15: =IF(ISBLANK($I15), "Undefined", IF(CO15<0.5, "Complete",IF(SUMPRODUCT($N$41:CO$41,$N15:CO15)<0.5, "To start", "Running"))) -> Complete | CQ15: 0 | CR15: =MAX(CO15-CQ15,0) -> 0 | CS15: =IF(ISBLANK($I15), "Undefined", IF(CR15<0.5, "Complete",IF(SUMPRODUCT($N$41:CR$41,$N15:CR15)<0.5, "To start", "Running"))) -> Complete | CT15: 0 | CU15: =MAX(CR15-CT15,0) -> 0 | CV15: =IF(ISBLANK($I15), "Undefined", IF(CU15<0.5, "Complete",IF(SUMPRODUCT($N$41:CU$41,$N15:CU15)<0.5, "To start", "Running"))) -> Complete | CW15: 0 | CX15: =MAX(CU15-CW15,0) -> 0 | CY15: =IF(ISBLANK($I15), "Undefined", IF(CX15<0.5, "Complete",IF(SUMPRODUCT($N$41:CX$41,$N15:CX15)<0.5, "To start", "Running"))) -> Complete | CZ15: 0 | DA15: =MAX(CX15-CZ15,0) -> 0 | DB15: =IF(ISBLANK($I15), "Undefined", IF(DA15<0.5, "Complete",IF(SUMPRODUCT($N$41:DA$41,$N15:DA15)<0.5, "To start", "Running"))) -> Complete | DC15: 0 | DD15: =MAX(DA15-DC15,0) -> 0 | DE15: =IF(ISBLANK($I15), "Undefined", IF(DD15<0.5, "Complete",IF(SUMPRODUCT($N$41:DD$41,$N15:DD15)<0.5, "To start", "Running"))) -> Complete | DF15: 0 | DG15: =MAX(DD15-DF15,0) -> 0 | DH15: =IF(ISBLANK($I15), "Undefined", IF(DG15<0.5, "Complete",IF(SUMPRODUCT($N$41:DG$41,$N15:DG15)<0.5, "To start", "Running"))) -> Complete | DI15: 0 | DJ15: =MAX(DG15-DI15,0) -> 0 | DK15: =IF(ISBLANK($I15), "Undefined", IF(DJ15<0.5, "Complete",IF(SUMPRODUCT($N$41:DJ$41,$N15:DJ15)<0.5, "To start", "Running"))) -> Complete | DL15: 0 | DM15: =MAX(DJ15-DL15,0) -> 0 | DN15: =IF(ISBLANK($I15), "Undefined", IF(DM15<0.5, "Complete",IF(SUMPRODUCT($N$41:DM$41,$N15:DM15)<0.5, "To start", "Running"))) -> Complete | DO15: 0 | DP15: =MAX(DM15-DO15,0) -> 0 | DQ15: =IF(ISBLANK($I15), "Undefined", IF(DP15<0.5, "Complete",IF(SUMPRODUCT($N$41:DP$41,$N15:DP15)<0.5, "To start", "Running"))) -> Complete | DR15: 0 | DS15: =MAX(DP15-DR15,0) -> 0 | DT15: =IF(ISBLANK($I15), "Undefined", IF(DS15<0.5, "Complete",IF(SUMPRODUCT($N$41:DS$41,$N15:DS15)<0.5, "To start", "Running"))) -> Complete | DU15: 0 | DV15: =MAX(DS15-DU15,0) -> 0 | DW15: =IF(ISBLANK($I15), "Undefined", IF(DV15<0.5, "Complete",IF(SUMPRODUCT($N$41:DV$41,$N15:DV15)<0.5, "To start", "Running"))) -> Complete | DX15: 0 | DY15: =MAX(DV15-DX15,0) -> 0 | DZ15: =IF(ISBLANK($I15), "Undefined", IF(DY15<0.5, "Complete",IF(SUMPRODUCT($N$41:DY$41,$N15:DY15)<0.5, "To start", "Running"))) -> Complete | EA15: 0 | EB15: =MAX(DY15-EA15,0) -> 0 | EC15: =IF(ISBLANK($I15), "Undefined", IF(EB15<0.5, "Complete",IF(SUMPRODUCT($N$41:EB$41,$N15:EB15)<0.5, "To start", "Running"))) -> Complete | EE15: =SUMPRODUCT($L$41:DK$41,$L15:DK15) -> 2 | EF15: 0.25 | EG15: =OFFSET($O15,0,(Capacity!$F$2-SprintStart)*3,1,1) -> 0 | EH15: 0 | EI15: 2 | EJ15: 0.25 | EK15: 0% | EL15: 0 | EM15: 0
A16: Feature | B16: Development | I16: Mapear Modelo de Reqs. -Diagrama de classes | K16: =IF(SprintStart>Capacity!$F$2, "To start", INDEX(Burndown,ROW(K16)-ROW(K$6),MIN(Capacity!$F$2-SprintStart,29)*3+3)) -> Complete | M16: 2 | N16: 0 | O16: 2 | P16: =IF(ISBLANK($I16), "Undefined", IF(O16<0.5, "Complete",IF(SUMPRODUCT($N$41:O$41,$N16:O16)<0.5, "To start", "Running"))) -> To start | Q16: 0 | R16: 2 | S16: =IF(ISBLANK($I16), "Undefined", IF(R16<0.5, "Complete",IF(SUMPRODUCT($N$41:R$41,$N16:R16)<0.5, "To start", "Running"))) -> To start | T16: 0 | U16: 2 | V16: =IF(ISBLANK($I16), "Undefined", IF(U16<0.5, "Complete",IF(SUMPRODUCT($N$41:U$41,$N16:U16)<0.5, "To start", "Running"))) -> To start | W16: 0 | X16: 2 | Y16: =IF(ISBLANK($I16), "Undefined", IF(X16<0.5, "Complete",IF(SUMPRODUCT($N$41:X$41,$N16:X16)<0.5, "To start", "Running"))) -> To start | Z16: 0 | AA16: 2 | AB16: =IF(ISBLANK($I16), "Undefined", IF(AA16<0.5, "Complete",IF(SUMPRODUCT($N$41:AA$41,$N16:AA16)<0.5, "To start", "Running"))) -> To start | AC16: 0 | AD16: 2 | AE16: =IF(ISBLANK($I16), "Undefined", IF(AD16<0.5, "Complete",IF(SUMPRODUCT($N$41:AD$41,$N16:AD16)<0.5, "To start", "Running"))) -> To start | AF16: 0 | AG16: 2 | AH16: =IF(ISBLANK($I16), "Undefined", IF(AG16<0.5, "Complete",IF(SUMPRODUCT($N$41:AG$41,$N16:AG16)<0.5, "To start", "Running"))) -> To start | AI16: 0 | AJ16: =MAX(AG16-AI16,0) -> 2 | AK16: =IF(ISBLANK($I16), "Undefined", IF(AJ16<0.5, "Complete",IF(SUMPRODUCT($N$41:AJ$41,$N16:AJ16)<0.5, "To start", "Running"))) -> To start | AL16: 0 | AM16: 2 | AN16: =IF(ISBLANK($I16), "Undefined", IF(AM16<0.5, "Complete",IF(SUMPRODUCT($N$41:AM$41,$N16:AM16)<0.5, "To start", "Running"))) -> To start | AO16: 2 | AP16: 0 | AQ16: =IF(ISBLANK($I16), "Undefined", IF(AP16<0.5, "Complete",IF(SUMPRODUCT($N$41:AP$41,$N16:AP16)<0.5, "To start", "Running"))) -> Complete | AR16: 0 | AS16: 0 | AT16: =IF(ISBLANK($I16), "Undefined", IF(AS16<0.5, "Complete",IF(SUMPRODUCT($N$41:AS$41,$N16:AS16)<0.5, "To start", "Running"))) -> Complete | AU16: 0 | AV16: 0 | AW16: =IF(ISBLANK($I16), "Undefined", IF(AV16<0.5, "Complete",IF(SUMPRODUCT($N$41:AV$41,$N16:AV16)<0.5, "To start", "Running"))) -> Complete | AX16: 0 | AY16: 0 | AZ16: =IF(ISBLANK($I16), "Undefined", IF(AY16<0.5, "Complete",IF(SUMPRODUCT($N$41:AY$41,$N16:AY16)<0.5, "To start", "Running"))) -> Complete | BA16: 0 | BB16: 0 | BC16: =IF(ISBLANK($I16), "Undefined", IF(BB16<0.5, "Complete",IF(SUMPRODUCT($N$41:BB$41,$N16:BB16)<0.5, "To start", "Running"))) -> Complete | BD16: 0 | BE16: 0 | BF16: =IF(ISBLANK($I16), "Undefined", IF(BE16<0.5, "Complete",IF(SUMPRODUCT($N$41:BE$41,$N16:BE16)<0.5, "To start", "Running"))) -> Complete | BG16: 0 | BH16: 0 | BI16: =IF(ISBLANK($I16), "Undefined", IF(BH16<0.5, "Complete",IF(SUMPRODUCT($N$41:BH$41,$N16:BH16)<0.5, "To start", "Running"))) -> Complete | BJ16: 0 | BK16: 0 | BL16: =IF(ISBLANK($I16), "Undefined", IF(BK16<0.5, "Complete",IF(SUMPRODUCT($N$41:BK$41,$N16:BK16)<0.5, "To start", "Running"))) -> Complete | BM16: 0 | BN16: 0 | BO16: =IF(ISBLANK($I16), "Undefined", IF(BN16<0.5, "Complete",IF(SUMPRODUCT($N$41:BN$41,$N16:BN16)<0.5, "To start", "Running"))) -> Complete | BP16: 0 | BQ16: 0 | BR16: =IF(ISBLANK($I16), "Undefined", IF(BQ16<0.5, "Complete",IF(SUMPRODUCT($N$41:BQ$41,$N16:BQ16)<0.5, "To start", "Running"))) -> Complete | BS16: 0 | BT16: 0 | BU16: =IF(ISBLANK($I16), "Undefined", IF(BT16<0.5, "Complete",IF(SUMPRODUCT($N$41:BT$41,$N16:BT16)<0.5, "To start", "Running"))) -> Complete | BV16: 0 | BW16: 0 | BX16: =IF(ISBLANK($I16), "Undefined", IF(BW16<0.5, "Complete",IF(SUMPRODUCT($N$41:BW$41,$N16:BW16)<0.5, "To start", "Running"))) -> Complete | BY16: 0 | BZ16: 0 | CA16: =IF(ISBLANK($I16), "Undefined", IF(BZ16<0.5, "Complete",IF(SUMPRODUCT($N$41:BZ$41,$N16:BZ16)<0.5, "To start", "Running"))) -> Complete | CB16: 0 | CC16: 0 | CD16: =IF(ISBLANK($I16), "Undefined", IF(CC16<0.5, "Complete",IF(SUMPRODUCT($N$41:CC$41,$N16:CC16)<0.5, "To start", "Running"))) -> Complete | CE16: 0 | CF16: 0 | CG16: =IF(ISBLANK($I16), "Undefined", IF(CF16<0.5, "Complete",IF(SUMPRODUCT($N$41:CF$41,$N16:CF16)<0.5, "To start", "Running"))) -> Complete | CH16: 0 | CI16: 0 | CJ16: =IF(ISBLANK($I16), "Undefined", IF(CI16<0.5, "Complete",IF(SUMPRODUCT($N$41:CI$41,$N16:CI16)<0.5, "To start", "Running"))) -> Complete | CK16: 0 | CL16: 0 | CM16: =IF(ISBLANK($I16), "Undefined", IF(CL16<0.5, "Complete",IF(SUMPRODUCT($N$41:CL$41,$N16:CL16)<0.5, "To start", "Running"))) -> Complete | CN16: 0 | CO16: 0 | CP16: =IF(ISBLANK($I16), "Undefined", IF(CO16<0.5, "Complete",IF(SUMPRODUCT($N$41:CO$41,$N16:CO16)<0.5, "To start", "Running"))) -> Complete | CQ16: 0 | CR16: 0 | CS16: =IF(ISBLANK($I16), "Undefined", IF(CR16<0.5, "Complete",IF(SUMPRODUCT($N$41:CR$41,$N16:CR16)<0.5, "To start", "Running"))) -> Complete | CT16: 0 | CU16: 0 | CV16: =IF(ISBLANK($I16), "Undefined", IF(CU16<0.5, "Complete",IF(SUMPRODUCT($N$41:CU$41,$N16:CU16)<0.5, "To start", "Running"))) -> Complete | CW16: 0 | CX16: 0 | CY16: =IF(ISBLANK($I16), "Undefined", IF(CX16<0.5, "Complete",IF(SUMPRODUCT($N$41:CX$41,$N16:CX16)<0.5, "To start", "Running"))) -> Complete | CZ16: 0 | DA16: 0 | DB16: =IF(ISBLANK($I16), "Undefined", IF(DA16<0.5, "Complete",IF(SUMPRODUCT($N$41:DA$41,$N16:DA16)<0.5, "To start", "Running"))) -> Complete | DC16: 0 | DD16: 0 | DE16: =IF(ISBLANK($I16), "Undefined", IF(DD16<0.5, "Complete",IF(SUMPRODUCT($N$41:DD$41,$N16:DD16)<0.5, "To start", "Running"))) -> Complete | DF16: 0 | DG16: 0 | DH16: =IF(ISBLANK($I16), "Undefined", IF(DG16<0.5, "Complete",IF(SUMPRODUCT($N$41:DG$41,$N16:DG16)<0.5, "To start", "Running"))) -> Complete | DI16: 0 | DJ16: 0 | DK16: =IF(ISBLANK($I16), "Undefined", IF(DJ16<0.5, "Complete",IF(SUMPRODUCT($N$41:DJ$41,$N16:DJ16)<0.5, "To start", "Running"))) -> Complete | DL16: 0 | DM16: 0 | DN16: =IF(ISBLANK($I16), "Undefined", IF(DM16<0.5, "Complete",IF(SUMPRODUCT($N$41:DM$41,$N16:DM16)<0.5, "To start", "Running"))) -> Complete | DO16: 0 | DP16: 0 | DQ16: =IF(ISBLANK($I16), "Undefined", IF(DP16<0.5, "Complete",IF(SUMPRODUCT($N$41:DP$41,$N16:DP16)<0.5, "To start", "Running"))) -> Complete | DR16: 0 | DS16: 0 | DT16: =IF(ISBLANK($I16), "Undefined", IF(DS16<0.5, "Complete",IF(SUMPRODUCT($N$41:DS$41,$N16:DS16)<0.5, "To start", "Running"))) -> Complete | DU16: 0 | DV16: 0 | DW16: =IF(ISBLANK($I16), "Undefined", IF(DV16<0.5, "Complete",IF(SUMPRODUCT($N$41:DV$41,$N16:DV16)<0.5, "To start", "Running"))) -> Complete | DX16: 0 | DY16: 0 | DZ16: =IF(ISBLANK($I16), "Undefined", IF(DY16<0.5, "Complete",IF(SUMPRODUCT($N$41:DY$41,$N16:DY16)<0.5, "To start", "Running"))) -> Complete | EA16: 0 | EB16: 0 | EC16: =IF(ISBLANK($I16), "Undefined", IF(EB16<0.5, "Complete",IF(SUMPRODUCT($N$41:EB$41,$N16:EB16)<0.5, "To start", "Running"))) -> Complete | EE16: =SUMPRODUCT($L$41:DK$41,$L16:DK16) -> 2 | EF16: 0.25 | EG16: =OFFSET($O16,0,(Capacity!$F$2-SprintStart)*3,1,1) -> 0 | EH16: 0 | EI16: 2 | EJ16: 0.25 | EK16: 0% | EL16: 0 | EM16: 0
K17: =IF(SprintStart>Capacity!$F$2, "To start", INDEX(Burndown,ROW(K17)-ROW(K$6),MIN(Capacity!$F$2-SprintStart,29)*3+3)) -> Undefined | M17: 0 | N17: 0 | O17: 0 | P17: =IF(ISBLANK($I17), "Undefined", IF(O17<0.5, "Complete",IF(SUMPRODUCT($N$41:O$41,$N17:O17)<0.5, "To start", "Running"))) -> Undefined | Q17: 0 | R17: 0 | S17: =IF(ISBLANK($I17), "Undefined", IF(R17<0.5, "Complete",IF(SUMPRODUCT($N$41:R$41,$N17:R17)<0.5, "To start", "Running"))) -> Undefined | T17: 0 | U17: 0 | V17: =IF(ISBLANK($I17), "Undefined", IF(U17<0.5, "Complete",IF(SUMPRODUCT($N$41:U$41,$N17:U17)<0.5, "To start", "Running"))) -> Undefined | W17: 0 | X17: 0 | Y17: =IF(ISBLANK($I17), "Undefined", IF(X17<0.5, "Complete",IF(SUMPRODUCT($N$41:X$41,$N17:X17)<0.5, "To start", "Running"))) -> Undefined | Z17: 0 | AA17: 0 | AB17: =IF(ISBLANK($I17), "Undefined", IF(AA17<0.5, "Complete",IF(SUMPRODUCT($N$41:AA$41,$N17:AA17)<0.5, "To start", "Running"))) -> Undefined | AC17: 0 | AD17: 0 | AE17: =IF(ISBLANK($I17), "Undefined", IF(AD17<0.5, "Complete",IF(SUMPRODUCT($N$41:AD$41,$N17:AD17)<0.5, "To start", "Running"))) -> Undefined | AF17: 0 | AG17: 0 | AH17: =IF(ISBLANK($I17), "Undefined", IF(AG17<0.5, "Complete",IF(SUMPRODUCT($N$41:AG$41,$N17:AG17)<0.5, "To start", "Running"))) -> Undefined | AI17: 0 | AJ17: 0 | AK17: =IF(ISBLANK($I17), "Undefined", IF(AJ17<0.5, "Complete",IF(SUMPRODUCT($N$41:AJ$41,$N17:AJ17)<0.5, "To start", "Running"))) -> Undefined | AL17: 0 | AM17: 0 | AN17: =IF(ISBLANK($I17), "Undefined", IF(AM17<0.5, "Complete",IF(SUMPRODUCT($N$41:AM$41,$N17:AM17)<0.5, "To start", "Running"))) -> Undefined | AO17: 0 | AP17: 0 | AQ17: =IF(ISBLANK($I17), "Undefined", IF(AP17<0.5, "Complete",IF(SUMPRODUCT($N$41:AP$41,$N17:AP17)<0.5, "To start", "Running"))) -> Undefined | AR17: 0 | AS17: 0 | AT17: =IF(ISBLANK($I17), "Undefined", IF(AS17<0.5, "Complete",IF(SUMPRODUCT($N$41:AS$41,$N17:AS17)<0.5, "To start", "Running"))) -> Undefined | AU17: 0 | AV17: 0 | AW17: =IF(ISBLANK($I17), "Undefined", IF(AV17<0.5, "Complete",IF(SUMPRODUCT($N$41:AV$41,$N17:AV17)<0.5, "To start", "Running"))) -> Undefined | AX17: 0 | AY17: 0 | AZ17: =IF(ISBLANK($I17), "Undefined", IF(AY17<0.5, "Complete",IF(SUMPRODUCT($N$41:AY$41,$N17:AY17)<0.5, "To start", "Running"))) -> Undefined | BA17: 0 | BB17: 0 | BC17: =IF(ISBLANK($I17), "Undefined", IF(BB17<0.5, "Complete",IF(SUMPRODUCT($N$41:BB$41,$N17:BB17)<0.5, "To start", "Running"))) -> Undefined | BD17: 0 | BE17: 0 | BF17: =IF(ISBLANK($I17), "Undefined", IF(BE17<0.5, "Complete",IF(SUMPRODUCT($N$41:BE$41,$N17:BE17)<0.5, "To start", "Running"))) -> Undefined | BG17: 0 | BH17: 0 | BI17: =IF(ISBLANK($I17), "Undefined", IF(BH17<0.5, "Complete",IF(SUMPRODUCT($N$41:BH$41,$N17:BH17)<0.5, "To start", "Running"))) -> Undefined | BJ17: 0 | BK17: 0 | BL17: =IF(ISBLANK($I17), "Undefined", IF(BK17<0.5, "Complete",IF(SUMPRODUCT($N$41:BK$41,$N17:BK17)<0.5, "To start", "Running"))) -> Undefined | BM17: 0 | BN17: 0 | BO17: =IF(ISBLANK($I17), "Undefined", IF(BN17<0.5, "Complete",IF(SUMPRODUCT($N$41:BN$41,$N17:BN17)<0.5, "To start", "Running"))) -> Undefined | BP17: 0 | BQ17: 0 | BR17: =IF(ISBLANK($I17), "Undefined", IF(BQ17<0.5, "Complete",IF(SUMPRODUCT($N$41:BQ$41,$N17:BQ17)<0.5, "To start", "Running"))) -> Undefined | BS17: 0 | BT17: 0 | BU17: =IF(ISBLANK($I17), "Undefined", IF(BT17<0.5, "Complete",IF(SUMPRODUCT($N$41:BT$41,$N17:BT17)<0.5, "To start", "Running"))) -> Undefined | BV17: 0 | BW17: 0 | BX17: =IF(ISBLANK($I17), "Undefined", IF(BW17<0.5, "Complete",IF(SUMPRODUCT($N$41:BW$41,$N17:BW17)<0.5, "To start", "Running"))) -> Undefined | BY17: 0 | BZ17: 0 | CA17: =IF(ISBLANK($I17), "Undefined", IF(BZ17<0.5, "Complete",IF(SUMPRODUCT($N$41:BZ$41,$N17:BZ17)<0.5, "To start", "Running"))) -> Undefined | CB17: 0 | CC17: 0 | CD17: =IF(ISBLANK($I17), "Undefined", IF(CC17<0.5, "Complete",IF(SUMPRODUCT($N$41:CC$41,$N17:CC17)<0.5, "To start", "Running"))) -> Undefined | CE17: 0 | CF17: 0 | CG17: =IF(ISBLANK($I17), "Undefined", IF(CF17<0.5, "Complete",IF(SUMPRODUCT($N$41:CF$41,$N17:CF17)<0.5, "To start", "Running"))) -> Undefined | CH17: 0 | CI17: 0 | CJ17: =IF(ISBLANK($I17), "Undefined", IF(CI17<0.5, "Complete",IF(SUMPRODUCT($N$41:CI$41,$N17:CI17)<0.5, "To start", "Running"))) -> Undefined | CK17: 0 | CL17: 0 | CM17: =IF(ISBLANK($I17), "Undefined", IF(CL17<0.5, "Complete",IF(SUMPRODUCT($N$41:CL$41,$N17:CL17)<0.5, "To start", "Running"))) -> Undefined | CN17: 0 | CO17: 0 | CP17: =IF(ISBLANK($I17), "Undefined", IF(CO17<0.5, "Complete",IF(SUMPRODUCT($N$41:CO$41,$N17:CO17)<0.5, "To start", "Running"))) -> Undefined | CQ17: 0 | CR17: 0 | CS17: =IF(ISBLANK($I17), "Undefined", IF(CR17<0.5, "Complete",IF(SUMPRODUCT($N$41:CR$41,$N17:CR17)<0.5, "To start", "Running"))) -> Undefined | CT17: 0 | CU17: 0 | CV17: =IF(ISBLANK($I17), "Undefined", IF(CU17<0.5, "Complete",IF(SUMPRODUCT($N$41:CU$41,$N17:CU17)<0.5, "To start", "Running"))) -> Undefined | CW17: 0 | CX17: 0 | CY17: =IF(ISBLANK($I17), "Undefined", IF(CX17<0.5, "Complete",IF(SUMPRODUCT($N$41:CX$41,$N17:CX17)<0.5, "To start", "Running"))) -> Undefined | CZ17: 0 | DA17: 0 | DB17: =IF(ISBLANK($I17), "Undefined", IF(DA17<0.5, "Complete",IF(SUMPRODUCT($N$41:DA$41,$N17:DA17)<0.5, "To start", "Running"))) -> Undefined | DC17: 0 | DD17: 0 | DE17: =IF(ISBLANK($I17), "Undefined", IF(DD17<0.5, "Complete",IF(SUMPRODUCT($N$41:DD$41,$N17:DD17)<0.5, "To start", "Running"))) -> Undefined | DF17: 0 | DG17: 0 | DH17: =IF(ISBLANK($I17), "Undefined", IF(DG17<0.5, "Complete",IF(SUMPRODUCT($N$41:DG$41,$N17:DG17)<0.5, "To start", "Running"))) -> Undefined | DI17: 0 | DJ17: 0 | DK17: =IF(ISBLANK($I17), "Undefined", IF(DJ17<0.5, "Complete",IF(SUMPRODUCT($N$41:DJ$41,$N17:DJ17)<0.5, "To start", "Running"))) -> Undefined | DL17: 0 | DM17: 0 | DN17: =IF(ISBLANK($I17), "Undefined", IF(DM17<0.5, "Complete",IF(SUMPRODUCT($N$41:DM$41,$N17:DM17)<0.5, "To start", "Running"))) -> Undefined | DO17: 0 | DP17: 0 | DQ17: =IF(ISBLANK($I17), "Undefined", IF(DP17<0.5, "Complete",IF(SUMPRODUCT($N$41:DP$41,$N17:DP17)<0.5, "To start", "Running"))) -> Undefined | DR17: 0 | DS17: 0 | DT17: =IF(ISBLANK($I17), "Undefined", IF(DS17<0.5, "Complete",IF(SUMPRODUCT($N$41:DS$41,$N17:DS17)<0.5, "To start", "Running"))) -> Undefined | DU17: 0 | DV17: 0 | DW17: =IF(ISBLANK($I17), "Undefined", IF(DV17<0.5, "Complete",IF(SUMPRODUCT($N$41:DV$41,$N17:DV17)<0.5, "To start", "Running"))) -> Undefined | DX17: 0 | DY17: 0 | DZ17: =IF(ISBLANK($I17), "Undefined", IF(DY17<0.5, "Complete",IF(SUMPRODUCT($N$41:DY$41,$N17:DY17)<0.5, "To start", "Running"))) -> Undefined | EA17: 0 | EB17: 0 | EC17: =IF(ISBLANK($I17), "Undefined", IF(EB17<0.5, "Complete",IF(SUMPRODUCT($N$41:EB$41,$N17:EB17)<0.5, "To start", "Running"))) -> Undefined | EE17: =SUMPRODUCT($L$41:DK$41,$L17:DK17) -> 0 | EF17: 0 | EG17: =OFFSET($O17,0,(Capacity!$F$2-SprintStart)*3,1,1) -> 0 | EH17: 0 | EI17: 0 | EJ17: 0 | EL17: 0 | EM17: 0
K18: =IF(SprintStart>Capacity!$F$2, "To start", INDEX(Burndown,ROW(K18)-ROW(K$6),MIN(Capacity!$F$2-SprintStart,29)*3+3)) -> Undefined | M18: 0 | N18: 0 | O18: 0 | P18: =IF(ISBLANK($I18), "Undefined", IF(O18<0.5, "Complete",IF(SUMPRODUCT($N$41:O$41,$N18:O18)<0.5, "To start", "Running"))) -> Undefined | Q18: 0 | R18: 0 | S18: =IF(ISBLANK($I18), "Undefined", IF(R18<0.5, "Complete",IF(SUMPRODUCT($N$41:R$41,$N18:R18)<0.5, "To start", "Running"))) -> Undefined | T18: 0 | U18: 0 | V18: =IF(ISBLANK($I18), "Undefined", IF(U18<0.5, "Complete",IF(SUMPRODUCT($N$41:U$41,$N18:U18)<0.5, "To start", "Running"))) -> Undefined | W18: 0 | X18: 0 | Y18: =IF(ISBLANK($I18), "Undefined", IF(X18<0.5, "Complete",IF(SUMPRODUCT($N$41:X$41,$N18:X18)<0.5, "To start", "Running"))) -> Undefined | Z18: 0 | AA18: 0 | AB18: =IF(ISBLANK($I18), "Undefined", IF(AA18<0.5, "Complete",IF(SUMPRODUCT($N$41:AA$41,$N18:AA18)<0.5, "To start", "Running"))) -> Undefined | AC18: 0 | AD18: 0 | AE18: =IF(ISBLANK($I18), "Undefined", IF(AD18<0.5, "Complete",IF(SUMPRODUCT($N$41:AD$41,$N18:AD18)<0.5, "To start", "Running"))) -> Undefined | AF18: 0 | AG18: 0 | AH18: =IF(ISBLANK($I18), "Undefined", IF(AG18<0.5, "Complete",IF(SUMPRODUCT($N$41:AG$41,$N18:AG18)<0.5, "To start", "Running"))) -> Undefined | AI18: 0 | AJ18: 0 | AK18: =IF(ISBLANK($I18), "Undefined", IF(AJ18<0.5, "Complete",IF(SUMPRODUCT($N$41:AJ$41,$N18:AJ18)<0.5, "To start", "Running"))) -> Undefined | AL18: 0 | AM18: 0 | AN18: =IF(ISBLANK($I18), "Undefined", IF(AM18<0.5, "Complete",IF(SUMPRODUCT($N$41:AM$41,$N18:AM18)<0.5, "To start", "Running"))) -> Undefined | AO18: 0 | AP18: 0 | AQ18: =IF(ISBLANK($I18), "Undefined", IF(AP18<0.5, "Complete",IF(SUMPRODUCT($N$41:AP$41,$N18:AP18)<0.5, "To start", "Running"))) -> Undefined | AR18: 0 | AS18: 0 | AT18: =IF(ISBLANK($I18), "Undefined", IF(AS18<0.5, "Complete",IF(SUMPRODUCT($N$41:AS$41,$N18:AS18)<0.5, "To start", "Running"))) -> Undefined | AU18: 0 | AV18: 0 | AW18: =IF(ISBLANK($I18), "Undefined", IF(AV18<0.5, "Complete",IF(SUMPRODUCT($N$41:AV$41,$N18:AV18)<0.5, "To start", "Running"))) -> Undefined | AX18: 0 | AY18: 0 | AZ18: =IF(ISBLANK($I18), "Undefined", IF(AY18<0.5, "Complete",IF(SUMPRODUCT($N$41:AY$41,$N18:AY18)<0.5, "To start", "Running"))) -> Undefined | BA18: 0 | BB18: 0 | BC18: =IF(ISBLANK($I18), "Undefined", IF(BB18<0.5, "Complete",IF(SUMPRODUCT($N$41:BB$41,$N18:BB18)<0.5, "To start", "Running"))) -> Undefined | BD18: 0 | BE18: 0 | BF18: =IF(ISBLANK($I18), "Undefined", IF(BE18<0.5, "Complete",IF(SUMPRODUCT($N$41:BE$41,$N18:BE18)<0.5, "To start", "Running"))) -> Undefined | BG18: 0 | BH18: 0 | BI18: =IF(ISBLANK($I18), "Undefined", IF(BH18<0.5, "Complete",IF(SUMPRODUCT($N$41:BH$41,$N18:BH18)<0.5, "To start", "Running"))) -> Undefined | BJ18: 0 | BK18: 0 | BL18: =IF(ISBLANK($I18), "Undefined", IF(BK18<0.5, "Complete",IF(SUMPRODUCT($N$41:BK$41,$N18:BK18)<0.5, "To start", "Running"))) -> Undefined | BM18: 0 | BN18: 0 | BO18: =IF(ISBLANK($I18), "Undefined", IF(BN18<0.5, "Complete",IF(SUMPRODUCT($N$41:BN$41,$N18:BN18)<0.5, "To start", "Running"))) -> Undefined | BP18: 0 | BQ18: 0 | BR18: =IF(ISBLANK($I18), "Undefined", IF(BQ18<0.5, "Complete",IF(SUMPRODUCT($N$41:BQ$41,$N18:BQ18)<0.5, "To start", "Running"))) -> Undefined | BS18: 0 | BT18: 0 | BU18: =IF(ISBLANK($I18), "Undefined", IF(BT18<0.5, "Complete",IF(SUMPRODUCT($N$41:BT$41,$N18:BT18)<0.5, "To start", "Running"))) -> Undefined | BV18: 0 | BW18: 0 | BX18: =IF(ISBLANK($I18), "Undefined", IF(BW18<0.5, "Complete",IF(SUMPRODUCT($N$41:BW$41,$N18:BW18)<0.5, "To start", "Running"))) -> Undefined | BY18: 0 | BZ18: 0 | CA18: =IF(ISBLANK($I18), "Undefined", IF(BZ18<0.5, "Complete",IF(SUMPRODUCT($N$41:BZ$41,$N18:BZ18)<0.5, "To start", "Running"))) -> Undefined | CB18: 0 | CC18: 0 | CD18: =IF(ISBLANK($I18), "Undefined", IF(CC18<0.5, "Complete",IF(SUMPRODUCT($N$41:CC$41,$N18:CC18)<0.5, "To start", "Running"))) -> Undefined | CE18: 0 | CF18: 0 | CG18: =IF(ISBLANK($I18), "Undefined", IF(CF18<0.5, "Complete",IF(SUMPRODUCT($N$41:CF$41,$N18:CF18)<0.5, "To start", "Running"))) -> Undefined | CH18: 0 | CI18: 0 | CJ18: =IF(ISBLANK($I18), "Undefined", IF(CI18<0.5, "Complete",IF(SUMPRODUCT($N$41:CI$41,$N18:CI18)<0.5, "To start", "Running"))) -> Undefined | CK18: 0 | CL18: 0 | CM18: =IF(ISBLANK($I18), "Undefined", IF(CL18<0.5, "Complete",IF(SUMPRODUCT($N$41:CL$41,$N18:CL18)<0.5, "To start", "Running"))) -> Undefined | CN18: 0 | CO18: 0 | CP18: =IF(ISBLANK($I18), "Undefined", IF(CO18<0.5, "Complete",IF(SUMPRODUCT($N$41:CO$41,$N18:CO18)<0.5, "To start", "Running"))) -> Undefined | CQ18: 0 | CR18: 0 | CS18: =IF(ISBLANK($I18), "Undefined", IF(CR18<0.5, "Complete",IF(SUMPRODUCT($N$41:CR$41,$N18:CR18)<0.5, "To start", "Running"))) -> Undefined | CT18: 0 | CU18: 0 | CV18: =IF(ISBLANK($I18), "Undefined", IF(CU18<0.5, "Complete",IF(SUMPRODUCT($N$41:CU$41,$N18:CU18)<0.5, "To start", "Running"))) -> Undefined | CW18: 0 | CX18: 0 | CY18: =IF(ISBLANK($I18), "Undefined", IF(CX18<0.5, "Complete",IF(SUMPRODUCT($N$41:CX$41,$N18:CX18)<0.5, "To start", "Running"))) -> Undefined | CZ18: 0 | DA18: 0 | DB18: =IF(ISBLANK($I18), "Undefined", IF(DA18<0.5, "Complete",IF(SUMPRODUCT($N$41:DA$41,$N18:DA18)<0.5, "To start", "Running"))) -> Undefined | DC18: 0 | DD18: 0 | DE18: =IF(ISBLANK($I18), "Undefined", IF(DD18<0.5, "Complete",IF(SUMPRODUCT($N$41:DD$41,$N18:DD18)<0.5, "To start", "Running"))) -> Undefined | DF18: 0 | DG18: 0 | DH18: =IF(ISBLANK($I18), "Undefined", IF(DG18<0.5, "Complete",IF(SUMPRODUCT($N$41:DG$41,$N18:DG18)<0.5, "To start", "Running"))) -> Undefined | DI18: 0 | DJ18: 0 | DK18: =IF(ISBLANK($I18), "Undefined", IF(DJ18<0.5, "Complete",IF(SUMPRODUCT($N$41:DJ$41,$N18:DJ18)<0.5, "To start", "Running"))) -> Undefined | DL18: 0 | DM18: 0 | DN18: =IF(ISBLANK($I18), "Undefined", IF(DM18<0.5, "Complete",IF(SUMPRODUCT($N$41:DM$41,$N18:DM18)<0.5, "To start", "Running"))) -> Undefined | DO18: 0 | DP18: 0 | DQ18: =IF(ISBLANK($I18), "Undefined", IF(DP18<0.5, "Complete",IF(SUMPRODUCT($N$41:DP$41,$N18:DP18)<0.5, "To start", "Running"))) -> Undefined | DR18: 0 | DS18: 0 | DT18: =IF(ISBLANK($I18), "Undefined", IF(DS18<0.5, "Complete",IF(SUMPRODUCT($N$41:DS$41,$N18:DS18)<0.5, "To start", "Running"))) -> Undefined | DU18: 0 | DV18: 0 | DW18: =IF(ISBLANK($I18), "Undefined", IF(DV18<0.5, "Complete",IF(SUMPRODUCT($N$41:DV$41,$N18:DV18)<0.5, "To start", "Running"))) -> Undefined | DX18: 0 | DY18: 0 | DZ18: =IF(ISBLANK($I18), "Undefined", IF(DY18<0.5, "Complete",IF(SUMPRODUCT($N$41:DY$41,$N18:DY18)<0.5, "To start", "Running"))) -> Undefined | EA18: 0 | EB18: 0 | EC18: =IF(ISBLANK($I18), "Undefined", IF(EB18<0.5, "Complete",IF(SUMPRODUCT($N$41:EB$41,$N18:EB18)<0.5, "To start", "Running"))) -> Undefined | EE18: =SUMPRODUCT($L$41:DK$41,$L18:DK18) -> 0 | EF18: 0 | EG18: =OFFSET($O18,0,(Capacity!$F$2-SprintStart)*3,1,1) -> 0 | EH18: 0 | EI18: 0 | EJ18: 0 | EL18: 0 | EM18: 0
K19: =IF(SprintStart>Capacity!$F$2, "To start", INDEX(Burndown,ROW(K19)-ROW(K$6),MIN(Capacity!$F$2-SprintStart,29)*3+3)) -> Undefined | M19: 0 | N19: 0 | O19: 0 | P19: =IF(ISBLANK($I19), "Undefined", IF(O19<0.5, "Complete",IF(SUMPRODUCT($N$41:O$41,$N19:O19)<0.5, "To start", "Running"))) -> Undefined | Q19: 0 | R19: 0 | S19: =IF(ISBLANK($I19), "Undefined", IF(R19<0.5, "Complete",IF(SUMPRODUCT($N$41:R$41,$N19:R19)<0.5, "To start", "Running"))) -> Undefined | T19: 0 | U19: 0 | V19: =IF(ISBLANK($I19), "Undefined", IF(U19<0.5, "Complete",IF(SUMPRODUCT($N$41:U$41,$N19:U19)<0.5, "To start", "Running"))) -> Undefined | W19: 0 | X19: 0 | Y19: =IF(ISBLANK($I19), "Undefined", IF(X19<0.5, "Complete",IF(SUMPRODUCT($N$41:X$41,$N19:X19)<0.5, "To start", "Running"))) -> Undefined | Z19: 0 | AA19: 0 | AB19: =IF(ISBLANK($I19), "Undefined", IF(AA19<0.5, "Complete",IF(SUMPRODUCT($N$41:AA$41,$N19:AA19)<0.5, "To start", "Running"))) -> Undefined | AC19: 0 | AD19: 0 | AE19: =IF(ISBLANK($I19), "Undefined", IF(AD19<0.5, "Complete",IF(SUMPRODUCT($N$41:AD$41,$N19:AD19)<0.5, "To start", "Running"))) -> Undefined | AF19: 0 | AG19: 0 | AH19: =IF(ISBLANK($I19), "Undefined", IF(AG19<0.5, "Complete",IF(SUMPRODUCT($N$41:AG$41,$N19:AG19)<0.5, "To start", "Running"))) -> Undefined | AI19: 0 | AJ19: 0 | AK19: =IF(ISBLANK($I19), "Undefined", IF(AJ19<0.5, "Complete",IF(SUMPRODUCT($N$41:AJ$41,$N19:AJ19)<0.5, "To start", "Running"))) -> Undefined | AL19: 0 | AM19: 0 | AN19: =IF(ISBLANK($I19), "Undefined", IF(AM19<0.5, "Complete",IF(SUMPRODUCT($N$41:AM$41,$N19:AM19)<0.5, "To start", "Running"))) -> Undefined | AO19: 0 | AP19: 0 | AQ19: =IF(ISBLANK($I19), "Undefined", IF(AP19<0.5, "Complete",IF(SUMPRODUCT($N$41:AP$41,$N19:AP19)<0.5, "To start", "Running"))) -> Undefined | AR19: 0 | AS19: 0 | AT19: =IF(ISBLANK($I19), "Undefined", IF(AS19<0.5, "Complete",IF(SUMPRODUCT($N$41:AS$41,$N19:AS19)<0.5, "To start", "Running"))) -> Undefined | AU19: 0 | AV19: 0 | AW19: =IF(ISBLANK($I19), "Undefined", IF(AV19<0.5, "Complete",IF(SUMPRODUCT($N$41:AV$41,$N19:AV19)<0.5, "To start", "Running"))) -> Undefined | AX19: 0 | AY19: 0 | AZ19: =IF(ISBLANK($I19), "Undefined", IF(AY19<0.5, "Complete",IF(SUMPRODUCT($N$41:AY$41,$N19:AY19)<0.5, "To start", "Running"))) -> Undefined | BA19: 0 | BB19: 0 | BC19: =IF(ISBLANK($I19), "Undefined", IF(BB19<0.5, "Complete",IF(SUMPRODUCT($N$41:BB$41,$N19:BB19)<0.5, "To start", "Running"))) -> Undefined | BD19: 0 | BE19: 0 | BF19: =IF(ISBLANK($I19), "Undefined", IF(BE19<0.5, "Complete",IF(SUMPRODUCT($N$41:BE$41,$N19:BE19)<0.5, "To start", "Running"))) -> Undefined | BG19: 0 | BH19: 0 | BI19: =IF(ISBLANK($I19), "Undefined", IF(BH19<0.5, "Complete",IF(SUMPRODUCT($N$41:BH$41,$N19:BH19)<0.5, "To start", "Running"))) -> Undefined | BJ19: 0 | BK19: 0 | BL19: =IF(ISBLANK($I19), "Undefined", IF(BK19<0.5, "Complete",IF(SUMPRODUCT($N$41:BK$41,$N19:BK19)<0.5, "To start", "Running"))) -> Undefined | BM19: 0 | BN19: 0 | BO19: =IF(ISBLANK($I19), "Undefined", IF(BN19<0.5, "Complete",IF(SUMPRODUCT($N$41:BN$41,$N19:BN19)<0.5, "To start", "Running"))) -> Undefined | BP19: 0 | BQ19: 0 | BR19: =IF(ISBLANK($I19), "Undefined", IF(BQ19<0.5, "Complete",IF(SUMPRODUCT($N$41:BQ$41,$N19:BQ19)<0.5, "To start", "Running"))) -> Undefined | BS19: 0 | BT19: 0 | BU19: =IF(ISBLANK($I19), "Undefined", IF(BT19<0.5, "Complete",IF(SUMPRODUCT($N$41:BT$41,$N19:BT19)<0.5, "To start", "Running"))) -> Undefined | BV19: 0 | BW19: 0 | BX19: =IF(ISBLANK($I19), "Undefined", IF(BW19<0.5, "Complete",IF(SUMPRODUCT($N$41:BW$41,$N19:BW19)<0.5, "To start", "Running"))) -> Undefined | BY19: 0 | BZ19: 0 | CA19: =IF(ISBLANK($I19), "Undefined", IF(BZ19<0.5, "Complete",IF(SUMPRODUCT($N$41:BZ$41,$N19:BZ19)<0.5, "To start", "Running"))) -> Undefined | CB19: 0 | CC19: 0 | CD19: =IF(ISBLANK($I19), "Undefined", IF(CC19<0.5, "Complete",IF(SUMPRODUCT($N$41:CC$41,$N19:CC19)<0.5, "To start", "Running"))) -> Undefined | CE19: 0 | CF19: 0 | CG19: =IF(ISBLANK($I19), "Undefined", IF(CF19<0.5, "Complete",IF(SUMPRODUCT($N$41:CF$41,$N19:CF19)<0.5, "To start", "Running"))) -> Undefined | CH19: 0 | CI19: 0 | CJ19: =IF(ISBLANK($I19), "Undefined", IF(CI19<0.5, "Complete",IF(SUMPRODUCT($N$41:CI$41,$N19:CI19)<0.5, "To start", "Running"))) -> Undefined | CK19: 0 | CL19: 0 | CM19: =IF(ISBLANK($I19), "Undefined", IF(CL19<0.5, "Complete",IF(SUMPRODUCT($N$41:CL$41,$N19:CL19)<0.5, "To start", "Running"))) -> Undefined | CN19: 0 | CO19: 0 | CP19: =IF(ISBLANK($I19), "Undefined", IF(CO19<0.5, "Complete",IF(SUMPRODUCT($N$41:CO$41,$N19:CO19)<0.5, "To start", "Running"))) -> Undefined | CQ19: 0 | CR19: 0 | CS19: =IF(ISBLANK($I19), "Undefined", IF(CR19<0.5, "Complete",IF(SUMPRODUCT($N$41:CR$41,$N19:CR19)<0.5, "To start", "Running"))) -> Undefined | CT19: 0 | CU19: 0 | CV19: =IF(ISBLANK($I19), "Undefined", IF(CU19<0.5, "Complete",IF(SUMPRODUCT($N$41:CU$41,$N19:CU19)<0.5, "To start", "Running"))) -> Undefined | CW19: 0 | CX19: 0 | CY19: =IF(ISBLANK($I19), "Undefined", IF(CX19<0.5, "Complete",IF(SUMPRODUCT($N$41:CX$41,$N19:CX19)<0.5, "To start", "Running"))) -> Undefined | CZ19: 0 | DA19: 0 | DB19: =IF(ISBLANK($I19), "Undefined", IF(DA19<0.5, "Complete",IF(SUMPRODUCT($N$41:DA$41,$N19:DA19)<0.5, "To start", "Running"))) -> Undefined | DC19: 0 | DD19: 0 | DE19: =IF(ISBLANK($I19), "Undefined", IF(DD19<0.5, "Complete",IF(SUMPRODUCT($N$41:DD$41,$N19:DD19)<0.5, "To start", "Running"))) -> Undefined | DF19: 0 | DG19: 0 | DH19: =IF(ISBLANK($I19), "Undefined", IF(DG19<0.5, "Complete",IF(SUMPRODUCT($N$41:DG$41,$N19:DG19)<0.5, "To start", "Running"))) -> Undefined | DI19: 0 | DJ19: 0 | DK19: =IF(ISBLANK($I19), "Undefined", IF(DJ19<0.5, "Complete",IF(SUMPRODUCT($N$41:DJ$41,$N19:DJ19)<0.5, "To start", "Running"))) -> Undefined | DL19: 0 | DM19: 0 | DN19: =IF(ISBLANK($I19), "Undefined", IF(DM19<0.5, "Complete",IF(SUMPRODUCT($N$41:DM$41,$N19:DM19)<0.5, "To start", "Running"))) -> Undefined | DO19: 0 | DP19: 0 | DQ19: =IF(ISBLANK($I19), "Undefined", IF(DP19<0.5, "Complete",IF(SUMPRODUCT($N$41:DP$41,$N19:DP19)<0.5, "To start", "Running"))) -> Undefined | DR19: 0 | DS19: 0 | DT19: =IF(ISBLANK($I19), "Undefined", IF(DS19<0.5, "Complete",IF(SUMPRODUCT($N$41:DS$41,$N19:DS19)<0.5, "To start", "Running"))) -> Undefined | DU19: 0 | DV19: 0 | DW19: =IF(ISBLANK($I19), "Undefined", IF(DV19<0.5, "Complete",IF(SUMPRODUCT($N$41:DV$41,$N19:DV19)<0.5, "To start", "Running"))) -> Undefined | DX19: 0 | DY19: 0 | DZ19: =IF(ISBLANK($I19), "Undefined", IF(DY19<0.5, "Complete",IF(SUMPRODUCT($N$41:DY$41,$N19:DY19)<0.5, "To start", "Running"))) -> Undefined | EA19: 0 | EB19: 0 | EC19: =IF(ISBLANK($I19), "Undefined", IF(EB19<0.5, "Complete",IF(SUMPRODUCT($N$41:EB$41,$N19:EB19)<0.5, "To start", "Running"))) -> Undefined | EE19: =SUMPRODUCT($L$41:DK$41,$L19:DK19) -> 0 | EF19: 0 | EG19: =OFFSET($O19,0,(Capacity!$F$2-SprintStart)*3,1,1) -> 0 | EH19: 0 | EI19: 0 | EJ19: 0 | EL19: 0 | EM19: 0
K20: =IF(SprintStart>Capacity!$F$2, "To start", INDEX(Burndown,ROW(K20)-ROW(K$6),MIN(Capacity!$F$2-SprintStart,29)*3+3)) -> Undefined | M20: 0 | N20: 0 | O20: 0 | P20: =IF(ISBLANK($I20), "Undefined", IF(O20<0.5, "Complete",IF(SUMPRODUCT($N$41:O$41,$N20:O20)<0.5, "To start", "Running"))) -> Undefined | Q20: 0 | R20: 0 | S20: =IF(ISBLANK($I20), "Undefined", IF(R20<0.5, "Complete",IF(SUMPRODUCT($N$41:R$41,$N20:R20)<0.5, "To start", "Running"))) -> Undefined | T20: 0 | U20: 0 | V20: =IF(ISBLANK($I20), "Undefined", IF(U20<0.5, "Complete",IF(SUMPRODUCT($N$41:U$41,$N20:U20)<0.5, "To start", "Running"))) -> Undefined | W20: 0 | X20: 0 | Y20: =IF(ISBLANK($I20), "Undefined", IF(X20<0.5, "Complete",IF(SUMPRODUCT($N$41:X$41,$N20:X20)<0.5, "To start", "Running"))) -> Undefined | Z20: 0 | AA20: 0 | AB20: =IF(ISBLANK($I20), "Undefined", IF(AA20<0.5, "Complete",IF(SUMPRODUCT($N$41:AA$41,$N20:AA20)<0.5, "To start", "Running"))) -> Undefined | AC20: 0 | AD20: 0 | AE20: =IF(ISBLANK($I20), "Undefined", IF(AD20<0.5, "Complete",IF(SUMPRODUCT($N$41:AD$41,$N20:AD20)<0.5, "To start", "Running"))) -> Undefined | AF20: 0 | AG20: 0 | AH20: =IF(ISBLANK($I20), "Undefined", IF(AG20<0.5, "Complete",IF(SUMPRODUCT($N$41:AG$41,$N20:AG20)<0.5, "To start", "Running"))) -> Undefined | AI20: 0 | AJ20: 0 | AK20: =IF(ISBLANK($I20), "Undefined", IF(AJ20<0.5, "Complete",IF(SUMPRODUCT($N$41:AJ$41,$N20:AJ20)<0.5, "To start", "Running"))) -> Undefined | AL20: 0 | AM20: 0 | AN20: =IF(ISBLANK($I20), "Undefined", IF(AM20<0.5, "Complete",IF(SUMPRODUCT($N$41:AM$41,$N20:AM20)<0.5, "To start", "Running"))) -> Undefined | AO20: 0 | AP20: 0 | AQ20: =IF(ISBLANK($I20), "Undefined", IF(AP20<0.5, "Complete",IF(SUMPRODUCT($N$41:AP$41,$N20:AP20)<0.5, "To start", "Running"))) -> Undefined | AR20: 0 | AS20: 0 | AT20: =IF(ISBLANK($I20), "Undefined", IF(AS20<0.5, "Complete",IF(SUMPRODUCT($N$41:AS$41,$N20:AS20)<0.5, "To start", "Running"))) -> Undefined | AU20: 0 | AV20: 0 | AW20: =IF(ISBLANK($I20), "Undefined", IF(AV20<0.5, "Complete",IF(SUMPRODUCT($N$41:AV$41,$N20:AV20)<0.5, "To start", "Running"))) -> Undefined | AX20: 0 | AY20: 0 | AZ20: =IF(ISBLANK($I20), "Undefined", IF(AY20<0.5, "Complete",IF(SUMPRODUCT($N$41:AY$41,$N20:AY20)<0.5, "To start", "Running"))) -> Undefined | BA20: 0 | BB20: 0 | BC20: =IF(ISBLANK($I20), "Undefined", IF(BB20<0.5, "Complete",IF(SUMPRODUCT($N$41:BB$41,$N20:BB20)<0.5, "To start", "Running"))) -> Undefined | BD20: 0 | BE20: 0 | BF20: =IF(ISBLANK($I20), "Undefined", IF(BE20<0.5, "Complete",IF(SUMPRODUCT($N$41:BE$41,$N20:BE20)<0.5, "To start", "Running"))) -> Undefined | BG20: 0 | BH20: 0 | BI20: =IF(ISBLANK($I20), "Undefined", IF(BH20<0.5, "Complete",IF(SUMPRODUCT($N$41:BH$41,$N20:BH20)<0.5, "To start", "Running"))) -> Undefined | BJ20: 0 | BK20: 0 | BL20: =IF(ISBLANK($I20), "Undefined", IF(BK20<0.5, "Complete",IF(SUMPRODUCT($N$41:BK$41,$N20:BK20)<0.5, "To start", "Running"))) -> Undefined | BM20: 0 | BN20: 0 | BO20: =IF(ISBLANK($I20), "Undefined", IF(BN20<0.5, "Complete",IF(SUMPRODUCT($N$41:BN$41,$N20:BN20)<0.5, "To start", "Running"))) -> Undefined | BP20: 0 | BQ20: 0 | BR20: =IF(ISBLANK($I20), "Undefined", IF(BQ20<0.5, "Complete",IF(SUMPRODUCT($N$41:BQ$41,$N20:BQ20)<0.5, "To start", "Running"))) -> Undefined | BS20: 0 | BT20: 0 | BU20: =IF(ISBLANK($I20), "Undefined", IF(BT20<0.5, "Complete",IF(SUMPRODUCT($N$41:BT$41,$N20:BT20)<0.5, "To start", "Running"))) -> Undefined | BV20: 0 | BW20: 0 | BX20: =IF(ISBLANK($I20), "Undefined", IF(BW20<0.5, "Complete",IF(SUMPRODUCT($N$41:BW$41,$N20:BW20)<0.5, "To start", "Running"))) -> Undefined | BY20: 0 | BZ20: 0 | CA20: =IF(ISBLANK($I20), "Undefined", IF(BZ20<0.5, "Complete",IF(SUMPRODUCT($N$41:BZ$41,$N20:BZ20)<0.5, "To start", "Running"))) -> Undefined | CB20: 0 | CC20: 0 | CD20: =IF(ISBLANK($I20), "Undefined", IF(CC20<0.5, "Complete",IF(SUMPRODUCT($N$41:CC$41,$N20:CC20)<0.5, "To start", "Running"))) -> Undefined | CE20: 0 | CF20: 0 | CG20: =IF(ISBLANK($I20), "Undefined", IF(CF20<0.5, "Complete",IF(SUMPRODUCT($N$41:CF$41,$N20:CF20)<0.5, "To start", "Running"))) -> Undefined | CH20: 0 | CI20: 0 | CJ20: =IF(ISBLANK($I20), "Undefined", IF(CI20<0.5, "Complete",IF(SUMPRODUCT($N$41:CI$41,$N20:CI20)<0.5, "To start", "Running"))) -> Undefined | CK20: 0 | CL20: 0 | CM20: =IF(ISBLANK($I20), "Undefined", IF(CL20<0.5, "Complete",IF(SUMPRODUCT($N$41:CL$41,$N20:CL20)<0.5, "To start", "Running"))) -> Undefined | CN20: 0 | CO20: 0 | CP20: =IF(ISBLANK($I20), "Undefined", IF(CO20<0.5, "Complete",IF(SUMPRODUCT($N$41:CO$41,$N20:CO20)<0.5, "To start", "Running"))) -> Undefined | CQ20: 0 | CR20: 0 | CS20: =IF(ISBLANK($I20), "Undefined", IF(CR20<0.5, "Complete",IF(SUMPRODUCT($N$41:CR$41,$N20:CR20)<0.5, "To start", "Running"))) -> Undefined | CT20: 0 | CU20: 0 | CV20: =IF(ISBLANK($I20), "Undefined", IF(CU20<0.5, "Complete",IF(SUMPRODUCT($N$41:CU$41,$N20:CU20)<0.5, "To start", "Running"))) -> Undefined | CW20: 0 | CX20: 0 | CY20: =IF(ISBLANK($I20), "Undefined", IF(CX20<0.5, "Complete",IF(SUMPRODUCT($N$41:CX$41,$N20:CX20)<0.5, "To start", "Running"))) -> Undefined | CZ20: 0 | DA20: 0 | DB20: =IF(ISBLANK($I20), "Undefined", IF(DA20<0.5, "Complete",IF(SUMPRODUCT($N$41:DA$41,$N20:DA20)<0.5, "To start", "Running"))) -> Undefined | DC20: 0 | DD20: 0 | DE20: =IF(ISBLANK($I20), "Undefined", IF(DD20<0.5, "Complete",IF(SUMPRODUCT($N$41:DD$41,$N20:DD20)<0.5, "To start", "Running"))) -> Undefined | DF20: 0 | DG20: 0 | DH20: =IF(ISBLANK($I20), "Undefined", IF(DG20<0.5, "Complete",IF(SUMPRODUCT($N$41:DG$41,$N20:DG20)<0.5, "To start", "Running"))) -> Undefined | DI20: 0 | DJ20: 0 | DK20: =IF(ISBLANK($I20), "Undefined", IF(DJ20<0.5, "Complete",IF(SUMPRODUCT($N$41:DJ$41,$N20:DJ20)<0.5, "To start", "Running"))) -> Undefined | DL20: 0 | DM20: 0 | DN20: =IF(ISBLANK($I20), "Undefined", IF(DM20<0.5, "Complete",IF(SUMPRODUCT($N$41:DM$41,$N20:DM20)<0.5, "To start", "Running"))) -> Undefined | DO20: 0 | DP20: 0 | DQ20: =IF(ISBLANK($I20), "Undefined", IF(DP20<0.5, "Complete",IF(SUMPRODUCT($N$41:DP$41,$N20:DP20)<0.5, "To start", "Running"))) -> Undefined | DR20: 0 | DS20: 0 | DT20: =IF(ISBLANK($I20), "Undefined", IF(DS20<0.5, "Complete",IF(SUMPRODUCT($N$41:DS$41,$N20:DS20)<0.5, "To start", "Running"))) -> Undefined | DU20: 0 | DV20: 0 | DW20: =IF(ISBLANK($I20), "Undefined", IF(DV20<0.5, "Complete",IF(SUMPRODUCT($N$41:DV$41,$N20:DV20)<0.5, "To start", "Running"))) -> Undefined | DX20: 0 | DY20: 0 | DZ20: =IF(ISBLANK($I20), "Undefined", IF(DY20<0.5, "Complete",IF(SUMPRODUCT($N$41:DY$41,$N20:DY20)<0.5, "To start", "Running"))) -> Undefined | EA20: 0 | EB20: 0 | EC20: =IF(ISBLANK($I20), "Undefined", IF(EB20<0.5, "Complete",IF(SUMPRODUCT($N$41:EB$41,$N20:EB20)<0.5, "To start", "Running"))) -> Undefined | EE20: =SUMPRODUCT($L$41:DK$41,$L20:DK20) -> 0 | EF20: 0 | EG20: =OFFSET($O20,0,(Capacity!$F$2-SprintStart)*3,1,1) -> 0 | EH20: 0 | EI20: 0 | EJ20: 0 | EL20: 0 | EM20: 0
K21: =IF(SprintStart>Capacity!$F$2, "To start", INDEX(Burndown,ROW(K21)-ROW(K$6),MIN(Capacity!$F$2-SprintStart,29)*3+3)) -> Undefined | M21: 0 | N21: 0 | O21: 0 | P21: =IF(ISBLANK($I21), "Undefined", IF(O21<0.5, "Complete",IF(SUMPRODUCT($N$41:O$41,$N21:O21)<0.5, "To start", "Running"))) -> Undefined | Q21: 0 | R21: 0 | S21: =IF(ISBLANK($I21), "Undefined", IF(R21<0.5, "Complete",IF(SUMPRODUCT($N$41:R$41,$N21:R21)<0.5, "To start", "Running"))) -> Undefined | T21: 0 | U21: 0 | V21: =IF(ISBLANK($I21), "Undefined", IF(U21<0.5, "Complete",IF(SUMPRODUCT($N$41:U$41,$N21:U21)<0.5, "To start", "Running"))) -> Undefined | W21: 0 | X21: 0 | Y21: =IF(ISBLANK($I21), "Undefined", IF(X21<0.5, "Complete",IF(SUMPRODUCT($N$41:X$41,$N21:X21)<0.5, "To start", "Running"))) -> Undefined | Z21: 0 | AA21: 0 | AB21: =IF(ISBLANK($I21), "Undefined", IF(AA21<0.5, "Complete",IF(SUMPRODUCT($N$41:AA$41,$N21:AA21)<0.5, "To start", "Running"))) -> Undefined | AC21: 0 | AD21: 0 | AE21: =IF(ISBLANK($I21), "Undefined", IF(AD21<0.5, "Complete",IF(SUMPRODUCT($N$41:AD$41,$N21:AD21)<0.5, "To start", "Running"))) -> Undefined | AF21: 0 | AG21: 0 | AH21: =IF(ISBLANK($I21), "Undefined", IF(AG21<0.5, "Complete",IF(SUMPRODUCT($N$41:AG$41,$N21:AG21)<0.5, "To start", "Running"))) -> Undefined | AI21: 0 | AJ21: =MAX(AG21-AI21,0) -> 0 | AK21: =IF(ISBLANK($I21), "Undefined", IF(AJ21<0.5, "Complete",IF(SUMPRODUCT($N$41:AJ$41,$N21:AJ21)<0.5, "To start", "Running"))) -> Undefined | AL21: 0 | AM21: 0 | AN21: =IF(ISBLANK($I21), "Undefined", IF(AM21<0.5, "Complete",IF(SUMPRODUCT($N$41:AM$41,$N21:AM21)<0.5, "To start", "Running"))) -> Undefined | AO21: 0 | AP21: 0 | AQ21: =IF(ISBLANK($I21), "Undefined", IF(AP21<0.5, "Complete",IF(SUMPRODUCT($N$41:AP$41,$N21:AP21)<0.5, "To start", "Running"))) -> Undefined | AR21: 0 | AS21: 0 | AT21: =IF(ISBLANK($I21), "Undefined", IF(AS21<0.5, "Complete",IF(SUMPRODUCT($N$41:AS$41,$N21:AS21)<0.5, "To start", "Running"))) -> Undefined | AU21: 0 | AV21: 0 | AW21: =IF(ISBLANK($I21), "Undefined", IF(AV21<0.5, "Complete",IF(SUMPRODUCT($N$41:AV$41,$N21:AV21)<0.5, "To start", "Running"))) -> Undefined | AX21: 0 | AY21: 0 | AZ21: =IF(ISBLANK($I21), "Undefined", IF(AY21<0.5, "Complete",IF(SUMPRODUCT($N$41:AY$41,$N21:AY21)<0.5, "To start", "Running"))) -> Undefined | BA21: 0 | BB21: 0 | BC21: =IF(ISBLANK($I21), "Undefined", IF(BB21<0.5, "Complete",IF(SUMPRODUCT($N$41:BB$41,$N21:BB21)<0.5, "To start", "Running"))) -> Undefined | BD21: 0 | BE21: 0 | BF21: =IF(ISBLANK($I21), "Undefined", IF(BE21<0.5, "Complete",IF(SUMPRODUCT($N$41:BE$41,$N21:BE21)<0.5, "To start", "Running"))) -> Undefined | BG21: 0 | BH21: 0 | BI21: =IF(ISBLANK($I21), "Undefined", IF(BH21<0.5, "Complete",IF(SUMPRODUCT($N$41:BH$41,$N21:BH21)<0.5, "To start", "Running"))) -> Undefined | BJ21: 0 | BK21: 0 | BL21: =IF(ISBLANK($I21), "Undefined", IF(BK21<0.5, "Complete",IF(SUMPRODUCT($N$41:BK$41,$N21:BK21)<0.5, "To start", "Running"))) -> Undefined | BM21: 0 | BN21: 0 | BO21: =IF(ISBLANK($I21), "Undefined", IF(BN21<0.5, "Complete",IF(SUMPRODUCT($N$41:BN$41,$N21:BN21)<0.5, "To start", "Running"))) -> Undefined | BP21: 0 | BQ21: 0 | BR21: =IF(ISBLANK($I21), "Undefined", IF(BQ21<0.5, "Complete",IF(SUMPRODUCT($N$41:BQ$41,$N21:BQ21)<0.5, "To start", "Running"))) -> Undefined | BS21: 0 | BT21: 0 | BU21: =IF(ISBLANK($I21), "Undefined", IF(BT21<0.5, "Complete",IF(SUMPRODUCT($N$41:BT$41,$N21:BT21)<0.5, "To start", "Running"))) -> Undefined | BV21: 0 | BW21: 0 | BX21: =IF(ISBLANK($I21), "Undefined", IF(BW21<0.5, "Complete",IF(SUMPRODUCT($N$41:BW$41,$N21:BW21)<0.5, "To start", "Running"))) -> Undefined | BY21: 0 | BZ21: 0 | CA21: =IF(ISBLANK($I21), "Undefined", IF(BZ21<0.5, "Complete",IF(SUMPRODUCT($N$41:BZ$41,$N21:BZ21)<0.5, "To start", "Running"))) -> Undefined | CB21: 0 | CC21: 0 | CD21: =IF(ISBLANK($I21), "Undefined", IF(CC21<0.5, "Complete",IF(SUMPRODUCT($N$41:CC$41,$N21:CC21)<0.5, "To start", "Running"))) -> Undefined | CE21: 0 | CF21: 0 | CG21: =IF(ISBLANK($I21), "Undefined", IF(CF21<0.5, "Complete",IF(SUMPRODUCT($N$41:CF$41,$N21:CF21)<0.5, "To start", "Running"))) -> Undefined | CH21: 0 | CI21: 0 | CJ21: =IF(ISBLANK($I21), "Undefined", IF(CI21<0.5, "Complete",IF(SUMPRODUCT($N$41:CI$41,$N21:CI21)<0.5, "To start", "Running"))) -> Undefined | CK21: 0 | CL21: 0 | CM21: =IF(ISBLANK($I21), "Undefined", IF(CL21<0.5, "Complete",IF(SUMPRODUCT($N$41:CL$41,$N21:CL21)<0.5, "To start", "Running"))) -> Undefined | CN21: 0 | CO21: 0 | CP21: =IF(ISBLANK($I21), "Undefined", IF(CO21<0.5, "Complete",IF(SUMPRODUCT($N$41:CO$41,$N21:CO21)<0.5, "To start", "Running"))) -> Undefined | CQ21: 0 | CR21: 0 | CS21: =IF(ISBLANK($I21), "Undefined", IF(CR21<0.5, "Complete",IF(SUMPRODUCT($N$41:CR$41,$N21:CR21)<0.5, "To start", "Running"))) -> Undefined | CT21: 0 | CU21: 0 | CV21: =IF(ISBLANK($I21), "Undefined", IF(CU21<0.5, "Complete",IF(SUMPRODUCT($N$41:CU$41,$N21:CU21)<0.5, "To start", "Running"))) -> Undefined | CW21: 0 | CX21: 0 | CY21: =IF(ISBLANK($I21), "Undefined", IF(CX21<0.5, "Complete",IF(SUMPRODUCT($N$41:CX$41,$N21:CX21)<0.5, "To start", "Running"))) -> Undefined | CZ21: 0 | DA21: 0 | DB21: =IF(ISBLANK($I21), "Undefined", IF(DA21<0.5, "Complete",IF(SUMPRODUCT($N$41:DA$41,$N21:DA21)<0.5, "To start", "Running"))) -> Undefined | DC21: 0 | DD21: 0 | DE21: =IF(ISBLANK($I21), "Undefined", IF(DD21<0.5, "Complete",IF(SUMPRODUCT($N$41:DD$41,$N21:DD21)<0.5, "To start", "Running"))) -> Undefined | DF21: 0 | DG21: 0 | DH21: =IF(ISBLANK($I21), "Undefined", IF(DG21<0.5, "Complete",IF(SUMPRODUCT($N$41:DG$41,$N21:DG21)<0.5, "To start", "Running"))) -> Undefined | DI21: 0 | DJ21: 0 | DK21: =IF(ISBLANK($I21), "Undefined", IF(DJ21<0.5, "Complete",IF(SUMPRODUCT($N$41:DJ$41,$N21:DJ21)<0.5, "To start", "Running"))) -> Undefined | DL21: 0 | DM21: 0 | DN21: =IF(ISBLANK($I21), "Undefined", IF(DM21<0.5, "Complete",IF(SUMPRODUCT($N$41:DM$41,$N21:DM21)<0.5, "To start", "Running"))) -> Undefined | DO21: 0 | DP21: 0 | DQ21: =IF(ISBLANK($I21), "Undefined", IF(DP21<0.5, "Complete",IF(SUMPRODUCT($N$41:DP$41,$N21:DP21)<0.5, "To start", "Running"))) -> Undefined | DR21: 0 | DS21: 0 | DT21: =IF(ISBLANK($I21), "Undefined", IF(DS21<0.5, "Complete",IF(SUMPRODUCT($N$41:DS$41,$N21:DS21)<0.5, "To start", "Running"))) -> Undefined | DU21: 0 | DV21: 0 | DW21: =IF(ISBLANK($I21), "Undefined", IF(DV21<0.5, "Complete",IF(SUMPRODUCT($N$41:DV$41,$N21:DV21)<0.5, "To start", "Running"))) -> Undefined | DX21: 0 | DY21: 0 | DZ21: =IF(ISBLANK($I21), "Undefined", IF(DY21<0.5, "Complete",IF(SUMPRODUCT($N$41:DY$41,$N21:DY21)<0.5, "To start", "Running"))) -> Undefined | EA21: 0 | EB21: 0 | EC21: =IF(ISBLANK($I21), "Undefined", IF(EB21<0.5, "Complete",IF(SUMPRODUCT($N$41:EB$41,$N21:EB21)<0.5, "To start", "Running"))) -> Undefined | EE21: =SUMPRODUCT($L$41:DK$41,$L21:DK21) -> 0 | EF21: 0 | EG21: =OFFSET($O21,0,(Capacity!$F$2-SprintStart)*3,1,1) -> 0 | EH21: 0 | EI21: 0 | EJ21: 0 | EL21: 0 | EM21: 0
K22: =IF(SprintStart>Capacity!$F$2, "To start", INDEX(Burndown,ROW(K22)-ROW(K$6),MIN(Capacity!$F$2-SprintStart,29)*3+3)) -> Undefined | M22: 0 | N22: 0 | O22: 0 | P22: =IF(ISBLANK($I22), "Undefined", IF(O22<0.5, "Complete",IF(SUMPRODUCT($N$41:O$41,$N22:O22)<0.5, "To start", "Running"))) -> Undefined | Q22: 0 | R22: 0 | S22: =IF(ISBLANK($I22), "Undefined", IF(R22<0.5, "Complete",IF(SUMPRODUCT($N$41:R$41,$N22:R22)<0.5, "To start", "Running"))) -> Undefined | T22: 0 | U22: 0 | V22: =IF(ISBLANK($I22), "Undefined", IF(U22<0.5, "Complete",IF(SUMPRODUCT($N$41:U$41,$N22:U22)<0.5, "To start", "Running"))) -> Undefined | W22: 0 | X22: 0 | Y22: =IF(ISBLANK($I22), "Undefined", IF(X22<0.5, "Complete",IF(SUMPRODUCT($N$41:X$41,$N22:X22)<0.5, "To start", "Running"))) -> Undefined | Z22: 0 | AA22: 0 | AB22: =IF(ISBLANK($I22), "Undefined", IF(AA22<0.5, "Complete",IF(SUMPRODUCT($N$41:AA$41,$N22:AA22)<0.5, "To start", "Running"))) -> Undefined | AC22: 0 | AD22: 0 | AE22: =IF(ISBLANK($I22), "Undefined", IF(AD22<0.5, "Complete",IF(SUMPRODUCT($N$41:AD$41,$N22:AD22)<0.5, "To start", "Running"))) -> Undefined | AF22: 0 | AG22: 0 | AH22: =IF(ISBLANK($I22), "Undefined", IF(AG22<0.5, "Complete",IF(SUMPRODUCT($N$41:AG$41,$N22:AG22)<0.5, "To start", "Running"))) -> Undefined | AI22: 0 | AJ22: 0 | AK22: =IF(ISBLANK($I22), "Undefined", IF(AJ22<0.5, "Complete",IF(SUMPRODUCT($N$41:AJ$41,$N22:AJ22)<0.5, "To start", "Running"))) -> Undefined | AL22: 0 | AM22: 0 | AN22: =IF(ISBLANK($I22), "Undefined", IF(AM22<0.5, "Complete",IF(SUMPRODUCT($N$41:AM$41,$N22:AM22)<0.5, "To start", "Running"))) -> Undefined | AO22: 0 | AP22: 0 | AQ22: =IF(ISBLANK($I22), "Undefined", IF(AP22<0.5, "Complete",IF(SUMPRODUCT($N$41:AP$41,$N22:AP22)<0.5, "To start", "Running"))) -> Undefined | AR22: 0 | AS22: 0 | AT22: =IF(ISBLANK($I22), "Undefined", IF(AS22<0.5, "Complete",IF(SUMPRODUCT($N$41:AS$41,$N22:AS22)<0.5, "To start", "Running"))) -> Undefined | AU22: 0 | AV22: 0 | AW22: =IF(ISBLANK($I22), "Undefined", IF(AV22<0.5, "Complete",IF(SUMPRODUCT($N$41:AV$41,$N22:AV22)<0.5, "To start", "Running"))) -> Undefined | AX22: 0 | AY22: 0 | AZ22: =IF(ISBLANK($I22), "Undefined", IF(AY22<0.5, "Complete",IF(SUMPRODUCT($N$41:AY$41,$N22:AY22)<0.5, "To start", "Running"))) -> Undefined | BA22: 0 | BB22: 0 | BC22: =IF(ISBLANK($I22), "Undefined", IF(BB22<0.5, "Complete",IF(SUMPRODUCT($N$41:BB$41,$N22:BB22)<0.5, "To start", "Running"))) -> Undefined | BD22: 0 | BE22: 0 | BF22: =IF(ISBLANK($I22), "Undefined", IF(BE22<0.5, "Complete",IF(SUMPRODUCT($N$41:BE$41,$N22:BE22)<0.5, "To start", "Running"))) -> Undefined | BG22: 0 | BH22: 0 | BI22: =IF(ISBLANK($I22), "Undefined", IF(BH22<0.5, "Complete",IF(SUMPRODUCT($N$41:BH$41,$N22:BH22)<0.5, "To start", "Running"))) -> Undefined | BJ22: 0 | BK22: 0 | BL22: =IF(ISBLANK($I22), "Undefined", IF(BK22<0.5, "Complete",IF(SUMPRODUCT($N$41:BK$41,$N22:BK22)<0.5, "To start", "Running"))) -> Undefined | BM22: 0 | BN22: 0 | BO22: =IF(ISBLANK($I22), "Undefined", IF(BN22<0.5, "Complete",IF(SUMPRODUCT($N$41:BN$41,$N22:BN22)<0.5, "To start", "Running"))) -> Undefined | BP22: 0 | BQ22: 0 | BR22: =IF(ISBLANK($I22), "Undefined", IF(BQ22<0.5, "Complete",IF(SUMPRODUCT($N$41:BQ$41,$N22:BQ22)<0.5, "To start", "Running"))) -> Undefined | BS22: 0 | BT22: 0 | BU22: =IF(ISBLANK($I22), "Undefined", IF(BT22<0.5, "Complete",IF(SUMPRODUCT($N$41:BT$41,$N22:BT22)<0.5, "To start", "Running"))) -> Undefined | BV22: 0 | BW22: 0 | BX22: =IF(ISBLANK($I22), "Undefined", IF(BW22<0.5, "Complete",IF(SUMPRODUCT($N$41:BW$41,$N22:BW22)<0.5, "To start", "Running"))) -> Undefined | BY22: 0 | BZ22: 0 | CA22: =IF(ISBLANK($I22), "Undefined", IF(BZ22<0.5, "Complete",IF(SUMPRODUCT($N$41:BZ$41,$N22:BZ22)<0.5, "To start", "Running"))) -> Undefined | CB22: 0 | CC22: 0 | CD22: =IF(ISBLANK($I22), "Undefined", IF(CC22<0.5, "Complete",IF(SUMPRODUCT($N$41:CC$41,$N22:CC22)<0.5, "To start", "Running"))) -> Undefined | CE22: 0 | CF22: 0 | CG22: =IF(ISBLANK($I22), "Undefined", IF(CF22<0.5, "Complete",IF(SUMPRODUCT($N$41:CF$41,$N22:CF22)<0.5, "To start", "Running"))) -> Undefined | CH22: 0 | CI22: 0 | CJ22: =IF(ISBLANK($I22), "Undefined", IF(CI22<0.5, "Complete",IF(SUMPRODUCT($N$41:CI$41,$N22:CI22)<0.5, "To start", "Running"))) -> Undefined | CK22: 0 | CL22: 0 | CM22: =IF(ISBLANK($I22), "Undefined", IF(CL22<0.5, "Complete",IF(SUMPRODUCT($N$41:CL$41,$N22:CL22)<0.5, "To start", "Running"))) -> Undefined | CN22: 0 | CO22: 0 | CP22: =IF(ISBLANK($I22), "Undefined", IF(CO22<0.5, "Complete",IF(SUMPRODUCT($N$41:CO$41,$N22:CO22)<0.5, "To start", "Running"))) -> Undefined | CQ22: 0 | CR22: 0 | CS22: =IF(ISBLANK($I22), "Undefined", IF(CR22<0.5, "Complete",IF(SUMPRODUCT($N$41:CR$41,$N22:CR22)<0.5, "To start", "Running"))) -> Undefined | CT22: 0 | CU22: 0 | CV22: =IF(ISBLANK($I22), "Undefined", IF(CU22<0.5, "Complete",IF(SUMPRODUCT($N$41:CU$41,$N22:CU22)<0.5, "To start", "Running"))) -> Undefined | CW22: 0 | CX22: 0 | CY22: =IF(ISBLANK($I22), "Undefined", IF(CX22<0.5, "Complete",IF(SUMPRODUCT($N$41:CX$41,$N22:CX22)<0.5, "To start", "Running"))) -> Undefined | CZ22: 0 | DA22: 0 | DB22: =IF(ISBLANK($I22), "Undefined", IF(DA22<0.5, "Complete",IF(SUMPRODUCT($N$41:DA$41,$N22:DA22)<0.5, "To start", "Running"))) -> Undefined | DC22: 0 | DD22: 0 | DE22: =IF(ISBLANK($I22), "Undefined", IF(DD22<0.5, "Complete",IF(SUMPRODUCT($N$41:DD$41,$N22:DD22)<0.5, "To start", "Running"))) -> Undefined | DF22: 0 | DG22: 0 | DH22: =IF(ISBLANK($I22), "Undefined", IF(DG22<0.5, "Complete",IF(SUMPRODUCT($N$41:DG$41,$N22:DG22)<0.5, "To start", "Running"))) -> Undefined | DI22: 0 | DJ22: 0 | DK22: =IF(ISBLANK($I22), "Undefined", IF(DJ22<0.5, "Complete",IF(SUMPRODUCT($N$41:DJ$41,$N22:DJ22)<0.5, "To start", "Running"))) -> Undefined | DL22: 0 | DM22: 0 | DN22: =IF(ISBLANK($I22), "Undefined", IF(DM22<0.5, "Complete",IF(SUMPRODUCT($N$41:DM$41,$N22:DM22)<0.5, "To start", "Running"))) -> Undefined | DO22: 0 | DP22: 0 | DQ22: =IF(ISBLANK($I22), "Undefined", IF(DP22<0.5, "Complete",IF(SUMPRODUCT($N$41:DP$41,$N22:DP22)<0.5, "To start", "Running"))) -> Undefined | DR22: 0 | DS22: 0 | DT22: =IF(ISBLANK($I22), "Undefined", IF(DS22<0.5, "Complete",IF(SUMPRODUCT($N$41:DS$41,$N22:DS22)<0.5, "To start", "Running"))) -> Undefined | DU22: 0 | DV22: 0 | DW22: =IF(ISBLANK($I22), "Undefined", IF(DV22<0.5, "Complete",IF(SUMPRODUCT($N$41:DV$41,$N22:DV22)<0.5, "To start", "Running"))) -> Undefined | DX22: 0 | DY22: 0 | DZ22: =IF(ISBLANK($I22), "Undefined", IF(DY22<0.5, "Complete",IF(SUMPRODUCT($N$41:DY$41,$N22:DY22)<0.5, "To start", "Running"))) -> Undefined | EA22: 0 | EB22: 0 | EC22: =IF(ISBLANK($I22), "Undefined", IF(EB22<0.5, "Complete",IF(SUMPRODUCT($N$41:EB$41,$N22:EB22)<0.5, "To start", "Running"))) -> Undefined | EE22: =SUMPRODUCT($L$41:DK$41,$L22:DK22) -> 0 | EF22: 0 | EG22: =OFFSET($O22,0,(Capacity!$F$2-SprintStart)*3,1,1) -> 0 | EH22: 0 | EI22: 0 | EJ22: 0 | EL22: 0 | EM22: 0
K23: =IF(SprintStart>Capacity!$F$2, "To start", INDEX(Burndown,ROW(K23)-ROW(K$6),MIN(Capacity!$F$2-SprintStart,29)*3+3)) -> Undefined | M23: 0 | N23: 0 | O23: 0 | P23: =IF(ISBLANK($I23), "Undefined", IF(O23<0.5, "Complete",IF(SUMPRODUCT($N$41:O$41,$N23:O23)<0.5, "To start", "Running"))) -> Undefined | Q23: 0 | R23: 0 | S23: =IF(ISBLANK($I23), "Undefined", IF(R23<0.5, "Complete",IF(SUMPRODUCT($N$41:R$41,$N23:R23)<0.5, "To start", "Running"))) -> Undefined | T23: 0 | U23: 0 | V23: =IF(ISBLANK($I23), "Undefined", IF(U23<0.5, "Complete",IF(SUMPRODUCT($N$41:U$41,$N23:U23)<0.5, "To start", "Running"))) -> Undefined | W23: 0 | X23: 0 | Y23: =IF(ISBLANK($I23), "Undefined", IF(X23<0.5, "Complete",IF(SUMPRODUCT($N$41:X$41,$N23:X23)<0.5, "To start", "Running"))) -> Undefined | Z23: 0 | AA23: 0 | AB23: =IF(ISBLANK($I23), "Undefined", IF(AA23<0.5, "Complete",IF(SUMPRODUCT($N$41:AA$41,$N23:AA23)<0.5, "To start", "Running"))) -> Undefined | AC23: 0 | AD23: 0 | AE23: =IF(ISBLANK($I23), "Undefined", IF(AD23<0.5, "Complete",IF(SUMPRODUCT($N$41:AD$41,$N23:AD23)<0.5, "To start", "Running"))) -> Undefined | AF23: 0 | AG23: 0 | AH23: =IF(ISBLANK($I23), "Undefined", IF(AG23<0.5, "Complete",IF(SUMPRODUCT($N$41:AG$41,$N23:AG23)<0.5, "To start", "Running"))) -> Undefined | AI23: 0 | AJ23: 0 | AK23: =IF(ISBLANK($I23), "Undefined", IF(AJ23<0.5, "Complete",IF(SUMPRODUCT($N$41:AJ$41,$N23:AJ23)<0.5, "To start", "Running"))) -> Undefined | AL23: 0 | AM23: 0 | AN23: =IF(ISBLANK($I23), "Undefined", IF(AM23<0.5, "Complete",IF(SUMPRODUCT($N$41:AM$41,$N23:AM23)<0.5, "To start", "Running"))) -> Undefined | AO23: 0 | AP23: 0 | AQ23: =IF(ISBLANK($I23), "Undefined", IF(AP23<0.5, "Complete",IF(SUMPRODUCT($N$41:AP$41,$N23:AP23)<0.5, "To start", "Running"))) -> Undefined | AR23: 0 | AS23: 0 | AT23: =IF(ISBLANK($I23), "Undefined", IF(AS23<0.5, "Complete",IF(SUMPRODUCT($N$41:AS$41,$N23:AS23)<0.5, "To start", "Running"))) -> Undefined | AU23: 0 | AV23: 0 | AW23: =IF(ISBLANK($I23), "Undefined", IF(AV23<0.5, "Complete",IF(SUMPRODUCT($N$41:AV$41,$N23:AV23)<0.5, "To start", "Running"))) -> Undefined | AX23: 0 | AY23: 0 | AZ23: =IF(ISBLANK($I23), "Undefined", IF(AY23<0.5, "Complete",IF(SUMPRODUCT($N$41:AY$41,$N23:AY23)<0.5, "To start", "Running"))) -> Undefined | BA23: 0 | BB23: 0 | BC23: =IF(ISBLANK($I23), "Undefined", IF(BB23<0.5, "Complete",IF(SUMPRODUCT($N$41:BB$41,$N23:BB23)<0.5, "To start", "Running"))) -> Undefined | BD23: 0 | BE23: 0 | BF23: =IF(ISBLANK($I23), "Undefined", IF(BE23<0.5, "Complete",IF(SUMPRODUCT($N$41:BE$41,$N23:BE23)<0.5, "To start", "Running"))) -> Undefined | BG23: 0 | BH23: 0 | BI23: =IF(ISBLANK($I23), "Undefined", IF(BH23<0.5, "Complete",IF(SUMPRODUCT($N$41:BH$41,$N23:BH23)<0.5, "To start", "Running"))) -> Undefined | BJ23: 0 | BK23: 0 | BL23: =IF(ISBLANK($I23), "Undefined", IF(BK23<0.5, "Complete",IF(SUMPRODUCT($N$41:BK$41,$N23:BK23)<0.5, "To start", "Running"))) -> Undefined | BM23: 0 | BN23: 0 | BO23: =IF(ISBLANK($I23), "Undefined", IF(BN23<0.5, "Complete",IF(SUMPRODUCT($N$41:BN$41,$N23:BN23)<0.5, "To start", "Running"))) -> Undefined | BP23: 0 | BQ23: 0 | BR23: =IF(ISBLANK($I23), "Undefined", IF(BQ23<0.5, "Complete",IF(SUMPRODUCT($N$41:BQ$41,$N23:BQ23)<0.5, "To start", "Running"))) -> Undefined | BS23: 0 | BT23: 0 | BU23: =IF(ISBLANK($I23), "Undefined", IF(BT23<0.5, "Complete",IF(SUMPRODUCT($N$41:BT$41,$N23:BT23)<0.5, "To start", "Running"))) -> Undefined | BV23: 0 | BW23: 0 | BX23: =IF(ISBLANK($I23), "Undefined", IF(BW23<0.5, "Complete",IF(SUMPRODUCT($N$41:BW$41,$N23:BW23)<0.5, "To start", "Running"))) -> Undefined | BY23: 0 | BZ23: 0 | CA23: =IF(ISBLANK($I23), "Undefined", IF(BZ23<0.5, "Complete",IF(SUMPRODUCT($N$41:BZ$41,$N23:BZ23)<0.5, "To start", "Running"))) -> Undefined | CB23: 0 | CC23: 0 | CD23: =IF(ISBLANK($I23), "Undefined", IF(CC23<0.5, "Complete",IF(SUMPRODUCT($N$41:CC$41,$N23:CC23)<0.5, "To start", "Running"))) -> Undefined | CE23: 0 | CF23: 0 | CG23: =IF(ISBLANK($I23), "Undefined", IF(CF23<0.5, "Complete",IF(SUMPRODUCT($N$41:CF$41,$N23:CF23)<0.5, "To start", "Running"))) -> Undefined | CH23: 0 | CI23: 0 | CJ23: =IF(ISBLANK($I23), "Undefined", IF(CI23<0.5, "Complete",IF(SUMPRODUCT($N$41:CI$41,$N23:CI23)<0.5, "To start", "Running"))) -> Undefined | CK23: 0 | CL23: 0 | CM23: =IF(ISBLANK($I23), "Undefined", IF(CL23<0.5, "Complete",IF(SUMPRODUCT($N$41:CL$41,$N23:CL23)<0.5, "To start", "Running"))) -> Undefined | CN23: 0 | CO23: 0 | CP23: =IF(ISBLANK($I23), "Undefined", IF(CO23<0.5, "Complete",IF(SUMPRODUCT($N$41:CO$41,$N23:CO23)<0.5, "To start", "Running"))) -> Undefined | CQ23: 0 | CR23: 0 | CS23: =IF(ISBLANK($I23), "Undefined", IF(CR23<0.5, "Complete",IF(SUMPRODUCT($N$41:CR$41,$N23:CR23)<0.5, "To start", "Running"))) -> Undefined | CT23: 0 | CU23: 0 | CV23: =IF(ISBLANK($I23), "Undefined", IF(CU23<0.5, "Complete",IF(SUMPRODUCT($N$41:CU$41,$N23:CU23)<0.5, "To start", "Running"))) -> Undefined | CW23: 0 | CX23: 0 | CY23: =IF(ISBLANK($I23), "Undefined", IF(CX23<0.5, "Complete",IF(SUMPRODUCT($N$41:CX$41,$N23:CX23)<0.5, "To start", "Running"))) -> Undefined | CZ23: 0 | DA23: 0 | DB23: =IF(ISBLANK($I23), "Undefined", IF(DA23<0.5, "Complete",IF(SUMPRODUCT($N$41:DA$41,$N23:DA23)<0.5, "To start", "Running"))) -> Undefined | DC23: 0 | DD23: 0 | DE23: =IF(ISBLANK($I23), "Undefined", IF(DD23<0.5, "Complete",IF(SUMPRODUCT($N$41:DD$41,$N23:DD23)<0.5, "To start", "Running"))) -> Undefined | DF23: 0 | DG23: 0 | DH23: =IF(ISBLANK($I23), "Undefined", IF(DG23<0.5, "Complete",IF(SUMPRODUCT($N$41:DG$41,$N23:DG23)<0.5, "To start", "Running"))) -> Undefined | DI23: 0 | DJ23: 0 | DK23: =IF(ISBLANK($I23), "Undefined", IF(DJ23<0.5, "Complete",IF(SUMPRODUCT($N$41:DJ$41,$N23:DJ23)<0.5, "To start", "Running"))) -> Undefined | DL23: 0 | DM23: 0 | DN23: =IF(ISBLANK($I23), "Undefined", IF(DM23<0.5, "Complete",IF(SUMPRODUCT($N$41:DM$41,$N23:DM23)<0.5, "To start", "Running"))) -> Undefined | DO23: 0 | DP23: 0 | DQ23: =IF(ISBLANK($I23), "Undefined", IF(DP23<0.5, "Complete",IF(SUMPRODUCT($N$41:DP$41,$N23:DP23)<0.5, "To start", "Running"))) -> Undefined | DR23: 0 | DS23: 0 | DT23: =IF(ISBLANK($I23), "Undefined", IF(DS23<0.5, "Complete",IF(SUMPRODUCT($N$41:DS$41,$N23:DS23)<0.5, "To start", "Running"))) -> Undefined | DU23: 0 | DV23: 0 | DW23: =IF(ISBLANK($I23), "Undefined", IF(DV23<0.5, "Complete",IF(SUMPRODUCT($N$41:DV$41,$N23:DV23)<0.5, "To start", "Running"))) -> Undefined | DX23: 0 | DY23: 0 | DZ23: =IF(ISBLANK($I23), "Undefined", IF(DY23<0.5, "Complete",IF(SUMPRODUCT($N$41:DY$41,$N23:DY23)<0.5, "To start", "Running"))) -> Undefined | EA23: 0 | EB23: 0 | EC23: =IF(ISBLANK($I23), "Undefined", IF(EB23<0.5, "Complete",IF(SUMPRODUCT($N$41:EB$41,$N23:EB23)<0.5, "To start", "Running"))) -> Undefined | EE23: =SUMPRODUCT($L$41:DK$41,$L23:DK23) -> 0 | EF23: 0 | EG23: =OFFSET($O23,0,(Capacity!$F$2-SprintStart)*3,1,1) -> 0 | EH23: 0 | EI23: 0 | EJ23: 0 | EL23: 0 | EM23: 0
K24: =IF(SprintStart>Capacity!$F$2, "To start", INDEX(Burndown,ROW(K24)-ROW(K$6),MIN(Capacity!$F$2-SprintStart,29)*3+3)) -> Undefined | M24: 0 | N24: 0 | O24: 0 | P24: =IF(ISBLANK($I24), "Undefined", IF(O24<0.5, "Complete",IF(SUMPRODUCT($N$41:O$41,$N24:O24)<0.5, "To start", "Running"))) -> Undefined | Q24: 0 | R24: 0 | S24: =IF(ISBLANK($I24), "Undefined", IF(R24<0.5, "Complete",IF(SUMPRODUCT($N$41:R$41,$N24:R24)<0.5, "To start", "Running"))) -> Undefined | T24: 0 | U24: 0 | V24: =IF(ISBLANK($I24), "Undefined", IF(U24<0.5, "Complete",IF(SUMPRODUCT($N$41:U$41,$N24:U24)<0.5, "To start", "Running"))) -> Undefined | W24: 0 | X24: 0 | Y24: =IF(ISBLANK($I24), "Undefined", IF(X24<0.5, "Complete",IF(SUMPRODUCT($N$41:X$41,$N24:X24)<0.5, "To start", "Running"))) -> Undefined | Z24: 0 | AA24: 0 | AB24: =IF(ISBLANK($I24), "Undefined", IF(AA24<0.5, "Complete",IF(SUMPRODUCT($N$41:AA$41,$N24:AA24)<0.5, "To start", "Running"))) -> Undefined | AC24: 0 | AD24: 0 | AE24: =IF(ISBLANK($I24), "Undefined", IF(AD24<0.5, "Complete",IF(SUMPRODUCT($N$41:AD$41,$N24:AD24)<0.5, "To start", "Running"))) -> Undefined | AF24: 0 | AG24: 0 | AH24: =IF(ISBLANK($I24), "Undefined", IF(AG24<0.5, "Complete",IF(SUMPRODUCT($N$41:AG$41,$N24:AG24)<0.5, "To start", "Running"))) -> Undefined | AI24: 0 | AJ24: 0 | AK24: =IF(ISBLANK($I24), "Undefined", IF(AJ24<0.5, "Complete",IF(SUMPRODUCT($N$41:AJ$41,$N24:AJ24)<0.5, "To start", "Running"))) -> Undefined | AL24: 0 | AM24: 0 | AN24: =IF(ISBLANK($I24), "Undefined", IF(AM24<0.5, "Complete",IF(SUMPRODUCT($N$41:AM$41,$N24:AM24)<0.5, "To start", "Running"))) -> Undefined | AO24: 0 | AP24: 0 | AQ24: =IF(ISBLANK($I24), "Undefined", IF(AP24<0.5, "Complete",IF(SUMPRODUCT($N$41:AP$41,$N24:AP24)<0.5, "To start", "Running"))) -> Undefined | AR24: 0 | AS24: 0 | AT24: =IF(ISBLANK($I24), "Undefined", IF(AS24<0.5, "Complete",IF(SUMPRODUCT($N$41:AS$41,$N24:AS24)<0.5, "To start", "Running"))) -> Undefined | AU24: 0 | AV24: 0 | AW24: =IF(ISBLANK($I24), "Undefined", IF(AV24<0.5, "Complete",IF(SUMPRODUCT($N$41:AV$41,$N24:AV24)<0.5, "To start", "Running"))) -> Undefined | AX24: 0 | AY24: 0 | AZ24: =IF(ISBLANK($I24), "Undefined", IF(AY24<0.5, "Complete",IF(SUMPRODUCT($N$41:AY$41,$N24:AY24)<0.5, "To start", "Running"))) -> Undefined | BA24: 0 | BB24: 0 | BC24: =IF(ISBLANK($I24), "Undefined", IF(BB24<0.5, "Complete",IF(SUMPRODUCT($N$41:BB$41,$N24:BB24)<0.5, "To start", "Running"))) -> Undefined | BD24: 0 | BE24: 0 | BF24: =IF(ISBLANK($I24), "Undefined", IF(BE24<0.5, "Complete",IF(SUMPRODUCT($N$41:BE$41,$N24:BE24)<0.5, "To start", "Running"))) -> Undefined | BG24: 0 | BH24: 0 | BI24: =IF(ISBLANK($I24), "Undefined", IF(BH24<0.5, "Complete",IF(SUMPRODUCT($N$41:BH$41,$N24:BH24)<0.5, "To start", "Running"))) -> Undefined | BJ24: 0 | BK24: 0 | BL24: =IF(ISBLANK($I24), "Undefined", IF(BK24<0.5, "Complete",IF(SUMPRODUCT($N$41:BK$41,$N24:BK24)<0.5, "To start", "Running"))) -> Undefined | BM24: 0 | BN24: 0 | BO24: =IF(ISBLANK($I24), "Undefined", IF(BN24<0.5, "Complete",IF(SUMPRODUCT($N$41:BN$41,$N24:BN24)<0.5, "To start", "Running"))) -> Undefined | BP24: 0 | BQ24: 0 | BR24: =IF(ISBLANK($I24), "Undefined", IF(BQ24<0.5, "Complete",IF(SUMPRODUCT($N$41:BQ$41,$N24:BQ24)<0.5, "To start", "Running"))) -> Undefined | BS24: 0 | BT24: 0 | BU24: =IF(ISBLANK($I24), "Undefined", IF(BT24<0.5, "Complete",IF(SUMPRODUCT($N$41:BT$41,$N24:BT24)<0.5, "To start", "Running"))) -> Undefined | BV24: 0 | BW24: 0 | BX24: =IF(ISBLANK($I24), "Undefined", IF(BW24<0.5, "Complete",IF(SUMPRODUCT($N$41:BW$41,$N24:BW24)<0.5, "To start", "Running"))) -> Undefined | BY24: 0 | BZ24: 0 | CA24: =IF(ISBLANK($I24), "Undefined", IF(BZ24<0.5, "Complete",IF(SUMPRODUCT($N$41:BZ$41,$N24:BZ24)<0.5, "To start", "Running"))) -> Undefined | CB24: 0 | CC24: 0 | CD24: =IF(ISBLANK($I24), "Undefined", IF(CC24<0.5, "Complete",IF(SUMPRODUCT($N$41:CC$41,$N24:CC24)<0.5, "To start", "Running"))) -> Undefined | CE24: 0 | CF24: 0 | CG24: =IF(ISBLANK($I24), "Undefined", IF(CF24<0.5, "Complete",IF(SUMPRODUCT($N$41:CF$41,$N24:CF24)<0.5, "To start", "Running"))) -> Undefined | CH24: 0 | CI24: 0 | CJ24: =IF(ISBLANK($I24), "Undefined", IF(CI24<0.5, "Complete",IF(SUMPRODUCT($N$41:CI$41,$N24:CI24)<0.5, "To start", "Running"))) -> Undefined | CK24: 0 | CL24: 0 | CM24: =IF(ISBLANK($I24), "Undefined", IF(CL24<0.5, "Complete",IF(SUMPRODUCT($N$41:CL$41,$N24:CL24)<0.5, "To start", "Running"))) -> Undefined | CN24: 0 | CO24: 0 | CP24: =IF(ISBLANK($I24), "Undefined", IF(CO24<0.5, "Complete",IF(SUMPRODUCT($N$41:CO$41,$N24:CO24)<0.5, "To start", "Running"))) -> Undefined | CQ24: 0 | CR24: 0 | CS24: =IF(ISBLANK($I24), "Undefined", IF(CR24<0.5, "Complete",IF(SUMPRODUCT($N$41:CR$41,$N24:CR24)<0.5, "To start", "Running"))) -> Undefined | CT24: 0 | CU24: 0 | CV24: =IF(ISBLANK($I24), "Undefined", IF(CU24<0.5, "Complete",IF(SUMPRODUCT($N$41:CU$41,$N24:CU24)<0.5, "To start", "Running"))) -> Undefined | CW24: 0 | CX24: 0 | CY24: =IF(ISBLANK($I24), "Undefined", IF(CX24<0.5, "Complete",IF(SUMPRODUCT($N$41:CX$41,$N24:CX24)<0.5, "To start", "Running"))) -> Undefined | CZ24: 0 | DA24: 0 | DB24: =IF(ISBLANK($I24), "Undefined", IF(DA24<0.5, "Complete",IF(SUMPRODUCT($N$41:DA$41,$N24:DA24)<0.5, "To start", "Running"))) -> Undefined | DC24: 0 | DD24: 0 | DE24: =IF(ISBLANK($I24), "Undefined", IF(DD24<0.5, "Complete",IF(SUMPRODUCT($N$41:DD$41,$N24:DD24)<0.5, "To start", "Running"))) -> Undefined | DF24: 0 | DG24: 0 | DH24: =IF(ISBLANK($I24), "Undefined", IF(DG24<0.5, "Complete",IF(SUMPRODUCT($N$41:DG$41,$N24:DG24)<0.5, "To start", "Running"))) -> Undefined | DI24: 0 | DJ24: 0 | DK24: =IF(ISBLANK($I24), "Undefined", IF(DJ24<0.5, "Complete",IF(SUMPRODUCT($N$41:DJ$41,$N24:DJ24)<0.5, "To start", "Running"))) -> Undefined | DL24: 0 | DM24: 0 | DN24: =IF(ISBLANK($I24), "Undefined", IF(DM24<0.5, "Complete",IF(SUMPRODUCT($N$41:DM$41,$N24:DM24)<0.5, "To start", "Running"))) -> Undefined | DO24: 0 | DP24: 0 | DQ24: =IF(ISBLANK($I24), "Undefined", IF(DP24<0.5, "Complete",IF(SUMPRODUCT($N$41:DP$41,$N24:DP24)<0.5, "To start", "Running"))) -> Undefined | DR24: 0 | DS24: 0 | DT24: =IF(ISBLANK($I24), "Undefined", IF(DS24<0.5, "Complete",IF(SUMPRODUCT($N$41:DS$41,$N24:DS24)<0.5, "To start", "Running"))) -> Undefined | DU24: 0 | DV24: 0 | DW24: =IF(ISBLANK($I24), "Undefined", IF(DV24<0.5, "Complete",IF(SUMPRODUCT($N$41:DV$41,$N24:DV24)<0.5, "To start", "Running"))) -> Undefined | DX24: 0 | DY24: 0 | DZ24: =IF(ISBLANK($I24), "Undefined", IF(DY24<0.5, "Complete",IF(SUMPRODUCT($N$41:DY$41,$N24:DY24)<0.5, "To start", "Running"))) -> Undefined | EA24: 0 | EB24: 0 | EC24: =IF(ISBLANK($I24), "Undefined", IF(EB24<0.5, "Complete",IF(SUMPRODUCT($N$41:EB$41,$N24:EB24)<0.5, "To start", "Running"))) -> Undefined | EE24: =SUMPRODUCT($L$41:DK$41,$L24:DK24) -> 0 | EF24: 0 | EG24: =OFFSET($O24,0,(Capacity!$F$2-SprintStart)*3,1,1) -> 0 | EH24: 0 | EI24: 0 | EJ24: 0 | EL24: 0 | EM24: 0
K25: =IF(SprintStart>Capacity!$F$2, "To start", INDEX(Burndown,ROW(K25)-ROW(K$6),MIN(Capacity!$F$2-SprintStart,29)*3+3)) -> Undefined | M25: 0 | N25: 0 | O25: 0 | P25: =IF(ISBLANK($I25), "Undefined", IF(O25<0.5, "Complete",IF(SUMPRODUCT($N$41:O$41,$N25:O25)<0.5, "To start", "Running"))) -> Undefined | Q25: 0 | R25: 0 | S25: =IF(ISBLANK($I25), "Undefined", IF(R25<0.5, "Complete",IF(SUMPRODUCT($N$41:R$41,$N25:R25)<0.5, "To start", "Running"))) -> Undefined | T25: 0 | U25: 0 | V25: =IF(ISBLANK($I25), "Undefined", IF(U25<0.5, "Complete",IF(SUMPRODUCT($N$41:U$41,$N25:U25)<0.5, "To start", "Running"))) -> Undefined | W25: 0 | X25: 0 | Y25: =IF(ISBLANK($I25), "Undefined", IF(X25<0.5, "Complete",IF(SUMPRODUCT($N$41:X$41,$N25:X25)<0.5, "To start", "Running"))) -> Undefined | Z25: 0 | AA25: 0 | AB25: =IF(ISBLANK($I25), "Undefined", IF(AA25<0.5, "Complete",IF(SUMPRODUCT($N$41:AA$41,$N25:AA25)<0.5, "To start", "Running"))) -> Undefined | AC25: 0 | AD25: 0 | AE25: =IF(ISBLANK($I25), "Undefined", IF(AD25<0.5, "Complete",IF(SUMPRODUCT($N$41:AD$41,$N25:AD25)<0.5, "To start", "Running"))) -> Undefined | AF25: 0 | AG25: 0 | AH25: =IF(ISBLANK($I25), "Undefined", IF(AG25<0.5, "Complete",IF(SUMPRODUCT($N$41:AG$41,$N25:AG25)<0.5, "To start", "Running"))) -> Undefined | AI25: 0 | AJ25: 0 | AK25: =IF(ISBLANK($I25), "Undefined", IF(AJ25<0.5, "Complete",IF(SUMPRODUCT($N$41:AJ$41,$N25:AJ25)<0.5, "To start", "Running"))) -> Undefined | AL25: 0 | AM25: 0 | AN25: =IF(ISBLANK($I25), "Undefined", IF(AM25<0.5, "Complete",IF(SUMPRODUCT($N$41:AM$41,$N25:AM25)<0.5, "To start", "Running"))) -> Undefined | AO25: 0 | AP25: 0 | AQ25: =IF(ISBLANK($I25), "Undefined", IF(AP25<0.5, "Complete",IF(SUMPRODUCT($N$41:AP$41,$N25:AP25)<0.5, "To start", "Running"))) -> Undefined | AR25: 0 | AS25: 0 | AT25: =IF(ISBLANK($I25), "Undefined", IF(AS25<0.5, "Complete",IF(SUMPRODUCT($N$41:AS$41,$N25:AS25)<0.5, "To start", "Running"))) -> Undefined | AU25: 0 | AV25: 0 | AW25: =IF(ISBLANK($I25), "Undefined", IF(AV25<0.5, "Complete",IF(SUMPRODUCT($N$41:AV$41,$N25:AV25)<0.5, "To start", "Running"))) -> Undefined | AX25: 0 | AY25: 0 | AZ25: =IF(ISBLANK($I25), "Undefined", IF(AY25<0.5, "Complete",IF(SUMPRODUCT($N$41:AY$41,$N25:AY25)<0.5, "To start", "Running"))) -> Undefined | BA25: 0 | BB25: 0 | BC25: =IF(ISBLANK($I25), "Undefined", IF(BB25<0.5, "Complete",IF(SUMPRODUCT($N$41:BB$41,$N25:BB25)<0.5, "To start", "Running"))) -> Undefined | BD25: 0 | BE25: 0 | BF25: =IF(ISBLANK($I25), "Undefined", IF(BE25<0.5, "Complete",IF(SUMPRODUCT($N$41:BE$41,$N25:BE25)<0.5, "To start", "Running"))) -> Undefined | BG25: 0 | BH25: 0 | BI25: =IF(ISBLANK($I25), "Undefined", IF(BH25<0.5, "Complete",IF(SUMPRODUCT($N$41:BH$41,$N25:BH25)<0.5, "To start", "Running"))) -> Undefined | BJ25: 0 | BK25: 0 | BL25: =IF(ISBLANK($I25), "Undefined", IF(BK25<0.5, "Complete",IF(SUMPRODUCT($N$41:BK$41,$N25:BK25)<0.5, "To start", "Running"))) -> Undefined | BM25: 0 | BN25: 0 | BO25: =IF(ISBLANK($I25), "Undefined", IF(BN25<0.5, "Complete",IF(SUMPRODUCT($N$41:BN$41,$N25:BN25)<0.5, "To start", "Running"))) -> Undefined | BP25: 0 | BQ25: 0 | BR25: =IF(ISBLANK($I25), "Undefined", IF(BQ25<0.5, "Complete",IF(SUMPRODUCT($N$41:BQ$41,$N25:BQ25)<0.5, "To start", "Running"))) -> Undefined | BS25: 0 | BT25: 0 | BU25: =IF(ISBLANK($I25), "Undefined", IF(BT25<0.5, "Complete",IF(SUMPRODUCT($N$41:BT$41,$N25:BT25)<0.5, "To start", "Running"))) -> Undefined | BV25: 0 | BW25: 0 | BX25: =IF(ISBLANK($I25), "Undefined", IF(BW25<0.5, "Complete",IF(SUMPRODUCT($N$41:BW$41,$N25:BW25)<0.5, "To start", "Running"))) -> Undefined | BY25: 0 | BZ25: 0 | CA25: =IF(ISBLANK($I25), "Undefined", IF(BZ25<0.5, "Complete",IF(SUMPRODUCT($N$41:BZ$41,$N25:BZ25)<0.5, "To start", "Running"))) -> Undefined | CB25: 0 | CC25: 0 | CD25: =IF(ISBLANK($I25), "Undefined", IF(CC25<0.5, "Complete",IF(SUMPRODUCT($N$41:CC$41,$N25:CC25)<0.5, "To start", "Running"))) -> Undefined | CE25: 0 | CF25: 0 | CG25: =IF(ISBLANK($I25), "Undefined", IF(CF25<0.5, "Complete",IF(SUMPRODUCT($N$41:CF$41,$N25:CF25)<0.5, "To start", "Running"))) -> Undefined | CH25: 0 | CI25: 0 | CJ25: =IF(ISBLANK($I25), "Undefined", IF(CI25<0.5, "Complete",IF(SUMPRODUCT($N$41:CI$41,$N25:CI25)<0.5, "To start", "Running"))) -> Undefined | CK25: 0 | CL25: 0 | CM25: =IF(ISBLANK($I25), "Undefined", IF(CL25<0.5, "Complete",IF(SUMPRODUCT($N$41:CL$41,$N25:CL25)<0.5, "To start", "Running"))) -> Undefined | CN25: 0 | CO25: 0 | CP25: =IF(ISBLANK($I25), "Undefined", IF(CO25<0.5, "Complete",IF(SUMPRODUCT($N$41:CO$41,$N25:CO25)<0.5, "To start", "Running"))) -> Undefined | CQ25: 0 | CR25: 0 | CS25: =IF(ISBLANK($I25), "Undefined", IF(CR25<0.5, "Complete",IF(SUMPRODUCT($N$41:CR$41,$N25:CR25)<0.5, "To start", "Running"))) -> Undefined | CT25: 0 | CU25: 0 | CV25: =IF(ISBLANK($I25), "Undefined", IF(CU25<0.5, "Complete",IF(SUMPRODUCT($N$41:CU$41,$N25:CU25)<0.5, "To start", "Running"))) -> Undefined | CW25: 0 | CX25: 0 | CY25: =IF(ISBLANK($I25), "Undefined", IF(CX25<0.5, "Complete",IF(SUMPRODUCT($N$41:CX$41,$N25:CX25)<0.5, "To start", "Running"))) -> Undefined | CZ25: 0 | DA25: 0 | DB25: =IF(ISBLANK($I25), "Undefined", IF(DA25<0.5, "Complete",IF(SUMPRODUCT($N$41:DA$41,$N25:DA25)<0.5, "To start", "Running"))) -> Undefined | DC25: 0 | DD25: 0 | DE25: =IF(ISBLANK($I25), "Undefined", IF(DD25<0.5, "Complete",IF(SUMPRODUCT($N$41:DD$41,$N25:DD25)<0.5, "To start", "Running"))) -> Undefined | DF25: 0 | DG25: 0 | DH25: =IF(ISBLANK($I25), "Undefined", IF(DG25<0.5, "Complete",IF(SUMPRODUCT($N$41:DG$41,$N25:DG25)<0.5, "To start", "Running"))) -> Undefined | DI25: 0 | DJ25: 0 | DK25: =IF(ISBLANK($I25), "Undefined", IF(DJ25<0.5, "Complete",IF(SUMPRODUCT($N$41:DJ$41,$N25:DJ25)<0.5, "To start", "Running"))) -> Undefined | DL25: 0 | DM25: 0 | DN25: =IF(ISBLANK($I25), "Undefined", IF(DM25<0.5, "Complete",IF(SUMPRODUCT($N$41:DM$41,$N25:DM25)<0.5, "To start", "Running"))) -> Undefined | DO25: 0 | DP25: 0 | DQ25: =IF(ISBLANK($I25), "Undefined", IF(DP25<0.5, "Complete",IF(SUMPRODUCT($N$41:DP$41,$N25:DP25)<0.5, "To start", "Running"))) -> Undefined | DR25: 0 | DS25: 0 | DT25: =IF(ISBLANK($I25), "Undefined", IF(DS25<0.5, "Complete",IF(SUMPRODUCT($N$41:DS$41,$N25:DS25)<0.5, "To start", "Running"))) -> Undefined | DU25: 0 | DV25: 0 | DW25: =IF(ISBLANK($I25), "Undefined", IF(DV25<0.5, "Complete",IF(SUMPRODUCT($N$41:DV$41,$N25:DV25)<0.5, "To start", "Running"))) -> Undefined | DX25: 0 | DY25: 0 | DZ25: =IF(ISBLANK($I25), "Undefined", IF(DY25<0.5, "Complete",IF(SUMPRODUCT($N$41:DY$41,$N25:DY25)<0.5, "To start", "Running"))) -> Undefined | EA25: 0 | EB25: 0 | EC25: =IF(ISBLANK($I25), "Undefined", IF(EB25<0.5, "Complete",IF(SUMPRODUCT($N$41:EB$41,$N25:EB25)<0.5, "To start", "Running"))) -> Undefined | EE25: =SUMPRODUCT($L$41:DK$41,$L25:DK25) -> 0 | EF25: 0 | EG25: =OFFSET($O25,0,(Capacity!$F$2-SprintStart)*3,1,1) -> 0 | EH25: 0 | EI25: 0 | EJ25: 0 | EL25: 0 | EM25: 0
K26: =IF(SprintStart>Capacity!$F$2, "To start", INDEX(Burndown,ROW(K26)-ROW(K$6),MIN(Capacity!$F$2-SprintStart,29)*3+3)) -> Undefined | M26: 0 | N26: 0 | O26: 0 | P26: =IF(ISBLANK($I26), "Undefined", IF(O26<0.5, "Complete",IF(SUMPRODUCT($N$41:O$41,$N26:O26)<0.5, "To start", "Running"))) -> Undefined | Q26: 0 | R26: 0 | S26: =IF(ISBLANK($I26), "Undefined", IF(R26<0.5, "Complete",IF(SUMPRODUCT($N$41:R$41,$N26:R26)<0.5, "To start", "Running"))) -> Undefined | T26: 0 | U26: 0 | V26: =IF(ISBLANK($I26), "Undefined", IF(U26<0.5, "Complete",IF(SUMPRODUCT($N$41:U$41,$N26:U26)<0.5, "To start", "Running"))) -> Undefined | W26: 0 | X26: 0 | Y26: =IF(ISBLANK($I26), "Undefined", IF(X26<0.5, "Complete",IF(SUMPRODUCT($N$41:X$41,$N26:X26)<0.5, "To start", "Running"))) -> Undefined | Z26: 0 | AA26: 0 | AB26: =IF(ISBLANK($I26), "Undefined", IF(AA26<0.5, "Complete",IF(SUMPRODUCT($N$41:AA$41,$N26:AA26)<0.5, "To start", "Running"))) -> Undefined | AC26: 0 | AD26: 0 | AE26: =IF(ISBLANK($I26), "Undefined", IF(AD26<0.5, "Complete",IF(SUMPRODUCT($N$41:AD$41,$N26:AD26)<0.5, "To start", "Running"))) -> Undefined | AF26: 0 | AG26: 0 | AH26: =IF(ISBLANK($I26), "Undefined", IF(AG26<0.5, "Complete",IF(SUMPRODUCT($N$41:AG$41,$N26:AG26)<0.5, "To start", "Running"))) -> Undefined | AI26: 0 | AJ26: 0 | AK26: =IF(ISBLANK($I26), "Undefined", IF(AJ26<0.5, "Complete",IF(SUMPRODUCT($N$41:AJ$41,$N26:AJ26)<0.5, "To start", "Running"))) -> Undefined | AL26: 0 | AM26: 0 | AN26: =IF(ISBLANK($I26), "Undefined", IF(AM26<0.5, "Complete",IF(SUMPRODUCT($N$41:AM$41,$N26:AM26)<0.5, "To start", "Running"))) -> Undefined | AO26: 0 | AP26: 0 | AQ26: =IF(ISBLANK($I26), "Undefined", IF(AP26<0.5, "Complete",IF(SUMPRODUCT($N$41:AP$41,$N26:AP26)<0.5, "To start", "Running"))) -> Undefined | AR26: 0 | AS26: 0 | AT26: =IF(ISBLANK($I26), "Undefined", IF(AS26<0.5, "Complete",IF(SUMPRODUCT($N$41:AS$41,$N26:AS26)<0.5, "To start", "Running"))) -> Undefined | AU26: 0 | AV26: 0 | AW26: =IF(ISBLANK($I26), "Undefined", IF(AV26<0.5, "Complete",IF(SUMPRODUCT($N$41:AV$41,$N26:AV26)<0.5, "To start", "Running"))) -> Undefined | AX26: 0 | AY26: 0 | AZ26: =IF(ISBLANK($I26), "Undefined", IF(AY26<0.5, "Complete",IF(SUMPRODUCT($N$41:AY$41,$N26:AY26)<0.5, "To start", "Running"))) -> Undefined | BA26: 0 | BB26: 0 | BC26: =IF(ISBLANK($I26), "Undefined", IF(BB26<0.5, "Complete",IF(SUMPRODUCT($N$41:BB$41,$N26:BB26)<0.5, "To start", "Running"))) -> Undefined | BD26: 0 | BE26: 0 | BF26: =IF(ISBLANK($I26), "Undefined", IF(BE26<0.5, "Complete",IF(SUMPRODUCT($N$41:BE$41,$N26:BE26)<0.5, "To start", "Running"))) -> Undefined | BG26: 0 | BH26: 0 | BI26: =IF(ISBLANK($I26), "Undefined", IF(BH26<0.5, "Complete",IF(SUMPRODUCT($N$41:BH$41,$N26:BH26)<0.5, "To start", "Running"))) -> Undefined | BJ26: 0 | BK26: 0 | BL26: =IF(ISBLANK($I26), "Undefined", IF(BK26<0.5, "Complete",IF(SUMPRODUCT($N$41:BK$41,$N26:BK26)<0.5, "To start", "Running"))) -> Undefined | BM26: 0 | BN26: 0 | BO26: =IF(ISBLANK($I26), "Undefined", IF(BN26<0.5, "Complete",IF(SUMPRODUCT($N$41:BN$41,$N26:BN26)<0.5, "To start", "Running"))) -> Undefined | BP26: 0 | BQ26: 0 | BR26: =IF(ISBLANK($I26), "Undefined", IF(BQ26<0.5, "Complete",IF(SUMPRODUCT($N$41:BQ$41,$N26:BQ26)<0.5, "To start", "Running"))) -> Undefined | BS26: 0 | BT26: 0 | BU26: =IF(ISBLANK($I26), "Undefined", IF(BT26<0.5, "Complete",IF(SUMPRODUCT($N$41:BT$41,$N26:BT26)<0.5, "To start", "Running"))) -> Undefined | BV26: 0 | BW26: 0 | BX26: =IF(ISBLANK($I26), "Undefined", IF(BW26<0.5, "Complete",IF(SUMPRODUCT($N$41:BW$41,$N26:BW26)<0.5, "To start", "Running"))) -> Undefined | BY26: 0 | BZ26: 0 | CA26: =IF(ISBLANK($I26), "Undefined", IF(BZ26<0.5, "Complete",IF(SUMPRODUCT($N$41:BZ$41,$N26:BZ26)<0.5, "To start", "Running"))) -> Undefined | CB26: 0 | CC26: 0 | CD26: =IF(ISBLANK($I26), "Undefined", IF(CC26<0.5, "Complete",IF(SUMPRODUCT($N$41:CC$41,$N26:CC26)<0.5, "To start", "Running"))) -> Undefined | CE26: 0 | CF26: 0 | CG26: =IF(ISBLANK($I26), "Undefined", IF(CF26<0.5, "Complete",IF(SUMPRODUCT($N$41:CF$41,$N26:CF26)<0.5, "To start", "Running"))) -> Undefined | CH26: 0 | CI26: 0 | CJ26: =IF(ISBLANK($I26), "Undefined", IF(CI26<0.5, "Complete",IF(SUMPRODUCT($N$41:CI$41,$N26:CI26)<0.5, "To start", "Running"))) -> Undefined | CK26: 0 | CL26: 0 | CM26: =IF(ISBLANK($I26), "Undefined", IF(CL26<0.5, "Complete",IF(SUMPRODUCT($N$41:CL$41,$N26:CL26)<0.5, "To start", "Running"))) -> Undefined | CN26: 0 | CO26: 0 | CP26: =IF(ISBLANK($I26), "Undefined", IF(CO26<0.5, "Complete",IF(SUMPRODUCT($N$41:CO$41,$N26:CO26)<0.5, "To start", "Running"))) -> Undefined | CQ26: 0 | CR26: 0 | CS26: =IF(ISBLANK($I26), "Undefined", IF(CR26<0.5, "Complete",IF(SUMPRODUCT($N$41:CR$41,$N26:CR26)<0.5, "To start", "Running"))) -> Undefined | CT26: 0 | CU26: 0 | CV26: =IF(ISBLANK($I26), "Undefined", IF(CU26<0.5, "Complete",IF(SUMPRODUCT($N$41:CU$41,$N26:CU26)<0.5, "To start", "Running"))) -> Undefined | CW26: 0 | CX26: 0 | CY26: =IF(ISBLANK($I26), "Undefined", IF(CX26<0.5, "Complete",IF(SUMPRODUCT($N$41:CX$41,$N26:CX26)<0.5, "To start", "Running"))) -> Undefined | CZ26: 0 | DA26: 0 | DB26: =IF(ISBLANK($I26), "Undefined", IF(DA26<0.5, "Complete",IF(SUMPRODUCT($N$41:DA$41,$N26:DA26)<0.5, "To start", "Running"))) -> Undefined | DC26: 0 | DD26: 0 | DE26: =IF(ISBLANK($I26), "Undefined", IF(DD26<0.5, "Complete",IF(SUMPRODUCT($N$41:DD$41,$N26:DD26)<0.5, "To start", "Running"))) -> Undefined | DF26: 0 | DG26: 0 | DH26: =IF(ISBLANK($I26), "Undefined", IF(DG26<0.5, "Complete",IF(SUMPRODUCT($N$41:DG$41,$N26:DG26)<0.5, "To start", "Running"))) -> Undefined | DI26: 0 | DJ26: 0 | DK26: =IF(ISBLANK($I26), "Undefined", IF(DJ26<0.5, "Complete",IF(SUMPRODUCT($N$41:DJ$41,$N26:DJ26)<0.5, "To start", "Running"))) -> Undefined | DL26: 0 | DM26: 0 | DN26: =IF(ISBLANK($I26), "Undefined", IF(DM26<0.5, "Complete",IF(SUMPRODUCT($N$41:DM$41,$N26:DM26)<0.5, "To start", "Running"))) -> Undefined | DO26: 0 | DP26: 0 | DQ26: =IF(ISBLANK($I26), "Undefined", IF(DP26<0.5, "Complete",IF(SUMPRODUCT($N$41:DP$41,$N26:DP26)<0.5, "To start", "Running"))) -> Undefined | DR26: 0 | DS26: 0 | DT26: =IF(ISBLANK($I26), "Undefined", IF(DS26<0.5, "Complete",IF(SUMPRODUCT($N$41:DS$41,$N26:DS26)<0.5, "To start", "Running"))) -> Undefined | DU26: 0 | DV26: 0 | DW26: =IF(ISBLANK($I26), "Undefined", IF(DV26<0.5, "Complete",IF(SUMPRODUCT($N$41:DV$41,$N26:DV26)<0.5, "To start", "Running"))) -> Undefined | DX26: 0 | DY26: 0 | DZ26: =IF(ISBLANK($I26), "Undefined", IF(DY26<0.5, "Complete",IF(SUMPRODUCT($N$41:DY$41,$N26:DY26)<0.5, "To start", "Running"))) -> Undefined | EA26: 0 | EB26: 0 | EC26: =IF(ISBLANK($I26), "Undefined", IF(EB26<0.5, "Complete",IF(SUMPRODUCT($N$41:EB$41,$N26:EB26)<0.5, "To start", "Running"))) -> Undefined | EE26: =SUMPRODUCT($L$41:DK$41,$L26:DK26) -> 0 | EF26: 0 | EG26: =OFFSET($O26,0,(Capacity!$F$2-SprintStart)*3,1,1) -> 0 | EH26: 0 | EI26: 0 | EJ26: 0 | EL26: 0 | EM26: 0
K27: =IF(SprintStart>Capacity!$F$2, "To start", INDEX(Burndown,ROW(K27)-ROW(K$6),MIN(Capacity!$F$2-SprintStart,29)*3+3)) -> Undefined | M27: 0 | N27: 0 | O27: =MAX(M27-N27,0) -> 0 | P27: =IF(ISBLANK($I27), "Undefined", IF(O27<0.5, "Complete",IF(SUMPRODUCT($N$41:O$41,$N27:O27)<0.5, "To start", "Running"))) -> Undefined | Q27: 0 | R27: =MAX(O27-Q27,0) -> 0 | S27: =IF(ISBLANK($I27), "Undefined", IF(R27<0.5, "Complete",IF(SUMPRODUCT($N$41:R$41,$N27:R27)<0.5, "To start", "Running"))) -> Undefined | T27: 0 | U27: =MAX(R27-T27,0) -> 0 | V27: =IF(ISBLANK($I27), "Undefined", IF(U27<0.5, "Complete",IF(SUMPRODUCT($N$41:U$41,$N27:U27)<0.5, "To start", "Running"))) -> Undefined | W27: 0 | X27: =MAX(U27-W27,0) -> 0 | Y27: =IF(ISBLANK($I27), "Undefined", IF(X27<0.5, "Complete",IF(SUMPRODUCT($N$41:X$41,$N27:X27)<0.5, "To start", "Running"))) -> Undefined | Z27: 0 | AA27: =MAX(X27-Z27,0) -> 0 | AB27: =IF(ISBLANK($I27), "Undefined", IF(AA27<0.5, "Complete",IF(SUMPRODUCT($N$41:AA$41,$N27:AA27)<0.5, "To start", "Running"))) -> Undefined | AC27: 0 | AD27: =MAX(AA27-AC27,0) -> 0 | AE27: =IF(ISBLANK($I27), "Undefined", IF(AD27<0.5, "Complete",IF(SUMPRODUCT($N$41:AD$41,$N27:AD27)<0.5, "To start", "Running"))) -> Undefined | AF27: 0 | AG27: =MAX(AD27-AF27,0) -> 0 | AH27: =IF(ISBLANK($I27), "Undefined", IF(AG27<0.5, "Complete",IF(SUMPRODUCT($N$41:AG$41,$N27:AG27)<0.5, "To start", "Running"))) -> Undefined | AI27: 0 | AJ27: =MAX(AG27-AI27,0) -> 0 | AK27: =IF(ISBLANK($I27), "Undefined", IF(AJ27<0.5, "Complete",IF(SUMPRODUCT($N$41:AJ$41,$N27:AJ27)<0.5, "To start", "Running"))) -> Undefined | AL27: 0 | AM27: =MAX(AJ27-AL27,0) -> 0 | AN27: =IF(ISBLANK($I27), "Undefined", IF(AM27<0.5, "Complete",IF(SUMPRODUCT($N$41:AM$41,$N27:AM27)<0.5, "To start", "Running"))) -> Undefined | AO27: 0 | AP27: =MAX(AM27-AO27,0) -> 0 | AQ27: =IF(ISBLANK($I27), "Undefined", IF(AP27<0.5, "Complete",IF(SUMPRODUCT($N$41:AP$41,$N27:AP27)<0.5, "To start", "Running"))) -> Undefined | AR27: 0 | AS27: =MAX(AP27-AR27,0) -> 0 | AT27: =IF(ISBLANK($I27), "Undefined", IF(AS27<0.5, "Complete",IF(SUMPRODUCT($N$41:AS$41,$N27:AS27)<0.5, "To start", "Running"))) -> Undefined | AU27: 0 | AV27: =MAX(AS27-AU27,0) -> 0 | AW27: =IF(ISBLANK($I27), "Undefined", IF(AV27<0.5, "Complete",IF(SUMPRODUCT($N$41:AV$41,$N27:AV27)<0.5, "To start", "Running"))) -> Undefined | AX27: 0 | AY27: =MAX(AV27-AX27,0) -> 0 | AZ27: =IF(ISBLANK($I27), "Undefined", IF(AY27<0.5, "Complete",IF(SUMPRODUCT($N$41:AY$41,$N27:AY27)<0.5, "To start", "Running"))) -> Undefined | BA27: 0 | BB27: =MAX(AY27-BA27,0) -> 0 | BC27: =IF(ISBLANK($I27), "Undefined", IF(BB27<0.5, "Complete",IF(SUMPRODUCT($N$41:BB$41,$N27:BB27)<0.5, "To start", "Running"))) -> Undefined | BD27: 0 | BE27: =MAX(BB27-BD27,0) -> 0 | BF27: =IF(ISBLANK($I27), "Undefined", IF(BE27<0.5, "Complete",IF(SUMPRODUCT($N$41:BE$41,$N27:BE27)<0.5, "To start", "Running"))) -> Undefined | BG27: 0 | BH27: =MAX(BE27-BG27,0) -> 0 | BI27: =IF(ISBLANK($I27), "Undefined", IF(BH27<0.5, "Complete",IF(SUMPRODUCT($N$41:BH$41,$N27:BH27)<0.5, "To start", "Running"))) -> Undefined | BJ27: 0 | BK27: =MAX(BH27-BJ27,0) -> 0 | BL27: =IF(ISBLANK($I27), "Undefined", IF(BK27<0.5, "Complete",IF(SUMPRODUCT($N$41:BK$41,$N27:BK27)<0.5, "To start", "Running"))) -> Undefined | BM27: 0 | BN27: =MAX(BK27-BM27,0) -> 0 | BO27: =IF(ISBLANK($I27), "Undefined", IF(BN27<0.5, "Complete",IF(SUMPRODUCT($N$41:BN$41,$N27:BN27)<0.5, "To start", "Running"))) -> Undefined | BP27: 0 | BQ27: =MAX(BN27-BP27,0) -> 0 | BR27: =IF(ISBLANK($I27), "Undefined", IF(BQ27<0.5, "Complete",IF(SUMPRODUCT($N$41:BQ$41,$N27:BQ27)<0.5, "To start", "Running"))) -> Undefined | BS27: 0 | BT27: =MAX(BQ27-BS27,0) -> 0 | BU27: =IF(ISBLANK($I27), "Undefined", IF(BT27<0.5, "Complete",IF(SUMPRODUCT($N$41:BT$41,$N27:BT27)<0.5, "To start", "Running"))) -> Undefined | BV27: 0 | BW27: =MAX(BT27-BV27,0) -> 0 | BX27: =IF(ISBLANK($I27), "Undefined", IF(BW27<0.5, "Complete",IF(SUMPRODUCT($N$41:BW$41,$N27:BW27)<0.5, "To start", "Running"))) -> Undefined | BY27: 0 | BZ27: =MAX(BW27-BY27,0) -> 0 | CA27: =IF(ISBLANK($I27), "Undefined", IF(BZ27<0.5, "Complete",IF(SUMPRODUCT($N$41:BZ$41,$N27:BZ27)<0.5, "To start", "Running"))) -> Undefined | CB27: 0 | CC27: =MAX(BZ27-CB27,0) -> 0 | CD27: =IF(ISBLANK($I27), "Undefined", IF(CC27<0.5, "Complete",IF(SUMPRODUCT($N$41:CC$41,$N27:CC27)<0.5, "To start", "Running"))) -> Undefined | CE27: 0 | CF27: =MAX(CC27-CE27,0) -> 0 | CG27: =IF(ISBLANK($I27), "Undefined", IF(CF27<0.5, "Complete",IF(SUMPRODUCT($N$41:CF$41,$N27:CF27)<0.5, "To start", "Running"))) -> Undefined | CH27: 0 | CI27: =MAX(CF27-CH27,0) -> 0 | CJ27: =IF(ISBLANK($I27), "Undefined", IF(CI27<0.5, "Complete",IF(SUMPRODUCT($N$41:CI$41,$N27:CI27)<0.5, "To start", "Running"))) -> Undefined | CK27: 0 | CL27: =MAX(CI27-CK27,0) -> 0 | CM27: =IF(ISBLANK($I27), "Undefined", IF(CL27<0.5, "Complete",IF(SUMPRODUCT($N$41:CL$41,$N27:CL27)<0.5, "To start", "Running"))) -> Undefined | CN27: 0 | CO27: =MAX(CL27-CN27,0) -> 0 | CP27: =IF(ISBLANK($I27), "Undefined", IF(CO27<0.5, "Complete",IF(SUMPRODUCT($N$41:CO$41,$N27:CO27)<0.5, "To start", "Running"))) -> Undefined | CQ27: 0 | CR27: =MAX(CO27-CQ27,0) -> 0 | CS27: =IF(ISBLANK($I27), "Undefined", IF(CR27<0.5, "Complete",IF(SUMPRODUCT($N$41:CR$41,$N27:CR27)<0.5, "To start", "Running"))) -> Undefined | CT27: 0 | CU27: =MAX(CR27-CT27,0) -> 0 | CV27: =IF(ISBLANK($I27), "Undefined", IF(CU27<0.5, "Complete",IF(SUMPRODUCT($N$41:CU$41,$N27:CU27)<0.5, "To start", "Running"))) -> Undefined | CW27: 0 | CX27: =MAX(CU27-CW27,0) -> 0 | CY27: =IF(ISBLANK($I27), "Undefined", IF(CX27<0.5, "Complete",IF(SUMPRODUCT($N$41:CX$41,$N27:CX27)<0.5, "To start", "Running"))) -> Undefined | CZ27: 0 | DA27: =MAX(CX27-CZ27,0) -> 0 | DB27: =IF(ISBLANK($I27), "Undefined", IF(DA27<0.5, "Complete",IF(SUMPRODUCT($N$41:DA$41,$N27:DA27)<0.5, "To start", "Running"))) -> Undefined | DC27: 0 | DD27: =MAX(DA27-DC27,0) -> 0 | DE27: =IF(ISBLANK($I27), "Undefined", IF(DD27<0.5, "Complete",IF(SUMPRODUCT($N$41:DD$41,$N27:DD27)<0.5, "To start", "Running"))) -> Undefined | DF27: 0 | DG27: =MAX(DD27-DF27,0) -> 0 | DH27: =IF(ISBLANK($I27), "Undefined", IF(DG27<0.5, "Complete",IF(SUMPRODUCT($N$41:DG$41,$N27:DG27)<0.5, "To start", "Running"))) -> Undefined | DI27: 0 | DJ27: =MAX(DG27-DI27,0) -> 0 | DK27: =IF(ISBLANK($I27), "Undefined", IF(DJ27<0.5, "Complete",IF(SUMPRODUCT($N$41:DJ$41,$N27:DJ27)<0.5, "To start", "Running"))) -> Undefined | DL27: 0 | DM27: =MAX(DJ27-DL27,0) -> 0 | DN27: =IF(ISBLANK($I27), "Undefined", IF(DM27<0.5, "Complete",IF(SUMPRODUCT($N$41:DM$41,$N27:DM27)<0.5, "To start", "Running"))) -> Undefined | DO27: 0 | DP27: =MAX(DM27-DO27,0) -> 0 | DQ27: =IF(ISBLANK($I27), "Undefined", IF(DP27<0.5, "Complete",IF(SUMPRODUCT($N$41:DP$41,$N27:DP27)<0.5, "To start", "Running"))) -> Undefined | DR27: 0 | DS27: =MAX(DP27-DR27,0) -> 0 | DT27: =IF(ISBLANK($I27), "Undefined", IF(DS27<0.5, "Complete",IF(SUMPRODUCT($N$41:DS$41,$N27:DS27)<0.5, "To start", "Running"))) -> Undefined | DU27: 0 | DV27: =MAX(DS27-DU27,0) -> 0 | DW27: =IF(ISBLANK($I27), "Undefined", IF(DV27<0.5, "Complete",IF(SUMPRODUCT($N$41:DV$41,$N27:DV27)<0.5, "To start", "Running"))) -> Undefined | DX27: 0 | DY27: =MAX(DV27-DX27,0) -> 0 | DZ27: =IF(ISBLANK($I27), "Undefined", IF(DY27<0.5, "Complete",IF(SUMPRODUCT($N$41:DY$41,$N27:DY27)<0.5, "To start", "Running"))) -> Undefined | EA27: 0 | EB27: =MAX(DY27-EA27,0) -> 0 | EC27: =IF(ISBLANK($I27), "Undefined", IF(EB27<0.5, "Complete",IF(SUMPRODUCT($N$41:EB$41,$N27:EB27)<0.5, "To start", "Running"))) -> Undefined | EE27: =SUMPRODUCT($L$41:DK$41,$L27:DK27) -> 0 | EF27: =EE27/8 -> 0 | EG27: =OFFSET($O27,0,(Capacity!$F$2-SprintStart)*3,1,1) -> 0 | EH27: =EG27/8 -> 0 | EI27: =EE27+EG27 -> 0 | EJ27: =EI27/8 -> 0 | EK27: =IFERROR((EI27/M27)-1,"") ->  | EL27: =EI27-M27 -> 0 | EM27: =EL27/8 -> 0
K28: =IF(SprintStart>Capacity!$F$2, "To start", INDEX(Burndown,ROW(K28)-ROW(K$6),MIN(Capacity!$F$2-SprintStart,29)*3+3)) -> Undefined | M28: 0 | N28: 0 | O28: 0 | P28: =IF(ISBLANK($I28), "Undefined", IF(O28<0.5, "Complete",IF(SUMPRODUCT($N$41:O$41,$N28:O28)<0.5, "To start", "Running"))) -> Undefined | Q28: 0 | R28: 0 | S28: =IF(ISBLANK($I28), "Undefined", IF(R28<0.5, "Complete",IF(SUMPRODUCT($N$41:R$41,$N28:R28)<0.5, "To start", "Running"))) -> Undefined | T28: 0 | U28: 0 | V28: =IF(ISBLANK($I28), "Undefined", IF(U28<0.5, "Complete",IF(SUMPRODUCT($N$41:U$41,$N28:U28)<0.5, "To start", "Running"))) -> Undefined | W28: 0 | X28: 0 | Y28: =IF(ISBLANK($I28), "Undefined", IF(X28<0.5, "Complete",IF(SUMPRODUCT($N$41:X$41,$N28:X28)<0.5, "To start", "Running"))) -> Undefined | Z28: 0 | AA28: 0 | AB28: =IF(ISBLANK($I28), "Undefined", IF(AA28<0.5, "Complete",IF(SUMPRODUCT($N$41:AA$41,$N28:AA28)<0.5, "To start", "Running"))) -> Undefined | AC28: 0 | AD28: 0 | AE28: =IF(ISBLANK($I28), "Undefined", IF(AD28<0.5, "Complete",IF(SUMPRODUCT($N$41:AD$41,$N28:AD28)<0.5, "To start", "Running"))) -> Undefined | AF28: 0 | AG28: 0 | AH28: =IF(ISBLANK($I28), "Undefined", IF(AG28<0.5, "Complete",IF(SUMPRODUCT($N$41:AG$41,$N28:AG28)<0.5, "To start", "Running"))) -> Undefined | AI28: 0 | AJ28: 0 | AK28: =IF(ISBLANK($I28), "Undefined", IF(AJ28<0.5, "Complete",IF(SUMPRODUCT($N$41:AJ$41,$N28:AJ28)<0.5, "To start", "Running"))) -> Undefined | AL28: 0 | AM28: 0 | AN28: =IF(ISBLANK($I28), "Undefined", IF(AM28<0.5, "Complete",IF(SUMPRODUCT($N$41:AM$41,$N28:AM28)<0.5, "To start", "Running"))) -> Undefined | AO28: 0 | AP28: 0 | AQ28: =IF(ISBLANK($I28), "Undefined", IF(AP28<0.5, "Complete",IF(SUMPRODUCT($N$41:AP$41,$N28:AP28)<0.5, "To start", "Running"))) -> Undefined | AR28: 0 | AS28: 0 | AT28: =IF(ISBLANK($I28), "Undefined", IF(AS28<0.5, "Complete",IF(SUMPRODUCT($N$41:AS$41,$N28:AS28)<0.5, "To start", "Running"))) -> Undefined | AU28: 0 | AV28: 0 | AW28: =IF(ISBLANK($I28), "Undefined", IF(AV28<0.5, "Complete",IF(SUMPRODUCT($N$41:AV$41,$N28:AV28)<0.5, "To start", "Running"))) -> Undefined | AX28: 0 | AY28: 0 | AZ28: =IF(ISBLANK($I28), "Undefined", IF(AY28<0.5, "Complete",IF(SUMPRODUCT($N$41:AY$41,$N28:AY28)<0.5, "To start", "Running"))) -> Undefined | BA28: 0 | BB28: 0 | BC28: =IF(ISBLANK($I28), "Undefined", IF(BB28<0.5, "Complete",IF(SUMPRODUCT($N$41:BB$41,$N28:BB28)<0.5, "To start", "Running"))) -> Undefined | BD28: 0 | BE28: 0 | BF28: =IF(ISBLANK($I28), "Undefined", IF(BE28<0.5, "Complete",IF(SUMPRODUCT($N$41:BE$41,$N28:BE28)<0.5, "To start", "Running"))) -> Undefined | BG28: 0 | BH28: 0 | BI28: =IF(ISBLANK($I28), "Undefined", IF(BH28<0.5, "Complete",IF(SUMPRODUCT($N$41:BH$41,$N28:BH28)<0.5, "To start", "Running"))) -> Undefined | BJ28: 0 | BK28: 0 | BL28: =IF(ISBLANK($I28), "Undefined", IF(BK28<0.5, "Complete",IF(SUMPRODUCT($N$41:BK$41,$N28:BK28)<0.5, "To start", "Running"))) -> Undefined | BM28: 0 | BN28: 0 | BO28: =IF(ISBLANK($I28), "Undefined", IF(BN28<0.5, "Complete",IF(SUMPRODUCT($N$41:BN$41,$N28:BN28)<0.5, "To start", "Running"))) -> Undefined | BP28: 0 | BQ28: 0 | BR28: =IF(ISBLANK($I28), "Undefined", IF(BQ28<0.5, "Complete",IF(SUMPRODUCT($N$41:BQ$41,$N28:BQ28)<0.5, "To start", "Running"))) -> Undefined | BS28: 0 | BT28: 0 | BU28: =IF(ISBLANK($I28), "Undefined", IF(BT28<0.5, "Complete",IF(SUMPRODUCT($N$41:BT$41,$N28:BT28)<0.5, "To start", "Running"))) -> Undefined | BV28: 0 | BW28: 0 | BX28: =IF(ISBLANK($I28), "Undefined", IF(BW28<0.5, "Complete",IF(SUMPRODUCT($N$41:BW$41,$N28:BW28)<0.5, "To start", "Running"))) -> Undefined | BY28: 0 | BZ28: 0 | CA28: =IF(ISBLANK($I28), "Undefined", IF(BZ28<0.5, "Complete",IF(SUMPRODUCT($N$41:BZ$41,$N28:BZ28)<0.5, "To start", "Running"))) -> Undefined | CB28: 0 | CC28: 0 | CD28: =IF(ISBLANK($I28), "Undefined", IF(CC28<0.5, "Complete",IF(SUMPRODUCT($N$41:CC$41,$N28:CC28)<0.5, "To start", "Running"))) -> Undefined | CE28: 0 | CF28: 0 | CG28: =IF(ISBLANK($I28), "Undefined", IF(CF28<0.5, "Complete",IF(SUMPRODUCT($N$41:CF$41,$N28:CF28)<0.5, "To start", "Running"))) -> Undefined | CH28: 0 | CI28: 0 | CJ28: =IF(ISBLANK($I28), "Undefined", IF(CI28<0.5, "Complete",IF(SUMPRODUCT($N$41:CI$41,$N28:CI28)<0.5, "To start", "Running"))) -> Undefined | CK28: 0 | CL28: 0 | CM28: =IF(ISBLANK($I28), "Undefined", IF(CL28<0.5, "Complete",IF(SUMPRODUCT($N$41:CL$41,$N28:CL28)<0.5, "To start", "Running"))) -> Undefined | CN28: 0 | CO28: 0 | CP28: =IF(ISBLANK($I28), "Undefined", IF(CO28<0.5, "Complete",IF(SUMPRODUCT($N$41:CO$41,$N28:CO28)<0.5, "To start", "Running"))) -> Undefined | CQ28: 0 | CR28: 0 | CS28: =IF(ISBLANK($I28), "Undefined", IF(CR28<0.5, "Complete",IF(SUMPRODUCT($N$41:CR$41,$N28:CR28)<0.5, "To start", "Running"))) -> Undefined | CT28: 0 | CU28: 0 | CV28: =IF(ISBLANK($I28), "Undefined", IF(CU28<0.5, "Complete",IF(SUMPRODUCT($N$41:CU$41,$N28:CU28)<0.5, "To start", "Running"))) -> Undefined | CW28: 0 | CX28: 0 | CY28: =IF(ISBLANK($I28), "Undefined", IF(CX28<0.5, "Complete",IF(SUMPRODUCT($N$41:CX$41,$N28:CX28)<0.5, "To start", "Running"))) -> Undefined | CZ28: 0 | DA28: 0 | DB28: =IF(ISBLANK($I28), "Undefined", IF(DA28<0.5, "Complete",IF(SUMPRODUCT($N$41:DA$41,$N28:DA28)<0.5, "To start", "Running"))) -> Undefined | DC28: 0 | DD28: 0 | DE28: =IF(ISBLANK($I28), "Undefined", IF(DD28<0.5, "Complete",IF(SUMPRODUCT($N$41:DD$41,$N28:DD28)<0.5, "To start", "Running"))) -> Undefined | DF28: 0 | DG28: 0 | DH28: =IF(ISBLANK($I28), "Undefined", IF(DG28<0.5, "Complete",IF(SUMPRODUCT($N$41:DG$41,$N28:DG28)<0.5, "To start", "Running"))) -> Undefined | DI28: 0 | DJ28: 0 | DK28: =IF(ISBLANK($I28), "Undefined", IF(DJ28<0.5, "Complete",IF(SUMPRODUCT($N$41:DJ$41,$N28:DJ28)<0.5, "To start", "Running"))) -> Undefined | DL28: 0 | DM28: 0 | DN28: =IF(ISBLANK($I28), "Undefined", IF(DM28<0.5, "Complete",IF(SUMPRODUCT($N$41:DM$41,$N28:DM28)<0.5, "To start", "Running"))) -> Undefined | DO28: 0 | DP28: 0 | DQ28: =IF(ISBLANK($I28), "Undefined", IF(DP28<0.5, "Complete",IF(SUMPRODUCT($N$41:DP$41,$N28:DP28)<0.5, "To start", "Running"))) -> Undefined | DR28: 0 | DS28: 0 | DT28: =IF(ISBLANK($I28), "Undefined", IF(DS28<0.5, "Complete",IF(SUMPRODUCT($N$41:DS$41,$N28:DS28)<0.5, "To start", "Running"))) -> Undefined | DU28: 0 | DV28: 0 | DW28: =IF(ISBLANK($I28), "Undefined", IF(DV28<0.5, "Complete",IF(SUMPRODUCT($N$41:DV$41,$N28:DV28)<0.5, "To start", "Running"))) -> Undefined | DX28: 0 | DY28: 0 | DZ28: =IF(ISBLANK($I28), "Undefined", IF(DY28<0.5, "Complete",IF(SUMPRODUCT($N$41:DY$41,$N28:DY28)<0.5, "To start", "Running"))) -> Undefined | EA28: 0 | EB28: 0 | EC28: =IF(ISBLANK($I28), "Undefined", IF(EB28<0.5, "Complete",IF(SUMPRODUCT($N$41:EB$41,$N28:EB28)<0.5, "To start", "Running"))) -> Undefined | EE28: =SUMPRODUCT($L$41:DK$41,$L28:DK28) -> 0 | EF28: 0 | EG28: =OFFSET($O28,0,(Capacity!$F$2-SprintStart)*3,1,1) -> 0 | EH28: 0 | EI28: 0 | EJ28: 0 | EL28: 0 | EM28: 0
K29: =IF(SprintStart>Capacity!$F$2, "To start", INDEX(Burndown,ROW(K29)-ROW(K$6),MIN(Capacity!$F$2-SprintStart,29)*3+3)) -> Undefined | M29: 0 | N29: 0 | O29: 0 | P29: =IF(ISBLANK($I29), "Undefined", IF(O29<0.5, "Complete",IF(SUMPRODUCT($N$41:O$41,$N29:O29)<0.5, "To start", "Running"))) -> Undefined | Q29: 0 | R29: 0 | S29: =IF(ISBLANK($I29), "Undefined", IF(R29<0.5, "Complete",IF(SUMPRODUCT($N$41:R$41,$N29:R29)<0.5, "To start", "Running"))) -> Undefined | T29: 0 | U29: 0 | V29: =IF(ISBLANK($I29), "Undefined", IF(U29<0.5, "Complete",IF(SUMPRODUCT($N$41:U$41,$N29:U29)<0.5, "To start", "Running"))) -> Undefined | W29: 0 | X29: 0 | Y29: =IF(ISBLANK($I29), "Undefined", IF(X29<0.5, "Complete",IF(SUMPRODUCT($N$41:X$41,$N29:X29)<0.5, "To start", "Running"))) -> Undefined | Z29: 0 | AA29: 0 | AB29: =IF(ISBLANK($I29), "Undefined", IF(AA29<0.5, "Complete",IF(SUMPRODUCT($N$41:AA$41,$N29:AA29)<0.5, "To start", "Running"))) -> Undefined | AC29: 0 | AD29: 0 | AE29: =IF(ISBLANK($I29), "Undefined", IF(AD29<0.5, "Complete",IF(SUMPRODUCT($N$41:AD$41,$N29:AD29)<0.5, "To start", "Running"))) -> Undefined | AF29: 0 | AG29: 0 | AH29: =IF(ISBLANK($I29), "Undefined", IF(AG29<0.5, "Complete",IF(SUMPRODUCT($N$41:AG$41,$N29:AG29)<0.5, "To start", "Running"))) -> Undefined | AI29: 0 | AJ29: 0 | AK29: =IF(ISBLANK($I29), "Undefined", IF(AJ29<0.5, "Complete",IF(SUMPRODUCT($N$41:AJ$41,$N29:AJ29)<0.5, "To start", "Running"))) -> Undefined | AL29: 0 | AM29: 0 | AN29: =IF(ISBLANK($I29), "Undefined", IF(AM29<0.5, "Complete",IF(SUMPRODUCT($N$41:AM$41,$N29:AM29)<0.5, "To start", "Running"))) -> Undefined | AO29: 0 | AP29: 0 | AQ29: =IF(ISBLANK($I29), "Undefined", IF(AP29<0.5, "Complete",IF(SUMPRODUCT($N$41:AP$41,$N29:AP29)<0.5, "To start", "Running"))) -> Undefined | AR29: 0 | AS29: 0 | AT29: =IF(ISBLANK($I29), "Undefined", IF(AS29<0.5, "Complete",IF(SUMPRODUCT($N$41:AS$41,$N29:AS29)<0.5, "To start", "Running"))) -> Undefined | AU29: 0 | AV29: 0 | AW29: =IF(ISBLANK($I29), "Undefined", IF(AV29<0.5, "Complete",IF(SUMPRODUCT($N$41:AV$41,$N29:AV29)<0.5, "To start", "Running"))) -> Undefined | AX29: 0 | AY29: 0 | AZ29: =IF(ISBLANK($I29), "Undefined", IF(AY29<0.5, "Complete",IF(SUMPRODUCT($N$41:AY$41,$N29:AY29)<0.5, "To start", "Running"))) -> Undefined | BA29: 0 | BB29: 0 | BC29: =IF(ISBLANK($I29), "Undefined", IF(BB29<0.5, "Complete",IF(SUMPRODUCT($N$41:BB$41,$N29:BB29)<0.5, "To start", "Running"))) -> Undefined | BD29: 0 | BE29: 0 | BF29: =IF(ISBLANK($I29), "Undefined", IF(BE29<0.5, "Complete",IF(SUMPRODUCT($N$41:BE$41,$N29:BE29)<0.5, "To start", "Running"))) -> Undefined | BG29: 0 | BH29: 0 | BI29: =IF(ISBLANK($I29), "Undefined", IF(BH29<0.5, "Complete",IF(SUMPRODUCT($N$41:BH$41,$N29:BH29)<0.5, "To start", "Running"))) -> Undefined | BJ29: 0 | BK29: 0 | BL29: =IF(ISBLANK($I29), "Undefined", IF(BK29<0.5, "Complete",IF(SUMPRODUCT($N$41:BK$41,$N29:BK29)<0.5, "To start", "Running"))) -> Undefined | BM29: 0 | BN29: 0 | BO29: =IF(ISBLANK($I29), "Undefined", IF(BN29<0.5, "Complete",IF(SUMPRODUCT($N$41:BN$41,$N29:BN29)<0.5, "To start", "Running"))) -> Undefined | BP29: 0 | BQ29: 0 | BR29: =IF(ISBLANK($I29), "Undefined", IF(BQ29<0.5, "Complete",IF(SUMPRODUCT($N$41:BQ$41,$N29:BQ29)<0.5, "To start", "Running"))) -> Undefined | BS29: 0 | BT29: 0 | BU29: =IF(ISBLANK($I29), "Undefined", IF(BT29<0.5, "Complete",IF(SUMPRODUCT($N$41:BT$41,$N29:BT29)<0.5, "To start", "Running"))) -> Undefined | BV29: 0 | BW29: 0 | BX29: =IF(ISBLANK($I29), "Undefined", IF(BW29<0.5, "Complete",IF(SUMPRODUCT($N$41:BW$41,$N29:BW29)<0.5, "To start", "Running"))) -> Undefined | BY29: 0 | BZ29: 0 | CA29: =IF(ISBLANK($I29), "Undefined", IF(BZ29<0.5, "Complete",IF(SUMPRODUCT($N$41:BZ$41,$N29:BZ29)<0.5, "To start", "Running"))) -> Undefined | CB29: 0 | CC29: 0 | CD29: =IF(ISBLANK($I29), "Undefined", IF(CC29<0.5, "Complete",IF(SUMPRODUCT($N$41:CC$41,$N29:CC29)<0.5, "To start", "Running"))) -> Undefined | CE29: 0 | CF29: 0 | CG29: =IF(ISBLANK($I29), "Undefined", IF(CF29<0.5, "Complete",IF(SUMPRODUCT($N$41:CF$41,$N29:CF29)<0.5, "To start", "Running"))) -> Undefined | CH29: 0 | CI29: 0 | CJ29: =IF(ISBLANK($I29), "Undefined", IF(CI29<0.5, "Complete",IF(SUMPRODUCT($N$41:CI$41,$N29:CI29)<0.5, "To start", "Running"))) -> Undefined | CK29: 0 | CL29: 0 | CM29: =IF(ISBLANK($I29), "Undefined", IF(CL29<0.5, "Complete",IF(SUMPRODUCT($N$41:CL$41,$N29:CL29)<0.5, "To start", "Running"))) -> Undefined | CN29: 0 | CO29: 0 | CP29: =IF(ISBLANK($I29), "Undefined", IF(CO29<0.5, "Complete",IF(SUMPRODUCT($N$41:CO$41,$N29:CO29)<0.5, "To start", "Running"))) -> Undefined | CQ29: 0 | CR29: 0 | CS29: =IF(ISBLANK($I29), "Undefined", IF(CR29<0.5, "Complete",IF(SUMPRODUCT($N$41:CR$41,$N29:CR29)<0.5, "To start", "Running"))) -> Undefined | CT29: 0 | CU29: 0 | CV29: =IF(ISBLANK($I29), "Undefined", IF(CU29<0.5, "Complete",IF(SUMPRODUCT($N$41:CU$41,$N29:CU29)<0.5, "To start", "Running"))) -> Undefined | CW29: 0 | CX29: 0 | CY29: =IF(ISBLANK($I29), "Undefined", IF(CX29<0.5, "Complete",IF(SUMPRODUCT($N$41:CX$41,$N29:CX29)<0.5, "To start", "Running"))) -> Undefined | CZ29: 0 | DA29: 0 | DB29: =IF(ISBLANK($I29), "Undefined", IF(DA29<0.5, "Complete",IF(SUMPRODUCT($N$41:DA$41,$N29:DA29)<0.5, "To start", "Running"))) -> Undefined | DC29: 0 | DD29: 0 | DE29: =IF(ISBLANK($I29), "Undefined", IF(DD29<0.5, "Complete",IF(SUMPRODUCT($N$41:DD$41,$N29:DD29)<0.5, "To start", "Running"))) -> Undefined | DF29: 0 | DG29: 0 | DH29: =IF(ISBLANK($I29), "Undefined", IF(DG29<0.5, "Complete",IF(SUMPRODUCT($N$41:DG$41,$N29:DG29)<0.5, "To start", "Running"))) -> Undefined | DI29: 0 | DJ29: 0 | DK29: =IF(ISBLANK($I29), "Undefined", IF(DJ29<0.5, "Complete",IF(SUMPRODUCT($N$41:DJ$41,$N29:DJ29)<0.5, "To start", "Running"))) -> Undefined | DL29: 0 | DM29: 0 | DN29: =IF(ISBLANK($I29), "Undefined", IF(DM29<0.5, "Complete",IF(SUMPRODUCT($N$41:DM$41,$N29:DM29)<0.5, "To start", "Running"))) -> Undefined | DO29: 0 | DP29: 0 | DQ29: =IF(ISBLANK($I29), "Undefined", IF(DP29<0.5, "Complete",IF(SUMPRODUCT($N$41:DP$41,$N29:DP29)<0.5, "To start", "Running"))) -> Undefined | DR29: 0 | DS29: 0 | DT29: =IF(ISBLANK($I29), "Undefined", IF(DS29<0.5, "Complete",IF(SUMPRODUCT($N$41:DS$41,$N29:DS29)<0.5, "To start", "Running"))) -> Undefined | DU29: 0 | DV29: 0 | DW29: =IF(ISBLANK($I29), "Undefined", IF(DV29<0.5, "Complete",IF(SUMPRODUCT($N$41:DV$41,$N29:DV29)<0.5, "To start", "Running"))) -> Undefined | DX29: 0 | DY29: 0 | DZ29: =IF(ISBLANK($I29), "Undefined", IF(DY29<0.5, "Complete",IF(SUMPRODUCT($N$41:DY$41,$N29:DY29)<0.5, "To start", "Running"))) -> Undefined | EA29: 0 | EB29: 0 | EC29: =IF(ISBLANK($I29), "Undefined", IF(EB29<0.5, "Complete",IF(SUMPRODUCT($N$41:EB$41,$N29:EB29)<0.5, "To start", "Running"))) -> Undefined | EE29: =SUMPRODUCT($L$41:DK$41,$L29:DK29) -> 0 | EF29: 0 | EG29: =OFFSET($O29,0,(Capacity!$F$2-SprintStart)*3,1,1) -> 0 | EH29: 0 | EI29: 0 | EJ29: 0 | EL29: 0 | EM29: 0
K30: =IF(SprintStart>Capacity!$F$2, "To start", INDEX(Burndown,ROW(K30)-ROW(K$6),MIN(Capacity!$F$2-SprintStart,29)*3+3)) -> Undefined | M30: 0 | N30: 0 | O30: 0 | P30: =IF(ISBLANK($I30), "Undefined", IF(O30<0.5, "Complete",IF(SUMPRODUCT($N$41:O$41,$N30:O30)<0.5, "To start", "Running"))) -> Undefined | Q30: 0 | R30: 0 | S30: =IF(ISBLANK($I30), "Undefined", IF(R30<0.5, "Complete",IF(SUMPRODUCT($N$41:R$41,$N30:R30)<0.5, "To start", "Running"))) -> Undefined | T30: 0 | U30: 0 | V30: =IF(ISBLANK($I30), "Undefined", IF(U30<0.5, "Complete",IF(SUMPRODUCT($N$41:U$41,$N30:U30)<0.5, "To start", "Running"))) -> Undefined | W30: 0 | X30: 0 | Y30: =IF(ISBLANK($I30), "Undefined", IF(X30<0.5, "Complete",IF(SUMPRODUCT($N$41:X$41,$N30:X30)<0.5, "To start", "Running"))) -> Undefined | Z30: 0 | AA30: 0 | AB30: =IF(ISBLANK($I30), "Undefined", IF(AA30<0.5, "Complete",IF(SUMPRODUCT($N$41:AA$41,$N30:AA30)<0.5, "To start", "Running"))) -> Undefined | AC30: 0 | AD30: 0 | AE30: =IF(ISBLANK($I30), "Undefined", IF(AD30<0.5, "Complete",IF(SUMPRODUCT($N$41:AD$41,$N30:AD30)<0.5, "To start", "Running"))) -> Undefined | AF30: 0 | AG30: 0 | AH30: =IF(ISBLANK($I30), "Undefined", IF(AG30<0.5, "Complete",IF(SUMPRODUCT($N$41:AG$41,$N30:AG30)<0.5, "To start", "Running"))) -> Undefined | AI30: 0 | AJ30: 0 | AK30: =IF(ISBLANK($I30), "Undefined", IF(AJ30<0.5, "Complete",IF(SUMPRODUCT($N$41:AJ$41,$N30:AJ30)<0.5, "To start", "Running"))) -> Undefined | AL30: 0 | AM30: 0 | AN30: =IF(ISBLANK($I30), "Undefined", IF(AM30<0.5, "Complete",IF(SUMPRODUCT($N$41:AM$41,$N30:AM30)<0.5, "To start", "Running"))) -> Undefined | AO30: 0 | AP30: 0 | AQ30: =IF(ISBLANK($I30), "Undefined", IF(AP30<0.5, "Complete",IF(SUMPRODUCT($N$41:AP$41,$N30:AP30)<0.5, "To start", "Running"))) -> Undefined | AR30: 0 | AS30: 0 | AT30: =IF(ISBLANK($I30), "Undefined", IF(AS30<0.5, "Complete",IF(SUMPRODUCT($N$41:AS$41,$N30:AS30)<0.5, "To start", "Running"))) -> Undefined | AU30: 0 | AV30: 0 | AW30: =IF(ISBLANK($I30), "Undefined", IF(AV30<0.5, "Complete",IF(SUMPRODUCT($N$41:AV$41,$N30:AV30)<0.5, "To start", "Running"))) -> Undefined | AX30: 0 | AY30: 0 | AZ30: =IF(ISBLANK($I30), "Undefined", IF(AY30<0.5, "Complete",IF(SUMPRODUCT($N$41:AY$41,$N30:AY30)<0.5, "To start", "Running"))) -> Undefined | BA30: 0 | BB30: 0 | BC30: =IF(ISBLANK($I30), "Undefined", IF(BB30<0.5, "Complete",IF(SUMPRODUCT($N$41:BB$41,$N30:BB30)<0.5, "To start", "Running"))) -> Undefined | BD30: 0 | BE30: 0 | BF30: =IF(ISBLANK($I30), "Undefined", IF(BE30<0.5, "Complete",IF(SUMPRODUCT($N$41:BE$41,$N30:BE30)<0.5, "To start", "Running"))) -> Undefined | BG30: 0 | BH30: 0 | BI30: =IF(ISBLANK($I30), "Undefined", IF(BH30<0.5, "Complete",IF(SUMPRODUCT($N$41:BH$41,$N30:BH30)<0.5, "To start", "Running"))) -> Undefined | BJ30: 0 | BK30: 0 | BL30: =IF(ISBLANK($I30), "Undefined", IF(BK30<0.5, "Complete",IF(SUMPRODUCT($N$41:BK$41,$N30:BK30)<0.5, "To start", "Running"))) -> Undefined | BM30: 0 | BN30: 0 | BO30: =IF(ISBLANK($I30), "Undefined", IF(BN30<0.5, "Complete",IF(SUMPRODUCT($N$41:BN$41,$N30:BN30)<0.5, "To start", "Running"))) -> Undefined | BP30: 0 | BQ30: 0 | BR30: =IF(ISBLANK($I30), "Undefined", IF(BQ30<0.5, "Complete",IF(SUMPRODUCT($N$41:BQ$41,$N30:BQ30)<0.5, "To start", "Running"))) -> Undefined | BS30: 0 | BT30: 0 | BU30: =IF(ISBLANK($I30), "Undefined", IF(BT30<0.5, "Complete",IF(SUMPRODUCT($N$41:BT$41,$N30:BT30)<0.5, "To start", "Running"))) -> Undefined | BV30: 0 | BW30: 0 | BX30: =IF(ISBLANK($I30), "Undefined", IF(BW30<0.5, "Complete",IF(SUMPRODUCT($N$41:BW$41,$N30:BW30)<0.5, "To start", "Running"))) -> Undefined | BY30: 0 | BZ30: 0 | CA30: =IF(ISBLANK($I30), "Undefined", IF(BZ30<0.5, "Complete",IF(SUMPRODUCT($N$41:BZ$41,$N30:BZ30)<0.5, "To start", "Running"))) -> Undefined | CB30: 0 | CC30: 0 | CD30: =IF(ISBLANK($I30), "Undefined", IF(CC30<0.5, "Complete",IF(SUMPRODUCT($N$41:CC$41,$N30:CC30)<0.5, "To start", "Running"))) -> Undefined | CE30: 0 | CF30: 0 | CG30: =IF(ISBLANK($I30), "Undefined", IF(CF30<0.5, "Complete",IF(SUMPRODUCT($N$41:CF$41,$N30:CF30)<0.5, "To start", "Running"))) -> Undefined | CH30: 0 | CI30: 0 | CJ30: =IF(ISBLANK($I30), "Undefined", IF(CI30<0.5, "Complete",IF(SUMPRODUCT($N$41:CI$41,$N30:CI30)<0.5, "To start", "Running"))) -> Undefined | CK30: 0 | CL30: 0 | CM30: =IF(ISBLANK($I30), "Undefined", IF(CL30<0.5, "Complete",IF(SUMPRODUCT($N$41:CL$41,$N30:CL30)<0.5, "To start", "Running"))) -> Undefined | CN30: 0 | CO30: 0 | CP30: =IF(ISBLANK($I30), "Undefined", IF(CO30<0.5, "Complete",IF(SUMPRODUCT($N$41:CO$41,$N30:CO30)<0.5, "To start", "Running"))) -> Undefined | CQ30: 0 | CR30: 0 | CS30: =IF(ISBLANK($I30), "Undefined", IF(CR30<0.5, "Complete",IF(SUMPRODUCT($N$41:CR$41,$N30:CR30)<0.5, "To start", "Running"))) -> Undefined | CT30: 0 | CU30: 0 | CV30: =IF(ISBLANK($I30), "Undefined", IF(CU30<0.5, "Complete",IF(SUMPRODUCT($N$41:CU$41,$N30:CU30)<0.5, "To start", "Running"))) -> Undefined | CW30: 0 | CX30: 0 | CY30: =IF(ISBLANK($I30), "Undefined", IF(CX30<0.5, "Complete",IF(SUMPRODUCT($N$41:CX$41,$N30:CX30)<0.5, "To start", "Running"))) -> Undefined | CZ30: 0 | DA30: 0 | DB30: =IF(ISBLANK($I30), "Undefined", IF(DA30<0.5, "Complete",IF(SUMPRODUCT($N$41:DA$41,$N30:DA30)<0.5, "To start", "Running"))) -> Undefined | DC30: 0 | DD30: 0 | DE30: =IF(ISBLANK($I30), "Undefined", IF(DD30<0.5, "Complete",IF(SUMPRODUCT($N$41:DD$41,$N30:DD30)<0.5, "To start", "Running"))) -> Undefined | DF30: 0 | DG30: 0 | DH30: =IF(ISBLANK($I30), "Undefined", IF(DG30<0.5, "Complete",IF(SUMPRODUCT($N$41:DG$41,$N30:DG30)<0.5, "To start", "Running"))) -> Undefined | DI30: 0 | DJ30: 0 | DK30: =IF(ISBLANK($I30), "Undefined", IF(DJ30<0.5, "Complete",IF(SUMPRODUCT($N$41:DJ$41,$N30:DJ30)<0.5, "To start", "Running"))) -> Undefined | DL30: 0 | DM30: 0 | DN30: =IF(ISBLANK($I30), "Undefined", IF(DM30<0.5, "Complete",IF(SUMPRODUCT($N$41:DM$41,$N30:DM30)<0.5, "To start", "Running"))) -> Undefined | DO30: 0 | DP30: 0 | DQ30: =IF(ISBLANK($I30), "Undefined", IF(DP30<0.5, "Complete",IF(SUMPRODUCT($N$41:DP$41,$N30:DP30)<0.5, "To start", "Running"))) -> Undefined | DR30: 0 | DS30: 0 | DT30: =IF(ISBLANK($I30), "Undefined", IF(DS30<0.5, "Complete",IF(SUMPRODUCT($N$41:DS$41,$N30:DS30)<0.5, "To start", "Running"))) -> Undefined | DU30: 0 | DV30: 0 | DW30: =IF(ISBLANK($I30), "Undefined", IF(DV30<0.5, "Complete",IF(SUMPRODUCT($N$41:DV$41,$N30:DV30)<0.5, "To start", "Running"))) -> Undefined | DX30: 0 | DY30: 0 | DZ30: =IF(ISBLANK($I30), "Undefined", IF(DY30<0.5, "Complete",IF(SUMPRODUCT($N$41:DY$41,$N30:DY30)<0.5, "To start", "Running"))) -> Undefined | EA30: 0 | EB30: 0 | EC30: =IF(ISBLANK($I30), "Undefined", IF(EB30<0.5, "Complete",IF(SUMPRODUCT($N$41:EB$41,$N30:EB30)<0.5, "To start", "Running"))) -> Undefined | EE30: =SUMPRODUCT($L$41:DK$41,$L30:DK30) -> 0 | EF30: 0 | EG30: =OFFSET($O30,0,(Capacity!$F$2-SprintStart)*3,1,1) -> 0 | EH30: 0 | EI30: 0 | EJ30: 0 | EL30: 0 | EM30: 0
K31: =IF(SprintStart>Capacity!$F$2, "To start", INDEX(Burndown,ROW(K31)-ROW(K$6),MIN(Capacity!$F$2-SprintStart,29)*3+3)) -> Undefined | M31: 0 | N31: 0 | O31: 0 | P31: =IF(ISBLANK($I31), "Undefined", IF(O31<0.5, "Complete",IF(SUMPRODUCT($N$41:O$41,$N31:O31)<0.5, "To start", "Running"))) -> Undefined | Q31: 0 | R31: 0 | S31: =IF(ISBLANK($I31), "Undefined", IF(R31<0.5, "Complete",IF(SUMPRODUCT($N$41:R$41,$N31:R31)<0.5, "To start", "Running"))) -> Undefined | T31: 0 | U31: 0 | V31: =IF(ISBLANK($I31), "Undefined", IF(U31<0.5, "Complete",IF(SUMPRODUCT($N$41:U$41,$N31:U31)<0.5, "To start", "Running"))) -> Undefined | W31: 0 | X31: 0 | Y31: =IF(ISBLANK($I31), "Undefined", IF(X31<0.5, "Complete",IF(SUMPRODUCT($N$41:X$41,$N31:X31)<0.5, "To start", "Running"))) -> Undefined | Z31: 0 | AA31: 0 | AB31: =IF(ISBLANK($I31), "Undefined", IF(AA31<0.5, "Complete",IF(SUMPRODUCT($N$41:AA$41,$N31:AA31)<0.5, "To start", "Running"))) -> Undefined | AC31: 0 | AD31: 0 | AE31: =IF(ISBLANK($I31), "Undefined", IF(AD31<0.5, "Complete",IF(SUMPRODUCT($N$41:AD$41,$N31:AD31)<0.5, "To start", "Running"))) -> Undefined | AF31: 0 | AG31: 0 | AH31: =IF(ISBLANK($I31), "Undefined", IF(AG31<0.5, "Complete",IF(SUMPRODUCT($N$41:AG$41,$N31:AG31)<0.5, "To start", "Running"))) -> Undefined | AI31: 0 | AJ31: 0 | AK31: =IF(ISBLANK($I31), "Undefined", IF(AJ31<0.5, "Complete",IF(SUMPRODUCT($N$41:AJ$41,$N31:AJ31)<0.5, "To start", "Running"))) -> Undefined | AL31: 0 | AM31: 0 | AN31: =IF(ISBLANK($I31), "Undefined", IF(AM31<0.5, "Complete",IF(SUMPRODUCT($N$41:AM$41,$N31:AM31)<0.5, "To start", "Running"))) -> Undefined | AO31: 0 | AP31: 0 | AQ31: =IF(ISBLANK($I31), "Undefined", IF(AP31<0.5, "Complete",IF(SUMPRODUCT($N$41:AP$41,$N31:AP31)<0.5, "To start", "Running"))) -> Undefined | AR31: 0 | AS31: 0 | AT31: =IF(ISBLANK($I31), "Undefined", IF(AS31<0.5, "Complete",IF(SUMPRODUCT($N$41:AS$41,$N31:AS31)<0.5, "To start", "Running"))) -> Undefined | AU31: 0 | AV31: 0 | AW31: =IF(ISBLANK($I31), "Undefined", IF(AV31<0.5, "Complete",IF(SUMPRODUCT($N$41:AV$41,$N31:AV31)<0.5, "To start", "Running"))) -> Undefined | AX31: 0 | AY31: 0 | AZ31: =IF(ISBLANK($I31), "Undefined", IF(AY31<0.5, "Complete",IF(SUMPRODUCT($N$41:AY$41,$N31:AY31)<0.5, "To start", "Running"))) -> Undefined | BA31: 0 | BB31: 0 | BC31: =IF(ISBLANK($I31), "Undefined", IF(BB31<0.5, "Complete",IF(SUMPRODUCT($N$41:BB$41,$N31:BB31)<0.5, "To start", "Running"))) -> Undefined | BD31: 0 | BE31: 0 | BF31: =IF(ISBLANK($I31), "Undefined", IF(BE31<0.5, "Complete",IF(SUMPRODUCT($N$41:BE$41,$N31:BE31)<0.5, "To start", "Running"))) -> Undefined | BG31: 0 | BH31: 0 | BI31: =IF(ISBLANK($I31), "Undefined", IF(BH31<0.5, "Complete",IF(SUMPRODUCT($N$41:BH$41,$N31:BH31)<0.5, "To start", "Running"))) -> Undefined | BJ31: 0 | BK31: 0 | BL31: =IF(ISBLANK($I31), "Undefined", IF(BK31<0.5, "Complete",IF(SUMPRODUCT($N$41:BK$41,$N31:BK31)<0.5, "To start", "Running"))) -> Undefined | BM31: 0 | BN31: 0 | BO31: =IF(ISBLANK($I31), "Undefined", IF(BN31<0.5, "Complete",IF(SUMPRODUCT($N$41:BN$41,$N31:BN31)<0.5, "To start", "Running"))) -> Undefined | BP31: 0 | BQ31: 0 | BR31: =IF(ISBLANK($I31), "Undefined", IF(BQ31<0.5, "Complete",IF(SUMPRODUCT($N$41:BQ$41,$N31:BQ31)<0.5, "To start", "Running"))) -> Undefined | BS31: 0 | BT31: 0 | BU31: =IF(ISBLANK($I31), "Undefined", IF(BT31<0.5, "Complete",IF(SUMPRODUCT($N$41:BT$41,$N31:BT31)<0.5, "To start", "Running"))) -> Undefined | BV31: 0 | BW31: 0 | BX31: =IF(ISBLANK($I31), "Undefined", IF(BW31<0.5, "Complete",IF(SUMPRODUCT($N$41:BW$41,$N31:BW31)<0.5, "To start", "Running"))) -> Undefined | BY31: 0 | BZ31: 0 | CA31: =IF(ISBLANK($I31), "Undefined", IF(BZ31<0.5, "Complete",IF(SUMPRODUCT($N$41:BZ$41,$N31:BZ31)<0.5, "To start", "Running"))) -> Undefined | CB31: 0 | CC31: 0 | CD31: =IF(ISBLANK($I31), "Undefined", IF(CC31<0.5, "Complete",IF(SUMPRODUCT($N$41:CC$41,$N31:CC31)<0.5, "To start", "Running"))) -> Undefined | CE31: 0 | CF31: 0 | CG31: =IF(ISBLANK($I31), "Undefined", IF(CF31<0.5, "Complete",IF(SUMPRODUCT($N$41:CF$41,$N31:CF31)<0.5, "To start", "Running"))) -> Undefined | CH31: 0 | CI31: 0 | CJ31: =IF(ISBLANK($I31), "Undefined", IF(CI31<0.5, "Complete",IF(SUMPRODUCT($N$41:CI$41,$N31:CI31)<0.5, "To start", "Running"))) -> Undefined | CK31: 0 | CL31: 0 | CM31: =IF(ISBLANK($I31), "Undefined", IF(CL31<0.5, "Complete",IF(SUMPRODUCT($N$41:CL$41,$N31:CL31)<0.5, "To start", "Running"))) -> Undefined | CN31: 0 | CO31: 0 | CP31: =IF(ISBLANK($I31), "Undefined", IF(CO31<0.5, "Complete",IF(SUMPRODUCT($N$41:CO$41,$N31:CO31)<0.5, "To start", "Running"))) -> Undefined | CQ31: 0 | CR31: 0 | CS31: =IF(ISBLANK($I31), "Undefined", IF(CR31<0.5, "Complete",IF(SUMPRODUCT($N$41:CR$41,$N31:CR31)<0.5, "To start", "Running"))) -> Undefined | CT31: 0 | CU31: 0 | CV31: =IF(ISBLANK($I31), "Undefined", IF(CU31<0.5, "Complete",IF(SUMPRODUCT($N$41:CU$41,$N31:CU31)<0.5, "To start", "Running"))) -> Undefined | CW31: 0 | CX31: 0 | CY31: =IF(ISBLANK($I31), "Undefined", IF(CX31<0.5, "Complete",IF(SUMPRODUCT($N$41:CX$41,$N31:CX31)<0.5, "To start", "Running"))) -> Undefined | CZ31: 0 | DA31: 0 | DB31: =IF(ISBLANK($I31), "Undefined", IF(DA31<0.5, "Complete",IF(SUMPRODUCT($N$41:DA$41,$N31:DA31)<0.5, "To start", "Running"))) -> Undefined | DC31: 0 | DD31: 0 | DE31: =IF(ISBLANK($I31), "Undefined", IF(DD31<0.5, "Complete",IF(SUMPRODUCT($N$41:DD$41,$N31:DD31)<0.5, "To start", "Running"))) -> Undefined | DF31: 0 | DG31: 0 | DH31: =IF(ISBLANK($I31), "Undefined", IF(DG31<0.5, "Complete",IF(SUMPRODUCT($N$41:DG$41,$N31:DG31)<0.5, "To start", "Running"))) -> Undefined | DI31: 0 | DJ31: 0 | DK31: =IF(ISBLANK($I31), "Undefined", IF(DJ31<0.5, "Complete",IF(SUMPRODUCT($N$41:DJ$41,$N31:DJ31)<0.5, "To start", "Running"))) -> Undefined | DL31: 0 | DM31: 0 | DN31: =IF(ISBLANK($I31), "Undefined", IF(DM31<0.5, "Complete",IF(SUMPRODUCT($N$41:DM$41,$N31:DM31)<0.5, "To start", "Running"))) -> Undefined | DO31: 0 | DP31: 0 | DQ31: =IF(ISBLANK($I31), "Undefined", IF(DP31<0.5, "Complete",IF(SUMPRODUCT($N$41:DP$41,$N31:DP31)<0.5, "To start", "Running"))) -> Undefined | DR31: 0 | DS31: 0 | DT31: =IF(ISBLANK($I31), "Undefined", IF(DS31<0.5, "Complete",IF(SUMPRODUCT($N$41:DS$41,$N31:DS31)<0.5, "To start", "Running"))) -> Undefined | DU31: 0 | DV31: 0 | DW31: =IF(ISBLANK($I31), "Undefined", IF(DV31<0.5, "Complete",IF(SUMPRODUCT($N$41:DV$41,$N31:DV31)<0.5, "To start", "Running"))) -> Undefined | DX31: 0 | DY31: 0 | DZ31: =IF(ISBLANK($I31), "Undefined", IF(DY31<0.5, "Complete",IF(SUMPRODUCT($N$41:DY$41,$N31:DY31)<0.5, "To start", "Running"))) -> Undefined | EA31: 0 | EB31: 0 | EC31: =IF(ISBLANK($I31), "Undefined", IF(EB31<0.5, "Complete",IF(SUMPRODUCT($N$41:EB$41,$N31:EB31)<0.5, "To start", "Running"))) -> Undefined | EE31: =SUMPRODUCT($L$41:DK$41,$L31:DK31) -> 0 | EF31: 0 | EG31: =OFFSET($O31,0,(Capacity!$F$2-SprintStart)*3,1,1) -> 0 | EH31: 0 | EI31: 0 | EJ31: 0 | EL31: 0 | EM31: 0
K32: =IF(SprintStart>Capacity!$F$2, "To start", INDEX(Burndown,ROW(K32)-ROW(K$6),MIN(Capacity!$F$2-SprintStart,29)*3+3)) -> Undefined | M32: 0 | N32: 0 | O32: 0 | P32: =IF(ISBLANK($I32), "Undefined", IF(O32<0.5, "Complete",IF(SUMPRODUCT($N$41:O$41,$N32:O32)<0.5, "To start", "Running"))) -> Undefined | Q32: 0 | R32: 0 | S32: =IF(ISBLANK($I32), "Undefined", IF(R32<0.5, "Complete",IF(SUMPRODUCT($N$41:R$41,$N32:R32)<0.5, "To start", "Running"))) -> Undefined | T32: 0 | U32: 0 | V32: =IF(ISBLANK($I32), "Undefined", IF(U32<0.5, "Complete",IF(SUMPRODUCT($N$41:U$41,$N32:U32)<0.5, "To start", "Running"))) -> Undefined | W32: 0 | X32: 0 | Y32: =IF(ISBLANK($I32), "Undefined", IF(X32<0.5, "Complete",IF(SUMPRODUCT($N$41:X$41,$N32:X32)<0.5, "To start", "Running"))) -> Undefined | Z32: 0 | AA32: 0 | AB32: =IF(ISBLANK($I32), "Undefined", IF(AA32<0.5, "Complete",IF(SUMPRODUCT($N$41:AA$41,$N32:AA32)<0.5, "To start", "Running"))) -> Undefined | AC32: 0 | AD32: 0 | AE32: =IF(ISBLANK($I32), "Undefined", IF(AD32<0.5, "Complete",IF(SUMPRODUCT($N$41:AD$41,$N32:AD32)<0.5, "To start", "Running"))) -> Undefined | AF32: 0 | AG32: 0 | AH32: =IF(ISBLANK($I32), "Undefined", IF(AG32<0.5, "Complete",IF(SUMPRODUCT($N$41:AG$41,$N32:AG32)<0.5, "To start", "Running"))) -> Undefined | AI32: 0 | AJ32: 0 | AK32: =IF(ISBLANK($I32), "Undefined", IF(AJ32<0.5, "Complete",IF(SUMPRODUCT($N$41:AJ$41,$N32:AJ32)<0.5, "To start", "Running"))) -> Undefined | AL32: 0 | AM32: 0 | AN32: =IF(ISBLANK($I32), "Undefined", IF(AM32<0.5, "Complete",IF(SUMPRODUCT($N$41:AM$41,$N32:AM32)<0.5, "To start", "Running"))) -> Undefined | AO32: 0 | AP32: 0 | AQ32: =IF(ISBLANK($I32), "Undefined", IF(AP32<0.5, "Complete",IF(SUMPRODUCT($N$41:AP$41,$N32:AP32)<0.5, "To start", "Running"))) -> Undefined | AR32: 0 | AS32: 0 | AT32: =IF(ISBLANK($I32), "Undefined", IF(AS32<0.5, "Complete",IF(SUMPRODUCT($N$41:AS$41,$N32:AS32)<0.5, "To start", "Running"))) -> Undefined | AU32: 0 | AV32: 0 | AW32: =IF(ISBLANK($I32), "Undefined", IF(AV32<0.5, "Complete",IF(SUMPRODUCT($N$41:AV$41,$N32:AV32)<0.5, "To start", "Running"))) -> Undefined | AX32: 0 | AY32: 0 | AZ32: =IF(ISBLANK($I32), "Undefined", IF(AY32<0.5, "Complete",IF(SUMPRODUCT($N$41:AY$41,$N32:AY32)<0.5, "To start", "Running"))) -> Undefined | BA32: 0 | BB32: 0 | BC32: =IF(ISBLANK($I32), "Undefined", IF(BB32<0.5, "Complete",IF(SUMPRODUCT($N$41:BB$41,$N32:BB32)<0.5, "To start", "Running"))) -> Undefined | BD32: 0 | BE32: 0 | BF32: =IF(ISBLANK($I32), "Undefined", IF(BE32<0.5, "Complete",IF(SUMPRODUCT($N$41:BE$41,$N32:BE32)<0.5, "To start", "Running"))) -> Undefined | BG32: 0 | BH32: 0 | BI32: =IF(ISBLANK($I32), "Undefined", IF(BH32<0.5, "Complete",IF(SUMPRODUCT($N$41:BH$41,$N32:BH32)<0.5, "To start", "Running"))) -> Undefined | BJ32: 0 | BK32: 0 | BL32: =IF(ISBLANK($I32), "Undefined", IF(BK32<0.5, "Complete",IF(SUMPRODUCT($N$41:BK$41,$N32:BK32)<0.5, "To start", "Running"))) -> Undefined | BM32: 0 | BN32: 0 | BO32: =IF(ISBLANK($I32), "Undefined", IF(BN32<0.5, "Complete",IF(SUMPRODUCT($N$41:BN$41,$N32:BN32)<0.5, "To start", "Running"))) -> Undefined | BP32: 0 | BQ32: 0 | BR32: =IF(ISBLANK($I32), "Undefined", IF(BQ32<0.5, "Complete",IF(SUMPRODUCT($N$41:BQ$41,$N32:BQ32)<0.5, "To start", "Running"))) -> Undefined | BS32: 0 | BT32: 0 | BU32: =IF(ISBLANK($I32), "Undefined", IF(BT32<0.5, "Complete",IF(SUMPRODUCT($N$41:BT$41,$N32:BT32)<0.5, "To start", "Running"))) -> Undefined | BV32: 0 | BW32: 0 | BX32: =IF(ISBLANK($I32), "Undefined", IF(BW32<0.5, "Complete",IF(SUMPRODUCT($N$41:BW$41,$N32:BW32)<0.5, "To start", "Running"))) -> Undefined | BY32: 0 | BZ32: 0 | CA32: =IF(ISBLANK($I32), "Undefined", IF(BZ32<0.5, "Complete",IF(SUMPRODUCT($N$41:BZ$41,$N32:BZ32)<0.5, "To start", "Running"))) -> Undefined | CB32: 0 | CC32: 0 | CD32: =IF(ISBLANK($I32), "Undefined", IF(CC32<0.5, "Complete",IF(SUMPRODUCT($N$41:CC$41,$N32:CC32)<0.5, "To start", "Running"))) -> Undefined | CE32: 0 | CF32: 0 | CG32: =IF(ISBLANK($I32), "Undefined", IF(CF32<0.5, "Complete",IF(SUMPRODUCT($N$41:CF$41,$N32:CF32)<0.5, "To start", "Running"))) -> Undefined | CH32: 0 | CI32: 0 | CJ32: =IF(ISBLANK($I32), "Undefined", IF(CI32<0.5, "Complete",IF(SUMPRODUCT($N$41:CI$41,$N32:CI32)<0.5, "To start", "Running"))) -> Undefined | CK32: 0 | CL32: 0 | CM32: =IF(ISBLANK($I32), "Undefined", IF(CL32<0.5, "Complete",IF(SUMPRODUCT($N$41:CL$41,$N32:CL32)<0.5, "To start", "Running"))) -> Undefined | CN32: 0 | CO32: 0 | CP32: =IF(ISBLANK($I32), "Undefined", IF(CO32<0.5, "Complete",IF(SUMPRODUCT($N$41:CO$41,$N32:CO32)<0.5, "To start", "Running"))) -> Undefined | CQ32: 0 | CR32: 0 | CS32: =IF(ISBLANK($I32), "Undefined", IF(CR32<0.5, "Complete",IF(SUMPRODUCT($N$41:CR$41,$N32:CR32)<0.5, "To start", "Running"))) -> Undefined | CT32: 0 | CU32: 0 | CV32: =IF(ISBLANK($I32), "Undefined", IF(CU32<0.5, "Complete",IF(SUMPRODUCT($N$41:CU$41,$N32:CU32)<0.5, "To start", "Running"))) -> Undefined | CW32: 0 | CX32: 0 | CY32: =IF(ISBLANK($I32), "Undefined", IF(CX32<0.5, "Complete",IF(SUMPRODUCT($N$41:CX$41,$N32:CX32)<0.5, "To start", "Running"))) -> Undefined | CZ32: 0 | DA32: 0 | DB32: =IF(ISBLANK($I32), "Undefined", IF(DA32<0.5, "Complete",IF(SUMPRODUCT($N$41:DA$41,$N32:DA32)<0.5, "To start", "Running"))) -> Undefined | DC32: 0 | DD32: 0 | DE32: =IF(ISBLANK($I32), "Undefined", IF(DD32<0.5, "Complete",IF(SUMPRODUCT($N$41:DD$41,$N32:DD32)<0.5, "To start", "Running"))) -> Undefined | DF32: 0 | DG32: 0 | DH32: =IF(ISBLANK($I32), "Undefined", IF(DG32<0.5, "Complete",IF(SUMPRODUCT($N$41:DG$41,$N32:DG32)<0.5, "To start", "Running"))) -> Undefined | DI32: 0 | DJ32: 0 | DK32: =IF(ISBLANK($I32), "Undefined", IF(DJ32<0.5, "Complete",IF(SUMPRODUCT($N$41:DJ$41,$N32:DJ32)<0.5, "To start", "Running"))) -> Undefined | DL32: 0 | DM32: 0 | DN32: =IF(ISBLANK($I32), "Undefined", IF(DM32<0.5, "Complete",IF(SUMPRODUCT($N$41:DM$41,$N32:DM32)<0.5, "To start", "Running"))) -> Undefined | DO32: 0 | DP32: 0 | DQ32: =IF(ISBLANK($I32), "Undefined", IF(DP32<0.5, "Complete",IF(SUMPRODUCT($N$41:DP$41,$N32:DP32)<0.5, "To start", "Running"))) -> Undefined | DR32: 0 | DS32: 0 | DT32: =IF(ISBLANK($I32), "Undefined", IF(DS32<0.5, "Complete",IF(SUMPRODUCT($N$41:DS$41,$N32:DS32)<0.5, "To start", "Running"))) -> Undefined | DU32: 0 | DV32: 0 | DW32: =IF(ISBLANK($I32), "Undefined", IF(DV32<0.5, "Complete",IF(SUMPRODUCT($N$41:DV$41,$N32:DV32)<0.5, "To start", "Running"))) -> Undefined | DX32: 0 | DY32: 0 | DZ32: =IF(ISBLANK($I32), "Undefined", IF(DY32<0.5, "Complete",IF(SUMPRODUCT($N$41:DY$41,$N32:DY32)<0.5, "To start", "Running"))) -> Undefined | EA32: 0 | EB32: 0 | EC32: =IF(ISBLANK($I32), "Undefined", IF(EB32<0.5, "Complete",IF(SUMPRODUCT($N$41:EB$41,$N32:EB32)<0.5, "To start", "Running"))) -> Undefined | EE32: =SUMPRODUCT($L$41:DK$41,$L32:DK32) -> 0 | EF32: 0 | EG32: =OFFSET($O32,0,(Capacity!$F$2-SprintStart)*3,1,1) -> 0 | EH32: 0 | EI32: 0 | EJ32: 0 | EL32: 0 | EM32: 0
K33: =IF(SprintStart>Capacity!$F$2, "To start", INDEX(Burndown,ROW(K33)-ROW(K$6),MIN(Capacity!$F$2-SprintStart,29)*3+3)) -> Undefined | M33: 0 | N33: 0 | O33: 0 | P33: =IF(ISBLANK($I33), "Undefined", IF(O33<0.5, "Complete",IF(SUMPRODUCT($N$41:O$41,$N33:O33)<0.5, "To start", "Running"))) -> Undefined | Q33: 0 | R33: 0 | S33: =IF(ISBLANK($I33), "Undefined", IF(R33<0.5, "Complete",IF(SUMPRODUCT($N$41:R$41,$N33:R33)<0.5, "To start", "Running"))) -> Undefined | T33: 0 | U33: 0 | V33: =IF(ISBLANK($I33), "Undefined", IF(U33<0.5, "Complete",IF(SUMPRODUCT($N$41:U$41,$N33:U33)<0.5, "To start", "Running"))) -> Undefined | W33: 0 | X33: 0 | Y33: =IF(ISBLANK($I33), "Undefined", IF(X33<0.5, "Complete",IF(SUMPRODUCT($N$41:X$41,$N33:X33)<0.5, "To start", "Running"))) -> Undefined | Z33: 0 | AA33: 0 | AB33: =IF(ISBLANK($I33), "Undefined", IF(AA33<0.5, "Complete",IF(SUMPRODUCT($N$41:AA$41,$N33:AA33)<0.5, "To start", "Running"))) -> Undefined | AC33: 0 | AD33: 0 | AE33: =IF(ISBLANK($I33), "Undefined", IF(AD33<0.5, "Complete",IF(SUMPRODUCT($N$41:AD$41,$N33:AD33)<0.5, "To start", "Running"))) -> Undefined | AF33: 0 | AG33: 0 | AH33: =IF(ISBLANK($I33), "Undefined", IF(AG33<0.5, "Complete",IF(SUMPRODUCT($N$41:AG$41,$N33:AG33)<0.5, "To start", "Running"))) -> Undefined | AI33: 0 | AJ33: 0 | AK33: =IF(ISBLANK($I33), "Undefined", IF(AJ33<0.5, "Complete",IF(SUMPRODUCT($N$41:AJ$41,$N33:AJ33)<0.5, "To start", "Running"))) -> Undefined | AL33: 0 | AM33: 0 | AN33: =IF(ISBLANK($I33), "Undefined", IF(AM33<0.5, "Complete",IF(SUMPRODUCT($N$41:AM$41,$N33:AM33)<0.5, "To start", "Running"))) -> Undefined | AO33: 0 | AP33: 0 | AQ33: =IF(ISBLANK($I33), "Undefined", IF(AP33<0.5, "Complete",IF(SUMPRODUCT($N$41:AP$41,$N33:AP33)<0.5, "To start", "Running"))) -> Undefined | AR33: 0 | AS33: 0 | AT33: =IF(ISBLANK($I33), "Undefined", IF(AS33<0.5, "Complete",IF(SUMPRODUCT($N$41:AS$41,$N33:AS33)<0.5, "To start", "Running"))) -> Undefined | AU33: 0 | AV33: 0 | AW33: =IF(ISBLANK($I33), "Undefined", IF(AV33<0.5, "Complete",IF(SUMPRODUCT($N$41:AV$41,$N33:AV33)<0.5, "To start", "Running"))) -> Undefined | AX33: 0 | AY33: 0 | AZ33: =IF(ISBLANK($I33), "Undefined", IF(AY33<0.5, "Complete",IF(SUMPRODUCT($N$41:AY$41,$N33:AY33)<0.5, "To start", "Running"))) -> Undefined | BA33: 0 | BB33: 0 | BC33: =IF(ISBLANK($I33), "Undefined", IF(BB33<0.5, "Complete",IF(SUMPRODUCT($N$41:BB$41,$N33:BB33)<0.5, "To start", "Running"))) -> Undefined | BD33: 0 | BE33: 0 | BF33: =IF(ISBLANK($I33), "Undefined", IF(BE33<0.5, "Complete",IF(SUMPRODUCT($N$41:BE$41,$N33:BE33)<0.5, "To start", "Running"))) -> Undefined | BG33: 0 | BH33: 0 | BI33: =IF(ISBLANK($I33), "Undefined", IF(BH33<0.5, "Complete",IF(SUMPRODUCT($N$41:BH$41,$N33:BH33)<0.5, "To start", "Running"))) -> Undefined | BJ33: 0 | BK33: 0 | BL33: =IF(ISBLANK($I33), "Undefined", IF(BK33<0.5, "Complete",IF(SUMPRODUCT($N$41:BK$41,$N33:BK33)<0.5, "To start", "Running"))) -> Undefined | BM33: 0 | BN33: 0 | BO33: =IF(ISBLANK($I33), "Undefined", IF(BN33<0.5, "Complete",IF(SUMPRODUCT($N$41:BN$41,$N33:BN33)<0.5, "To start", "Running"))) -> Undefined | BP33: 0 | BQ33: 0 | BR33: =IF(ISBLANK($I33), "Undefined", IF(BQ33<0.5, "Complete",IF(SUMPRODUCT($N$41:BQ$41,$N33:BQ33)<0.5, "To start", "Running"))) -> Undefined | BS33: 0 | BT33: 0 | BU33: =IF(ISBLANK($I33), "Undefined", IF(BT33<0.5, "Complete",IF(SUMPRODUCT($N$41:BT$41,$N33:BT33)<0.5, "To start", "Running"))) -> Undefined | BV33: 0 | BW33: 0 | BX33: =IF(ISBLANK($I33), "Undefined", IF(BW33<0.5, "Complete",IF(SUMPRODUCT($N$41:BW$41,$N33:BW33)<0.5, "To start", "Running"))) -> Undefined | BY33: 0 | BZ33: 0 | CA33: =IF(ISBLANK($I33), "Undefined", IF(BZ33<0.5, "Complete",IF(SUMPRODUCT($N$41:BZ$41,$N33:BZ33)<0.5, "To start", "Running"))) -> Undefined | CB33: 0 | CC33: 0 | CD33: =IF(ISBLANK($I33), "Undefined", IF(CC33<0.5, "Complete",IF(SUMPRODUCT($N$41:CC$41,$N33:CC33)<0.5, "To start", "Running"))) -> Undefined | CE33: 0 | CF33: 0 | CG33: =IF(ISBLANK($I33), "Undefined", IF(CF33<0.5, "Complete",IF(SUMPRODUCT($N$41:CF$41,$N33:CF33)<0.5, "To start", "Running"))) -> Undefined | CH33: 0 | CI33: 0 | CJ33: =IF(ISBLANK($I33), "Undefined", IF(CI33<0.5, "Complete",IF(SUMPRODUCT($N$41:CI$41,$N33:CI33)<0.5, "To start", "Running"))) -> Undefined | CK33: 0 | CL33: 0 | CM33: =IF(ISBLANK($I33), "Undefined", IF(CL33<0.5, "Complete",IF(SUMPRODUCT($N$41:CL$41,$N33:CL33)<0.5, "To start", "Running"))) -> Undefined | CN33: 0 | CO33: 0 | CP33: =IF(ISBLANK($I33), "Undefined", IF(CO33<0.5, "Complete",IF(SUMPRODUCT($N$41:CO$41,$N33:CO33)<0.5, "To start", "Running"))) -> Undefined | CQ33: 0 | CR33: 0 | CS33: =IF(ISBLANK($I33), "Undefined", IF(CR33<0.5, "Complete",IF(SUMPRODUCT($N$41:CR$41,$N33:CR33)<0.5, "To start", "Running"))) -> Undefined | CT33: 0 | CU33: 0 | CV33: =IF(ISBLANK($I33), "Undefined", IF(CU33<0.5, "Complete",IF(SUMPRODUCT($N$41:CU$41,$N33:CU33)<0.5, "To start", "Running"))) -> Undefined | CW33: 0 | CX33: 0 | CY33: =IF(ISBLANK($I33), "Undefined", IF(CX33<0.5, "Complete",IF(SUMPRODUCT($N$41:CX$41,$N33:CX33)<0.5, "To start", "Running"))) -> Undefined | CZ33: 0 | DA33: 0 | DB33: =IF(ISBLANK($I33), "Undefined", IF(DA33<0.5, "Complete",IF(SUMPRODUCT($N$41:DA$41,$N33:DA33)<0.5, "To start", "Running"))) -> Undefined | DC33: 0 | DD33: 0 | DE33: =IF(ISBLANK($I33), "Undefined", IF(DD33<0.5, "Complete",IF(SUMPRODUCT($N$41:DD$41,$N33:DD33)<0.5, "To start", "Running"))) -> Undefined | DF33: 0 | DG33: 0 | DH33: =IF(ISBLANK($I33), "Undefined", IF(DG33<0.5, "Complete",IF(SUMPRODUCT($N$41:DG$41,$N33:DG33)<0.5, "To start", "Running"))) -> Undefined | DI33: 0 | DJ33: 0 | DK33: =IF(ISBLANK($I33), "Undefined", IF(DJ33<0.5, "Complete",IF(SUMPRODUCT($N$41:DJ$41,$N33:DJ33)<0.5, "To start", "Running"))) -> Undefined | DL33: 0 | DM33: 0 | DN33: =IF(ISBLANK($I33), "Undefined", IF(DM33<0.5, "Complete",IF(SUMPRODUCT($N$41:DM$41,$N33:DM33)<0.5, "To start", "Running"))) -> Undefined | DO33: 0 | DP33: 0 | DQ33: =IF(ISBLANK($I33), "Undefined", IF(DP33<0.5, "Complete",IF(SUMPRODUCT($N$41:DP$41,$N33:DP33)<0.5, "To start", "Running"))) -> Undefined | DR33: 0 | DS33: 0 | DT33: =IF(ISBLANK($I33), "Undefined", IF(DS33<0.5, "Complete",IF(SUMPRODUCT($N$41:DS$41,$N33:DS33)<0.5, "To start", "Running"))) -> Undefined | DU33: 0 | DV33: 0 | DW33: =IF(ISBLANK($I33), "Undefined", IF(DV33<0.5, "Complete",IF(SUMPRODUCT($N$41:DV$41,$N33:DV33)<0.5, "To start", "Running"))) -> Undefined | DX33: 0 | DY33: 0 | DZ33: =IF(ISBLANK($I33), "Undefined", IF(DY33<0.5, "Complete",IF(SUMPRODUCT($N$41:DY$41,$N33:DY33)<0.5, "To start", "Running"))) -> Undefined | EA33: 0 | EB33: 0 | EC33: =IF(ISBLANK($I33), "Undefined", IF(EB33<0.5, "Complete",IF(SUMPRODUCT($N$41:EB$41,$N33:EB33)<0.5, "To start", "Running"))) -> Undefined | EE33: =SUMPRODUCT($L$41:DK$41,$L33:DK33) -> 0 | EF33: 0 | EG33: =OFFSET($O33,0,(Capacity!$F$2-SprintStart)*3,1,1) -> 0 | EH33: 0 | EI33: 0 | EJ33: 0 | EL33: 0 | EM33: 0
K34: =IF(SprintStart>Capacity!$F$2, "To start", INDEX(Burndown,ROW(K34)-ROW(K$6),MIN(Capacity!$F$2-SprintStart,29)*3+3)) -> Undefined | M34: 0 | N34: 0 | O34: 0 | P34: =IF(ISBLANK($I34), "Undefined", IF(O34<0.5, "Complete",IF(SUMPRODUCT($N$41:O$41,$N34:O34)<0.5, "To start", "Running"))) -> Undefined | Q34: 0 | R34: 0 | S34: =IF(ISBLANK($I34), "Undefined", IF(R34<0.5, "Complete",IF(SUMPRODUCT($N$41:R$41,$N34:R34)<0.5, "To start", "Running"))) -> Undefined | T34: 0 | U34: 0 | V34: =IF(ISBLANK($I34), "Undefined", IF(U34<0.5, "Complete",IF(SUMPRODUCT($N$41:U$41,$N34:U34)<0.5, "To start", "Running"))) -> Undefined | W34: 0 | X34: 0 | Y34: =IF(ISBLANK($I34), "Undefined", IF(X34<0.5, "Complete",IF(SUMPRODUCT($N$41:X$41,$N34:X34)<0.5, "To start", "Running"))) -> Undefined | Z34: 0 | AA34: 0 | AB34: =IF(ISBLANK($I34), "Undefined", IF(AA34<0.5, "Complete",IF(SUMPRODUCT($N$41:AA$41,$N34:AA34)<0.5, "To start", "Running"))) -> Undefined | AC34: 0 | AD34: 0 | AE34: =IF(ISBLANK($I34), "Undefined", IF(AD34<0.5, "Complete",IF(SUMPRODUCT($N$41:AD$41,$N34:AD34)<0.5, "To start", "Running"))) -> Undefined | AF34: 0 | AG34: 0 | AH34: =IF(ISBLANK($I34), "Undefined", IF(AG34<0.5, "Complete",IF(SUMPRODUCT($N$41:AG$41,$N34:AG34)<0.5, "To start", "Running"))) -> Undefined | AI34: 0 | AJ34: 0 | AK34: =IF(ISBLANK($I34), "Undefined", IF(AJ34<0.5, "Complete",IF(SUMPRODUCT($N$41:AJ$41,$N34:AJ34)<0.5, "To start", "Running"))) -> Undefined | AL34: 0 | AM34: 0 | AN34: =IF(ISBLANK($I34), "Undefined", IF(AM34<0.5, "Complete",IF(SUMPRODUCT($N$41:AM$41,$N34:AM34)<0.5, "To start", "Running"))) -> Undefined | AO34: 0 | AP34: 0 | AQ34: =IF(ISBLANK($I34), "Undefined", IF(AP34<0.5, "Complete",IF(SUMPRODUCT($N$41:AP$41,$N34:AP34)<0.5, "To start", "Running"))) -> Undefined | AR34: 0 | AS34: 0 | AT34: =IF(ISBLANK($I34), "Undefined", IF(AS34<0.5, "Complete",IF(SUMPRODUCT($N$41:AS$41,$N34:AS34)<0.5, "To start", "Running"))) -> Undefined | AU34: 0 | AV34: 0 | AW34: =IF(ISBLANK($I34), "Undefined", IF(AV34<0.5, "Complete",IF(SUMPRODUCT($N$41:AV$41,$N34:AV34)<0.5, "To start", "Running"))) -> Undefined | AX34: 0 | AY34: 0 | AZ34: =IF(ISBLANK($I34), "Undefined", IF(AY34<0.5, "Complete",IF(SUMPRODUCT($N$41:AY$41,$N34:AY34)<0.5, "To start", "Running"))) -> Undefined | BA34: 0 | BB34: 0 | BC34: =IF(ISBLANK($I34), "Undefined", IF(BB34<0.5, "Complete",IF(SUMPRODUCT($N$41:BB$41,$N34:BB34)<0.5, "To start", "Running"))) -> Undefined | BD34: 0 | BE34: 0 | BF34: =IF(ISBLANK($I34), "Undefined", IF(BE34<0.5, "Complete",IF(SUMPRODUCT($N$41:BE$41,$N34:BE34)<0.5, "To start", "Running"))) -> Undefined | BG34: 0 | BH34: 0 | BI34: =IF(ISBLANK($I34), "Undefined", IF(BH34<0.5, "Complete",IF(SUMPRODUCT($N$41:BH$41,$N34:BH34)<0.5, "To start", "Running"))) -> Undefined | BJ34: 0 | BK34: 0 | BL34: =IF(ISBLANK($I34), "Undefined", IF(BK34<0.5, "Complete",IF(SUMPRODUCT($N$41:BK$41,$N34:BK34)<0.5, "To start", "Running"))) -> Undefined | BM34: 0 | BN34: 0 | BO34: =IF(ISBLANK($I34), "Undefined", IF(BN34<0.5, "Complete",IF(SUMPRODUCT($N$41:BN$41,$N34:BN34)<0.5, "To start", "Running"))) -> Undefined | BP34: 0 | BQ34: 0 | BR34: =IF(ISBLANK($I34), "Undefined", IF(BQ34<0.5, "Complete",IF(SUMPRODUCT($N$41:BQ$41,$N34:BQ34)<0.5, "To start", "Running"))) -> Undefined | BS34: 0 | BT34: 0 | BU34: =IF(ISBLANK($I34), "Undefined", IF(BT34<0.5, "Complete",IF(SUMPRODUCT($N$41:BT$41,$N34:BT34)<0.5, "To start", "Running"))) -> Undefined | BV34: 0 | BW34: 0 | BX34: =IF(ISBLANK($I34), "Undefined", IF(BW34<0.5, "Complete",IF(SUMPRODUCT($N$41:BW$41,$N34:BW34)<0.5, "To start", "Running"))) -> Undefined | BY34: 0 | BZ34: 0 | CA34: =IF(ISBLANK($I34), "Undefined", IF(BZ34<0.5, "Complete",IF(SUMPRODUCT($N$41:BZ$41,$N34:BZ34)<0.5, "To start", "Running"))) -> Undefined | CB34: 0 | CC34: 0 | CD34: =IF(ISBLANK($I34), "Undefined", IF(CC34<0.5, "Complete",IF(SUMPRODUCT($N$41:CC$41,$N34:CC34)<0.5, "To start", "Running"))) -> Undefined | CE34: 0 | CF34: 0 | CG34: =IF(ISBLANK($I34), "Undefined", IF(CF34<0.5, "Complete",IF(SUMPRODUCT($N$41:CF$41,$N34:CF34)<0.5, "To start", "Running"))) -> Undefined | CH34: 0 | CI34: 0 | CJ34: =IF(ISBLANK($I34), "Undefined", IF(CI34<0.5, "Complete",IF(SUMPRODUCT($N$41:CI$41,$N34:CI34)<0.5, "To start", "Running"))) -> Undefined | CK34: 0 | CL34: 0 | CM34: =IF(ISBLANK($I34), "Undefined", IF(CL34<0.5, "Complete",IF(SUMPRODUCT($N$41:CL$41,$N34:CL34)<0.5, "To start", "Running"))) -> Undefined | CN34: 0 | CO34: 0 | CP34: =IF(ISBLANK($I34), "Undefined", IF(CO34<0.5, "Complete",IF(SUMPRODUCT($N$41:CO$41,$N34:CO34)<0.5, "To start", "Running"))) -> Undefined | CQ34: 0 | CR34: 0 | CS34: =IF(ISBLANK($I34), "Undefined", IF(CR34<0.5, "Complete",IF(SUMPRODUCT($N$41:CR$41,$N34:CR34)<0.5, "To start", "Running"))) -> Undefined | CT34: 0 | CU34: 0 | CV34: =IF(ISBLANK($I34), "Undefined", IF(CU34<0.5, "Complete",IF(SUMPRODUCT($N$41:CU$41,$N34:CU34)<0.5, "To start", "Running"))) -> Undefined | CW34: 0 | CX34: 0 | CY34: =IF(ISBLANK($I34), "Undefined", IF(CX34<0.5, "Complete",IF(SUMPRODUCT($N$41:CX$41,$N34:CX34)<0.5, "To start", "Running"))) -> Undefined | CZ34: 0 | DA34: 0 | DB34: =IF(ISBLANK($I34), "Undefined", IF(DA34<0.5, "Complete",IF(SUMPRODUCT($N$41:DA$41,$N34:DA34)<0.5, "To start", "Running"))) -> Undefined | DC34: 0 | DD34: 0 | DE34: =IF(ISBLANK($I34), "Undefined", IF(DD34<0.5, "Complete",IF(SUMPRODUCT($N$41:DD$41,$N34:DD34)<0.5, "To start", "Running"))) -> Undefined | DF34: 0 | DG34: 0 | DH34: =IF(ISBLANK($I34), "Undefined", IF(DG34<0.5, "Complete",IF(SUMPRODUCT($N$41:DG$41,$N34:DG34)<0.5, "To start", "Running"))) -> Undefined | DI34: 0 | DJ34: 0 | DK34: =IF(ISBLANK($I34), "Undefined", IF(DJ34<0.5, "Complete",IF(SUMPRODUCT($N$41:DJ$41,$N34:DJ34)<0.5, "To start", "Running"))) -> Undefined | DL34: 0 | DM34: 0 | DN34: =IF(ISBLANK($I34), "Undefined", IF(DM34<0.5, "Complete",IF(SUMPRODUCT($N$41:DM$41,$N34:DM34)<0.5, "To start", "Running"))) -> Undefined | DO34: 0 | DP34: 0 | DQ34: =IF(ISBLANK($I34), "Undefined", IF(DP34<0.5, "Complete",IF(SUMPRODUCT($N$41:DP$41,$N34:DP34)<0.5, "To start", "Running"))) -> Undefined | DR34: 0 | DS34: 0 | DT34: =IF(ISBLANK($I34), "Undefined", IF(DS34<0.5, "Complete",IF(SUMPRODUCT($N$41:DS$41,$N34:DS34)<0.5, "To start", "Running"))) -> Undefined | DU34: 0 | DV34: 0 | DW34: =IF(ISBLANK($I34), "Undefined", IF(DV34<0.5, "Complete",IF(SUMPRODUCT($N$41:DV$41,$N34:DV34)<0.5, "To start", "Running"))) -> Undefined | DX34: 0 | DY34: 0 | DZ34: =IF(ISBLANK($I34), "Undefined", IF(DY34<0.5, "Complete",IF(SUMPRODUCT($N$41:DY$41,$N34:DY34)<0.5, "To start", "Running"))) -> Undefined | EA34: 0 | EB34: 0 | EC34: =IF(ISBLANK($I34), "Undefined", IF(EB34<0.5, "Complete",IF(SUMPRODUCT($N$41:EB$41,$N34:EB34)<0.5, "To start", "Running"))) -> Undefined | EE34: =SUMPRODUCT($L$41:DK$41,$L34:DK34) -> 0 | EF34: 0 | EG34: =OFFSET($O34,0,(Capacity!$F$2-SprintStart)*3,1,1) -> 0 | EH34: 0 | EI34: 0 | EJ34: 0 | EL34: 0 | EM34: 0
K35: =IF(SprintStart>Capacity!$F$2, "To start", INDEX(Burndown,ROW(K35)-ROW(K$6),MIN(Capacity!$F$2-SprintStart,29)*3+3)) -> Undefined | M35: 0 | N35: 0 | O35: 0 | P35: =IF(ISBLANK($I35), "Undefined", IF(O35<0.5, "Complete",IF(SUMPRODUCT($N$41:O$41,$N35:O35)<0.5, "To start", "Running"))) -> Undefined | Q35: 0 | R35: 0 | S35: =IF(ISBLANK($I35), "Undefined", IF(R35<0.5, "Complete",IF(SUMPRODUCT($N$41:R$41,$N35:R35)<0.5, "To start", "Running"))) -> Undefined | T35: 0 | U35: 0 | V35: =IF(ISBLANK($I35), "Undefined", IF(U35<0.5, "Complete",IF(SUMPRODUCT($N$41:U$41,$N35:U35)<0.5, "To start", "Running"))) -> Undefined | W35: 0 | X35: 0 | Y35: =IF(ISBLANK($I35), "Undefined", IF(X35<0.5, "Complete",IF(SUMPRODUCT($N$41:X$41,$N35:X35)<0.5, "To start", "Running"))) -> Undefined | Z35: 0 | AA35: 0 | AB35: =IF(ISBLANK($I35), "Undefined", IF(AA35<0.5, "Complete",IF(SUMPRODUCT($N$41:AA$41,$N35:AA35)<0.5, "To start", "Running"))) -> Undefined | AC35: 0 | AD35: 0 | AE35: =IF(ISBLANK($I35), "Undefined", IF(AD35<0.5, "Complete",IF(SUMPRODUCT($N$41:AD$41,$N35:AD35)<0.5, "To start", "Running"))) -> Undefined | AF35: 0 | AG35: 0 | AH35: =IF(ISBLANK($I35), "Undefined", IF(AG35<0.5, "Complete",IF(SUMPRODUCT($N$41:AG$41,$N35:AG35)<0.5, "To start", "Running"))) -> Undefined | AI35: 0 | AJ35: 0 | AK35: =IF(ISBLANK($I35), "Undefined", IF(AJ35<0.5, "Complete",IF(SUMPRODUCT($N$41:AJ$41,$N35:AJ35)<0.5, "To start", "Running"))) -> Undefined | AL35: 0 | AM35: 0 | AN35: =IF(ISBLANK($I35), "Undefined", IF(AM35<0.5, "Complete",IF(SUMPRODUCT($N$41:AM$41,$N35:AM35)<0.5, "To start", "Running"))) -> Undefined | AO35: 0 | AP35: 0 | AQ35: =IF(ISBLANK($I35), "Undefined", IF(AP35<0.5, "Complete",IF(SUMPRODUCT($N$41:AP$41,$N35:AP35)<0.5, "To start", "Running"))) -> Undefined | AR35: 0 | AS35: 0 | AT35: =IF(ISBLANK($I35), "Undefined", IF(AS35<0.5, "Complete",IF(SUMPRODUCT($N$41:AS$41,$N35:AS35)<0.5, "To start", "Running"))) -> Undefined | AU35: 0 | AV35: 0 | AW35: =IF(ISBLANK($I35), "Undefined", IF(AV35<0.5, "Complete",IF(SUMPRODUCT($N$41:AV$41,$N35:AV35)<0.5, "To start", "Running"))) -> Undefined | AX35: 0 | AY35: 0 | AZ35: =IF(ISBLANK($I35), "Undefined", IF(AY35<0.5, "Complete",IF(SUMPRODUCT($N$41:AY$41,$N35:AY35)<0.5, "To start", "Running"))) -> Undefined | BA35: 0 | BB35: 0 | BC35: =IF(ISBLANK($I35), "Undefined", IF(BB35<0.5, "Complete",IF(SUMPRODUCT($N$41:BB$41,$N35:BB35)<0.5, "To start", "Running"))) -> Undefined | BD35: 0 | BE35: 0 | BF35: =IF(ISBLANK($I35), "Undefined", IF(BE35<0.5, "Complete",IF(SUMPRODUCT($N$41:BE$41,$N35:BE35)<0.5, "To start", "Running"))) -> Undefined | BG35: 0 | BH35: 0 | BI35: =IF(ISBLANK($I35), "Undefined", IF(BH35<0.5, "Complete",IF(SUMPRODUCT($N$41:BH$41,$N35:BH35)<0.5, "To start", "Running"))) -> Undefined | BJ35: 0 | BK35: 0 | BL35: =IF(ISBLANK($I35), "Undefined", IF(BK35<0.5, "Complete",IF(SUMPRODUCT($N$41:BK$41,$N35:BK35)<0.5, "To start", "Running"))) -> Undefined | BM35: 0 | BN35: 0 | BO35: =IF(ISBLANK($I35), "Undefined", IF(BN35<0.5, "Complete",IF(SUMPRODUCT($N$41:BN$41,$N35:BN35)<0.5, "To start", "Running"))) -> Undefined | BP35: 0 | BQ35: 0 | BR35: =IF(ISBLANK($I35), "Undefined", IF(BQ35<0.5, "Complete",IF(SUMPRODUCT($N$41:BQ$41,$N35:BQ35)<0.5, "To start", "Running"))) -> Undefined | BS35: 0 | BT35: 0 | BU35: =IF(ISBLANK($I35), "Undefined", IF(BT35<0.5, "Complete",IF(SUMPRODUCT($N$41:BT$41,$N35:BT35)<0.5, "To start", "Running"))) -> Undefined | BV35: 0 | BW35: 0 | BX35: =IF(ISBLANK($I35), "Undefined", IF(BW35<0.5, "Complete",IF(SUMPRODUCT($N$41:BW$41,$N35:BW35)<0.5, "To start", "Running"))) -> Undefined | BY35: 0 | BZ35: 0 | CA35: =IF(ISBLANK($I35), "Undefined", IF(BZ35<0.5, "Complete",IF(SUMPRODUCT($N$41:BZ$41,$N35:BZ35)<0.5, "To start", "Running"))) -> Undefined | CB35: 0 | CC35: 0 | CD35: =IF(ISBLANK($I35), "Undefined", IF(CC35<0.5, "Complete",IF(SUMPRODUCT($N$41:CC$41,$N35:CC35)<0.5, "To start", "Running"))) -> Undefined | CE35: 0 | CF35: 0 | CG35: =IF(ISBLANK($I35), "Undefined", IF(CF35<0.5, "Complete",IF(SUMPRODUCT($N$41:CF$41,$N35:CF35)<0.5, "To start", "Running"))) -> Undefined | CH35: 0 | CI35: 0 | CJ35: =IF(ISBLANK($I35), "Undefined", IF(CI35<0.5, "Complete",IF(SUMPRODUCT($N$41:CI$41,$N35:CI35)<0.5, "To start", "Running"))) -> Undefined | CK35: 0 | CL35: 0 | CM35: =IF(ISBLANK($I35), "Undefined", IF(CL35<0.5, "Complete",IF(SUMPRODUCT($N$41:CL$41,$N35:CL35)<0.5, "To start", "Running"))) -> Undefined | CN35: 0 | CO35: 0 | CP35: =IF(ISBLANK($I35), "Undefined", IF(CO35<0.5, "Complete",IF(SUMPRODUCT($N$41:CO$41,$N35:CO35)<0.5, "To start", "Running"))) -> Undefined | CQ35: 0 | CR35: 0 | CS35: =IF(ISBLANK($I35), "Undefined", IF(CR35<0.5, "Complete",IF(SUMPRODUCT($N$41:CR$41,$N35:CR35)<0.5, "To start", "Running"))) -> Undefined | CT35: 0 | CU35: 0 | CV35: =IF(ISBLANK($I35), "Undefined", IF(CU35<0.5, "Complete",IF(SUMPRODUCT($N$41:CU$41,$N35:CU35)<0.5, "To start", "Running"))) -> Undefined | CW35: 0 | CX35: 0 | CY35: =IF(ISBLANK($I35), "Undefined", IF(CX35<0.5, "Complete",IF(SUMPRODUCT($N$41:CX$41,$N35:CX35)<0.5, "To start", "Running"))) -> Undefined | CZ35: 0 | DA35: 0 | DB35: =IF(ISBLANK($I35), "Undefined", IF(DA35<0.5, "Complete",IF(SUMPRODUCT($N$41:DA$41,$N35:DA35)<0.5, "To start", "Running"))) -> Undefined | DC35: 0 | DD35: 0 | DE35: =IF(ISBLANK($I35), "Undefined", IF(DD35<0.5, "Complete",IF(SUMPRODUCT($N$41:DD$41,$N35:DD35)<0.5, "To start", "Running"))) -> Undefined | DF35: 0 | DG35: 0 | DH35: =IF(ISBLANK($I35), "Undefined", IF(DG35<0.5, "Complete",IF(SUMPRODUCT($N$41:DG$41,$N35:DG35)<0.5, "To start", "Running"))) -> Undefined | DI35: 0 | DJ35: 0 | DK35: =IF(ISBLANK($I35), "Undefined", IF(DJ35<0.5, "Complete",IF(SUMPRODUCT($N$41:DJ$41,$N35:DJ35)<0.5, "To start", "Running"))) -> Undefined | DL35: 0 | DM35: 0 | DN35: =IF(ISBLANK($I35), "Undefined", IF(DM35<0.5, "Complete",IF(SUMPRODUCT($N$41:DM$41,$N35:DM35)<0.5, "To start", "Running"))) -> Undefined | DO35: 0 | DP35: 0 | DQ35: =IF(ISBLANK($I35), "Undefined", IF(DP35<0.5, "Complete",IF(SUMPRODUCT($N$41:DP$41,$N35:DP35)<0.5, "To start", "Running"))) -> Undefined | DR35: 0 | DS35: 0 | DT35: =IF(ISBLANK($I35), "Undefined", IF(DS35<0.5, "Complete",IF(SUMPRODUCT($N$41:DS$41,$N35:DS35)<0.5, "To start", "Running"))) -> Undefined | DU35: 0 | DV35: 0 | DW35: =IF(ISBLANK($I35), "Undefined", IF(DV35<0.5, "Complete",IF(SUMPRODUCT($N$41:DV$41,$N35:DV35)<0.5, "To start", "Running"))) -> Undefined | DX35: 0 | DY35: 0 | DZ35: =IF(ISBLANK($I35), "Undefined", IF(DY35<0.5, "Complete",IF(SUMPRODUCT($N$41:DY$41,$N35:DY35)<0.5, "To start", "Running"))) -> Undefined | EA35: 0 | EB35: 0 | EC35: =IF(ISBLANK($I35), "Undefined", IF(EB35<0.5, "Complete",IF(SUMPRODUCT($N$41:EB$41,$N35:EB35)<0.5, "To start", "Running"))) -> Undefined | EE35: =SUMPRODUCT($L$41:DK$41,$L35:DK35) -> 0 | EF35: 0 | EG35: =OFFSET($O35,0,(Capacity!$F$2-SprintStart)*3,1,1) -> 0 | EH35: 0 | EI35: 0 | EJ35: 0 | EL35: 0 | EM35: 0
K36: =IF(SprintStart>Capacity!$F$2, "To start", INDEX(Burndown,ROW(K36)-ROW(K$6),MIN(Capacity!$F$2-SprintStart,29)*3+3)) -> Undefined | M36: 0 | N36: 0 | O36: 0 | P36: =IF(ISBLANK($I36), "Undefined", IF(O36<0.5, "Complete",IF(SUMPRODUCT($N$41:O$41,$N36:O36)<0.5, "To start", "Running"))) -> Undefined | Q36: 0 | R36: 0 | S36: =IF(ISBLANK($I36), "Undefined", IF(R36<0.5, "Complete",IF(SUMPRODUCT($N$41:R$41,$N36:R36)<0.5, "To start", "Running"))) -> Undefined | T36: 0 | U36: 0 | V36: =IF(ISBLANK($I36), "Undefined", IF(U36<0.5, "Complete",IF(SUMPRODUCT($N$41:U$41,$N36:U36)<0.5, "To start", "Running"))) -> Undefined | W36: 0 | X36: 0 | Y36: =IF(ISBLANK($I36), "Undefined", IF(X36<0.5, "Complete",IF(SUMPRODUCT($N$41:X$41,$N36:X36)<0.5, "To start", "Running"))) -> Undefined | Z36: 0 | AA36: 0 | AB36: =IF(ISBLANK($I36), "Undefined", IF(AA36<0.5, "Complete",IF(SUMPRODUCT($N$41:AA$41,$N36:AA36)<0.5, "To start", "Running"))) -> Undefined | AC36: 0 | AD36: 0 | AE36: =IF(ISBLANK($I36), "Undefined", IF(AD36<0.5, "Complete",IF(SUMPRODUCT($N$41:AD$41,$N36:AD36)<0.5, "To start", "Running"))) -> Undefined | AF36: 0 | AG36: 0 | AH36: =IF(ISBLANK($I36), "Undefined", IF(AG36<0.5, "Complete",IF(SUMPRODUCT($N$41:AG$41,$N36:AG36)<0.5, "To start", "Running"))) -> Undefined | AI36: 0 | AJ36: 0 | AK36: =IF(ISBLANK($I36), "Undefined", IF(AJ36<0.5, "Complete",IF(SUMPRODUCT($N$41:AJ$41,$N36:AJ36)<0.5, "To start", "Running"))) -> Undefined | AL36: 0 | AM36: 0 | AN36: =IF(ISBLANK($I36), "Undefined", IF(AM36<0.5, "Complete",IF(SUMPRODUCT($N$41:AM$41,$N36:AM36)<0.5, "To start", "Running"))) -> Undefined | AO36: 0 | AP36: 0 | AQ36: =IF(ISBLANK($I36), "Undefined", IF(AP36<0.5, "Complete",IF(SUMPRODUCT($N$41:AP$41,$N36:AP36)<0.5, "To start", "Running"))) -> Undefined | AR36: 0 | AS36: 0 | AT36: =IF(ISBLANK($I36), "Undefined", IF(AS36<0.5, "Complete",IF(SUMPRODUCT($N$41:AS$41,$N36:AS36)<0.5, "To start", "Running"))) -> Undefined | AU36: 0 | AV36: 0 | AW36: =IF(ISBLANK($I36), "Undefined", IF(AV36<0.5, "Complete",IF(SUMPRODUCT($N$41:AV$41,$N36:AV36)<0.5, "To start", "Running"))) -> Undefined | AX36: 0 | AY36: 0 | AZ36: =IF(ISBLANK($I36), "Undefined", IF(AY36<0.5, "Complete",IF(SUMPRODUCT($N$41:AY$41,$N36:AY36)<0.5, "To start", "Running"))) -> Undefined | BA36: 0 | BB36: 0 | BC36: =IF(ISBLANK($I36), "Undefined", IF(BB36<0.5, "Complete",IF(SUMPRODUCT($N$41:BB$41,$N36:BB36)<0.5, "To start", "Running"))) -> Undefined | BD36: 0 | BE36: 0 | BF36: =IF(ISBLANK($I36), "Undefined", IF(BE36<0.5, "Complete",IF(SUMPRODUCT($N$41:BE$41,$N36:BE36)<0.5, "To start", "Running"))) -> Undefined | BG36: 0 | BH36: 0 | BI36: =IF(ISBLANK($I36), "Undefined", IF(BH36<0.5, "Complete",IF(SUMPRODUCT($N$41:BH$41,$N36:BH36)<0.5, "To start", "Running"))) -> Undefined | BJ36: 0 | BK36: 0 | BL36: =IF(ISBLANK($I36), "Undefined", IF(BK36<0.5, "Complete",IF(SUMPRODUCT($N$41:BK$41,$N36:BK36)<0.5, "To start", "Running"))) -> Undefined | BM36: 0 | BN36: 0 | BO36: =IF(ISBLANK($I36), "Undefined", IF(BN36<0.5, "Complete",IF(SUMPRODUCT($N$41:BN$41,$N36:BN36)<0.5, "To start", "Running"))) -> Undefined | BP36: 0 | BQ36: 0 | BR36: =IF(ISBLANK($I36), "Undefined", IF(BQ36<0.5, "Complete",IF(SUMPRODUCT($N$41:BQ$41,$N36:BQ36)<0.5, "To start", "Running"))) -> Undefined | BS36: 0 | BT36: 0 | BU36: =IF(ISBLANK($I36), "Undefined", IF(BT36<0.5, "Complete",IF(SUMPRODUCT($N$41:BT$41,$N36:BT36)<0.5, "To start", "Running"))) -> Undefined | BV36: 0 | BW36: 0 | BX36: =IF(ISBLANK($I36), "Undefined", IF(BW36<0.5, "Complete",IF(SUMPRODUCT($N$41:BW$41,$N36:BW36)<0.5, "To start", "Running"))) -> Undefined | BY36: 0 | BZ36: 0 | CA36: =IF(ISBLANK($I36), "Undefined", IF(BZ36<0.5, "Complete",IF(SUMPRODUCT($N$41:BZ$41,$N36:BZ36)<0.5, "To start", "Running"))) -> Undefined | CB36: 0 | CC36: 0 | CD36: =IF(ISBLANK($I36), "Undefined", IF(CC36<0.5, "Complete",IF(SUMPRODUCT($N$41:CC$41,$N36:CC36)<0.5, "To start", "Running"))) -> Undefined | CE36: 0 | CF36: 0 | CG36: =IF(ISBLANK($I36), "Undefined", IF(CF36<0.5, "Complete",IF(SUMPRODUCT($N$41:CF$41,$N36:CF36)<0.5, "To start", "Running"))) -> Undefined | CH36: 0 | CI36: 0 | CJ36: =IF(ISBLANK($I36), "Undefined", IF(CI36<0.5, "Complete",IF(SUMPRODUCT($N$41:CI$41,$N36:CI36)<0.5, "To start", "Running"))) -> Undefined | CK36: 0 | CL36: 0 | CM36: =IF(ISBLANK($I36), "Undefined", IF(CL36<0.5, "Complete",IF(SUMPRODUCT($N$41:CL$41,$N36:CL36)<0.5, "To start", "Running"))) -> Undefined | CN36: 0 | CO36: 0 | CP36: =IF(ISBLANK($I36), "Undefined", IF(CO36<0.5, "Complete",IF(SUMPRODUCT($N$41:CO$41,$N36:CO36)<0.5, "To start", "Running"))) -> Undefined | CQ36: 0 | CR36: 0 | CS36: =IF(ISBLANK($I36), "Undefined", IF(CR36<0.5, "Complete",IF(SUMPRODUCT($N$41:CR$41,$N36:CR36)<0.5, "To start", "Running"))) -> Undefined | CT36: 0 | CU36: 0 | CV36: =IF(ISBLANK($I36), "Undefined", IF(CU36<0.5, "Complete",IF(SUMPRODUCT($N$41:CU$41,$N36:CU36)<0.5, "To start", "Running"))) -> Undefined | CW36: 0 | CX36: 0 | CY36: =IF(ISBLANK($I36), "Undefined", IF(CX36<0.5, "Complete",IF(SUMPRODUCT($N$41:CX$41,$N36:CX36)<0.5, "To start", "Running"))) -> Undefined | CZ36: 0 | DA36: 0 | DB36: =IF(ISBLANK($I36), "Undefined", IF(DA36<0.5, "Complete",IF(SUMPRODUCT($N$41:DA$41,$N36:DA36)<0.5, "To start", "Running"))) -> Undefined | DC36: 0 | DD36: 0 | DE36: =IF(ISBLANK($I36), "Undefined", IF(DD36<0.5, "Complete",IF(SUMPRODUCT($N$41:DD$41,$N36:DD36)<0.5, "To start", "Running"))) -> Undefined | DF36: 0 | DG36: 0 | DH36: =IF(ISBLANK($I36), "Undefined", IF(DG36<0.5, "Complete",IF(SUMPRODUCT($N$41:DG$41,$N36:DG36)<0.5, "To start", "Running"))) -> Undefined | DI36: 0 | DJ36: 0 | DK36: =IF(ISBLANK($I36), "Undefined", IF(DJ36<0.5, "Complete",IF(SUMPRODUCT($N$41:DJ$41,$N36:DJ36)<0.5, "To start", "Running"))) -> Undefined | DL36: 0 | DM36: 0 | DN36: =IF(ISBLANK($I36), "Undefined", IF(DM36<0.5, "Complete",IF(SUMPRODUCT($N$41:DM$41,$N36:DM36)<0.5, "To start", "Running"))) -> Undefined | DO36: 0 | DP36: 0 | DQ36: =IF(ISBLANK($I36), "Undefined", IF(DP36<0.5, "Complete",IF(SUMPRODUCT($N$41:DP$41,$N36:DP36)<0.5, "To start", "Running"))) -> Undefined | DR36: 0 | DS36: 0 | DT36: =IF(ISBLANK($I36), "Undefined", IF(DS36<0.5, "Complete",IF(SUMPRODUCT($N$41:DS$41,$N36:DS36)<0.5, "To start", "Running"))) -> Undefined | DU36: 0 | DV36: 0 | DW36: =IF(ISBLANK($I36), "Undefined", IF(DV36<0.5, "Complete",IF(SUMPRODUCT($N$41:DV$41,$N36:DV36)<0.5, "To start", "Running"))) -> Undefined | DX36: 0 | DY36: 0 | DZ36: =IF(ISBLANK($I36), "Undefined", IF(DY36<0.5, "Complete",IF(SUMPRODUCT($N$41:DY$41,$N36:DY36)<0.5, "To start", "Running"))) -> Undefined | EA36: 0 | EB36: 0 | EC36: =IF(ISBLANK($I36), "Undefined", IF(EB36<0.5, "Complete",IF(SUMPRODUCT($N$41:EB$41,$N36:EB36)<0.5, "To start", "Running"))) -> Undefined | EE36: =SUMPRODUCT($L$41:DK$41,$L36:DK36) -> 0 | EF36: 0 | EG36: =OFFSET($O36,0,(Capacity!$F$2-SprintStart)*3,1,1) -> 0 | EH36: 0 | EI36: 0 | EJ36: 0 | EL36: 0 | EM36: 0
K37: =IF(SprintStart>Capacity!$F$2, "To start", INDEX(Burndown,ROW(K37)-ROW(K$6),MIN(Capacity!$F$2-SprintStart,29)*3+3)) -> Undefined | M37: 0 | N37: 0 | O37: 0 | P37: =IF(ISBLANK($I37), "Undefined", IF(O37<0.5, "Complete",IF(SUMPRODUCT($N$41:O$41,$N37:O37)<0.5, "To start", "Running"))) -> Undefined | Q37: 0 | R37: 0 | S37: =IF(ISBLANK($I37), "Undefined", IF(R37<0.5, "Complete",IF(SUMPRODUCT($N$41:R$41,$N37:R37)<0.5, "To start", "Running"))) -> Undefined | T37: 0 | U37: 0 | V37: =IF(ISBLANK($I37), "Undefined", IF(U37<0.5, "Complete",IF(SUMPRODUCT($N$41:U$41,$N37:U37)<0.5, "To start", "Running"))) -> Undefined | W37: 0 | X37: 0 | Y37: =IF(ISBLANK($I37), "Undefined", IF(X37<0.5, "Complete",IF(SUMPRODUCT($N$41:X$41,$N37:X37)<0.5, "To start", "Running"))) -> Undefined | Z37: 0 | AA37: 0 | AB37: =IF(ISBLANK($I37), "Undefined", IF(AA37<0.5, "Complete",IF(SUMPRODUCT($N$41:AA$41,$N37:AA37)<0.5, "To start", "Running"))) -> Undefined | AC37: 0 | AD37: 0 | AE37: =IF(ISBLANK($I37), "Undefined", IF(AD37<0.5, "Complete",IF(SUMPRODUCT($N$41:AD$41,$N37:AD37)<0.5, "To start", "Running"))) -> Undefined | AF37: 0 | AG37: 0 | AH37: =IF(ISBLANK($I37), "Undefined", IF(AG37<0.5, "Complete",IF(SUMPRODUCT($N$41:AG$41,$N37:AG37)<0.5, "To start", "Running"))) -> Undefined | AI37: 0 | AJ37: 0 | AK37: =IF(ISBLANK($I37), "Undefined", IF(AJ37<0.5, "Complete",IF(SUMPRODUCT($N$41:AJ$41,$N37:AJ37)<0.5, "To start", "Running"))) -> Undefined | AL37: 0 | AM37: 0 | AN37: =IF(ISBLANK($I37), "Undefined", IF(AM37<0.5, "Complete",IF(SUMPRODUCT($N$41:AM$41,$N37:AM37)<0.5, "To start", "Running"))) -> Undefined | AO37: 0 | AP37: 0 | AQ37: =IF(ISBLANK($I37), "Undefined", IF(AP37<0.5, "Complete",IF(SUMPRODUCT($N$41:AP$41,$N37:AP37)<0.5, "To start", "Running"))) -> Undefined | AR37: 0 | AS37: 0 | AT37: =IF(ISBLANK($I37), "Undefined", IF(AS37<0.5, "Complete",IF(SUMPRODUCT($N$41:AS$41,$N37:AS37)<0.5, "To start", "Running"))) -> Undefined | AU37: 0 | AV37: 0 | AW37: =IF(ISBLANK($I37), "Undefined", IF(AV37<0.5, "Complete",IF(SUMPRODUCT($N$41:AV$41,$N37:AV37)<0.5, "To start", "Running"))) -> Undefined | AX37: 0 | AY37: 0 | AZ37: =IF(ISBLANK($I37), "Undefined", IF(AY37<0.5, "Complete",IF(SUMPRODUCT($N$41:AY$41,$N37:AY37)<0.5, "To start", "Running"))) -> Undefined | BA37: 0 | BB37: 0 | BC37: =IF(ISBLANK($I37), "Undefined", IF(BB37<0.5, "Complete",IF(SUMPRODUCT($N$41:BB$41,$N37:BB37)<0.5, "To start", "Running"))) -> Undefined | BD37: 0 | BE37: 0 | BF37: =IF(ISBLANK($I37), "Undefined", IF(BE37<0.5, "Complete",IF(SUMPRODUCT($N$41:BE$41,$N37:BE37)<0.5, "To start", "Running"))) -> Undefined | BG37: 0 | BH37: 0 | BI37: =IF(ISBLANK($I37), "Undefined", IF(BH37<0.5, "Complete",IF(SUMPRODUCT($N$41:BH$41,$N37:BH37)<0.5, "To start", "Running"))) -> Undefined | BJ37: 0 | BK37: 0 | BL37: =IF(ISBLANK($I37), "Undefined", IF(BK37<0.5, "Complete",IF(SUMPRODUCT($N$41:BK$41,$N37:BK37)<0.5, "To start", "Running"))) -> Undefined | BM37: 0 | BN37: 0 | BO37: =IF(ISBLANK($I37), "Undefined", IF(BN37<0.5, "Complete",IF(SUMPRODUCT($N$41:BN$41,$N37:BN37)<0.5, "To start", "Running"))) -> Undefined | BP37: 0 | BQ37: 0 | BR37: =IF(ISBLANK($I37), "Undefined", IF(BQ37<0.5, "Complete",IF(SUMPRODUCT($N$41:BQ$41,$N37:BQ37)<0.5, "To start", "Running"))) -> Undefined | BS37: 0 | BT37: 0 | BU37: =IF(ISBLANK($I37), "Undefined", IF(BT37<0.5, "Complete",IF(SUMPRODUCT($N$41:BT$41,$N37:BT37)<0.5, "To start", "Running"))) -> Undefined | BV37: 0 | BW37: 0 | BX37: =IF(ISBLANK($I37), "Undefined", IF(BW37<0.5, "Complete",IF(SUMPRODUCT($N$41:BW$41,$N37:BW37)<0.5, "To start", "Running"))) -> Undefined | BY37: 0 | BZ37: 0 | CA37: =IF(ISBLANK($I37), "Undefined", IF(BZ37<0.5, "Complete",IF(SUMPRODUCT($N$41:BZ$41,$N37:BZ37)<0.5, "To start", "Running"))) -> Undefined | CB37: 0 | CC37: 0 | CD37: =IF(ISBLANK($I37), "Undefined", IF(CC37<0.5, "Complete",IF(SUMPRODUCT($N$41:CC$41,$N37:CC37)<0.5, "To start", "Running"))) -> Undefined | CE37: 0 | CF37: 0 | CG37: =IF(ISBLANK($I37), "Undefined", IF(CF37<0.5, "Complete",IF(SUMPRODUCT($N$41:CF$41,$N37:CF37)<0.5, "To start", "Running"))) -> Undefined | CH37: 0 | CI37: 0 | CJ37: =IF(ISBLANK($I37), "Undefined", IF(CI37<0.5, "Complete",IF(SUMPRODUCT($N$41:CI$41,$N37:CI37)<0.5, "To start", "Running"))) -> Undefined | CK37: 0 | CL37: 0 | CM37: =IF(ISBLANK($I37), "Undefined", IF(CL37<0.5, "Complete",IF(SUMPRODUCT($N$41:CL$41,$N37:CL37)<0.5, "To start", "Running"))) -> Undefined | CN37: 0 | CO37: 0 | CP37: =IF(ISBLANK($I37), "Undefined", IF(CO37<0.5, "Complete",IF(SUMPRODUCT($N$41:CO$41,$N37:CO37)<0.5, "To start", "Running"))) -> Undefined | CQ37: 0 | CR37: 0 | CS37: =IF(ISBLANK($I37), "Undefined", IF(CR37<0.5, "Complete",IF(SUMPRODUCT($N$41:CR$41,$N37:CR37)<0.5, "To start", "Running"))) -> Undefined | CT37: 0 | CU37: 0 | CV37: =IF(ISBLANK($I37), "Undefined", IF(CU37<0.5, "Complete",IF(SUMPRODUCT($N$41:CU$41,$N37:CU37)<0.5, "To start", "Running"))) -> Undefined | CW37: 0 | CX37: 0 | CY37: =IF(ISBLANK($I37), "Undefined", IF(CX37<0.5, "Complete",IF(SUMPRODUCT($N$41:CX$41,$N37:CX37)<0.5, "To start", "Running"))) -> Undefined | CZ37: 0 | DA37: 0 | DB37: =IF(ISBLANK($I37), "Undefined", IF(DA37<0.5, "Complete",IF(SUMPRODUCT($N$41:DA$41,$N37:DA37)<0.5, "To start", "Running"))) -> Undefined | DC37: 0 | DD37: 0 | DE37: =IF(ISBLANK($I37), "Undefined", IF(DD37<0.5, "Complete",IF(SUMPRODUCT($N$41:DD$41,$N37:DD37)<0.5, "To start", "Running"))) -> Undefined | DF37: 0 | DG37: 0 | DH37: =IF(ISBLANK($I37), "Undefined", IF(DG37<0.5, "Complete",IF(SUMPRODUCT($N$41:DG$41,$N37:DG37)<0.5, "To start", "Running"))) -> Undefined | DI37: 0 | DJ37: 0 | DK37: =IF(ISBLANK($I37), "Undefined", IF(DJ37<0.5, "Complete",IF(SUMPRODUCT($N$41:DJ$41,$N37:DJ37)<0.5, "To start", "Running"))) -> Undefined | DL37: 0 | DM37: 0 | DN37: =IF(ISBLANK($I37), "Undefined", IF(DM37<0.5, "Complete",IF(SUMPRODUCT($N$41:DM$41,$N37:DM37)<0.5, "To start", "Running"))) -> Undefined | DO37: 0 | DP37: 0 | DQ37: =IF(ISBLANK($I37), "Undefined", IF(DP37<0.5, "Complete",IF(SUMPRODUCT($N$41:DP$41,$N37:DP37)<0.5, "To start", "Running"))) -> Undefined | DR37: 0 | DS37: 0 | DT37: =IF(ISBLANK($I37), "Undefined", IF(DS37<0.5, "Complete",IF(SUMPRODUCT($N$41:DS$41,$N37:DS37)<0.5, "To start", "Running"))) -> Undefined | DU37: 0 | DV37: 0 | DW37: =IF(ISBLANK($I37), "Undefined", IF(DV37<0.5, "Complete",IF(SUMPRODUCT($N$41:DV$41,$N37:DV37)<0.5, "To start", "Running"))) -> Undefined | DX37: 0 | DY37: 0 | DZ37: =IF(ISBLANK($I37), "Undefined", IF(DY37<0.5, "Complete",IF(SUMPRODUCT($N$41:DY$41,$N37:DY37)<0.5, "To start", "Running"))) -> Undefined | EA37: 0 | EB37: 0 | EC37: =IF(ISBLANK($I37), "Undefined", IF(EB37<0.5, "Complete",IF(SUMPRODUCT($N$41:EB$41,$N37:EB37)<0.5, "To start", "Running"))) -> Undefined | EE37: =SUMPRODUCT($L$41:DK$41,$L37:DK37) -> 0 | EF37: 0 | EG37: =OFFSET($O37,0,(Capacity!$F$2-SprintStart)*3,1,1) -> 0 | EH37: 0 | EI37: 0 | EJ37: 0 | EL37: 0 | EM37: 0
K38: =IF(SprintStart>Capacity!$F$2, "To start", INDEX(Burndown,ROW(K38)-ROW(K$6),MIN(Capacity!$F$2-SprintStart,29)*3+3)) -> Undefined | M38: 0 | N38: 0 | O38: 0 | P38: =IF(ISBLANK($I38), "Undefined", IF(O38<0.5, "Complete",IF(SUMPRODUCT($N$41:O$41,$N38:O38)<0.5, "To start", "Running"))) -> Undefined | Q38: 0 | R38: 0 | S38: =IF(ISBLANK($I38), "Undefined", IF(R38<0.5, "Complete",IF(SUMPRODUCT($N$41:R$41,$N38:R38)<0.5, "To start", "Running"))) -> Undefined | T38: 0 | U38: 0 | V38: =IF(ISBLANK($I38), "Undefined", IF(U38<0.5, "Complete",IF(SUMPRODUCT($N$41:U$41,$N38:U38)<0.5, "To start", "Running"))) -> Undefined | W38: 0 | X38: 0 | Y38: =IF(ISBLANK($I38), "Undefined", IF(X38<0.5, "Complete",IF(SUMPRODUCT($N$41:X$41,$N38:X38)<0.5, "To start", "Running"))) -> Undefined | Z38: 0 | AA38: 0 | AB38: =IF(ISBLANK($I38), "Undefined", IF(AA38<0.5, "Complete",IF(SUMPRODUCT($N$41:AA$41,$N38:AA38)<0.5, "To start", "Running"))) -> Undefined | AC38: 0 | AD38: 0 | AE38: =IF(ISBLANK($I38), "Undefined", IF(AD38<0.5, "Complete",IF(SUMPRODUCT($N$41:AD$41,$N38:AD38)<0.5, "To start", "Running"))) -> Undefined | AF38: 0 | AG38: 0 | AH38: =IF(ISBLANK($I38), "Undefined", IF(AG38<0.5, "Complete",IF(SUMPRODUCT($N$41:AG$41,$N38:AG38)<0.5, "To start", "Running"))) -> Undefined | AI38: 0 | AJ38: 0 | AK38: =IF(ISBLANK($I38), "Undefined", IF(AJ38<0.5, "Complete",IF(SUMPRODUCT($N$41:AJ$41,$N38:AJ38)<0.5, "To start", "Running"))) -> Undefined | AL38: 0 | AM38: 0 | AN38: =IF(ISBLANK($I38), "Undefined", IF(AM38<0.5, "Complete",IF(SUMPRODUCT($N$41:AM$41,$N38:AM38)<0.5, "To start", "Running"))) -> Undefined | AO38: 0 | AP38: 0 | AQ38: =IF(ISBLANK($I38), "Undefined", IF(AP38<0.5, "Complete",IF(SUMPRODUCT($N$41:AP$41,$N38:AP38)<0.5, "To start", "Running"))) -> Undefined | AR38: 0 | AS38: 0 | AT38: =IF(ISBLANK($I38), "Undefined", IF(AS38<0.5, "Complete",IF(SUMPRODUCT($N$41:AS$41,$N38:AS38)<0.5, "To start", "Running"))) -> Undefined | AU38: 0 | AV38: 0 | AW38: =IF(ISBLANK($I38), "Undefined", IF(AV38<0.5, "Complete",IF(SUMPRODUCT($N$41:AV$41,$N38:AV38)<0.5, "To start", "Running"))) -> Undefined | AX38: 0 | AY38: 0 | AZ38: =IF(ISBLANK($I38), "Undefined", IF(AY38<0.5, "Complete",IF(SUMPRODUCT($N$41:AY$41,$N38:AY38)<0.5, "To start", "Running"))) -> Undefined | BA38: 0 | BB38: 0 | BC38: =IF(ISBLANK($I38), "Undefined", IF(BB38<0.5, "Complete",IF(SUMPRODUCT($N$41:BB$41,$N38:BB38)<0.5, "To start", "Running"))) -> Undefined | BD38: 0 | BE38: 0 | BF38: =IF(ISBLANK($I38), "Undefined", IF(BE38<0.5, "Complete",IF(SUMPRODUCT($N$41:BE$41,$N38:BE38)<0.5, "To start", "Running"))) -> Undefined | BG38: 0 | BH38: 0 | BI38: =IF(ISBLANK($I38), "Undefined", IF(BH38<0.5, "Complete",IF(SUMPRODUCT($N$41:BH$41,$N38:BH38)<0.5, "To start", "Running"))) -> Undefined | BJ38: 0 | BK38: 0 | BL38: =IF(ISBLANK($I38), "Undefined", IF(BK38<0.5, "Complete",IF(SUMPRODUCT($N$41:BK$41,$N38:BK38)<0.5, "To start", "Running"))) -> Undefined | BM38: 0 | BN38: 0 | BO38: =IF(ISBLANK($I38), "Undefined", IF(BN38<0.5, "Complete",IF(SUMPRODUCT($N$41:BN$41,$N38:BN38)<0.5, "To start", "Running"))) -> Undefined | BP38: 0 | BQ38: 0 | BR38: =IF(ISBLANK($I38), "Undefined", IF(BQ38<0.5, "Complete",IF(SUMPRODUCT($N$41:BQ$41,$N38:BQ38)<0.5, "To start", "Running"))) -> Undefined | BS38: 0 | BT38: 0 | BU38: =IF(ISBLANK($I38), "Undefined", IF(BT38<0.5, "Complete",IF(SUMPRODUCT($N$41:BT$41,$N38:BT38)<0.5, "To start", "Running"))) -> Undefined | BV38: 0 | BW38: 0 | BX38: =IF(ISBLANK($I38), "Undefined", IF(BW38<0.5, "Complete",IF(SUMPRODUCT($N$41:BW$41,$N38:BW38)<0.5, "To start", "Running"))) -> Undefined | BY38: 0 | BZ38: 0 | CA38: =IF(ISBLANK($I38), "Undefined", IF(BZ38<0.5, "Complete",IF(SUMPRODUCT($N$41:BZ$41,$N38:BZ38)<0.5, "To start", "Running"))) -> Undefined | CB38: 0 | CC38: 0 | CD38: =IF(ISBLANK($I38), "Undefined", IF(CC38<0.5, "Complete",IF(SUMPRODUCT($N$41:CC$41,$N38:CC38)<0.5, "To start", "Running"))) -> Undefined | CE38: 0 | CF38: 0 | CG38: =IF(ISBLANK($I38), "Undefined", IF(CF38<0.5, "Complete",IF(SUMPRODUCT($N$41:CF$41,$N38:CF38)<0.5, "To start", "Running"))) -> Undefined | CH38: 0 | CI38: 0 | CJ38: =IF(ISBLANK($I38), "Undefined", IF(CI38<0.5, "Complete",IF(SUMPRODUCT($N$41:CI$41,$N38:CI38)<0.5, "To start", "Running"))) -> Undefined | CK38: 0 | CL38: 0 | CM38: =IF(ISBLANK($I38), "Undefined", IF(CL38<0.5, "Complete",IF(SUMPRODUCT($N$41:CL$41,$N38:CL38)<0.5, "To start", "Running"))) -> Undefined | CN38: 0 | CO38: 0 | CP38: =IF(ISBLANK($I38), "Undefined", IF(CO38<0.5, "Complete",IF(SUMPRODUCT($N$41:CO$41,$N38:CO38)<0.5, "To start", "Running"))) -> Undefined | CQ38: 0 | CR38: 0 | CS38: =IF(ISBLANK($I38), "Undefined", IF(CR38<0.5, "Complete",IF(SUMPRODUCT($N$41:CR$41,$N38:CR38)<0.5, "To start", "Running"))) -> Undefined | CT38: 0 | CU38: 0 | CV38: =IF(ISBLANK($I38), "Undefined", IF(CU38<0.5, "Complete",IF(SUMPRODUCT($N$41:CU$41,$N38:CU38)<0.5, "To start", "Running"))) -> Undefined | CW38: 0 | CX38: 0 | CY38: =IF(ISBLANK($I38), "Undefined", IF(CX38<0.5, "Complete",IF(SUMPRODUCT($N$41:CX$41,$N38:CX38)<0.5, "To start", "Running"))) -> Undefined | CZ38: 0 | DA38: 0 | DB38: =IF(ISBLANK($I38), "Undefined", IF(DA38<0.5, "Complete",IF(SUMPRODUCT($N$41:DA$41,$N38:DA38)<0.5, "To start", "Running"))) -> Undefined | DC38: 0 | DD38: 0 | DE38: =IF(ISBLANK($I38), "Undefined", IF(DD38<0.5, "Complete",IF(SUMPRODUCT($N$41:DD$41,$N38:DD38)<0.5, "To start", "Running"))) -> Undefined | DF38: 0 | DG38: 0 | DH38: =IF(ISBLANK($I38), "Undefined", IF(DG38<0.5, "Complete",IF(SUMPRODUCT($N$41:DG$41,$N38:DG38)<0.5, "To start", "Running"))) -> Undefined | DI38: 0 | DJ38: 0 | DK38: =IF(ISBLANK($I38), "Undefined", IF(DJ38<0.5, "Complete",IF(SUMPRODUCT($N$41:DJ$41,$N38:DJ38)<0.5, "To start", "Running"))) -> Undefined | DL38: 0 | DM38: 0 | DN38: =IF(ISBLANK($I38), "Undefined", IF(DM38<0.5, "Complete",IF(SUMPRODUCT($N$41:DM$41,$N38:DM38)<0.5, "To start", "Running"))) -> Undefined | DO38: 0 | DP38: 0 | DQ38: =IF(ISBLANK($I38), "Undefined", IF(DP38<0.5, "Complete",IF(SUMPRODUCT($N$41:DP$41,$N38:DP38)<0.5, "To start", "Running"))) -> Undefined | DR38: 0 | DS38: 0 | DT38: =IF(ISBLANK($I38), "Undefined", IF(DS38<0.5, "Complete",IF(SUMPRODUCT($N$41:DS$41,$N38:DS38)<0.5, "To start", "Running"))) -> Undefined | DU38: 0 | DV38: 0 | DW38: =IF(ISBLANK($I38), "Undefined", IF(DV38<0.5, "Complete",IF(SUMPRODUCT($N$41:DV$41,$N38:DV38)<0.5, "To start", "Running"))) -> Undefined | DX38: 0 | DY38: 0 | DZ38: =IF(ISBLANK($I38), "Undefined", IF(DY38<0.5, "Complete",IF(SUMPRODUCT($N$41:DY$41,$N38:DY38)<0.5, "To start", "Running"))) -> Undefined | EA38: 0 | EB38: 0 | EC38: =IF(ISBLANK($I38), "Undefined", IF(EB38<0.5, "Complete",IF(SUMPRODUCT($N$41:EB$41,$N38:EB38)<0.5, "To start", "Running"))) -> Undefined | EE38: =SUMPRODUCT($L$41:DK$41,$L38:DK38) -> 0 | EF38: 0 | EG38: =OFFSET($O38,0,(Capacity!$F$2-SprintStart)*3,1,1) -> 0 | EH38: 0 | EI38: 0 | EJ38: 0 | EL38: 0 | EM38: 0
K39: =IF(SprintStart>Capacity!$F$2, "To start", INDEX(Burndown,ROW(K39)-ROW(K$6),MIN(Capacity!$F$2-SprintStart,29)*3+3)) -> Undefined | M39: 0 | N39: 0 | O39: 0 | P39: =IF(ISBLANK($I39), "Undefined", IF(O39<0.5, "Complete",IF(SUMPRODUCT($N$41:O$41,$N39:O39)<0.5, "To start", "Running"))) -> Undefined | Q39: 0 | R39: 0 | S39: =IF(ISBLANK($I39), "Undefined", IF(R39<0.5, "Complete",IF(SUMPRODUCT($N$41:R$41,$N39:R39)<0.5, "To start", "Running"))) -> Undefined | T39: 0 | U39: 0 | V39: =IF(ISBLANK($I39), "Undefined", IF(U39<0.5, "Complete",IF(SUMPRODUCT($N$41:U$41,$N39:U39)<0.5, "To start", "Running"))) -> Undefined | W39: 0 | X39: 0 | Y39: =IF(ISBLANK($I39), "Undefined", IF(X39<0.5, "Complete",IF(SUMPRODUCT($N$41:X$41,$N39:X39)<0.5, "To start", "Running"))) -> Undefined | Z39: 0 | AA39: 0 | AB39: =IF(ISBLANK($I39), "Undefined", IF(AA39<0.5, "Complete",IF(SUMPRODUCT($N$41:AA$41,$N39:AA39)<0.5, "To start", "Running"))) -> Undefined | AC39: 0 | AD39: 0 | AE39: =IF(ISBLANK($I39), "Undefined", IF(AD39<0.5, "Complete",IF(SUMPRODUCT($N$41:AD$41,$N39:AD39)<0.5, "To start", "Running"))) -> Undefined | AF39: 0 | AG39: 0 | AH39: =IF(ISBLANK($I39), "Undefined", IF(AG39<0.5, "Complete",IF(SUMPRODUCT($N$41:AG$41,$N39:AG39)<0.5, "To start", "Running"))) -> Undefined | AI39: 0 | AJ39: 0 | AK39: =IF(ISBLANK($I39), "Undefined", IF(AJ39<0.5, "Complete",IF(SUMPRODUCT($N$41:AJ$41,$N39:AJ39)<0.5, "To start", "Running"))) -> Undefined | AL39: 0 | AM39: 0 | AN39: =IF(ISBLANK($I39), "Undefined", IF(AM39<0.5, "Complete",IF(SUMPRODUCT($N$41:AM$41,$N39:AM39)<0.5, "To start", "Running"))) -> Undefined | AO39: 0 | AP39: 0 | AQ39: =IF(ISBLANK($I39), "Undefined", IF(AP39<0.5, "Complete",IF(SUMPRODUCT($N$41:AP$41,$N39:AP39)<0.5, "To start", "Running"))) -> Undefined | AR39: 0 | AS39: 0 | AT39: =IF(ISBLANK($I39), "Undefined", IF(AS39<0.5, "Complete",IF(SUMPRODUCT($N$41:AS$41,$N39:AS39)<0.5, "To start", "Running"))) -> Undefined | AU39: 0 | AV39: 0 | AW39: =IF(ISBLANK($I39), "Undefined", IF(AV39<0.5, "Complete",IF(SUMPRODUCT($N$41:AV$41,$N39:AV39)<0.5, "To start", "Running"))) -> Undefined | AX39: 0 | AY39: 0 | AZ39: =IF(ISBLANK($I39), "Undefined", IF(AY39<0.5, "Complete",IF(SUMPRODUCT($N$41:AY$41,$N39:AY39)<0.5, "To start", "Running"))) -> Undefined | BA39: 0 | BB39: 0 | BC39: =IF(ISBLANK($I39), "Undefined", IF(BB39<0.5, "Complete",IF(SUMPRODUCT($N$41:BB$41,$N39:BB39)<0.5, "To start", "Running"))) -> Undefined | BD39: 0 | BE39: 0 | BF39: =IF(ISBLANK($I39), "Undefined", IF(BE39<0.5, "Complete",IF(SUMPRODUCT($N$41:BE$41,$N39:BE39)<0.5, "To start", "Running"))) -> Undefined | BG39: 0 | BH39: 0 | BI39: =IF(ISBLANK($I39), "Undefined", IF(BH39<0.5, "Complete",IF(SUMPRODUCT($N$41:BH$41,$N39:BH39)<0.5, "To start", "Running"))) -> Undefined | BJ39: 0 | BK39: 0 | BL39: =IF(ISBLANK($I39), "Undefined", IF(BK39<0.5, "Complete",IF(SUMPRODUCT($N$41:BK$41,$N39:BK39)<0.5, "To start", "Running"))) -> Undefined | BM39: 0 | BN39: 0 | BO39: =IF(ISBLANK($I39), "Undefined", IF(BN39<0.5, "Complete",IF(SUMPRODUCT($N$41:BN$41,$N39:BN39)<0.5, "To start", "Running"))) -> Undefined | BP39: 0 | BQ39: 0 | BR39: =IF(ISBLANK($I39), "Undefined", IF(BQ39<0.5, "Complete",IF(SUMPRODUCT($N$41:BQ$41,$N39:BQ39)<0.5, "To start", "Running"))) -> Undefined | BS39: 0 | BT39: 0 | BU39: =IF(ISBLANK($I39), "Undefined", IF(BT39<0.5, "Complete",IF(SUMPRODUCT($N$41:BT$41,$N39:BT39)<0.5, "To start", "Running"))) -> Undefined | BV39: 0 | BW39: 0 | BX39: =IF(ISBLANK($I39), "Undefined", IF(BW39<0.5, "Complete",IF(SUMPRODUCT($N$41:BW$41,$N39:BW39)<0.5, "To start", "Running"))) -> Undefined | BY39: 0 | BZ39: 0 | CA39: =IF(ISBLANK($I39), "Undefined", IF(BZ39<0.5, "Complete",IF(SUMPRODUCT($N$41:BZ$41,$N39:BZ39)<0.5, "To start", "Running"))) -> Undefined | CB39: 0 | CC39: 0 | CD39: =IF(ISBLANK($I39), "Undefined", IF(CC39<0.5, "Complete",IF(SUMPRODUCT($N$41:CC$41,$N39:CC39)<0.5, "To start", "Running"))) -> Undefined | CE39: 0 | CF39: 0 | CG39: =IF(ISBLANK($I39), "Undefined", IF(CF39<0.5, "Complete",IF(SUMPRODUCT($N$41:CF$41,$N39:CF39)<0.5, "To start", "Running"))) -> Undefined | CH39: 0 | CI39: 0 | CJ39: =IF(ISBLANK($I39), "Undefined", IF(CI39<0.5, "Complete",IF(SUMPRODUCT($N$41:CI$41,$N39:CI39)<0.5, "To start", "Running"))) -> Undefined | CK39: 0 | CL39: 0 | CM39: =IF(ISBLANK($I39), "Undefined", IF(CL39<0.5, "Complete",IF(SUMPRODUCT($N$41:CL$41,$N39:CL39)<0.5, "To start", "Running"))) -> Undefined | CN39: 0 | CO39: 0 | CP39: =IF(ISBLANK($I39), "Undefined", IF(CO39<0.5, "Complete",IF(SUMPRODUCT($N$41:CO$41,$N39:CO39)<0.5, "To start", "Running"))) -> Undefined | CQ39: 0 | CR39: 0 | CS39: =IF(ISBLANK($I39), "Undefined", IF(CR39<0.5, "Complete",IF(SUMPRODUCT($N$41:CR$41,$N39:CR39)<0.5, "To start", "Running"))) -> Undefined | CT39: 0 | CU39: 0 | CV39: =IF(ISBLANK($I39), "Undefined", IF(CU39<0.5, "Complete",IF(SUMPRODUCT($N$41:CU$41,$N39:CU39)<0.5, "To start", "Running"))) -> Undefined | CW39: 0 | CX39: 0 | CY39: =IF(ISBLANK($I39), "Undefined", IF(CX39<0.5, "Complete",IF(SUMPRODUCT($N$41:CX$41,$N39:CX39)<0.5, "To start", "Running"))) -> Undefined | CZ39: 0 | DA39: 0 | DB39: =IF(ISBLANK($I39), "Undefined", IF(DA39<0.5, "Complete",IF(SUMPRODUCT($N$41:DA$41,$N39:DA39)<0.5, "To start", "Running"))) -> Undefined | DC39: 0 | DD39: 0 | DE39: =IF(ISBLANK($I39), "Undefined", IF(DD39<0.5, "Complete",IF(SUMPRODUCT($N$41:DD$41,$N39:DD39)<0.5, "To start", "Running"))) -> Undefined | DF39: 0 | DG39: 0 | DH39: =IF(ISBLANK($I39), "Undefined", IF(DG39<0.5, "Complete",IF(SUMPRODUCT($N$41:DG$41,$N39:DG39)<0.5, "To start", "Running"))) -> Undefined | DI39: 0 | DJ39: 0 | DK39: =IF(ISBLANK($I39), "Undefined", IF(DJ39<0.5, "Complete",IF(SUMPRODUCT($N$41:DJ$41,$N39:DJ39)<0.5, "To start", "Running"))) -> Undefined | DL39: 0 | DM39: 0 | DN39: =IF(ISBLANK($I39), "Undefined", IF(DM39<0.5, "Complete",IF(SUMPRODUCT($N$41:DM$41,$N39:DM39)<0.5, "To start", "Running"))) -> Undefined | DO39: 0 | DP39: 0 | DQ39: =IF(ISBLANK($I39), "Undefined", IF(DP39<0.5, "Complete",IF(SUMPRODUCT($N$41:DP$41,$N39:DP39)<0.5, "To start", "Running"))) -> Undefined | DR39: 0 | DS39: 0 | DT39: =IF(ISBLANK($I39), "Undefined", IF(DS39<0.5, "Complete",IF(SUMPRODUCT($N$41:DS$41,$N39:DS39)<0.5, "To start", "Running"))) -> Undefined | DU39: 0 | DV39: 0 | DW39: =IF(ISBLANK($I39), "Undefined", IF(DV39<0.5, "Complete",IF(SUMPRODUCT($N$41:DV$41,$N39:DV39)<0.5, "To start", "Running"))) -> Undefined | DX39: 0 | DY39: 0 | DZ39: =IF(ISBLANK($I39), "Undefined", IF(DY39<0.5, "Complete",IF(SUMPRODUCT($N$41:DY$41,$N39:DY39)<0.5, "To start", "Running"))) -> Undefined | EA39: 0 | EB39: 0 | EC39: =IF(ISBLANK($I39), "Undefined", IF(EB39<0.5, "Complete",IF(SUMPRODUCT($N$41:EB$41,$N39:EB39)<0.5, "To start", "Running"))) -> Undefined | EE39: =SUMPRODUCT($L$41:DK$41,$L39:DK39) -> 0 | EF39: 0 | EG39: =OFFSET($O39,0,(Capacity!$F$2-SprintStart)*3,1,1) -> 0 | EH39: 0 | EI39: 0 | EJ39: 0 | EL39: 0 | EM39: 0
N40: Day | P40: 1 | Q40: Day | S40: =P40+1 -> 2 | T40: Day | V40: =S40+1 -> 3 | W40: Day | Y40: =V40+1 -> 4 | Z40: Day | AB40: =Y40+1 -> 5 | AC40: Day | AE40: =AB40+1 -> 6 | AF40: Day | AH40: =AE40+1 -> 7 | AI40: Day | AK40: =AH40+1 -> 8 | AL40: Day | AN40: =AK40+1 -> 9 | AO40: Day | AQ40: =AN40+1 -> 10 | AR40: Day | AT40: =AQ40+1 -> 11 | AU40: Day | AW40: =AT40+1 -> 12 | AX40: Day | AZ40: =AW40+1 -> 13 | BA40: Day | BC40: =AZ40+1 -> 14 | BD40: Day | BF40: =BC40+1 -> 15 | BG40: Day | BI40: =BF40+1 -> 16 | BJ40: Day | BL40: =BI40+1 -> 17 | BM40: Day | BO40: =BL40+1 -> 18 | BP40: Day | BR40: =BO40+1 -> 19 | BS40: Day | BU40: =BR40+1 -> 20 | BV40: Day | BX40: =BU40+1 -> 21 | BY40: Day | CA40: =BX40+1 -> 22 | CB40: Day | CD40: =CA40+1 -> 23 | CE40: Day | CG40: =CD40+1 -> 24 | CH40: Day | CJ40: =CG40+1 -> 25 | CK40: Day | CM40: =CJ40+1 -> 26 | CN40: Day | CP40: =CM40+1 -> 27 | CQ40: Day | CS40: =CP40+1 -> 28 | CT40: Day | CV40: =CS40+1 -> 29 | CW40: Day | CY40: =CV40+1 -> 30 | CZ40: Day | DB40: =CY40+1 -> 31 | DC40: Day | DE40: =DB40+1 -> 32 | DF40: Day | DH40: =DE40+1 -> 33 | DI40: Day | DK40: =DH40+1 -> 34 | DL40: Day | DN40: =DK40+1 -> 35 | DO40: Day | DQ40: =DN40+1 -> 36 | DR40: Day | DT40: =DQ40+1 -> 37 | DU40: Day | DW40: =DT40+1 -> 38 | DX40: Day | DZ40: =DW40+1 -> 39 | EA40: Day | EC40: =DZ40+1 -> 40
I41: Time Spent Mask | N41: 1 | O41: 0 | P41: 0 | Q41: 1 | R41: 0 | S41: 0 | T41: 1 | U41: 0 | V41: 0 | W41: 1 | X41: 0 | Y41: 0 | Z41: 1 | AA41: 0 | AB41: 0 | AC41: 1 | AD41: 0 | AE41: 0 | AF41: 1 | AG41: 0 | AH41: 0 | AI41: 1 | AJ41: 0 | AK41: 0 | AL41: 1 | AM41: 0 | AN41: 0 | AO41: 1 | AP41: 0 | AQ41: 0 | AR41: 1 | AS41: 0 | AT41: 0 | AU41: 1 | AV41: 0 | AW41: 0 | AX41: 1 | AY41: 0 | AZ41: 0 | BA41: 1 | BB41: 0 | BC41: 0 | BD41: 1 | BE41: 0 | BF41: 0 | BG41: 1 | BH41: 0 | BI41: 0 | BJ41: 1 | BK41: 0 | BL41: 0 | BM41: 1 | BN41: 0 | BO41: 0 | BP41: 1 | BQ41: 0 | BR41: 0 | BS41: 1 | BT41: 0 | BU41: 0 | BV41: 1 | BW41: 0 | BX41: 0 | BY41: 1 | BZ41: 0 | CA41: 0 | CB41: 1 | CC41: 0 | CD41: 0 | CE41: 1 | CF41: 0 | CG41: 0 | CH41: 1 | CI41: 0 | CJ41: 0 | CK41: 1 | CL41: 0 | CM41: 0 | CN41: 1 | CO41: 0 | CP41: 0 | CQ41: 1 | CR41: 0 | CS41: 0 | CT41: 1 | CU41: 0 | CV41: 0 | CW41: 1 | CX41: 0 | CY41: 0 | CZ41: 1 | DA41: 0 | DB41: 0 | DC41: 1 | DD41: 0 | DE41: 0 | DF41: 1 | DG41: 0 | DH41: 0 | DI41: 1 | DJ41: 0 | DK41: 0 | DL41: 1 | DM41: 0 | DN41: 0 | DO41: 1 | DP41: 0 | DQ41: 0 | DR41: 1 | DS41: 0 | DT41: 0 | DU41: 1 | DV41: 0 | DW41: 0 | DX41: 1 | DY41: 0 | DZ41: 0 | EA41: 1 | EB41: 0 | EC41: 0
I42: Time Left Mask | N42: 0 | O42: 1 | P42: 0 | Q42: 0 | R42: 1 | S42: 0 | T42: 0 | U42: 1 | V42: 0 | W42: 0 | X42: 1 | Y42: 0 | Z42: 0 | AA42: 1 | AB42: 0 | AC42: 0 | AD42: 1 | AE42: 0 | AF42: 0 | AG42: 1 | AH42: 0 | AI42: 0 | AJ42: 1 | AK42: 0 | AL42: 0 | AM42: 1 | AN42: 0 | AO42: 0 | AP42: 1 | AQ42: 0 | AR42: 0 | AS42: 1 | AT42: 0 | AU42: 0 | AV42: 1 | AW42: 0 | AX42: 0 | AY42: 1 | AZ42: 0 | BA42: 0 | BB42: 1 | BC42: 0 | BD42: 0 | BE42: 1 | BF42: 0 | BG42: 0 | BH42: 1 | BI42: 0 | BJ42: 0 | BK42: 1 | BL42: 0 | BM42: 0 | BN42: 1 | BO42: 0 | BP42: 0 | BQ42: 1 | BR42: 0 | BS42: 0 | BT42: 1 | BU42: 0 | BV42: 0 | BW42: 1 | BX42: 0 | BY42: 0 | BZ42: 1 | CA42: 0 | CB42: 0 | CC42: 1 | CD42: 0 | CE42: 0 | CF42: 1 | CG42: 0 | CH42: 0 | CI42: 1 | CJ42: 0 | CK42: 0 | CL42: 1 | CM42: 0 | CN42: 0 | CO42: 1 | CP42: 0 | CQ42: 0 | CR42: 1 | CS42: 0 | CT42: 0 | CU42: 1 | CV42: 0 | CW42: 0 | CX42: 1 | CY42: 0 | CZ42: 0 | DA42: 1 | DB42: 0 | DC42: 0 | DD42: 1 | DE42: 0 | DF42: 0 | DG42: 1 | DH42: 0 | DI42: 0 | DJ42: 1 | DK42: 0 | DL42: 0 | DM42: 1 | DN42: 0 | DO42: 0 | DP42: 1 | DQ42: 0 | DR42: 0 | DS42: 1 | DT42: 0 | DU42: 0 | DV42: 1 | DW42: 0 | DX42: 0 | DY42: 1 | DZ42: 0 | EA42: 0 | EB42: 1 | EC42: 0
I43: Status Mask | N43: 0 | O43: 0 | P43: 1 | Q43: 0 | R43: 0 | S43: 1 | T43: 0 | U43: 0 | V43: 1 | W43: 0 | X43: 0 | Y43: 1 | Z43: 0 | AA43: 0 | AB43: 1 | AC43: 0 | AD43: 0 | AE43: 1 | AF43: 0 | AG43: 0 | AH43: 1 | AI43: 0 | AJ43: 0 | AK43: 1 | AL43: 0 | AM43: 0 | AN43: 1 | AO43: 0 | AP43: 0 | AQ43: 1 | AR43: 0 | AS43: 0 | AT43: 1 | AU43: 0 | AV43: 0 | AW43: 1 | AX43: 0 | AY43: 0 | AZ43: 1 | BA43: 0 | BB43: 0 | BC43: 1 | BD43: 0 | BE43: 0 | BF43: 1 | BG43: 0 | BH43: 0 | BI43: 1 | BJ43: 0 | BK43: 0 | BL43: 1 | BM43: 0 | BN43: 0 | BO43: 1 | BP43: 0 | BQ43: 0 | BR43: 1 | BS43: 0 | BT43: 0 | BU43: 1 | BV43: 0 | BW43: 0 | BX43: 1 | BY43: 0 | BZ43: 0 | CA43: 1 | CB43: 0 | CC43: 0 | CD43: 1 | CE43: 0 | CF43: 0 | CG43: 1 | CH43: 0 | CI43: 0 | CJ43: 1 | CK43: 0 | CL43: 0 | CM43: 1 | CN43: 0 | CO43: 0 | CP43: 1 | CQ43: 0 | CR43: 0 | CS43: 1 | CT43: 0 | CU43: 0 | CV43: 1 | CW43: 0 | CX43: 0 | CY43: 1 | CZ43: 0 | DA43: 0 | DB43: 1 | DC43: 0 | DD43: 0 | DE43: 1 | DF43: 0 | DG43: 0 | DH43: 1 | DI43: 0 | DJ43: 0 | DK43: 1 | DL43: 0 | DM43: 0 | DN43: 1 | DO43: 0 | DP43: 0 | DQ43: 1 | DR43: 0 | DS43: 0 | DT43: 1 | DU43: 0 | DV43: 0 | DW43: 1 | DX43: 0 | DY43: 0 | DZ43: 1 | EA43: 0 | EB43: 0 | EC43: 1
I44: Total: | L44: (hours) | M44: =SUBTOTAL(109,M$7:M$39) -> 36 | N44: =SUBTOTAL(109,N$7:N$39) -> 4 | O44: 0 | Q44: =SUBTOTAL(109,Q$7:Q$39) -> 4 | R44: =SUBTOTAL(109,R$7:R$39) -> 12 | T44: 0 | U44: =SUBTOTAL(109,U$7:U$39) -> 12 | W44: =SUBTOTAL(109,W$7:W$39) -> 4 | X44: =SUBTOTAL(109,X$7:X$39) -> 12 | Z44: =SUBTOTAL(109,Z$7:Z$39) -> 4 | AA44: =SUBTOTAL(109,AA$7:AA$39) -> 12 | AC44: =SUBTOTAL(109,AC$7:AC$39) -> 4 | AD44: =SUBTOTAL(109,AD$7:AD$39) -> 8 | AF44: =SUBTOTAL(109,AF$7:AF$39) -> 4 | AG44: =SUBTOTAL(109,AG$7:AG$39) -> 8 | AI44: =SUBTOTAL(109,AI$7:AI$39) -> 14 | AJ44: =SUBTOTAL(109,AJ$7:AJ$39) -> 2 | AL44: =SUBTOTAL(109,AL$7:AL$39) -> 0 | AM44: =SUBTOTAL(109,AM$7:AM$39) -> 2 | AO44: =SUBTOTAL(109,AO$7:AO$39) -> 2 | AP44: =SUBTOTAL(109,AP$7:AP$39) -> 0 | AR44: =SUBTOTAL(109,AR$7:AR$39) -> 0 | AS44: =SUBTOTAL(109,AS$7:AS$39) -> 0 | AU44: =SUBTOTAL(109,AU$7:AU$39) -> 0 | AV44: =SUBTOTAL(109,AV$7:AV$39) -> 0 | AX44: =SUBTOTAL(109,AX$7:AX$39) -> 0 | AY44: =SUBTOTAL(109,AY$7:AY$39) -> 0 | BA44: =SUBTOTAL(109,BA$7:BA$39) -> 0 | BB44: =SUBTOTAL(109,BB$7:BB$39) -> 0 | BD44: =SUBTOTAL(109,BD$7:BD$39) -> 0 | BE44: =SUBTOTAL(109,BE$7:BE$39) -> 0 | BG44: =SUBTOTAL(109,BG$7:BG$39) -> 0 | BH44: =SUBTOTAL(109,BH$7:BH$39) -> 0 | BJ44: =SUBTOTAL(109,BJ$7:BJ$39) -> 0 | BK44: =SUBTOTAL(109,BK$7:BK$39) -> 0 | BM44: =SUBTOTAL(109,BM$7:BM$39) -> 0 | BN44: =SUBTOTAL(109,BN$7:BN$39) -> 0 | BP44: =SUBTOTAL(109,BP$7:BP$39) -> 0 | BQ44: =SUBTOTAL(109,BQ$7:BQ$39) -> 0 | BS44: =SUBTOTAL(109,BS$7:BS$39) -> 0 | BT44: =SUBTOTAL(109,BT$7:BT$39) -> 0 | BV44: =SUBTOTAL(109,BV$7:BV$39) -> 0 | BW44: =SUBTOTAL(109,BW$7:BW$39) -> 0 | BY44: =SUBTOTAL(109,BY$7:BY$39) -> 0 | BZ44: =SUBTOTAL(109,BZ$7:BZ$39) -> 0 | CB44: =SUBTOTAL(109,CB$7:CB$39) -> 0 | CC44: =SUBTOTAL(109,CC$7:CC$39) -> 0 | CE44: =SUBTOTAL(109,CE$7:CE$39) -> 0 | CF44: =SUBTOTAL(109,CF$7:CF$39) -> 0 | CH44: =SUBTOTAL(109,CH$7:CH$39) -> 0 | CI44: =SUBTOTAL(109,CI$7:CI$39) -> 0 | CK44: =SUBTOTAL(109,CK$7:CK$39) -> 0 | CL44: =SUBTOTAL(109,CL$7:CL$39) -> 0 | CN44: =SUBTOTAL(109,CN$7:CN$39) -> 0 | CO44: =SUBTOTAL(109,CO$7:CO$39) -> 0 | CQ44: =SUBTOTAL(109,CQ$7:CQ$39) -> 0 | CR44: =SUBTOTAL(109,CR$7:CR$39) -> 0 | CT44: =SUBTOTAL(109,CT$7:CT$39) -> 0 | CU44: =SUBTOTAL(109,CU$7:CU$39) -> 0 | CW44: =SUBTOTAL(109,CW$7:CW$39) -> 0 | CX44: =SUBTOTAL(109,CX$7:CX$39) -> 0 | CZ44: =SUBTOTAL(109,CZ$7:CZ$39) -> 0 | DA44: 0 | DB44: 0 | DC44: 0 | DD44: 0 | DE44: 0 | DF44: 0 | DG44: 0 | DH44: 0 | DI44: 0 | DJ44: 0 | DK44: 0 | DL44: 0 | DM44: 0 | DN44: 0 | DO44: 0 | DP44: 0 | DQ44: 0 | DR44: 0 | DS44: 0 | DT44: 0 | DU44: 0 | DV44: 0 | DW44: 0 | DX44: 0 | DY44: 0 | DZ44: 0 | EA44: 0 | EB44: 0 | EC44: 0 | EE44: =SUBTOTAL(109,EE$7:EE$39) -> 52 | EF44: =EE44/8 -> 6.5 | EG44: =SUBTOTAL(109,EG$7:EG$39) -> 0 | EH44: =EG44/8 -> 0 | EI44: =SUBTOTAL(109,EI$7:EI$39) -> 52 | EJ44: =EI44/8 -> 6.5 | EK44: =(EI44/M44)-1 -> 44% | EL44: =EI44-M3 -> 52 | EM44: =EL44/8 -> 6.5
L45: (days) | M45: =M44/8 -> 4.5 | N45: =N44/8 -> 0.5 | O45: =O44/8 -> 0 | Q45: 0.5 | R45: 1.5 | T45: 0 | U45: 1.5 | W45: 0.5 | X45: 1.5 | Z45: 0.5 | AA45: 1.5 | AC45: 0.5 | AD45: 1 | AF45: 0.5 | AG45: 1 | AI45: 1.75 | AJ45: 0.25 | AL45: 0 | AM45: 0.25 | AO45: 0.25 | AP45: 0 | AR45: 0 | AS45: 0 | AU45: 0 | AV45: 0 | AX45: 0 | AY45: 0 | BA45: 0 | BB45: 0 | BD45: 0 | BE45: 0 | BG45: 0 | BH45: 0 | BJ45: 0 | BK45: 0 | BM45: 0 | BN45: 0 | BP45: 0 | BQ45: 0 | BS45: 0 | BT45: 0 | BU45: 0 | BV45: 0 | BW45: 0 | BX45: 0 | BY45: 0 | BZ45: 0 | CA45: =CA44/8 -> 0 | CB45: 0 | CC45: 0 | CD45: 0 | CE45: 0 | CF45: 0 | CG45: 0 | CH45: 0 | CI45: 0 | CJ45: 0 | CK45: 0 | CL45: 0 | CM45: 0 | CN45: 0 | CO45: 0 | CP45: 0 | CQ45: 0 | CR45: 0 | CS45: 0 | CT45: 0 | CU45: 0 | CV45: 0 | CW45: 0 | CX45: 0 | CY45: 0 | CZ45: 0 | DA45: 0 | DB45: 0 | DC45: 0 | DD45: 0 | DE45: 0 | DF45: 0 | DG45: 0 | DH45: 0 | DI45: 0 | DJ45: 0 | DK45: 0 | DL45: 0 | DM45: 0 | DN45: 0 | DO45: 0 | DP45: 0 | DQ45: 0 | DR45: 0 | DS45: 0 | DT45: 0 | DU45: 0 | DV45: 0 | DW45: 0 | DX45: 0 | DY45: 0 | DZ45: 0 | EA45: 0 | EB45: 0 | EC45: 0

Sheet Team Roster
B4: Sprint Vision | C4: [Sprint Vision]
B6: Sprint Team | C6: Name | D6: Initial | E6: Phone | F6: Mobile phone | G6: Email | H6: IM
C8: Team | D8: Team
C9: Miguel Almeida | D9: MA
C10: Miguel Rosa | D10: MR
C11: João Albuquerque | D11: JQ
C14: No one | D14: No one

Sheet Capacity
B2: Current Date | E2: =TEXT(F2,"[$-en-US]ddd") -> Wed | F2: =TODAY() -> 2018-05-30
B3: Sprint Start Date | E3: =TEXT(F3,"[$-en-US]ddd") -> Tue | F3: 2018-04-24
B5: Capacity Tracking Stats | K5: Team Member Available Capacity (Hours)
K6: =SprintStart -> 2018-04-24 | L6: =IF(AND(SkipWeekends, WEEKDAY(K6)=6),K6+3, K6+1) -> 2018-04-25 | M6: 2018-04-26 | N6: 2018-04-27 | O6: 2018-04-28 | P6: 2018-04-29 | Q6: 2018-04-30 | R6: 2018-05-01 | S6: 2018-05-02 | T6: 2018-05-03 | U6: 2018-05-04 | V6: 2018-05-05 | W6: 2018-05-06 | X6: 2018-05-07 | Y6: 2018-05-08 | Z6: 2018-05-09 | AA6: 2018-05-10 | AB6: 2018-05-11 | AC6: 2018-05-12 | AD6: 2018-05-13 | AE6: 2018-05-14 | AF6: 2018-05-15 | AG6: 2018-05-16 | AH6: 2018-05-17 | AI6: 2018-05-18 | AJ6: 2018-05-19 | AK6: 2018-05-20 | AL6: 2018-05-21 | AM6: 2018-05-22 | AN6: 2018-05-23 | AO6: 2018-05-24 | AP6: 2018-05-25 | AQ6: 2018-05-26 | AR6: 2018-05-27 | AS6: 2018-05-28 | AT6: 2018-05-29 | AU6: 2018-05-30 | AV6: 2018-05-31 | AW6: 2018-06-01 | AX6: 2018-06-02 | AY6: Available Capacity | BF6: Available Capacity -Assigned Effort
F7: Project Team | G7: % Allocation | H7: Assigned Hours | I7: Assigned Days | K7: =UPPER(LEFT(TEXT(K6,"[$-en-US]ddd"),1)) -> T | L7: =UPPER(LEFT(TEXT(L6,"[$-en-US]ddd"),1)) -> W | M7: =UPPER(LEFT(TEXT(M6,"[$-en-US]ddd"),1)) -> T | N7: =UPPER(LEFT(TEXT(N6,"[$-en-US]ddd"),1)) -> F | O7: =UPPER(LEFT(TEXT(O6,"[$-en-US]ddd"),1)) -> S | P7: S | Q7: M | R7: T | S7: W | T7: T | U7: F | V7: S | W7: S | X7: M | Y7: T | Z7: W | AA7: T | AB7: F | AC7: S | AD7: S | AE7: M | AF7: T | AG7: W | AH7: T | AI7: F | AJ7: S | AK7: S | AL7: M | AM7: T | AN7: W | AO7: T | AP7: F | AQ7: S | AR7: S | AS7: M | AT7: T | AU7: W | AV7: T | AW7: F | AX7: S | AY7: Hours | BE7: Days | BF7: Hours | BG7: Days
C8: Hours | D8: Days | F8: MA | G8: 100% | H8: =SUMIF(Sprint!$J$6:$J$1833,F8,Sprint!$EI$6:$EI$1833) -> 36 | I8: =H8/8 -> 4.5 | K8: 8 | L8: 8 | M8: 8 | N8: =IF(OR(WEEKDAY(N$6)=7,WEEKDAY(N$6)=1), "", 0) -> 0 | O8: =IF(OR(WEEKDAY(O$6)=7,WEEKDAY(O$6)=1), "", 0) ->  | P8: =IF(OR(WEEKDAY(P$6)=7,WEEKDAY(P$6)=1), "", 0) ->  | Q8: =IF(OR(WEEKDAY(Q$6)=7,WEEKDAY(Q$6)=1), "", 0) -> 0 | R8: 8 | S8: 8 | T8: 8 | U8: 0 | W8: =IF(OR(WEEKDAY(W$6)=7,WEEKDAY(W$6)=1), "", 0) ->  | X8: 0 | Y8: 8 | Z8: 8 | AA8: 8 | AB8: 0 | AE8: 0 | AF8: 8 | AG8: 8 | AH8: 8 | AI8: 0 | AL8: 0 | AM8: 0 | AN8: 0 | AO8: 0 | AP8: 0 | AS8: 0 | AT8: 0 | AU8: 0 | AV8: 0 | AW8: 0 | AY8: =IF(F8="No one",0,(SUM(K8:AX8))*G8) -> 96 | BE8: =AY8/8 -> 12 | BF8: =AY8-H8 -> 60.0 | BG8: =BF8/8 -> 7.5
B9: Total Capacity | C9: =SUM(AY6:BB25) -> 116.0 | D9: =C9/8 -> 14.5 | F9: C2 | G9: 100% | H9: =SUMIF(Sprint!$J$6:$J$1833,F9,Sprint!$EI$6:$EI$1833) -> 0 | I9: =H9/8 -> 0 | K9: 8 | L9: 4 | M9: 8 | N9: 0 | P9: =IF(OR(WEEKDAY(P$6)=7,WEEKDAY(P$6)=1), "", 0) ->  | Q9: 0 | R9: 0 | S9: 0 | T9: 0 | U9: 0 | X9: 0 | Y9: 0 | Z9: 0 | AA9: 0 | AB9: 0 | AE9: 0 | AF9: 0 | AG9: 0 | AH9: 0 | AI9: 0 | AL9: 0 | AM9: 0 | AN9: 0 | AO9: 0 | AP9: 0 | AS9: 0 | AT9: 0 | AU9: 0 | AV9: 0 | AW9: 0 | AY9: 20 | BE9: =AY9/8 -> 2.5 | BF9: =AY9-H9 -> 20.0 | BG9: =BF9/8 -> 2.5
B10: Planned Effort | C10: =Sprint!M44 -> 36.0 | D10: =C10/8 -> 4.5 | F10: C3 | G10: 100% | H10: =SUMIF(Sprint!$J$6:$J$1833,F10,Sprint!$EI$6:$EI$1833) -> 0 | I10: =H10/8 -> 0 | K10: 0 | L10: 0 | M10: 0 | Q10: 0 | R10: 0 | S10: 0 | T10: 0 | U10: 0 | X10: 0 | Y10: 0 | Z10: 0 | AA10: 0 | AB10: 0 | AE10: 0 | AF10: 0 | AG10: 0 | AH10: 0 | AI10: 0 | AL10: 0 | AM10: 0 | AN10: 0 | AO10: 0 | AP10: 0 | AS10: 0 | AT10: 0 | AU10: 0 | AV10: 0 | AW10: 0 | AY10: 0 | BE10: =AY10/8 -> 0 | BF10: 0.0 | BG10: 0
B11: Total Effort (Spent + Remaining) | C11: =SUM(H8:H25) -> 36.0 | D11: =C11/8 -> 4.5 | F11: C4 | G11: 100% | H11: =SUMIF(Sprint!$J$6:$J$1833,F11,Sprint!$EI$6:$EI$1833) -> 0 | I11: =H11/8 -> 0 | K11: 0 | L11: 0 | M11: 0 | Q11: 0 | R11: 0 | S11: 0 | T11: 0 | U11: 0 | X11: 0 | Y11: 0 | Z11: 0 | AA11: 0 | AB11: 0 | AE11: 0 | AF11: 0 | AG11: 0 | AH11: 0 | AI11: 0 | AL11: 0 | AM11: 0 | AN11: 0 | AO11: 0 | AP11: 0 | AS11: 0 | AT11: 0 | AU11: 0 | AV11: 0 | AW11: 0 | AY11: 0 | BE11: 0 | BF11: 0.0 | BG11: 0
B12: Total Effort - Capacity | C12: =C9-C11 -> 80.0 | D12: =C12/8 -> 10.0 | F12: C5 | G12: 100% | H12: =SUMIF(Sprint!$J$6:$J$1833,F12,Sprint!$EI$6:$EI$1833) -> 0 | I12: =H12/8 -> 0 | K12: 0 | L12: H | M12: 0 | N12: =IF(OR(WEEKDAY(N$6)=7,WEEKDAY(N$6)=1), "", 0) -> 0 | Q12: 0 | R12: 0 | S12: 0 | T12: 0 | U12: 0 | X12: 0 | Y12: 0 | Z12: 0 | AA12: 0 | AB12: 0 | AE12: 0 | AF12: 0 | AG12: 0 | AH12: 0 | AI12: 0 | AL12: 0 | AM12: 0 | AN12: 0 | AO12: 0 | AP12: 0 | AS12: 0 | AT12: 0 | AU12: 0 | AV12: 0 | AW12: 0 | AY12: 0 | BE12: 0 | BF12: 0.0 | BG12: 0
H13: =SUMIF(Sprint!$J$6:$J$1833,F13,Sprint!$EI$6:$EI$1833) -> 0 | I13: 0 | K13: 0 | L13: 0 | M13: 0 | N13: 0 | Q13: 0 | R13: 0 | S13: 0 | T13: 0 | U13: 0 | X13: 0 | Y13: 0 | Z13: 0 | AA13: 0 | AB13: 0 | AE13: 0 | AF13: 0 | AG13: 0 | AH13: 0 | AI13: 0 | AL13: 0 | AM13: 0 | AN13: 0 | AO13: 0 | AP13: 0 | AS13: 0 | AT13: 0 | AU13: 0 | AV13: 0 | AW13: 0 | AY13: 0 | BE13: =AY13/8 -> 0 | BF13: 0.0 | BG13: 0
B14: ATTENTION | H14: =SUMIF(Sprint!$J$6:$J$1833,F14,Sprint!$EI$6:$EI$1833) -> 0 | I14: 0 | K14: 0 | L14: 0 | M14: 0 | N14: 0 | Q14: 0 | R14: 0 | S14: 0 | T14: 0 | U14: 0 | X14: 0 | Y14: 0 | Z14: 0 | AA14: 0 | AB14: 0 | AE14: 0 | AF14: 0 | AG14: 0 | AH14: 0 | AI14: 0 | AL14: 0 | AM14: 0 | AN14: 0 | AO14: 0 | AP14: 0 | AS14: 0 | AT14: 0 | AU14: 0 | AV14: 0 | AW14: 0 | AY14: 0 | BE14: 0 | BF14: 0.0 | BG14: 0
B15: The responsible must be fullfilled in all sprint | F15: Team | G15: 0% | H15: =SUMIF(Sprint!$J$6:$J$1833,F15,Sprint!$EI$6:$EI$1833) -> 0 | I15: 0 | K15: 0 | L15: 0 | M15: 0 | N15: 0 | Q15: 0 | R15: 0 | S15: 0 | T15: 0 | U15: 0 | X15: 0 | Y15: 0 | Z15: 0 | AA15: 0 | AB15: 0 | AE15: 0 | AF15: 0 | AG15: 0 | AH15: 0 | AI15: 0 | AL15: 0 | AM15: 0 | AN15: 0 | AO15: 0 | AP15: 0 | AS15: 0 | AT15: 0 | AU15: 0 | AV15: 0 | AW15: 0 | AY15: 0 | BE15: 0 | BF15: 0.0 | BG15: 0
B16: tasks. Use "No one" instead of null. | F16: No one | G16: 0% | H16: =SUMIF(Sprint!$J$6:$J$1833,F16,Sprint!$EI$6:$EI$1833) -> 0 | I16: 0 | K16: 0 | L16: 0 | M16: 0 | N16: 0 | Q16: 0 | R16: =IF(OR(WEEKDAY(R$6)=7,WEEKDAY(R$6)=1), "", 0) -> 0 | S16: 0 | T16: 0 | U16: 0 | X16: 0 | Y16: 0 | Z16: 0 | AA16: 0 | AB16: 0 | AE16: 0 | AF16: 0 | AG16: 0 | AH16: 0 | AI16: 0 | AL16: 0 | AM16: 0 | AN16: 0 | AO16: 0 | AP16: 0 | AS16: 0 | AT16: 0 | AU16: 0 | AV16: 0 | AW16: 0 | AY16: 0 | BE16: 0 | BF16: 0.0 | BG16: 0
H17: =SUMIF(Sprint!$J$6:$J$1833,F17,Sprint!$EI$6:$EI$1833) -> 0 | I17: 0 | K17: 0 | L17: 0 | M17: 0 | N17: 0 | Q17: 0 | R17: 0 | S17: 0 | T17: 0 | U17: 0 | X17: 0 | Y17: 0 | Z17: 0 | AA17: 0 | AB17: 0 | AE17: 0 | AF17: 0 | AG17: 0 | AH17: 0 | AI17: 0 | AL17: 0 | AM17: 0 | AN17: 0 | AO17: 0 | AP17: 0 | AS17: 0 | AT17: 0 | AU17: 0 | AV17: 0 | AW17: 0 | AY17: 0 | BE17: 0 | BF17: 0 | BG17: 0
B18: Yellow = Under use | H18: =SUMIF(Sprint!$J$6:$J$1833,F18,Sprint!$EI$6:$EI$1833) -> 0 | I18: 0 | K18: 0 | L18: 0 | M18: 0 | N18: 0 | Q18: 0 | R18: 0 | S18: 0 | T18: 0 | U18: 0 | X18: 0 | Y18: 0 | Z18: 0 | AA18: 0 | AB18: 0 | AE18: 0 | AF18: 0 | AG18: 0 | AH18: 0 | AI18: 0 | AL18: 0 | AM18: 0 | AN18: 0 | AO18: 0 | AP18: 0 | AS18: 0 | AT18: 0 | AU18: 0 | AV18: 0 | AW18: 0 | AY18: 0 | BE18: 0 | BF18: 0 | BG18: 0
B19: Red = Over use | H19: =SUMIF(Sprint!$J$6:$J$1833,F19,Sprint!$EI$6:$EI$1833) -> 0 | I19: 0 | K19: 0 | L19: 0 | M19: 0 | N19: 0 | Q19: 0 | R19: 0 | S19: 0 | T19: 0 | U19: 0 | X19: 0 | Y19: 0 | Z19: 0 | AA19: 0 | AB19: 0 | AE19: 0 | AF19: 0 | AG19: 0 | AH19: 0 | AI19: 0 | AL19: 0 | AM19: 0 | AN19: 0 | AO19: 0 | AP19: 0 | AS19: 0 | AT19: 0 | AU19: 0 | AV19: 0 | AW19: 0 | AY19: 0 | BE19: 0 | BF19: 0 | BG19: 0
H20: =SUMIF(Sprint!$J$6:$J$1833,F20,Sprint!$EI$6:$EI$1833) -> 0 | I20: 0 | K20: 0 | L20: 0 | M20: 0 | N20: 0 | Q20: 0 | R20: 0 | S20: 0 | T20: 0 | U20: 0 | X20: 0 | Y20: 0 | Z20: 0 | AA20: 0 | AB20: 0 | AE20: 0 | AF20: 0 | AG20: 0 | AH20: 0 | AI20: 0 | AL20: 0 | AM20: 0 | AN20: 0 | AO20: 0 | AP20: 0 | AS20: 0 | AT20: 0 | AU20: 0 | AV20: 0 | AW20: 0 | AY20: 0 | BE20: 0 | BF20: 0 | BG20: 0
H21: =SUMIF(Sprint!$J$6:$J$1833,F21,Sprint!$EI$6:$EI$1833) -> 0 | I21: 0 | K21: 0 | L21: 0 | M21: 0 | N21: 0 | Q21: 0 | R21: 0 | S21: 0 | T21: 0 | U21: 0 | X21: 0 | Y21: 0 | Z21: 0 | AA21: 0 | AB21: 0 | AE21: 0 | AF21: 0 | AG21: 0 | AH21: 0 | AI21: 0 | AL21: 0 | AM21: 0 | AN21: 0 | AO21: 0 | AP21: 0 | AS21: 0 | AT21: 0 | AU21: 0 | AV21: 0 | AW21: 0 | AY21: 0 | BE21: 0 | BF21: 0 | BG21: 0
H22: =SUMIF(Sprint!$J$6:$J$1833,F22,Sprint!$EI$6:$EI$1833) -> 0 | I22: 0 | K22: 0 | L22: 0 | M22: 0 | N22: 0 | Q22: 0 | R22: 0 | S22: 0 | T22: 0 | U22: 0 | X22: 0 | Y22: 0 | Z22: 0 | AA22: 0 | AB22: 0 | AE22: 0 | AF22: 0 | AG22: 0 | AH22: 0 | AI22: 0 | AL22: 0 | AM22: 0 | AN22: 0 | AO22: 0 | AP22: 0 | AS22: 0 | AT22: 0 | AU22: 0 | AV22: 0 | AW22: 0 | AY22: 0 | BE22: 0 | BF22: 0 | BG22: 0
H23: =SUMIF(Sprint!$J$6:$J$1833,F23,Sprint!$EI$6:$EI$1833) -> 0 | I23: 0 | K23: 0 | L23: 0 | M23: 0 | N23: 0 | Q23: 0 | R23: 0 | S23: 0 | T23: 0 | U23: 0 | X23: 0 | Y23: 0 | Z23: 0 | AA23: 0 | AB23: 0 | AE23: 0 | AF23: 0 | AG23: 0 | AH23: 0 | AI23: 0 | AL23: 0 | AM23: 0 | AN23: 0 | AO23: 0 | AP23: =IF(OR(WEEKDAY(AP$6)=7,WEEKDAY(AP$6)=1), "", 0) -> 0 | AS23: 0 | AT23: 0 | AU23: 0 | AV23: 0 | AW23: 0 | AY23: 0 | BE23: 0 | BF23: 0 | BG23: 0
H24: =SUMIF(Sprint!$J$6:$J$1833,F24,Sprint!$EI$6:$EI$1833) -> 0 | I24: 0 | K24: 0 | L24: 0 | M24: 0 | N24: 0 | Q24: 0 | R24: 0 | S24: 0 | T24: 0 | U24: 0 | X24: 0 | Y24: 0 | Z24: 0 | AA24: 0 | AB24: 0 | AE24: 0 | AF24: 0 | AG24: 0 | AH24: 0 | AI24: 0 | AL24: 0 | AM24: 0 | AN24: 0 | AO24: 0 | AP24: 0 | AS24: 0 | AT24: 0 | AU24: 0 | AV24: 0 | AW24: 0 | AY24: 0 | BE24: 0 | BF24: 0 | BG24: 0
H25: =SUMIF(Sprint!$J$6:$J$1833,F25,Sprint!$EI$6:$EI$1833) -> 0 | I25: 0 | K25: 0 | L25: 0 | M25: 0 | N25: 0 | Q25: 0 | R25: 0 | S25: 0 | T25: 0 | U25: 0 | X25: 0 | Y25: 0 | Z25: 0 | AA25: 0 | AB25: 0 | AE25: 0 | AF25: 0 | AG25: 0 | AH25: 0 | AI25: 0 | AL25: 0 | AM25: 0 | AN25: 0 | AO25: 0 | AP25: 0 | AS25: 0 | AT25: 0 | AU25: 0 | AV25: 0 | AW25: 0 | AY25: 0 | BE25: 0 | BF25: 0 | BG25: 0
H26: Total | K26: =SUM(K8:K25) -> 16 | L26: =SUM(L8:L25) -> 12 | M26: 16 | N26: 0 | O26: 0 | P26: 0 | Q26: 0 | R26: 8 | S26: 8 | T26: 8 | U26: 0 | V26: 0 | W26: 0 | X26: 0 | Y26: 8 | Z26: 8 | AA26: 8 | AB26: 0 | AC26: 0 | AD26: 0 | AE26: 0 | AF26: 8 | AG26: 8 | AH26: 8 | AI26: 0 | AJ26: 0 | AK26: 0 | AL26: 0 | AM26: 0 | AN26: 0 | AO26: 0 | AP26: 0 | AQ26: 0 | AR26: 0 | AS26: 0 | AT26: 0 | AU26: 0 | AV26: 0 | AW26: 0 | AX26: 0 | AY26: =SUM(AY8:BD25) -> 116 | BD26: 0 | BE26: 14.5
H27: Accumulated | K27: =K26 -> 16 | L27: =K27+L26 -> 28 | M27: =L27+M26 -> 44 | N27: 44 | O27: 44 | P27: 44 | Q27: 44 | R27: 52 | S27: 60 | T27: 68 | U27: 68 | V27: 68 | W27: 68 | X27: 68 | Y27: 76 | Z27: 84 | AA27: 92 | AB27: 92 | AC27: 92 | AD27: 92 | AE27: 92 | AF27: 100 | AG27: 108 | AH27: 116 | AI27: 116 | AJ27: 116 | AK27: 116 | AL27: 116 | AM27: 116 | AN27: 116 | AO27: 116 | AP27: 116 | AQ27: 116 | AR27: 116 | AS27: 116 | AT27: 116 | AU27: 116 | AV27: 116 | AW27: 116 | AX27: 116
K29: H | L29: = | M29: Holidays
K30: OFF | L30: = | M30: OFF
K31: OA | L31: = | M31: Other activities

Sheet Analysis
A3: Date | E3: =INDEX(SprintDates,1,(E4-1)*BurndownColumns+1) -> 2018-04-24 | F3: =INDEX(SprintDates,1,(F4-1)*BurndownColumns+1) -> 2018-04-25 | G3: 2018-04-26 | H3: 2018-04-27 | I3: 2018-04-28 | J3: 2018-04-29 | K3: 2018-04-30 | L3: 2018-05-01 | M3: 2018-05-02 | N3: 2018-05-03 | O3: 2018-05-04 | P3: 2018-05-05 | Q3: 2018-05-06 | R3: 2018-05-07 | S3: 2018-05-08 | T3: 2018-05-09 | U3: 2018-05-10 | V3: 2018-05-11 | W3: 2018-05-12 | X3: 2018-05-13 | Y3: 2018-05-14 | Z3: 2018-05-15 | AA3: 2018-05-16 | AB3: 2018-05-17 | AC3: 2018-05-18 | AD3: 2018-05-19 | AE3: 2018-05-20 | AF3: 2018-05-21 | AG3: 2018-05-22 | AH3: 2018-05-23 | AI3: 2018-05-24 | AJ3: 2018-05-25 | AK3: 2018-05-26 | AL3: 2018-05-27 | AM3: 2018-05-28 | AN3: 2018-05-29 | AO3: 2018-05-30 | AP3: 2018-05-31 | AQ3: 2018-06-01 | AR3: 2018-06-02
A4: Calendar Day | E4: 1 | F4: =E4+1 -> 2 | G4: =F4+1 -> 3 | H4: 4 | I4: 5 | J4: 6 | K4: 7 | L4: 8 | M4: 9 | N4: 10 | O4: 11 | P4: 12 | Q4: 13 | R4: 14 | S4: 15 | T4: 16 | U4: 17 | V4: 18 | W4: 19 | X4: 20 | Y4: 21 | Z4: 22 | AA4: 23 | AB4: 24 | AC4: 25 | AD4: 26 | AE4: 27 | AF4: 28 | AG4: 29 | AH4: 30 | AI4: 31 | AJ4: 32 | AK4: 33 | AL4: 34 | AM4: 35 | AN4: 36 | AO4: 37 | AP4: 38 | AQ4: 39 | AR4: 40
A5: Current Remaining | E5: =IF(E3>Capacity!$F$2, #N/A, SUM(INDEX(Burndown,,(E4-1)*BurndownColumns+HoursLeftColumn))) -> 28 | F5: =IF(F3>Capacity!$F$2, #N/A, SUM(INDEX(Burndown,,(F4-1)*BurndownColumns+HoursLeftColumn))) -> 12 | G5: =IF(G3>Capacity!$F$2, #N/A, SUM(INDEX(Burndown,,(G4-1)*BurndownColumns+HoursLeftColumn))) -> 12 | H5: =IF(H3>Capacity!$F$2, #N/A, SUM(INDEX(Burndown,,(H4-1)*BurndownColumns+HoursLeftColumn))) -> 12 | I5: =IF(I3>Capacity!$F$2, #N/A, SUM(INDEX(Burndown,,(I4-1)*BurndownColumns+HoursLeftColumn))) -> 12 | J5: =IF(J3>Capacity!$F$2, #N/A, SUM(INDEX(Burndown,,(J4-1)*BurndownColumns+HoursLeftColumn))) -> 8 | K5: =IF(K3>Capacity!$F$2, #N/A, SUM(INDEX(Burndown,,(K4-1)*BurndownColumns+HoursLeftColumn))) -> 8 | L5: =IF(L3>Capacity!$F$2, #N/A, SUM(INDEX(Burndown,,(L4-1)*BurndownColumns+HoursLeftColumn))) -> 2 | M5: =IF(M3>Capacity!$F$2, #N/A, SUM(INDEX(Burndown,,(M4-1)*BurndownColumns+HoursLeftColumn))) -> 2 | N5: =IF(N3>Capacity!$F$2, #N/A, SUM(INDEX(Burndown,,(N4-1)*BurndownColumns+HoursLeftColumn))) -> 0 | O5: =IF(O3>Capacity!$F$2, #N/A, SUM(INDEX(Burndown,,(O4-1)*BurndownColumns+HoursLeftColumn))) -> 0 | P5: =IF(P3>Capacity!$F$2, #N/A, SUM(INDEX(Burndown,,(P4-1)*BurndownColumns+HoursLeftColumn))) -> 0 | Q5: =IF(Q3>Capacity!$F$2, #N/A, SUM(INDEX(Burndown,,(Q4-1)*BurndownColumns+HoursLeftColumn))) -> 0 | R5: =IF(R3>Capacity!$F$2, #N/A, SUM(INDEX(Burndown,,(R4-1)*BurndownColumns+HoursLeftColumn))) -> 0 | S5: =IF(S3>Capacity!$F$2, #N/A, SUM(INDEX(Burndown,,(S4-1)*BurndownColumns+HoursLeftColumn))) -> 0 | T5: =IF(T3>Capacity!$F$2, #N/A, SUM(INDEX(Burndown,,(T4-1)*BurndownColumns+HoursLeftColumn))) -> 0 | U5: =IF(U3>Capacity!$F$2, #N/A, SUM(INDEX(Burndown,,(U4-1)*BurndownColumns+HoursLeftColumn))) -> 0 | V5: =IF(V3>Capacity!$F$2, #N/A, SUM(INDEX(Burndown,,(V4-1)*BurndownColumns+HoursLeftColumn))) -> 0 | W5: =IF(W3>Capacity!$F$2, #N/A, SUM(INDEX(Burndown,,(W4-1)*BurndownColumns+HoursLeftColumn))) -> 0 | X5: =IF(X3>Capacity!$F$2, #N/A, SUM(INDEX(Burndown,,(X4-1)*BurndownColumns+HoursLeftColumn))) -> 0 | Y5: =IF(Y3>Capacity!$F$2, #N/A, SUM(INDEX(Burndown,,(Y4-1)*BurndownColumns+HoursLeftColumn))) -> 0 | Z5: =IF(Z3>Capacity!$F$2, #N/A, SUM(INDEX(Burndown,,(Z4-1)*BurndownColumns+HoursLeftColumn))) -> 0 | AA5: =IF(AA3>Capacity!$F$2, #N/A, SUM(INDEX(Burndown,,(AA4-1)*BurndownColumns+HoursLeftColumn))) -> 0 | AB5: =IF(AB3>Capacity!$F$2, #N/A, SUM(INDEX(Burndown,,(AB4-1)*BurndownColumns+HoursLeftColumn))) -> 0 | AC5: =IF(AC3>Capacity!$F$2, #N/A, SUM(INDEX(Burndown,,(AC4-1)*BurndownColumns+HoursLeftColumn))) -> 0 | AD5: =IF(AD3>Capacity!$F$2, #N/A, SUM(INDEX(Burndown,,(AD4-1)*BurndownColumns+HoursLeftColumn))) -> 0 | AE5: =IF(AE3>Capacity!$F$2, #N/A, SUM(INDEX(Burndown,,(AE4-1)*BurndownColumns+HoursLeftColumn))) -> 0 | AF5: =IF(AF3>Capacity!$F$2, #N/A, SUM(INDEX(Burndown,,(AF4-1)*BurndownColumns+HoursLeftColumn))) -> 0 | AG5: =IF(AG3>Capacity!$F$2, #N/A, SUM(INDEX(Burndown,,(AG4-1)*BurndownColumns+HoursLeftColumn))) -> 0 | AH5: =IF(AH3>Capacity!$F$2, #N/A, SUM(INDEX(Burndown,,(AH4-1)*BurndownColumns+HoursLeftColumn))) -> 0 | AI5: =IF(AI3>Capacity!$F$2, #N/A, SUM(INDEX(Burndown,,(AI4-1)*BurndownColumns+HoursLeftColumn))) -> 0 | AJ5: =IF(AJ3>Capacity!$F$2, #N/A, SUM(INDEX(Burndown,,(AJ4-1)*BurndownColumns+HoursLeftColumn))) -> 0 | AK5: =IF(AK3>Capacity!$F$2, #N/A, SUM(INDEX(Burndown,,(AK4-1)*BurndownColumns+HoursLeftColumn))) -> 0 | AL5: =IF(AL3>Capacity!$F$2, #N/A, SUM(INDEX(Burndown,,(AL4-1)*BurndownColumns+HoursLeftColumn))) -> 0 | AM5: =IF(AM3>Capacity!$F$2, #N/A, SUM(INDEX(Burndown,,(AM4-1)*BurndownColumns+HoursLeftColumn))) -> 0 | AN5: =IF(AN3>Capacity!$F$2, #N/A, SUM(INDEX(Burndown,,(AN4-1)*BurndownColumns+HoursLeftColumn))) -> 0 | AO5: =IF(AO3>Capacity!$F$2, #N/A, SUM(INDEX(Burndown,,(AO4-1)*BurndownColumns+HoursLeftColumn))) -> 0 | AP5: =IF(AP3>Capacity!$F$2, #N/A, SUM(INDEX(Burndown,,(AP4-1)*BurndownColumns+HoursLeftColumn))) ->  | AQ5: =IF(AQ3>Capacity!$F$2, #N/A, SUM(INDEX(Burndown,,(AQ4-1)*BurndownColumns+HoursLeftColumn))) ->  | AR5: =IF(AR3>Capacity!$F$2, #N/A, SUM(INDEX(Burndown,,(AR4-1)*BurndownColumns+HoursLeftColumn))) -> 
A6: Current Spent in Day | E6: =IF(E3>Capacity!$F$2, #N/A, SUM(INDEX(Burndown,,(E4-1)*BurndownColumns+HoursSpentColumn))) -> 4 | F6: =IF(F3>Capacity!$F$2, #N/A, SUM(INDEX(Burndown,,(F4-1)*BurndownColumns+HoursSpentColumn))) -> 4 | G6: =IF(G3>Capacity!$F$2, #N/A, SUM(INDEX(Burndown,,(G4-1)*BurndownColumns+HoursSpentColumn))) -> 12 | H6: =IF(H3>Capacity!$F$2, #N/A, SUM(INDEX(Burndown,,(H4-1)*BurndownColumns+HoursSpentColumn))) -> 4 | I6: =IF(I3>Capacity!$F$2, #N/A, SUM(INDEX(Burndown,,(I4-1)*BurndownColumns+HoursSpentColumn))) -> 4 | J6: =IF(J3>Capacity!$F$2, #N/A, SUM(INDEX(Burndown,,(J4-1)*BurndownColumns+HoursSpentColumn))) -> 4 | K6: =IF(K3>Capacity!$F$2, #N/A, SUM(INDEX(Burndown,,(K4-1)*BurndownColumns+HoursSpentColumn))) -> 4 | L6: =IF(L3>Capacity!$F$2, #N/A, SUM(INDEX(Burndown,,(L4-1)*BurndownColumns+HoursSpentColumn))) -> 14 | M6: =IF(M3>Capacity!$F$2, #N/A, SUM(INDEX(Burndown,,(M4-1)*BurndownColumns+HoursSpentColumn))) -> 0 | N6: =IF(N3>Capacity!$F$2, #N/A, SUM(INDEX(Burndown,,(N4-1)*BurndownColumns+HoursSpentColumn))) -> 2 | O6: =IF(O3>Capacity!$F$2, #N/A, SUM(INDEX(Burndown,,(O4-1)*BurndownColumns+HoursSpentColumn))) -> 0 | P6: =IF(P3>Capacity!$F$2, #N/A, SUM(INDEX(Burndown,,(P4-1)*BurndownColumns+HoursSpentColumn))) -> 0 | Q6: =IF(Q3>Capacity!$F$2, #N/A, SUM(INDEX(Burndown,,(Q4-1)*BurndownColumns+HoursSpentColumn))) -> 0 | R6: =IF(R3>Capacity!$F$2, #N/A, SUM(INDEX(Burndown,,(R4-1)*BurndownColumns+HoursSpentColumn))) -> 0 | S6: =IF(S3>Capacity!$F$2, #N/A, SUM(INDEX(Burndown,,(S4-1)*BurndownColumns+HoursSpentColumn))) -> 0 | T6: =IF(T3>Capacity!$F$2, #N/A, SUM(INDEX(Burndown,,(T4-1)*BurndownColumns+HoursSpentColumn))) -> 0 | U6: =IF(U3>Capacity!$F$2, #N/A, SUM(INDEX(Burndown,,(U4-1)*BurndownColumns+HoursSpentColumn))) -> 0 | V6: =IF(V3>Capacity!$F$2, #N/A, SUM(INDEX(Burndown,,(V4-1)*BurndownColumns+HoursSpentColumn))) -> 0 | W6: =IF(W3>Capacity!$F$2, #N/A, SUM(INDEX(Burndown,,(W4-1)*BurndownColumns+HoursSpentColumn))) -> 0 | X6: =IF(X3>Capacity!$F$2, #N/A, SUM(INDEX(Burndown,,(X4-1)*BurndownColumns+HoursSpentColumn))) -> 0 | Y6: =IF(Y3>Capacity!$F$2, #N/A, SUM(INDEX(Burndown,,(Y4-1)*BurndownColumns+HoursSpentColumn))) -> 0 | Z6: =IF(Z3>Capacity!$F$2, #N/A, SUM(INDEX(Burndown,,(Z4-1)*BurndownColumns+HoursSpentColumn))) -> 0 | AA6: =IF(AA3>Capacity!$F$2, #N/A, SUM(INDEX(Burndown,,(AA4-1)*BurndownColumns+HoursSpentColumn))) -> 0 | AB6: =IF(AB3>Capacity!$F$2, #N/A, SUM(INDEX(Burndown,,(AB4-1)*BurndownColumns+HoursSpentColumn))) -> 0 | AC6: =IF(AC3>Capacity!$F$2, #N/A, SUM(INDEX(Burndown,,(AC4-1)*BurndownColumns+HoursSpentColumn))) -> 0 | AD6: =IF(AD3>Capacity!$F$2, #N/A, SUM(INDEX(Burndown,,(AD4-1)*BurndownColumns+HoursSpentColumn))) -> 0 | AE6: =IF(AE3>Capacity!$F$2, #N/A, SUM(INDEX(Burndown,,(AE4-1)*BurndownColumns+HoursSpentColumn))) -> 0 | AF6: =IF(AF3>Capacity!$F$2, #N/A, SUM(INDEX(Burndown,,(AF4-1)*BurndownColumns+HoursSpentColumn))) -> 0 | AG6: =IF(AG3>Capacity!$F$2, #N/A, SUM(INDEX(Burndown,,(AG4-1)*BurndownColumns+HoursSpentColumn))) -> 0 | AH6: =IF(AH3>Capacity!$F$2, #N/A, SUM(INDEX(Burndown,,(AH4-1)*BurndownColumns+HoursSpentColumn))) -> 0 | AI6: =IF(AI3>Capacity!$F$2, #N/A, SUM(INDEX(Burndown,,(AI4-1)*BurndownColumns+HoursSpentColumn))) -> 0 | AJ6: =IF(AJ3>Capacity!$F$2, #N/A, SUM(INDEX(Burndown,,(AJ4-1)*BurndownColumns+HoursSpentColumn))) -> 0 | AK6: =IF(AK3>Capacity!$F$2, #N/A, SUM(INDEX(Burndown,,(AK4-1)*BurndownColumns+HoursSpentColumn))) -> 0 | AL6: =IF(AL3>Capacity!$F$2, #N/A, SUM(INDEX(Burndown,,(AL4-1)*BurndownColumns+HoursSpentColumn))) -> 0 | AM6: =IF(AM3>Capacity!$F$2, #N/A, SUM(INDEX(Burndown,,(AM4-1)*BurndownColumns+HoursSpentColumn))) -> 0 | AN6: =IF(AN3>Capacity!$F$2, #N/A, SUM(INDEX(Burndown,,(AN4-1)*BurndownColumns+HoursSpentColumn))) -> 0 | AO6: =IF(AO3>Capacity!$F$2, #N/A, SUM(INDEX(Burndown,,(AO4-1)*BurndownColumns+HoursSpentColumn))) -> 0 | AP6: =IF(AP3>Capacity!$F$2, #N/A, SUM(INDEX(Burndown,,(AP4-1)*BurndownColumns+HoursSpentColumn))) ->  | AQ6: =IF(AQ3>Capacity!$F$2, #N/A, SUM(INDEX(Burndown,,(AQ4-1)*BurndownColumns+HoursSpentColumn))) ->  | AR6: =IF(AR3>Capacity!$F$2, #N/A, SUM(INDEX(Burndown,,(AR4-1)*BurndownColumns+HoursSpentColumn))) -> 
A7: Current Spent | E7: =IF(E3>Capacity!$F$2, #N/A, SUM($E6:E6)) -> 4 | F7: =IF(F3>Capacity!$F$2, #N/A, SUM($E6:F6)) -> 8 | G7: =IF(G3>Capacity!$F$2, #N/A, SUM($E6:G6)) -> 20 | H7: =IF(H3>Capacity!$F$2, #N/A, SUM($E6:H6)) -> 24 | I7: =IF(I3>Capacity!$F$2, #N/A, SUM($E6:I6)) -> 28 | J7: =IF(J3>Capacity!$F$2, #N/A, SUM($E6:J6)) -> 32 | K7: =IF(K3>Capacity!$F$2, #N/A, SUM($E6:K6)) -> 36 | L7: =IF(L3>Capacity!$F$2, #N/A, SUM($E6:L6)) -> 50 | M7: =IF(M3>Capacity!$F$2, #N/A, SUM($E6:M6)) -> 50 | N7: =IF(N3>Capacity!$F$2, #N/A, SUM($E6:N6)) -> 52 | O7: =IF(O3>Capacity!$F$2, #N/A, SUM($E6:O6)) -> 52 | P7: =IF(P3>Capacity!$F$2, #N/A, SUM($E6:P6)) -> 52 | Q7: =IF(Q3>Capacity!$F$2, #N/A, SUM($E6:Q6)) -> 52 | R7: =IF(R3>Capacity!$F$2, #N/A, SUM($E6:R6)) -> 52 | S7: =IF(S3>Capacity!$F$2, #N/A, SUM($E6:S6)) -> 52 | T7: =IF(T3>Capacity!$F$2, #N/A, SUM($E6:T6)) -> 52 | U7: =IF(U3>Capacity!$F$2, #N/A, SUM($E6:U6)) -> 52 | V7: =IF(V3>Capacity!$F$2, #N/A, SUM($E6:V6)) -> 52 | W7: =IF(W3>Capacity!$F$2, #N/A, SUM($E6:W6)) -> 52 | X7: =IF(X3>Capacity!$F$2, #N/A, SUM($E6:X6)) -> 52 | Y7: =IF(Y3>Capacity!$F$2, #N/A, SUM($E6:Y6)) -> 52 | Z7: =IF(Z3>Capacity!$F$2, #N/A, SUM($E6:Z6)) -> 52 | AA7: =IF(AA3>Capacity!$F$2, #N/A, SUM($E6:AA6)) -> 52 | AB7: =IF(AB3>Capacity!$F$2, #N/A, SUM($E6:AB6)) -> 52 | AC7: =IF(AC3>Capacity!$F$2, #N/A, SUM($E6:AC6)) -> 52 | AD7: =IF(AD3>Capacity!$F$2, #N/A, SUM($E6:AD6)) -> 52 | AE7: =IF(AE3>Capacity!$F$2, #N/A, SUM($E6:AE6)) -> 52 | AF7: =IF(AF3>Capacity!$F$2, #N/A, SUM($E6:AF6)) -> 52 | AG7: =IF(AG3>Capacity!$F$2, #N/A, SUM($E6:AG6)) -> 52 | AH7: =IF(AH3>Capacity!$F$2, #N/A, SUM($E6:AH6)) -> 52 | AI7: =IF(AI3>Capacity!$F$2, #N/A, SUM($E6:AI6)) -> 52 | AJ7: =IF(AJ3>Capacity!$F$2, #N/A, SUM($E6:AJ6)) -> 52 | AK7: =IF(AK3>Capacity!$F$2, #N/A, SUM($E6:AK6)) -> 52 | AL7: =IF(AL3>Capacity!$F$2, #N/A, SUM($E6:AL6)) -> 52 | AM7: =IF(AM3>Capacity!$F$2, #N/A, SUM($E6:AM6)) -> 52 | AN7: =IF(AN3>Capacity!$F$2, #N/A, SUM($E6:AN6)) -> 52 | AO7: =IF(AO3>Capacity!$F$2, #N/A, SUM($E6:AO6)) -> 52 | AP7: =IF(AP3>Capacity!$F$2, #N/A, SUM($E6:AP6)) ->  | AQ7: =IF(AQ3>Capacity!$F$2, #N/A, SUM($E6:AQ6)) ->  | AR7: =IF(AR3>Capacity!$F$2, #N/A, SUM($E6:AR6)) -> 
A8: Estimated Remaining + Spent | E8: =IF(E3>Capacity!$F$2, #N/A, E5+E7) -> 32 | F8: =IF(F3>Capacity!$F$2, #N/A, F5+F7) -> 20 | G8: =IF(G3>Capacity!$F$2, #N/A, G5+G7) -> 32 | H8: =IF(H3>Capacity!$F$2, #N/A, H5+H7) -> 36 | I8: =IF(I3>Capacity!$F$2, #N/A, I5+I7) -> 40 | J8: =IF(J3>Capacity!$F$2, #N/A, J5+J7) -> 40 | K8: =IF(K3>Capacity!$F$2, #N/A, K5+K7) -> 44 | L8: =IF(L3>Capacity!$F$2, #N/A, L5+L7) -> 52 | M8: =IF(M3>Capacity!$F$2, #N/A, M5+M7) -> 52 | N8: =IF(N3>Capacity!$F$2, #N/A, N5+N7) -> 52 | O8: =IF(O3>Capacity!$F$2, #N/A, O5+O7) -> 52 | P8: =IF(P3>Capacity!$F$2, #N/A, P5+P7) -> 52 | Q8: =IF(Q3>Capacity!$F$2, #N/A, Q5+Q7) -> 52 | R8: =IF(R3>Capacity!$F$2, #N/A, R5+R7) -> 52 | S8: =IF(S3>Capacity!$F$2, #N/A, S5+S7) -> 52 | T8: =IF(T3>Capacity!$F$2, #N/A, T5+T7) -> 52 | U8: =IF(U3>Capacity!$F$2, #N/A, U5+U7) -> 52 | V8: =IF(V3>Capacity!$F$2, #N/A, V5+V7) -> 52 | W8: =IF(W3>Capacity!$F$2, #N/A, W5+W7) -> 52 | X8: =IF(X3>Capacity!$F$2, #N/A, X5+X7) -> 52 | Y8: =IF(Y3>Capacity!$F$2, #N/A, Y5+Y7) -> 52 | Z8: =IF(Z3>Capacity!$F$2, #N/A, Z5+Z7) -> 52 | AA8: =IF(AA3>Capacity!$F$2, #N/A, AA5+AA7) -> 52 | AB8: =IF(AB3>Capacity!$F$2, #N/A, AB5+AB7) -> 52 | AC8: =IF(AC3>Capacity!$F$2, #N/A, AC5+AC7) -> 52 | AD8: =IF(AD3>Capacity!$F$2, #N/A, AD5+AD7) -> 52 | AE8: =IF(AE3>Capacity!$F$2, #N/A, AE5+AE7) -> 52 | AF8: =IF(AF3>Capacity!$F$2, #N/A, AF5+AF7) -> 52 | AG8: =IF(AG3>Capacity!$F$2, #N/A, AG5+AG7) -> 52 | AH8: =IF(AH3>Capacity!$F$2, #N/A, AH5+AH7) -> 52 | AI8: =IF(AI3>Capacity!$F$2, #N/A, AI5+AI7) -> 52 | AJ8: =IF(AJ3>Capacity!$F$2, #N/A, AJ5+AJ7) -> 52 | AK8: =IF(AK3>Capacity!$F$2, #N/A, AK5+AK7) -> 52 | AL8: =IF(AL3>Capacity!$F$2, #N/A, AL5+AL7) -> 52 | AM8: =IF(AM3>Capacity!$F$2, #N/A, AM5+AM7) -> 52 | AN8: =IF(AN3>Capacity!$F$2, #N/A, AN5+AN7) -> 52 | AO8: =IF(AO3>Capacity!$F$2, #N/A, AO5+AO7) -> 52 | AP8: =IF(AP3>Capacity!$F$2, #N/A, AP5+AP7) ->  | AQ8: =IF(AQ3>Capacity!$F$2, #N/A, AQ5+AQ7) ->  | AR8: =IF(AR3>Capacity!$F$2, #N/A, AR5+AR7) -> 
A9: Forecast Remaining | E9: =E5 -> 28 | F9: =IF(F3>=Capacity!$F$2,FORECAST(F4,OFFSET($E$5,0,0,1,HLOOKUP(Capacity!$F$2,$E$3:$AH$4,2)-1),OFFSET($E$4,0,0,1,HLOOKUP(Capacity!$F$2,$E$3:$AH$4,2)-1)),F5) -> 12 | G9: =IF(G3>=Capacity!$F$2,FORECAST(G4,OFFSET($E$5,0,0,1,HLOOKUP(Capacity!$F$2,$E$3:$AH$4,2)-1),OFFSET($E$4,0,0,1,HLOOKUP(Capacity!$F$2,$E$3:$AH$4,2)-1)),G5) -> 12 | H9: =IF(H3>=Capacity!$F$2,FORECAST(H4,OFFSET($E$5,0,0,1,HLOOKUP(Capacity!$F$2,$E$3:$AH$4,2)-1),OFFSET($E$4,0,0,1,HLOOKUP(Capacity!$F$2,$E$3:$AH$4,2)-1)),H5) -> 12 | I9: =IF(I3>=Capacity!$F$2,FORECAST(I4,OFFSET($E$5,0,0,1,HLOOKUP(Capacity!$F$2,$E$3:$AH$4,2)-1),OFFSET($E$4,0,0,1,HLOOKUP(Capacity!$F$2,$E$3:$AH$4,2)-1)),I5) -> 12 | J9: =IF(J3>=Capacity!$F$2,FORECAST(J4,OFFSET($E$5,0,0,1,HLOOKUP(Capacity!$F$2,$E$3:$AH$4,2)-1),OFFSET($E$4,0,0,1,HLOOKUP(Capacity!$F$2,$E$3:$AH$4,2)-1)),J5) -> 8 | K9: =IF(K3>=Capacity!$F$2,FORECAST(K4,OFFSET($E$5,0,0,1,HLOOKUP(Capacity!$F$2,$E$3:$AH$4,2)-1),OFFSET($E$4,0,0,1,HLOOKUP(Capacity!$F$2,$E$3:$AH$4,2)-1)),K5) -> 8 | L9: =IF(L3>=Capacity!$F$2,FORECAST(L4,OFFSET($E$5,0,0,1,HLOOKUP(Capacity!$F$2,$E$3:$AH$4,2)-1),OFFSET($E$4,0,0,1,HLOOKUP(Capacity!$F$2,$E$3:$AH$4,2)-1)),L5) -> 2 | M9: =IF(M3>=Capacity!$F$2,FORECAST(M4,OFFSET($E$5,0,0,1,HLOOKUP(Capacity!$F$2,$E$3:$AH$4,2)-1),OFFSET($E$4,0,0,1,HLOOKUP(Capacity!$F$2,$E$3:$AH$4,2)-1)),M5) -> 2 | N9: =IF(N3>=Capacity!$F$2,FORECAST(N4,OFFSET($E$5,0,0,1,HLOOKUP(Capacity!$F$2,$E$3:$AH$4,2)-1),OFFSET($E$4,0,0,1,HLOOKUP(Capacity!$F$2,$E$3:$AH$4,2)-1)),N5) -> 0 | O9: =IF(O3>=Capacity!$F$2,FORECAST(O4,OFFSET($E$5,0,0,1,HLOOKUP(Capacity!$F$2,$E$3:$AH$4,2)-1),OFFSET($E$4,0,0,1,HLOOKUP(Capacity!$F$2,$E$3:$AH$4,2)-1)),O5) -> 0 | P9: =IF(P3>=Capacity!$F$2,FORECAST(P4,OFFSET($E$5,0,0,1,HLOOKUP(Capacity!$F$2,$E$3:$AH$4,2)-1),OFFSET($E$4,0,0,1,HLOOKUP(Capacity!$F$2,$E$3:$AH$4,2)-1)),P5) -> 0 | Q9: =IF(Q3>=Capacity!$F$2,FORECAST(Q4,OFFSET($E$5,0,0,1,HLOOKUP(Capacity!$F$2,$E$3:$AH$4,2)-1),OFFSET($E$4,0,0,1,HLOOKUP(Capacity!$F$2,$E$3:$AH$4,2)-1)),Q5) -> 0 | R9: =IF(R3>=Capacity!$F$2,FORECAST(R4,OFFSET($E$5,0,0,1,HLOOKUP(Capacity!$F$2,$E$3:$AH$4,2)-1),OFFSET($E$4,0,0,1,HLOOKUP(Capacity!$F$2,$E$3:$AH$4,2)-1)),R5) -> 0 | S9: =IF(S3>=Capacity!$F$2,FORECAST(S4,OFFSET($E$5,0,0,1,HLOOKUP(Capacity!$F$2,$E$3:$AH$4,2)-1),OFFSET($E$4,0,0,1,HLOOKUP(Capacity!$F$2,$E$3:$AH$4,2)-1)),S5) -> 0 | T9: =IF(T3>=Capacity!$F$2,FORECAST(T4,OFFSET($E$5,0,0,1,HLOOKUP(Capacity!$F$2,$E$3:$AH$4,2)-1),OFFSET($E$4,0,0,1,HLOOKUP(Capacity!$F$2,$E$3:$AH$4,2)-1)),T5) -> 0 | U9: =IF(U3>=Capacity!$F$2,FORECAST(U4,OFFSET($E$5,0,0,1,HLOOKUP(Capacity!$F$2,$E$3:$AH$4,2)-1),OFFSET($E$4,0,0,1,HLOOKUP(Capacity!$F$2,$E$3:$AH$4,2)-1)),U5) -> 0 | V9: =IF(V3>=Capacity!$F$2,FORECAST(V4,OFFSET($E$5,0,0,1,HLOOKUP(Capacity!$F$2,$E$3:$AH$4,2)-1),OFFSET($E$4,0,0,1,HLOOKUP(Capacity!$F$2,$E$3:$AH$4,2)-1)),V5) -> 0 | W9: =IF(W3>=Capacity!$F$2,FORECAST(W4,OFFSET($E$5,0,0,1,HLOOKUP(Capacity!$F$2,$E$3:$AH$4,2)-1),OFFSET($E$4,0,0,1,HLOOKUP(Capacity!$F$2,$E$3:$AH$4,2)-1)),W5) -> 0 | X9: =IF(X3>=Capacity!$F$2,FORECAST(X4,OFFSET($E$5,0,0,1,HLOOKUP(Capacity!$F$2,$E$3:$AH$4,2)-1),OFFSET($E$4,0,0,1,HLOOKUP(Capacity!$F$2,$E$3:$AH$4,2)-1)),X5) -> 0 | Y9: =IF(Y3>=Capacity!$F$2,FORECAST(Y4,OFFSET($E$5,0,0,1,HLOOKUP(Capacity!$F$2,$E$3:$AH$4,2)-1),OFFSET($E$4,0,0,1,HLOOKUP(Capacity!$F$2,$E$3:$AH$4,2)-1)),Y5) -> 0 | Z9: =IF(Z3>=Capacity!$F$2,FORECAST(Z4,OFFSET($E$5,0,0,1,HLOOKUP(Capacity!$F$2,$E$3:$AH$4,2)-1),OFFSET($E$4,0,0,1,HLOOKUP(Capacity!$F$2,$E$3:$AH$4,2)-1)),Z5) -> 0 | AA9: =IF(AA3>=Capacity!$F$2,FORECAST(AA4,OFFSET($E$5,0,0,1,HLOOKUP(Capacity!$F$2,$E$3:$AH$4,2)-1),OFFSET($E$4,0,0,1,HLOOKUP(Capacity!$F$2,$E$3:$AH$4,2)-1)),AA5) -> 0 | AB9: =IF(AB3>=Capacity!$F$2,FORECAST(AB4,OFFSET($E$5,0,0,1,HLOOKUP(Capacity!$F$2,$E$3:$AH$4,2)-1),OFFSET($E$4,0,0,1,HLOOKUP(Capacity!$F$2,$E$3:$AH$4,2)-1)),AB5) -> 0 | AC9: =IF(AC3>=Capacity!$F$2,FORECAST(AC4,OFFSET($E$5,0,0,1,HLOOKUP(Capacity!$F$2,$E$3:$AH$4,2)-1),OFFSET($E$4,0,0,1,HLOOKUP(Capacity!$F$2,$E$3:$AH$4,2)-1)),AC5) -> 0 | AD9: =IF(AD3>=Capacity!$F$2,FORECAST(AD4,OFFSET($E$5,0,0,1,HLOOKUP(Capacity!$F$2,$E$3:$AH$4,2)-1),OFFSET($E$4,0,0,1,HLOOKUP(Capacity!$F$2,$E$3:$AH$4,2)-1)),AD5) -> 0 | AE9: =IF(AE3>=Capacity!$F$2,FORECAST(AE4,OFFSET($E$5,0,0,1,HLOOKUP(Capacity!$F$2,$E$3:$AH$4,2)-1),OFFSET($E$4,0,0,1,HLOOKUP(Capacity!$F$2,$E$3:$AH$4,2)-1)),AE5) -> 0 | AF9: =IF(AF3>=Capacity!$F$2,FORECAST(AF4,OFFSET($E$5,0,0,1,HLOOKUP(Capacity!$F$2,$E$3:$AH$4,2)-1),OFFSET($E$4,0,0,1,HLOOKUP(Capacity!$F$2,$E$3:$AH$4,2)-1)),AF5) -> 0 | AG9: =IF(AG3>=Capacity!$F$2,FORECAST(AG4,OFFSET($E$5,0,0,1,HLOOKUP(Capacity!$F$2,$E$3:$AH$4,2)-1),OFFSET($E$4,0,0,1,HLOOKUP(Capacity!$F$2,$E$3:$AH$4,2)-1)),AG5) -> 0 | AH9: =IF(AH3>=Capacity!$F$2,FORECAST(AH4,OFFSET($E$5,0,0,1,HLOOKUP(Capacity!$F$2,$E$3:$AH$4,2)-1),OFFSET($E$4,0,0,1,HLOOKUP(Capacity!$F$2,$E$3:$AH$4,2)-1)),AH5) -> 0 | AI9: =IF(AI3>=Capacity!$F$2,FORECAST(AI4,OFFSET($E$5,0,0,1,HLOOKUP(Capacity!$F$2,$E$3:$AH$4,2)-1),OFFSET($E$4,0,0,1,HLOOKUP(Capacity!$F$2,$E$3:$AH$4,2)-1)),AI5) -> 0 | AJ9: =IF(AJ3>=Capacity!$F$2,FORECAST(AJ4,OFFSET($E$5,0,0,1,HLOOKUP(Capacity!$F$2,$E$3:$AH$4,2)-1),OFFSET($E$4,0,0,1,HLOOKUP(Capacity!$F$2,$E$3:$AH$4,2)-1)),AJ5) -> 0 | AK9: =IF(AK3>=Capacity!$F$2,FORECAST(AK4,OFFSET($E$5,0,0,1,HLOOKUP(Capacity!$F$2,$E$3:$AH$4,2)-1),OFFSET($E$4,0,0,1,HLOOKUP(Capacity!$F$2,$E$3:$AH$4,2)-1)),AK5) -> 0 | AL9: =IF(AL3>=Capacity!$F$2,FORECAST(AL4,OFFSET($E$5,0,0,1,HLOOKUP(Capacity!$F$2,$E$3:$AH$4,2)-1),OFFSET($E$4,0,0,1,HLOOKUP(Capacity!$F$2,$E$3:$AH$4,2)-1)),AL5) -> 0 | AM9: =IF(AM3>=Capacity!$F$2,FORECAST(AM4,OFFSET($E$5,0,0,1,HLOOKUP(Capacity!$F$2,$E$3:$AH$4,2)-1),OFFSET($E$4,0,0,1,HLOOKUP(Capacity!$F$2,$E$3:$AH$4,2)-1)),AM5) -> 0 | AN9: =IF(AN3>=Capacity!$F$2,FORECAST(AN4,OFFSET($E$5,0,0,1,HLOOKUP(Capacity!$F$2,$E$3:$AH$4,2)-1),OFFSET($E$4,0,0,1,HLOOKUP(Capacity!$F$2,$E$3:$AH$4,2)-1)),AN5) -> 0 | AO9: =IF(AO3>=Capacity!$F$2,FORECAST(AO4,OFFSET($E$5,0,0,1,HLOOKUP(Capacity!$F$2,$E$3:$AH$4,2)-1),OFFSET($E$4,0,0,1,HLOOKUP(Capacity!$F$2,$E$3:$AH$4,2)-1)),AO5) -> -8.675862069 | AP9: =IF(AP3>=Capacity!$F$2,FORECAST(AP4,OFFSET($E$5,0,0,1,HLOOKUP(Capacity!$F$2,$E$3:$AH$4,2)-1),OFFSET($E$4,0,0,1,HLOOKUP(Capacity!$F$2,$E$3:$AH$4,2)-1)),AP5) -> -9.220689655 | AQ9: =IF(AQ3>=Capacity!$F$2,FORECAST(AQ4,OFFSET($E$5,0,0,1,HLOOKUP(Capacity!$F$2,$E$3:$AH$4,2)-1),OFFSET($E$4,0,0,1,HLOOKUP(Capacity!$F$2,$E$3:$AH$4,2)-1)),AQ5) -> -9.765517241 | AR9: =IF(AR3>=Capacity!$F$2,FORECAST(AR4,OFFSET($E$5,0,0,1,HLOOKUP(Capacity!$F$2,$E$3:$AH$4,2)-1),OFFSET($E$4,0,0,1,HLOOKUP(Capacity!$F$2,$E$3:$AH$4,2)-1)),AR5) -> -10.31034483
A10: Planned Remaining | E10: =PlanEffort-E11 -> 20 | F10: 8 | G10: -8 | H10: -8 | I10: -8 | J10: -8 | K10: -8 | L10: -16 | M10: -24 | N10: -32 | O10: -32 | P10: -32 | Q10: -32 | R10: -32 | S10: -40 | T10: -48 | U10: -56 | V10: -56 | W10: -56 | X10: -56 | Y10: -56 | Z10: -64 | AA10: -72 | AB10: -80 | AC10: -80 | AD10: -80 | AE10: -80 | AF10: -80 | AG10: -80 | AH10: -80 | AI10: -80 | AJ10: -80 | AK10: -80 | AL10: -80 | AM10: -80 | AN10: -80 | AO10: -80 | AP10: -80 | AQ10: -80 | AR10: -80
A11: Planned Capacity | E11: =Capacity!K27 -> 16 | F11: =Capacity!L27 -> 28 | G11: =Capacity!M27 -> 44 | H11: =Capacity!N27 -> 44 | I11: =Capacity!O27 -> 44 | J11: =Capacity!P27 -> 44 | K11: =Capacity!Q27 -> 44 | L11: =Capacity!R27 -> 52 | M11: =Capacity!S27 -> 60 | N11: =Capacity!T27 -> 68 | O11: =Capacity!U27 -> 68 | P11: =Capacity!V27 -> 68 | Q11: =Capacity!W27 -> 68 | R11: =Capacity!X27 -> 68 | S11: =Capacity!Y27 -> 76 | T11: =Capacity!Z27 -> 84 | U11: =Capacity!AA27 -> 92 | V11: =Capacity!AB27 -> 92 | W11: =Capacity!AC27 -> 92 | X11: =Capacity!AD27 -> 92 | Y11: =Capacity!AE27 -> 92 | Z11: =Capacity!AF27 -> 100 | AA11: =Capacity!AG27 -> 108 | AB11: =Capacity!AH27 -> 116 | AC11: =Capacity!AI27 -> 116 | AD11: =Capacity!AJ27 -> 116 | AE11: =Capacity!AK27 -> 116 | AF11: =Capacity!AL27 -> 116 | AG11: =Capacity!AM27 -> 116 | AH11: =Capacity!AN27 -> 116 | AI11: =Capacity!AO27 -> 116 | AJ11: =Capacity!AP27 -> 116 | AK11: =Capacity!AQ27 -> 116 | AL11: =Capacity!AR27 -> 116 | AM11: =Capacity!AS27 -> 116 | AN11: =Capacity!AT27 -> 116 | AO11: =Capacity!AU27 -> 116 | AP11: =Capacity!AV27 -> 116 | AQ11: =Capacity!AW27 -> 116 | AR11: =Capacity!AX27 -> 116
A13: Average Spent Per Day | E13: =IF(ISERROR(E7),#N/A, E7/E4) -> 4.0 | F13: 4.0 | G13: 6.7 | H13: 6.0 | I13: =IF(ISERROR(I7),#N/A, I7/I4) -> 5.6 | J13: 5.3 | K13: 5.1 | L13: 6.3 | M13: 5.6 | N13: 5.2 | O13: 4.7 | P13: 4.3 | Q13: 4.0 | R13: 3.7 | S13: 3.5 | T13: 3.3 | U13: 3.1 | V13: 2.9 | W13: 2.7 | X13: 2.6 | Y13: 2.5 | Z13: 2.4 | AA13: 2.3 | AB13: 2.2 | AC13: 2.1 | AD13: 2.0 | AE13: 1.9 | AF13: 1.9 | AG13: 1.8 | AH13: 1.7 | AI13: 1.7 | AJ13: 1.6 | AK13: 1.6 | AL13: 1.5 | AM13: 1.5 | AN13: 1.4 | AO13: 1.4
A14: Estimated Completion Date (based in Avg Spent By Day) | E14: =IF(OR(ISERROR(E5),ISERROR(E13)), #N/A, IF(E13=0, SprintStart, E3 + (E5/E13))) -> 2018-05-01 | F14: 2018-04-28 | G14: 2018-04-27T19:12:00 | H14: 2018-04-29 | I14: 2018-04-30T03:25:42.857 | J14: 2018-04-30T12:00:00 | K14: 2018-05-01T13:20:00 | L14: 2018-05-01T07:40:48 | M14: 2018-05-02T08:38:24 | N14: 2018-05-03 | O14: 2018-05-04 | P14: 2018-05-05 | Q14: 2018-05-06 | R14: 2018-05-07 | S14: 2018-05-08 | T14: 2018-05-09 | U14: 2018-05-10 | V14: 2018-05-11 | W14: 2018-05-12 | X14: 2018-05-13 | Y14: 2018-05-14 | Z14: 2018-05-15 | AA14: 2018-05-16 | AB14: 2018-05-17 | AC14: 2018-05-18 | AD14: 2018-05-19 | AE14: 2018-05-20 | AF14: 2018-05-21 | AG14: 2018-05-22 | AH14: 2018-05-23 | AI14: 2018-05-24 | AJ14: 2018-05-25 | AK14: 2018-05-26 | AL14: 2018-05-27 | AM14: 2018-05-28 | AN14: 2018-05-29 | AO14: 2018-05-30
A15: Estimated Completion Date (based in Avg Task completion) | E15: =IF(E$3>Capacity!$F$2, #N/A, IF(E$19>0, SprintStart+((E$8*E$4)/E$19)-1, SprintStart)) -> 2018-04-25 | F15: =IF(F$3>Capacity!$F$2, #N/A, IF(F$19>0, SprintStart+((F$8*F$4)/F$19)-1, SprintStart)) -> 2018-04-24T06:00:00 | G15: =IF(G$3>Capacity!$F$2, #N/A, IF(G$19>0, SprintStart+((G$8*G$4)/G$19)-1, SprintStart)) -> 2018-04-26 | H15: =IF(H$3>Capacity!$F$2, #N/A, IF(H$19>0, SprintStart+((H$8*H$4)/H$19)-1, SprintStart)) -> 2018-04-27T12:00:00 | I15: =IF(I$3>Capacity!$F$2, #N/A, IF(I$19>0, SprintStart+((I$8*I$4)/I$19)-1, SprintStart)) -> 2018-04-29T06:00:00 | J15: =IF(J$3>Capacity!$F$2, #N/A, IF(J$19>0, SprintStart+((J$8*J$4)/J$19)-1, SprintStart)) -> 2018-04-28T10:54:32.727 | K15: =IF(K$3>Capacity!$F$2, #N/A, IF(K$19>0, SprintStart+((K$8*K$4)/K$19)-1, SprintStart)) -> 2018-04-30 | L15: =IF(L$3>Capacity!$F$2, #N/A, IF(L$19>0, SprintStart+((L$8*L$4)/L$19)-1, SprintStart)) -> 2018-05-01T07:40:48 | M15: =IF(M$3>Capacity!$F$2, #N/A, IF(M$19>0, SprintStart+((M$8*M$4)/M$19)-1, SprintStart)) -> 2018-05-02T08:38:24 | N15: =IF(N$3>Capacity!$F$2, #N/A, IF(N$19>0, SprintStart+((N$8*N$4)/N$19)-1, SprintStart)) -> 2018-05-03 | O15: =IF(O$3>Capacity!$F$2, #N/A, IF(O$19>0, SprintStart+((O$8*O$4)/O$19)-1, SprintStart)) -> 2018-05-04 | P15: =IF(P$3>Capacity!$F$2, #N/A, IF(P$19>0, SprintStart+((P$8*P$4)/P$19)-1, SprintStart)) -> 2018-05-05 | Q15: =IF(Q$3>Capacity!$F$2, #N/A, IF(Q$19>0, SprintStart+((Q$8*Q$4)/Q$19)-1, SprintStart)) -> 2018-05-06 | R15: =IF(R$3>Capacity!$F$2, #N/A, IF(R$19>0, SprintStart+((R$8*R$4)/R$19)-1, SprintStart)) -> 2018-05-07 | S15: =IF(S$3>Capacity!$F$2, #N/A, IF(S$19>0, SprintStart+((S$8*S$4)/S$19)-1, SprintStart)) -> 2018-05-08 | T15: =IF(T$3>Capacity!$F$2, #N/A, IF(T$19>0, SprintStart+((T$8*T$4)/T$19)-1, SprintStart)) -> 2018-05-09 | U15: =IF(U$3>Capacity!$F$2, #N/A, IF(U$19>0, SprintStart+((U$8*U$4)/U$19)-1, SprintStart)) -> 2018-05-10 | V15: =IF(V$3>Capacity!$F$2, #N/A, IF(V$19>0, SprintStart+((V$8*V$4)/V$19)-1, SprintStart)) -> 2018-05-11 | W15: =IF(W$3>Capacity!$F$2, #N/A, IF(W$19>0, SprintStart+((W$8*W$4)/W$19)-1, SprintStart)) -> 2018-05-12 | X15: =IF(X$3>Capacity!$F$2, #N/A, IF(X$19>0, SprintStart+((X$8*X$4)/X$19)-1, SprintStart)) -> 2018-05-13 | Y15: =IF(Y$3>Capacity!$F$2, #N/A, IF(Y$19>0, SprintStart+((Y$8*Y$4)/Y$19)-1, SprintStart)) -> 2018-05-14 | Z15: =IF(Z$3>Capacity!$F$2, #N/A, IF(Z$19>0, SprintStart+((Z$8*Z$4)/Z$19)-1, SprintStart)) -> 2018-05-15 | AA15: =IF(AA$3>Capacity!$F$2, #N/A, IF(AA$19>0, SprintStart+((AA$8*AA$4)/AA$19)-1, SprintStart)) -> 2018-05-16 | AB15: =IF(AB$3>Capacity!$F$2, #N/A, IF(AB$19>0, SprintStart+((AB$8*AB$4)/AB$19)-1, SprintStart)) -> 2018-05-17 | AC15: =IF(AC$3>Capacity!$F$2, #N/A, IF(AC$19>0, SprintStart+((AC$8*AC$4)/AC$19)-1, SprintStart)) -> 2018-05-18 | AD15: =IF(AD$3>Capacity!$F$2, #N/A, IF(AD$19>0, SprintStart+((AD$8*AD$4)/AD$19)-1, SprintStart)) -> 2018-05-19 | AE15: =IF(AE$3>Capacity!$F$2, #N/A, IF(AE$19>0, SprintStart+((AE$8*AE$4)/AE$19)-1, SprintStart)) -> 2018-05-20 | AF15: =IF(AF$3>Capacity!$F$2, #N/A, IF(AF$19>0, SprintStart+((AF$8*AF$4)/AF$19)-1, SprintStart)) -> 2018-05-21 | AG15: =IF(AG$3>Capacity!$F$2, #N/A, IF(AG$19>0, SprintStart+((AG$8*AG$4)/AG$19)-1, SprintStart)) -> 2018-05-22 | AH15: =IF(AH$3>Capacity!$F$2, #N/A, IF(AH$19>0, SprintStart+((AH$8*AH$4)/AH$19)-1, SprintStart)) -> 2018-05-23 | AI15: =IF(AI$3>Capacity!$F$2, #N/A, IF(AI$19>0, SprintStart+((AI$8*AI$4)/AI$19)-1, SprintStart)) -> 2018-05-24 | AJ15: =IF(AJ$3>Capacity!$F$2, #N/A, IF(AJ$19>0, SprintStart+((AJ$8*AJ$4)/AJ$19)-1, SprintStart)) -> 2018-05-25 | AK15: =IF(AK$3>Capacity!$F$2, #N/A, IF(AK$19>0, SprintStart+((AK$8*AK$4)/AK$19)-1, SprintStart)) -> 2018-05-26 | AL15: =IF(AL$3>Capacity!$F$2, #N/A, IF(AL$19>0, SprintStart+((AL$8*AL$4)/AL$19)-1, SprintStart)) -> 2018-05-27 | AM15: =IF(AM$3>Capacity!$F$2, #N/A, IF(AM$19>0, SprintStart+((AM$8*AM$4)/AM$19)-1, SprintStart)) -> 2018-05-28 | AN15: =IF(AN$3>Capacity!$F$2, #N/A, IF(AN$19>0, SprintStart+((AN$8*AN$4)/AN$19)-1, SprintStart)) -> 2018-05-29 | AO15: =IF(AO$3>Capacity!$F$2, #N/A, IF(AO$19>0, SprintStart+((AO$8*AO$4)/AO$19)-1, SprintStart)) -> 2018-05-30 | AP15: =IF(AP$3>Capacity!$F$2, #N/A, IF(AP$19>0, SprintStart+((AP$8*AP$4)/AP$19)-1, SprintStart)) ->  | AQ15: =IF(AQ$3>Capacity!$F$2, #N/A, IF(AQ$19>0, SprintStart+((AQ$8*AQ$4)/AQ$19)-1, SprintStart)) ->  | AR15: =IF(AR$3>Capacity!$F$2, #N/A, IF(AR$19>0, SprintStart+((AR$8*AR$4)/AR$19)-1, SprintStart)) -> 
A16: Tasks Hours
A17: To start | E17: =IF(E$3>Capacity!$F$2, #N/A, SUMIF(INDEX(Burndown,,(E$4-1)*BurndownColumns+StatusColumn), "=To start",INDEX(Burndown,,(E$4-1)*BurndownColumns+HoursLeftColumn))) -> 28 | F17: =IF(F$3>Capacity!$F$2, #N/A, SUMIF(INDEX(Burndown,,(F$4-1)*BurndownColumns+StatusColumn), "=To start",INDEX(Burndown,,(F$4-1)*BurndownColumns+HoursLeftColumn))) -> 12 | G17: =IF(G$3>Capacity!$F$2, #N/A, SUMIF(INDEX(Burndown,,(G$4-1)*BurndownColumns+StatusColumn), "=To start",INDEX(Burndown,,(G$4-1)*BurndownColumns+HoursLeftColumn))) -> 12 | H17: =IF(H$3>Capacity!$F$2, #N/A, SUMIF(INDEX(Burndown,,(H$4-1)*BurndownColumns+StatusColumn), "=To start",INDEX(Burndown,,(H$4-1)*BurndownColumns+HoursLeftColumn))) -> 12 | I17: =IF(I$3>Capacity!$F$2, #N/A, SUMIF(INDEX(Burndown,,(I$4-1)*BurndownColumns+StatusColumn), "=To start",INDEX(Burndown,,(I$4-1)*BurndownColumns+HoursLeftColumn))) -> 12 | J17: =IF(J$3>Capacity!$F$2, #N/A, SUMIF(INDEX(Burndown,,(J$4-1)*BurndownColumns+StatusColumn), "=To start",INDEX(Burndown,,(J$4-1)*BurndownColumns+HoursLeftColumn))) -> 8 | K17: =IF(K$3>Capacity!$F$2, #N/A, SUMIF(INDEX(Burndown,,(K$4-1)*BurndownColumns+StatusColumn), "=To start",INDEX(Burndown,,(K$4-1)*BurndownColumns+HoursLeftColumn))) -> 8 | L17: =IF(L$3>Capacity!$F$2, #N/A, SUMIF(INDEX(Burndown,,(L$4-1)*BurndownColumns+StatusColumn), "=To start",INDEX(Burndown,,(L$4-1)*BurndownColumns+HoursLeftColumn))) -> 2 | M17: =IF(M$3>Capacity!$F$2, #N/A, SUMIF(INDEX(Burndown,,(M$4-1)*BurndownColumns+StatusColumn), "=To start",INDEX(Burndown,,(M$4-1)*BurndownColumns+HoursLeftColumn))) -> 2 | N17: =IF(N$3>Capacity!$F$2, #N/A, SUMIF(INDEX(Burndown,,(N$4-1)*BurndownColumns+StatusColumn), "=To start",INDEX(Burndown,,(N$4-1)*BurndownColumns+HoursLeftColumn))) -> 0 | O17: =IF(O$3>Capacity!$F$2, #N/A, SUMIF(INDEX(Burndown,,(O$4-1)*BurndownColumns+StatusColumn), "=To start",INDEX(Burndown,,(O$4-1)*BurndownColumns+HoursLeftColumn))) -> 0 | P17: =IF(P$3>Capacity!$F$2, #N/A, SUMIF(INDEX(Burndown,,(P$4-1)*BurndownColumns+StatusColumn), "=To start",INDEX(Burndown,,(P$4-1)*BurndownColumns+HoursLeftColumn))) -> 0 | Q17: =IF(Q$3>Capacity!$F$2, #N/A, SUMIF(INDEX(Burndown,,(Q$4-1)*BurndownColumns+StatusColumn), "=To start",INDEX(Burndown,,(Q$4-1)*BurndownColumns+HoursLeftColumn))) -> 0 | R17: =IF(R$3>Capacity!$F$2, #N/A, SUMIF(INDEX(Burndown,,(R$4-1)*BurndownColumns+StatusColumn), "=To start",INDEX(Burndown,,(R$4-1)*BurndownColumns+HoursLeftColumn))) -> 0 | S17: =IF(S$3>Capacity!$F$2, #N/A, SUMIF(INDEX(Burndown,,(S$4-1)*BurndownColumns+StatusColumn), "=To start",INDEX(Burndown,,(S$4-1)*BurndownColumns+HoursLeftColumn))) -> 0 | T17: =IF(T$3>Capacity!$F$2, #N/A, SUMIF(INDEX(Burndown,,(T$4-1)*BurndownColumns+StatusColumn), "=To start",INDEX(Burndown,,(T$4-1)*BurndownColumns+HoursLeftColumn))) -> 0 | U17: =IF(U$3>Capacity!$F$2, #N/A, SUMIF(INDEX(Burndown,,(U$4-1)*BurndownColumns+StatusColumn), "=To start",INDEX(Burndown,,(U$4-1)*BurndownColumns+HoursLeftColumn))) -> 0 | V17: =IF(V$3>Capacity!$F$2, #N/A, SUMIF(INDEX(Burndown,,(V$4-1)*BurndownColumns+StatusColumn), "=To start",INDEX(Burndown,,(V$4-1)*BurndownColumns+HoursLeftColumn))) -> 0 | W17: =IF(W$3>Capacity!$F$2, #N/A, SUMIF(INDEX(Burndown,,(W$4-1)*BurndownColumns+StatusColumn), "=To start",INDEX(Burndown,,(W$4-1)*BurndownColumns+HoursLeftColumn))) -> 0 | X17: =IF(X$3>Capacity!$F$2, #N/A, SUMIF(INDEX(Burndown,,(X$4-1)*BurndownColumns+StatusColumn), "=To start",INDEX(Burndown,,(X$4-1)*BurndownColumns+HoursLeftColumn))) -> 0 | Y17: =IF(Y$3>Capacity!$F$2, #N/A, SUMIF(INDEX(Burndown,,(Y$4-1)*BurndownColumns+StatusColumn), "=To start",INDEX(Burndown,,(Y$4-1)*BurndownColumns+HoursLeftColumn))) -> 0 | Z17: =IF(Z$3>Capacity!$F$2, #N/A, SUMIF(INDEX(Burndown,,(Z$4-1)*BurndownColumns+StatusColumn), "=To start",INDEX(Burndown,,(Z$4-1)*BurndownColumns+HoursLeftColumn))) -> 0 | AA17: =IF(AA$3>Capacity!$F$2, #N/A, SUMIF(INDEX(Burndown,,(AA$4-1)*BurndownColumns+StatusColumn), "=To start",INDEX(Burndown,,(AA$4-1)*BurndownColumns+HoursLeftColumn))) -> 0 | AB17: =IF(AB$3>Capacity!$F$2, #N/A, SUMIF(INDEX(Burndown,,(AB$4-1)*BurndownColumns+StatusColumn), "=To start",INDEX(Burndown,,(AB$4-1)*BurndownColumns+HoursLeftColumn))) -> 0 | AC17: =IF(AC$3>Capacity!$F$2, #N/A, SUMIF(INDEX(Burndown,,(AC$4-1)*BurndownColumns+StatusColumn), "=To start",INDEX(Burndown,,(AC$4-1)*BurndownColumns+HoursLeftColumn))) -> 0 | AD17: =IF(AD$3>Capacity!$F$2, #N/A, SUMIF(INDEX(Burndown,,(AD$4-1)*BurndownColumns+StatusColumn), "=To start",INDEX(Burndown,,(AD$4-1)*BurndownColumns+HoursLeftColumn))) -> 0 | AE17: =IF(AE$3>Capacity!$F$2, #N/A, SUMIF(INDEX(Burndown,,(AE$4-1)*BurndownColumns+StatusColumn), "=To start",INDEX(Burndown,,(AE$4-1)*BurndownColumns+HoursLeftColumn))) -> 0 | AF17: =IF(AF$3>Capacity!$F$2, #N/A, SUMIF(INDEX(Burndown,,(AF$4-1)*BurndownColumns+StatusColumn), "=To start",INDEX(Burndown,,(AF$4-1)*BurndownColumns+HoursLeftColumn))) -> 0 | AG17: =IF(AG$3>Capacity!$F$2, #N/A, SUMIF(INDEX(Burndown,,(AG$4-1)*BurndownColumns+StatusColumn), "=To start",INDEX(Burndown,,(AG$4-1)*BurndownColumns+HoursLeftColumn))) -> 0 | AH17: =IF(AH$3>Capacity!$F$2, #N/A, SUMIF(INDEX(Burndown,,(AH$4-1)*BurndownColumns+StatusColumn), "=To start",INDEX(Burndown,,(AH$4-1)*BurndownColumns+HoursLeftColumn))) -> 0 | AI17: =IF(AI$3>Capacity!$F$2, #N/A, SUMIF(INDEX(Burndown,,(AI$4-1)*BurndownColumns+StatusColumn), "=To start",INDEX(Burndown,,(AI$4-1)*BurndownColumns+HoursLeftColumn))) -> 0 | AJ17: =IF(AJ$3>Capacity!$F$2, #N/A, SUMIF(INDEX(Burndown,,(AJ$4-1)*BurndownColumns+StatusColumn), "=To start",INDEX(Burndown,,(AJ$4-1)*BurndownColumns+HoursLeftColumn))) -> 0 | AK17: =IF(AK$3>Capacity!$F$2, #N/A, SUMIF(INDEX(Burndown,,(AK$4-1)*BurndownColumns+StatusColumn), "=To start",INDEX(Burndown,,(AK$4-1)*BurndownColumns+HoursLeftColumn))) -> 0 | AL17: =IF(AL$3>Capacity!$F$2, #N/A, SUMIF(INDEX(Burndown,,(AL$4-1)*BurndownColumns+StatusColumn), "=To start",INDEX(Burndown,,(AL$4-1)*BurndownColumns+HoursLeftColumn))) -> 0 | AM17: =IF(AM$3>Capacity!$F$2, #N/A, SUMIF(INDEX(Burndown,,(AM$4-1)*BurndownColumns+StatusColumn), "=To start",INDEX(Burndown,,(AM$4-1)*BurndownColumns+HoursLeftColumn))) -> 0 | AN17: =IF(AN$3>Capacity!$F$2, #N/A, SUMIF(INDEX(Burndown,,(AN$4-1)*BurndownColumns+StatusColumn), "=To start",INDEX(Burndown,,(AN$4-1)*BurndownColumns+HoursLeftColumn))) -> 0 | AO17: =IF(AO$3>Capacity!$F$2, #N/A, SUMIF(INDEX(Burndown,,(AO$4-1)*BurndownColumns+StatusColumn), "=To start",INDEX(Burndown,,(AO$4-1)*BurndownColumns+HoursLeftColumn))) -> 0 | AP17: =IF(AP$3>Capacity!$F$2, #N/A, SUMIF(INDEX(Burndown,,(AP$4-1)*BurndownColumns+StatusColumn), "=To start",INDEX(Burndown,,(AP$4-1)*BurndownColumns+HoursLeftColumn))) ->  | AQ17: =IF(AQ$3>Capacity!$F$2, #N/A, SUMIF(INDEX(Burndown,,(AQ$4-1)*BurndownColumns+StatusColumn), "=To start",INDEX(Burndown,,(AQ$4-1)*BurndownColumns+HoursLeftColumn))) ->  | AR17: =IF(AR$3>Capacity!$F$2, #N/A, SUMIF(INDEX(Burndown,,(AR$4-1)*BurndownColumns+StatusColumn), "=To start",INDEX(Burndown,,(AR$4-1)*BurndownColumns+HoursLeftColumn))) -> 
A18: Running | E18: =E$5-E$17 -> 0 | F18: =F$5-F$17 -> 0 | G18: 0 | H18: 0 | I18: 0 | J18: 0 | K18: 0 | L18: 0 | M18: 0 | N18: 0 | O18: 0 | P18: 0 | Q18: 0 | R18: 0 | S18: 0 | T18: 0 | U18: 0 | V18: 0 | W18: 0 | X18: 0 | Y18: 0 | Z18: 0 | AA18: 0 | AB18: 0 | AC18: 0 | AD18: 0 | AE18: 0 | AF18: 0 | AG18: 0 | AH18: 0 | AI18: 0 | AJ18: 0 | AK18: 0 | AL18: 0 | AM18: 0 | AN18: 0 | AO18: 0
